Workbook

Sheet 目录
F4: 金属&新材料行业数据库2022-11-23
F6: 分析师 | G6: 刘荆
F7: 执业证书编号： | G7: S0910520020001
F8: Email: | G8: liujing1@huajinsc.com.cn；
F9: 联系人 | G9: 魏欣
F10: Email: | G10: weixin1@huajinsc.com.cn
F12: 行业观察
F14: 指数跟踪
F16: 数据变化
F18: 工业金属
F20: 贵金属
F22: 军工材料
F24: 电子材料
F26: 新能源车 | G26: 正极材料
G27: 负极材料
G28: 电解液和隔膜
G29: 铜箔和铝塑膜
G30: 稀土永磁
F32: 光伏材料
F34: 免责声明

Sheet 行业观察
C3: 金属&新材料行业观察 | Q3: 目录
C9: 本周观察 | G9: 有色金属碳达峰方案发布，关注电解铝行业投资机遇 铜：截至11月23日，沪铜报收64890元/吨，周变动-2.73%；库存报收39262万吨，周变动-36.65%。 铝：截至11月23日，沪铝报收18895元/吨，周变动0.00%；库存报收41574万吨，周变动-26.37%。 稀土：截至11月23日，氧化镨（最低价）报收655000元/吨，周内持平；氧化钕（最低价）报收710000，周变动0.71%；氧化镨钕（最低价）报收641000元/吨，周变动0.79%；氧化镝（最低价）报收2280元/吨，周变动1.79%；氧化铽（最低价）报收13070元/吨，周变动0.38%。 从市场表现来看，本周上证综指下跌0.74%，有色指数下跌3.24%，其中工业金属指数下跌3.13%，稀有金属指数下跌4..05%，小金属指数下跌3.40%。 投资建议： 本周《有色金属行业碳达峰实施方案》发布，电解铝部分主要从强化产能总量控制、优化能源结构、发展再生铝三个方面展开，一是对电解铝产能“天花板”的要求将进一步强化，从之前的等量置换或减量逐步转向减量置换，并将电解铝新增产能纳入环保督察，二是优化电解铝能源结构，控制化石能源消费与鼓励消纳可再生能源，力争2025年和2030年电解铝使用可再生能源比例分别达到25%和30%以上，火电铝供给进一步受限。三是发展再生金属产业，2025年再生铝产量应达到1150万吨，再生金属供应占比达24%以上。 重申我们对电解铝观点，我们认为随着国内楼市提振政策的推进，需求有望改善，且受供暖和西南枯水期影响，短期供需情况向好，但海外需求持续萎靡，全球仍处于供求紧平衡状态，当下处于新旧需求断档期，2023年大概率迎来电解铝价格新低，长期来看，光伏、风电、新能源汽车等新领域需求持续景气，有望接力基建类传统需求注入电解铝需求新动能。建议关注电解铝触底后需求缓慢复苏带来的投资机遇，关注在水电区域积极布局的神火股份、云铝股份等和受益于绿色能源转型的中游加工企业如明泰铝业、南山铝业、鼎盛新材等。 风险提示：全球经济复苏不及预期；美国通胀持续高企；新能源车产销低于预期；能源危机超预期缓解；磁材需求不及预期。加息预期兑现，金属价格走势分化 注：表中所有数据如无特别说明均来源于wind
Y18: 截至8月3日，氧化镨（最低价）报收806000元/吨，周变动-5.40%；氧化钕（最低价）报收801000，周变动-6.10%；氧化镨钕（最低价）报收758000元/吨，周变动-7.33%；氧化镝（最低价）报收2315元/吨，周变动-0.64%；氧化铽（最低价）报收13870元/吨，周变动0.36%。
AG39: =690+66 -> 756

Sheet 数据变化
A1: 目录 | C1: 数据变化
I3: Ver. | J3: =TODAY()-1 -> 2022-11-22
B4: 类别 | C4: 本周 | D4: 上周 | E4: 较上周 | F4: 上月 | G4: 较上月 | H4: 上年 | I4: 较上年 | J4: 最后日期
B5: 工业金属
B6: SHFE铜（元/吨） | C6: =OFFSET(工业金属!C20,1,0) -> 64890 | D6: =OFFSET(工业金属!C20,6,0) -> 66710 | E6: =C6/D6-1 -> -2.73% | F6: =OFFSET(工业金属!C20,22,0) -> 63060 | G6: =C6/F6-1 -> 2.90% | H6: =OFFSET(工业金属!C20,243,0) -> 71220 | I6: =C6/H6-1 -> -8.89% | J6: =OFFSET(工业金属!C20,1,-1) -> 2022-11-23
B7: SHFE铜库存（吨） | C7: =OFFSET(工业金属!D20,1,0) -> 39262 | D7: =OFFSET(工业金属!D20,6,0) -> 61976 | E7: -36.65% | F7: =OFFSET(工业金属!D20,22,0) -> 41880 | G7: -6.25% | H7: =OFFSET(工业金属!D20,243,0) -> 12213 | I7: 221.48% | J7: =OFFSET(工业金属!D20,1,-2) -> 2022-11-23
B8: SHFE铝（元/吨） | C8: =OFFSET(工业金属!I20,1,0) -> 18895 | D8: =OFFSET(工业金属!I20,6,0) -> 18895 | E8: 0.00% | F8: =OFFSET(工业金属!I20,22,0) -> 18530 | G8: 1.97% | H8: =OFFSET(工业金属!I20,243,0) -> 19250 | I8: -1.84% | J8: =OFFSET(工业金属!I20,1,-1) -> 2022-11-23
B9: SHFE铝库存（吨） | C9: =OFFSET(工业金属!J20,1,0) -> 41574 | D9: =OFFSET(工业金属!J20,6,0) -> 56464 | E9: -26.37% | F9: =OFFSET(工业金属!J20,22,0) -> 79036 | G9: -47.40% | H9: =OFFSET(工业金属!J20,243,0) -> 210816 | I9: -80.28% | J9: =OFFSET(工业金属!J20,1,-2) -> 2022-11-23
B10: LME铜（美元/吨） | C10: =OFFSET(工业金属!M20,1,0) -> 7975.25 | D10: =OFFSET(工业金属!M20,6,0) -> 8348.25 | E10: -4.47% | F10: =OFFSET(工业金属!M20,22,0) -> 7645.5 | G10: 4.31% | H10: =OFFSET(工业金属!M20,243,0) -> 9805 | I10: -18.66% | J10: =OFFSET(工业金属!M20,1,-1) -> 2022-11-22
B11: LME铜库存(吨) | C11: =OFFSET(工业金属!N20,1,0) -> 91875 | D11: =OFFSET(工业金属!N20,6,0) -> 89975 | E11: 2.11% | F11: =OFFSET(工业金属!N20,22,0) -> 136700 | G11: -32.79% | H11: =OFFSET(工业金属!N20,243,0) -> 81600 | I11: 12.59% | J11: =OFFSET(工业金属!N20,1,-2) -> 2022-11-22
B12: LME铝(美元/吨) | C12: =OFFSET(工业金属!Q20,1,0) -> 2406.03 | D12: =OFFSET(工业金属!Q20,6,0) -> 2387 | E12: 0.80% | F12: =OFFSET(工业金属!Q20,22,0) -> 2194.25 | G12: 9.65% | H12: =OFFSET(工业金属!Q20,243,0) -> 2639.5 | I12: -8.85% | J12: =OFFSET(工业金属!Q20,1,-1) -> 2022-11-22
B13: LME铝库存(吨） | C13: =OFFSET(工业金属!R20,1,0) -> 517075 | D13: =OFFSET(工业金属!R20,6,0) -> 532975 | E13: -2.98% | F13: =OFFSET(工业金属!R20,22,0) -> 568275 | G13: -9.01% | H13: =OFFSET(工业金属!R20,243,0) -> 909225 | I13: -43.13% | J13: =OFFSET(工业金属!R20,1,-2) -> 2022-11-22
B14: 贵金属
B15: 伦敦黄金现货（美元/盎司） | C15: =OFFSET(贵金属!C17,1,0) -> 1742.95 | D15: =OFFSET(贵金属!C17,6,0) -> 1859.9 | E15: =C15/D15-1 -> -6.29% | F15: =OFFSET(贵金属!C17,22,0) -> 1649.15 | G15: =C15/F15-1 -> 5.69% | H15: =OFFSET(贵金属!C17,243,0) -> 1767.55 | I15: =C15/H15-1 -> -1.39% | J15: =OFFSET(贵金属!C17,1,-1) -> 2022-11-22
B16: 美元指数 | C16: =OFFSET(贵金属!D17,1,0) -> 107.1687 | D16: =OFFSET(贵金属!D17,6,0) -> 95.5242 | E16: =C16/D16-1 -> 12.19% | F16: =OFFSET(贵金属!D17,22,0) -> 112.0087 | G16: =C16/F16-1 -> -4.32% | H16: =OFFSET(贵金属!D17,243,0) -> 96.1715 | I16: =C16/H16-1 -> 11.43% | J16: =OFFSET(贵金属!D17,1,-2) -> 2022-11-22
B17: 美国实际利率%/BP | C17: =OFFSET(贵金属!G17,1,0) -> 1.44 | D17: =OFFSET(贵金属!G17,6,0) -> -1.13 | E17: =(C17-D17)*100 -> 257.00 | F17: =OFFSET(贵金属!G17,22,0) -> 1.66 | G17: =(C17-F17)*100 -> (22.00) | H17: =OFFSET(贵金属!G17,243,0) -> -1.07 | I17: =(C17-H17)*100 -> 251.00 | J17: =OFFSET(贵金属!G17,1,-2) -> 2022-11-22
B18: SHFE黄金（元/克） | C18: =OFFSET(贵金属!K17,1,0) -> 404.66 | D18: =OFFSET(贵金属!K17,6,0) -> 407.12 | E18: -0.60% | F18: =OFFSET(贵金属!K17,22,0) -> 393.82 | G18: 2.75% | H18: =OFFSET(贵金属!K17,243,0) -> 369.76 | I18: 9.44% | J18: =OFFSET(贵金属!K17,1,-1) -> 2022-11-23
B19: SHFE白银（元/千克） | C19: =OFFSET(贵金属!L17,1,0) -> 4859 | D19: =OFFSET(贵金属!L17,6,0) -> 4916 | E19: -1.16% | F19: =OFFSET(贵金属!L17,22,0) -> 4575 | G19: 6.21% | H19: =OFFSET(贵金属!L17,243,0) -> 5153 | I19: -5.71% | J19: =OFFSET(贵金属!L17,1,-2) -> 2022-11-23
B20: 军工材料
B21: 现货平均价:电解钴:Co99.98:华南（元/吨） | C21: =OFFSET(军工材料!D19,1,0) -> 357000 | D21: =OFFSET(军工材料!D19,6,0) -> 362000 | E21: =C21/D21-1 -> -1.38% | F21: =OFFSET(军工材料!D19,22,0) -> 354000 | G21: =C21/F21-1 -> 0.85% | H21: =OFFSET(军工材料!D19,243,0) -> 433000 | I21: =C21/H21-1 -> -17.55% | J21: =OFFSET(军工材料!D19,1,-1) -> 2022-11-23
B22: 现货平均价:电解镍:Ni9996:华南（元/吨） | C22: =OFFSET(军工材料!E19,1,0) -> 206750 | D22: =OFFSET(军工材料!E19,6,0) -> 209750 | E22: =C22/D22-1 -> -1.43% | F22: =OFFSET(军工材料!E19,22,0) -> 196500 | G22: =C22/F22-1 -> 5.22% | H22: =OFFSET(军工材料!E19,243,0) -> 154650 | I22: =C22/H22-1 -> 33.69% | J22: =OFFSET(军工材料!E19,1,-2) -> 2022-11-23
B23: 价格:海绵钛:≥99.6%:国产（元/千克） | C23: =OFFSET(军工材料!I19,1,0) -> 80 | D23: =OFFSET(军工材料!I19,6,0) -> 80 | E23: 0.00% | F23: =OFFSET(军工材料!I19,22,0) -> 80 | G23: 0.00% | H23: =OFFSET(军工材料!I19,243,0) -> 82.5 | I23: -3.03% | J23: =OFFSET(军工材料!I19,1,-1) -> 2022-11-23
B24: 市场价(主流价):丙烯腈:港口市场（元/吨） | C24: =OFFSET(军工材料!M19,1,0) -> 10500 | D24: =OFFSET(军工材料!M19,6,0) -> 11200 | E24: -6.25% | F24: =OFFSET(军工材料!M19,22,0) -> 10850 | G24: -3.23% | H24: =OFFSET(军工材料!M19,243,0) -> 15400 | I24: -31.82% | J24: =OFFSET(军工材料!M19,1,-1) -> 2022-11-23
B25: 电子材料
B26: 四氧化三钴:国产:平均价（元/吨） | C26: =OFFSET(电子材料!C18,1,0) -> 238000 | D26: =OFFSET(电子材料!C18,6,0) -> 240000 | E26: -0.83% | F26: =OFFSET(电子材料!C18,22,0) -> 243000 | G26: -2.06% | H26: =OFFSET(电子材料!C18,243,0) -> 290000 | I26: -17.93% | J26: =OFFSET(电子材料!C18,1,-1) -> 2022-11-22
B27: 钴酸锂:≥60%:国产:平均价（元/吨） | C27: =OFFSET(电子材料!G18,1,0) -> 438500 | D27: =OFFSET(电子材料!G18,6,0) -> 438500 | E27: 0.00% | F27: =OFFSET(电子材料!G18,22,0) -> 438500 | G27: 0.00% | H27: =OFFSET(电子材料!G18,243,0) -> 317500 | I27: 38.11% | J27: =OFFSET(电子材料!G18,1,-1) -> 2022-11-22
B28: 碳化硅:98（元/吨） | C28: =OFFSET(电子材料!K18,1,0) -> 8500 | D28: =OFFSET(电子材料!K18,6,0) -> 8500 | E28: 0.00% | F28: =OFFSET(电子材料!K18,22,0) -> 8500 | G28: 0.00% | H28: =OFFSET(电子材料!K18,243,0) -> 8400 | I28: 1.19% | J28: =OFFSET(电子材料!K18,1,-1) -> 2022-11-23
B29: 碳化硅:97（元/吨） | C29: =OFFSET(电子材料!L18,1,0) -> 8400 | D29: =OFFSET(电子材料!L18,6,0) -> 8400 | E29: 0.00% | F29: =OFFSET(电子材料!L18,22,0) -> 8400 | G29: 0.00% | H29: =OFFSET(电子材料!L18,243,0) -> 8400 | I29: 0.00% | J29: =OFFSET(电子材料!L18,1,-2) -> 2022-11-23
B30: 平均价:高纯镓:≥99.9999%:国产（元/千克） | C30: =OFFSET(电子材料!P18,1,0) -> 1975 | D30: =OFFSET(电子材料!P18,6,0) -> 2225 | E30: -11.24% | F30: =OFFSET(电子材料!P18,22,0) -> 2675 | G30: -26.17% | H30: =OFFSET(电子材料!P18,243,0) -> 2525 | I30: -21.78% | J30: =OFFSET(电子材料!P18,1,-1) -> 2022-11-23
B31: 平均价:粗铟:≥99%:国产（元/千克） | C31: =OFFSET(电子材料!Q18,1,0) -> 1365 | D31: =OFFSET(电子材料!Q18,6,0) -> 1380 | E31: -1.09% | F31: =OFFSET(电子材料!Q18,22,0) -> 1295 | G31: 5.41% | H31: =OFFSET(电子材料!Q18,243,0) -> 1575 | I31: -13.33% | J31: =OFFSET(电子材料!Q18,1,-2) -> 2022-11-23
B32: 平均价:精铟:≥99.995%:国产（元/千克） | C32: =OFFSET(电子材料!R18,1,0) -> 1465 | D32: =OFFSET(电子材料!R18,6,0) -> 1480 | E32: -1.01% | F32: =OFFSET(电子材料!R18,22,0) -> 1395 | G32: 5.02% | H32: =OFFSET(电子材料!R18,243,0) -> 1675 | I32: -12.54% | J32: =OFFSET(电子材料!R18,1,-3) -> 2022-11-23
B33: 价格:粗铟:≥99%:国产（元/千克） | C33: =OFFSET(电子材料!V18,1,0) -> 1355 | D33: =OFFSET(电子材料!V18,6,0) -> 1325 | E33: 2.26% | F33: =OFFSET(电子材料!V18,22,0) -> 1295 | G33: 4.63% | H33: =OFFSET(电子材料!V18,243,0) -> 1460 | I33: -7.19% | J33: =OFFSET(电子材料!V18,1,-1) -> 2022-11-23
B34: 价格:精铟:≥99.99%:国产（元/千克） | C34: =OFFSET(电子材料!W18,1,0) -> 1485 | D34: =OFFSET(电子材料!W18,6,0) -> 1395 | E34: 6.45% | F34: =OFFSET(电子材料!W18,22,0) -> 1425 | G34: 4.21% | H34: =OFFSET(电子材料!W18,243,0) -> 1650 | I34: -10.00% | J34: =OFFSET(电子材料!W18,1,-2) -> 2022-11-23
B35: 新能源车
B36: 正极材料
B37: 碳酸锂价格:国产(元/吨) | C37: =OFFSET(新能源车_正极!C20,1,0) -> 567000 | D37: =OFFSET(新能源车_正极!C20,6,0) -> 567500 | E37: -0.09% | F37: =OFFSET(新能源车_正极!C20,22,0) -> 544000 | G37: 4.23% | H37: =OFFSET(新能源车_正极!C20,243,0) -> 200000 | I37: 183.50% | J37: =OFFSET(新能源车_正极!C20,1,-1) -> 2022-11-23
B38: 氢氧化锂56.5%:国产(元/吨) | C38: =OFFSET(新能源车_正极!F20,1,0) -> 560000 | D38: =OFFSET(新能源车_正极!F20,6,0) -> 560000 | E38: 0.00% | F38: =OFFSET(新能源车_正极!F20,22,0) -> 535500 | G38: 4.58% | H38: =OFFSET(新能源车_正极!F20,243,0) -> 188000 | I38: 197.87% | J38: =OFFSET(新能源车_正极!F20,1,-1) -> 2022-11-23
B39: 平均价:硫酸钴:21%:国产(元/吨) | C39: =OFFSET(新能源车_正极!I20,1,0) -> 61500 | D39: =OFFSET(新能源车_正极!I20,6,0) -> 62000 | E39: -0.81% | F39: =OFFSET(新能源车_正极!I20,22,0) -> 63000 | G39: -2.38% | H39: =OFFSET(新能源车_正极!I20,243,0) -> 83000 | I39: -25.90% | J39: =OFFSET(新能源车_正极!I20,1,-1) -> 2022-11-22
B40: 平均价:硫酸钴:20.5%:国产(元/吨) | C40: =OFFSET(新能源车_正极!J20,1,0) -> 59250 | D40: =OFFSET(新能源车_正极!J20,6,0) -> 60000 | E40: -1.25% | F40: =OFFSET(新能源车_正极!J20,22,0) -> 61000 | G40: -2.87% | H40: =OFFSET(新能源车_正极!J20,243,0) -> 81000 | I40: -26.85% | J40: =OFFSET(新能源车_正极!J20,1,-2) -> 2022-11-22
B41: 价格:正极材料:磷酸铁锂:国产(万元/吨) | C41: =OFFSET(新能源车_正极!M20,1,0) -> 17.7 | D41: =OFFSET(新能源车_正极!M20,6,0) -> 17.7 | E41: 0.00% | F41: =OFFSET(新能源车_正极!M20,22,0) -> 17.3 | G41: 2.31% | H41: =OFFSET(新能源车_正极!M20,243,0) -> 9 | I41: 96.67% | J41: =OFFSET(新能源车_正极!M20,1,-1) -> 2022-11-23
B42: 电解液和隔膜
B43: 价格:电解液:磷酸铁锂（万元/吨） | C43: =OFFSET(新能源车_电解液和隔膜!D20,1,0) -> 6.37 | D43: =OFFSET(新能源车_电解液和隔膜!D20,6,0) -> 6.37 | E43: 0.00% | F43: =OFFSET(新能源车_电解液和隔膜!D20,22,0) -> 6.37 | G43: 0.00% | H43: =OFFSET(新能源车_电解液和隔膜!D20,243,0) -> 11.03 | I43: -42.25% | J43: =OFFSET(新能源车_电解液和隔膜!D20,1,-1) -> 2022-11-23
B44: 价格:电解液:三元圆柱2.6Ah（万元/吨） | C44: =OFFSET(新能源车_电解液和隔膜!H20,1,0) -> 7.35 | D44: =OFFSET(新能源车_电解液和隔膜!H20,6,0) -> 7.35 | E44: 0.00% | F44: =OFFSET(新能源车_电解液和隔膜!H20,22,0) -> 7.35 | G44: 0.00% | H44: =OFFSET(新能源车_电解液和隔膜!H20,243,0) -> 12.15 | I44: -39.51% | J44: =OFFSET(新能源车_电解液和隔膜!H20,1,-2) -> 2022-11-23
B45: 价格:六氟磷酸锂（万元/吨） | C45: =OFFSET(新能源车_电解液和隔膜!K20,1,0) -> 27.25 | D45: =OFFSET(新能源车_电解液和隔膜!K20,6,0) -> 28.75 | E45: -5.22% | F45: =OFFSET(新能源车_电解液和隔膜!K20,22,0) -> 29.65 | G45: -8.09% | H45: =OFFSET(新能源车_电解液和隔膜!K20,243,0) -> 56.50 | I45: -51.77% | J45: =OFFSET(新能源车_电解液和隔膜!K20,1,-1) -> 2022-11-23
B46: 铜箔和铝塑膜
B47: 电解铜市场价（元/吨） | C47: =OFFSET(新能源车_铜箔和铝塑膜!C16,1,0) -> 65181.67 | D47: =OFFSET(新能源车_铜箔和铝塑膜!C16,6,0) -> 67263.33 | E47: =C47/D47-1 -> -3.09% | F47: =OFFSET(新能源车_铜箔和铝塑膜!C16,22,0) -> 64610.00 | G47: =C47/F47-1 -> 0.88% | H47: =OFFSET(新能源车_铜箔和铝塑膜!C16,243,0) -> 69528.33 | I47: =C47/H47-1 -> -6.25% | J47: =OFFSET(新能源车_铜箔和铝塑膜!C16,1,-1) -> 2022-11-22
B48: 价格:铝塑膜:中端:国产（元/平方米） | C48: =OFFSET(新能源车_铜箔和铝塑膜!F16,1,0) -> 21.50 | D48: =OFFSET(新能源车_铜箔和铝塑膜!F16,6,0) -> 21.50 | E48: =C48/D48-1 -> 0.00% | F48: =OFFSET(新能源车_铜箔和铝塑膜!F16,22,0) -> 21.50 | G48: =C48/F48-1 -> 0.00% | H48: =OFFSET(新能源车_铜箔和铝塑膜!F16,243,0) -> 23.50 | I48: =C48/H48-1 -> -8.51% | J48: =OFFSET(新能源车_铜箔和铝塑膜!F16,1,-1) -> 2022-11-23
B49: 价格:铝塑膜:中高端:韩国（元/平方米） | C49: =OFFSET(新能源车_铜箔和铝塑膜!G16,1,0) -> 25.00 | D49: =OFFSET(新能源车_铜箔和铝塑膜!G16,6,0) -> 25.00 | E49: =C49/D49-1 -> 0.00% | F49: =OFFSET(新能源车_铜箔和铝塑膜!F16,22,0) -> 21.50 | G49: =C49/F49-1 -> 16.28% | H49: =OFFSET(新能源车_铜箔和铝塑膜!F16,243,0) -> 23.50 | I49: =C49/H49-1 -> 6.38% | J49: =OFFSET(新能源车_铜箔和铝塑膜!G16,1,-2) -> 2022-11-23
B50: 稀土永磁
B51: 最高价:氧化镨:≥99%:中国（元/吨） | C51: =OFFSET(新能源车_稀土永磁!D37,1,0) -> 675000 | D51: =OFFSET(新能源车_稀土永磁!D37,6,0) -> 675000 | E51: =C51/D51-1 -> 0.00% | F51: =OFFSET(新能源车_稀土永磁!D37,22,0) -> 743000 | G51: =C51/F51-1 -> -9.15% | H51: =OFFSET(新能源车_稀土永磁!D37,243,0) -> 883000 | I51: =C51/H51-1 -> -23.56% | J51: =OFFSET(新能源车_稀土永磁!D37,1,-1) -> 2022-11-23
B52: 最低价:氧化镨:99%:中国（元/吨） | C52: =OFFSET(新能源车_稀土永磁!E37,1,0) -> 655000 | D52: =OFFSET(新能源车_稀土永磁!E37,6,0) -> 655000 | E52: 0.00% | F52: =OFFSET(新能源车_稀土永磁!E37,22,0) -> 723000 | G52: -9.41% | H52: =OFFSET(新能源车_稀土永磁!E37,243,0) -> 863000 | I52: -24.10% | J52: =OFFSET(新能源车_稀土永磁!E37,1,-2) -> 2022-11-23
B53: 最高价:氧化钕:≥99%:中国（元/吨） | C53: =OFFSET(新能源车_稀土永磁!F37,1,0) -> 730000 | D53: =OFFSET(新能源车_稀土永磁!F37,6,0) -> 725000 | E53: 0.69% | F53: =OFFSET(新能源车_稀土永磁!F37,22,0) -> 773000 | G53: -5.56% | H53: =OFFSET(新能源车_稀土永磁!F37,243,0) -> 874000 | I53: -16.48% | J53: =OFFSET(新能源车_稀土永磁!F37,1,-3) -> 2022-11-23
B54: 最低价:氧化钕:≥99%:中国（元/吨） | C54: =OFFSET(新能源车_稀土永磁!G37,1,0) -> 710000 | D54: =OFFSET(新能源车_稀土永磁!G37,6,0) -> 705000 | E54: 0.71% | F54: =OFFSET(新能源车_稀土永磁!G37,22,0) -> 753000 | G54: -5.71% | H54: =OFFSET(新能源车_稀土永磁!G37,243,0) -> 854000 | I54: -16.86% | J54: =OFFSET(新能源车_稀土永磁!G37,1,-4) -> 2022-11-23
B55: 最高价:氧化镨钕:≥99% Nd2O3 75%:中国（元/吨） | C55: =OFFSET(新能源车_稀土永磁!H37,1,0) -> 661000 | D55: =OFFSET(新能源车_稀土永磁!H37,6,0) -> 656000 | E55: 0.76% | F55: =OFFSET(新能源车_稀土永磁!H37,22,0) -> 681000 | G55: -2.94% | H55: =OFFSET(新能源车_稀土永磁!H37,243,0) -> 865000 | I55: -23.58% | J55: =OFFSET(新能源车_稀土永磁!H37,1,-5) -> 2022-11-23
B56: 最低价:氧化镨钕:≥99% Nd2O3 75%:中国（元/吨） | C56: =OFFSET(新能源车_稀土永磁!I37,1,0) -> 641000 | D56: =OFFSET(新能源车_稀土永磁!I37,6,0) -> 636000 | E56: 0.79% | F56: =OFFSET(新能源车_稀土永磁!I37,22,0) -> 661000 | G56: -3.03% | H56: =OFFSET(新能源车_稀土永磁!I37,243,0) -> 845000 | I56: -24.14% | J56: =OFFSET(新能源车_稀土永磁!I37,1,-6) -> 2022-11-23
B57: 最高价:氧化镝:≥99%:中国(元/公斤) | C57: =OFFSET(新能源车_稀土永磁!J37,1,0) -> 2320 | D57: =OFFSET(新能源车_稀土永磁!J37,6,0) -> 2280 | E57: 1.75% | F57: =OFFSET(新能源车_稀土永磁!J37,22,0) -> 2350 | G57: -1.28% | H57: =OFFSET(新能源车_稀土永磁!J37,243,0) -> 2950 | I57: -21.36% | J57: =OFFSET(新能源车_稀土永磁!J37,1,-7) -> 2022-11-23
B58: 最低价:氧化镝:≥99%:中国(元/公斤) | C58: =OFFSET(新能源车_稀土永磁!K37,1,0) -> 2280 | D58: =OFFSET(新能源车_稀土永磁!K37,6,0) -> 2240 | E58: 1.79% | F58: =OFFSET(新能源车_稀土永磁!K37,22,0) -> 2310 | G58: -1.30% | H58: =OFFSET(新能源车_稀土永磁!K37,243,0) -> 2910 | I58: -21.65% | J58: =OFFSET(新能源车_稀土永磁!K37,1,-8) -> 2022-11-23
B59: 最高价:氧化铽:≥99.9%:中国(元/公斤) | C59: =OFFSET(新能源车_稀土永磁!L37,1,0) -> 13130 | D59: =OFFSET(新能源车_稀土永磁!L37,6,0) -> 13080 | E59: 0.38% | F59: =OFFSET(新能源车_稀土永磁!L37,22,0) -> 13380 | G59: -1.87% | H59: =OFFSET(新能源车_稀土永磁!L37,243,0) -> 11130 | I59: 17.97% | J59: =OFFSET(新能源车_稀土永磁!L37,1,-9) -> 2022-11-23
B60: 最低价:氧化铽:≥99.9%:中国(元/公斤) | C60: =OFFSET(新能源车_稀土永磁!M37,1,0) -> 13070 | D60: =OFFSET(新能源车_稀土永磁!M37,6,0) -> 13020 | E60: 0.38% | F60: =OFFSET(新能源车_稀土永磁!M37,22,0) -> 13320 | G60: -1.88% | H60: =OFFSET(新能源车_稀土永磁!M37,243,0) -> 11070 | I60: 18.07% | J60: =OFFSET(新能源车_稀土永磁!M37,1,-10) -> 2022-11-23
B61: 出口平均单价:钕铁硼合金速凝永磁片(美元/千克) | C61: =OFFSET(新能源车_稀土永磁!P37,1,0) -> 55.86 | F61: =OFFSET(新能源车_稀土永磁!P37,2,0) -> 62 | G61: -9.36% | H61: =OFFSET(新能源车_稀土永磁!P37,12,0) -> 55 | I61: 1.98% | J61: =OFFSET(新能源车_稀土永磁!P37,1,-1) -> 2022-09-30
B62: 光伏材料
B63: 周平均价:光伏级多晶硅(美元/千克) | C63: =OFFSET(光伏材料!C19,1,0) -> 34 | D63: =OFFSET(光伏材料!C19,2,0) -> 34 | E63: =C63/D63-1 -> 1.58% | F63: =OFFSET(光伏材料!C19,4,0) -> 35 | G63: =C63/F63-1 -> -3.37% | H63: =OFFSET(光伏材料!C19,53,0) -> 35 | I63: =C63/H63-1 -> -3.42% | J63: =OFFSET(光伏材料!C19,1,-1) -> 2022-11-16
B64: EVA:扬子巴斯夫V5110J(元/吨) | C64: =OFFSET(光伏材料!F19,1,0) -> 17100 | D64: =OFFSET(光伏材料!F19,6,0) -> 17350 | E64: =C64/D64-1 -> -1.44% | F64: =OFFSET(光伏材料!F19,6,0) -> 17350 | G64: =C64/F64-1 -> -1.44% | H64: =OFFSET(光伏材料!F19,6,0) -> 17350 | I64: =C64/H64-1 -> -1.44% | J64: =OFFSET(光伏材料!F19,1,-1) -> 2022-11-23

Sheet 指数跟踪
C1: =TODAY() -> 2022-11-23
A2: 目录
B3: 名称 | C3: 收盘价 | D3: 周变动 | F3: 1月变动 | H3: 3月变动
D4: +/- | E4: % | F4: +/- | G4: % | H4: +/- | I4: %
B5: 上证综指 | C5: 3097 | D5: (23) | E5: -0.74% | F5: 119 | G5: 4.01% | H5: (149) | I5: -4.60%
B6: 深圳成指 | C6: 1996 | D6: (42) | E6: -2.08% | F6: 63 | G6: 3.27% | H6: (160) | I6: -7.41%
B7: 创业板指 | C7: 2754 | D7: (69) | E7: -2.44% | F7: 47 | G7: 1.74% | H7: (256) | I7: -8.50%
B8: 有色指数 | C8: 1837 | D8: (62) | E8: -3.24% | F8: 75 | G8: 4.23% | H8: (179) | I8: -8.89%
B9: 新材料指数 | C9: 4439 | D9: (72) | E9: -1.60% | F9: 73 | G9: 1.67% | H9: (512) | I9: -10.34%
B10: 工业金属指数 | C10: 9097 | D10: (294) | E10: -3.13% | F10: 111 | G10: 1.23% | H10: (1336) | I10: -12.80%
B11: 稀有金属指数 | C11: 1785 | D11: (75) | E11: -4.05% | F11: 25 | G11: 1.39% | H11: (188) | I11: -9.54%
B12: 小金属指数 | C12: 2068 | D12: (73) | E12: -3.40% | F12: 40 | G12: 2.00% | H12: (236) | I12: -10.25%
B13: 半导体材料指数 | C13: 2419 | D13: (41) | E13: -1.68% | F13: 68 | G13: 2.87% | H13: (127) | I13: -5.00%
B14: 化学纤维指数 | C14: 10174 | D14: (118) | E14: -1.15% | F14: 590 | G14: 6.16% | H14: (759) | I14: -6.94%
B15: 新能源汽车指数 | C15: 3329 | D15: (90) | E15: -2.64% | F15: 31 | G15: 0.94% | H15: (508) | I15: -13.24%
B16: 钴矿指数 | C16: 1865 | D16: (38) | E16: -2.00% | F16: 23 | G16: 1.27% | H16: (362) | I16: -16.24%
B17: 锂矿指数 | C17: 7458 | D17: (306) | E17: -3.95% | F17: 305 | G17: 4.26% | H17: (992) | I17: -11.74%
B18: 锂电池指数 | C18: 8318 | D18: (187) | E18: -2.20% | F18: (79) | G18: -0.94% | H18: (1642) | I18: -16.49%
B19: 磷酸铁锂电池指数 | C19: 5312 | D19: (107) | E19: -1.97% | F19: (2) | G19: -0.04% | H19: (1094) | I19: -17.08%
B20: 储能指数 | C20: 5399 | D20: (10) | E20: -0.18% | F20: (94) | G20: -1.71% | H20: (739) | I20: -12.04%
B21: 稀土永磁指数 | C21: 4753 | D21: (79) | E21: -1.64% | F21: 63 | G21: 1.34% | H21: (599) | I21: -11.19%
B22: 光伏指数 | C22: 5079 | D22: 18 | E22: 0.36% | F22: 183 | G22: 3.74% | H22: (592) | I22: -10.45%

Sheet 工业金属
A1: 目录
C20: SHFE铜（元/吨） | D20: SHFE铜库存（吨）-右轴 | I20: SHFE铝（元/吨） | J20: SHFE铝库存（吨）-右轴 | M20: LME铜（美元/吨） | N20: LME铜库存(吨)-右轴 | Q20: LME铝(美元/吨) | R20: LME铝库存(吨）-右轴
B21: 2022-11-23 | C21: 64,890.00 | D21: 39,262.00 | H21: 2022-11-23 | I21: 18,895.00 | J21: 41,574.00 | L21: 2022-11-22 | M21: 7,975.25 | N21: 91,875.00 | P21: 2022-11-22 | Q21: 2,406.03 | R21: 517,075.00
B22: 2022-11-22 | C22: 64,410.00 | D22: 41,815.00 | H22: 2022-11-22 | I22: 18,875.00 | J22: 45,724.00 | L22: 2022-11-21 | M22: 7,840.50 | N22: 91,250.00 | P22: 2022-11-21 | Q22: 2,355.55 | R22: 522,000.00
B23: 2022-11-21 | C23: 65,030.00 | D23: 45,840.00 | H23: 2022-11-21 | I23: 18,945.00 | J23: 50,000.00 | L23: 2022-11-18 | M23: 8,042.50 | N23: 89,750.00 | P23: 2022-11-18 | Q23: 2,405.51 | R23: 524,375.00
B24: 2022-11-18 | C24: 65,740.00 | D24: 49,164.00 | H24: 2022-11-18 | I24: 19,200.00 | J24: 53,018.00 | L24: 2022-11-17 | M24: 8,072.25 | N24: 89,925.00 | P24: 2022-11-17 | Q24: 2,365.00 | R24: 528,250.00
B25: 2022-11-17 | C25: 66,510.00 | D25: 59,025.00 | H25: 2022-11-17 | I25: 19,015.00 | J25: 53,394.00 | L25: 2022-11-16 | M25: 8,260.75 | N25: 89,675.00 | P25: 2022-11-15 | Q25: 2,407.25 | R25: 538,825.00
B26: 2022-11-16 | C26: 66,710.00 | D26: 61,976.00 | H26: 2022-11-16 | I26: 18,895.00 | J26: 56,464.00 | L26: 2022-11-15 | M26: 8,348.25 | N26: 89,975.00 | P26: 2022-11-16 | Q26: 2,387.00 | R26: 532,975.00
B27: 2022-11-15 | C27: 67,190.00 | D27: 61,661.00 | H27: 2022-11-15 | I27: 18,925.00 | J27: 59,110.00 | L27: 2022-11-14 | M27: 8,356.00 | N27: 86,800.00 | P27: 2022-11-14 | Q27: 2,427.50 | R27: 544,025.00
B28: 2022-11-14 | C28: 67,010.00 | D28: 49,433.00 | H28: 2022-11-14 | I28: 18,780.00 | J28: 54,359.00 | L28: 2022-11-11 | M28: 8,501.90 | N28: 77,875.00 | P28: 2022-11-11 | Q28: 2,445.75 | R28: 549,275.00
B29: 2022-11-11 | C29: 67,630.00 | D29: 32,247.00 | H29: 2022-11-11 | I29: 18,755.00 | J29: 51,844.00 | L29: 2022-11-10 | M29: 8,282.50 | N29: 80,025.00 | P29: 2022-11-10 | Q29: 2,309.75 | R29: 552,600.00
B30: 2022-11-10 | C30: 66,750.00 | D30: 25,006.00 | H30: 2022-11-10 | I30: 18,590.00 | J30: 52,689.00 | L30: 2022-11-08 | M30: 8,127.50 | N30: 83,075.00 | P30: 2022-11-08 | Q30: 2,356.56 | R30: 564,375.00
B31: 2022-11-09 | C31: 66,580.00 | D31: 22,558.00 | H31: 2022-11-09 | I31: 18,650.00 | J31: 53,366.00 | L31: 2022-11-07 | M31: 7,924.75 | N31: 84,550.00 | P31: 2022-11-07 | Q31: 2,322.59 | R31: 570,775.00
B32: 2022-11-08 | C32: 65,780.00 | D32: 21,410.00 | H32: 2022-11-08 | I32: 18,450.00 | J32: 54,610.00 | L32: 2022-11-04 | M32: 8,136.00 | N32: 88,600.00 | P32: 2022-11-04 | Q32: 2,344.50 | R32: 574,425.00
B33: 2022-11-07 | C33: 65,730.00 | D33: 19,227.00 | H33: 2022-11-07 | I33: 18,275.00 | J33: 55,484.00 | L33: 2022-11-03 | M33: 7,596.00 | N33: 93,975.00 | P33: 2022-11-03 | Q33: 2,251.00 | R33: 577,875.00
B34: 2022-11-04 | C34: 64,250.00 | D34: 18,701.00 | H34: 2022-11-04 | I34: 18,385.00 | J34: 60,485.00 | L34: 2022-11-02 | M34: 7,663.25 | N34: 102,225.00 | P34: 2022-11-02 | Q34: 2,238.45 | R34: 581,050.00
B35: 2022-11-03 | C35: 63,350.00 | D35: 19,124.00 | H35: 2022-11-03 | I35: 18,085.00 | J35: 62,258.00 | L35: 2022-11-01 | M35: 7,717.00 | N35: 106,425.00 | P35: 2022-11-01 | Q35: 2,232.50 | R35: 583,975.00
B36: 2022-11-02 | C36: 63,570.00 | D36: 20,670.00 | H36: 2022-11-02 | I36: 17,860.00 | J36: 65,550.00 | L36: 2022-10-31 | M36: 7,522.00 | N36: 113,125.00 | P36: 2022-10-31 | Q36: 2,216.75 | R36: 586,225.00
B37: 2022-11-01 | C37: 63,350.00 | D37: 25,040.00 | H37: 2022-11-01 | I37: 17,905.00 | J37: 70,091.00 | L37: 2022-10-28 | M37: 7,619.00 | N37: 119,375.00 | P37: 2022-10-28 | Q37: 2,200.74 | R37: 587,425.00
B38: 2022-10-31 | C38: 62,060.00 | D38: 26,624.00 | H38: 2022-10-31 | I38: 17,535.00 | J38: 71,961.00 | L38: 2022-10-27 | M38: 7,838.25 | N38: 125,825.00 | P38: 2022-10-27 | Q38: 2,279.02 | R38: 587,100.00
B39: 2022-10-28 | C39: 62,830.00 | D39: 28,082.00 | H39: 2022-10-28 | I39: 18,075.00 | J39: 71,564.00 | L39: 2022-10-25 | M39: 7,634.00 | N39: 134,400.00 | P39: 2022-10-25 | Q39: 2,212.30 | R39: 569,500.00 | W39: 26887.2
B40: 2022-10-27 | C40: 63,450.00 | D40: 30,714.00 | H40: 2022-10-27 | I40: 18,565.00 | J40: 73,622.00 | L40: 2022-10-24 | M40: 7,689.00 | N40: 134,700.00 | P40: 2022-10-24 | Q40: 2,157.26 | R40: 569,525.00 | W40: 37230 | X40: =W40-W39 -> 10342.8
B41: 2022-10-26 | C41: 62,750.00 | D41: 37,855.00 | H41: 2022-10-26 | I41: 18,685.00 | J41: 75,349.00 | L41: 2022-10-21 | M41: 7,719.24 | N41: 137,325.00 | P41: 2022-10-21 | Q41: 2,188.50 | R41: 570,000.00 | W41: 4174.97
B42: 2022-10-25 | C42: 63,060.00 | D42: 41,880.00 | H42: 2022-10-25 | I42: 18,530.00 | J42: 79,036.00 | L42: 2022-10-20 | M42: 7,645.50 | N42: 136,700.00 | P42: 2022-10-20 | Q42: 2,194.25 | R42: 568,275.00 | W42: =(W40-W39)*W41/10000 -> 4318.087972
B43: 2022-10-24 | C43: 63,810.00 | D43: 49,486.00 | H43: 2022-10-24 | I43: 18,575.00 | J43: 85,836.00 | L43: 2022-10-19 | M43: 7,455.75 | N43: 139,000.00 | P43: 2022-10-19 | Q43: 2,154.50 | R43: 562,550.00
B44: 2022-10-21 | C44: 62,820.00 | D44: 52,287.00 | H44: 2022-10-21 | I44: 18,535.00 | J44: 96,718.00 | L44: 2022-10-18 | M44: 7,483.00 | N44: 143,825.00 | P44: 2022-10-18 | Q44: 2,181.51 | R44: 481,375.00
B45: 2022-10-20 | C45: 62,270.00 | D45: 65,070.00 | H45: 2022-10-20 | I45: 18,460.00 | J45: 109,147.00 | L45: 2022-10-17 | M45: 7,642.50 | N45: 142,950.00 | P45: 2022-10-17 | Q45: 2,228.06 | R45: 433,025.00
B46: 2022-10-19 | C46: 62,120.00 | D46: 70,547.00 | H46: 2022-10-19 | I46: 18,305.00 | J46: 111,998.00 | L46: 2022-10-14 | M46: 7,652.75 | N46: 145,650.00 | P46: 2022-10-14 | Q46: 2,306.00 | R46: 367,200.00
B47: 2022-10-18 | C47: 62,650.00 | D47: 77,514.00 | H47: 2022-10-18 | I47: 18,315.00 | J47: 111,797.00 | L47: 2022-10-13 | M47: 7,665.50 | N47: 145,400.00 | P47: 2022-10-13 | Q47: 2,359.15 | R47: 351,900.00
B48: 2022-10-17 | C48: 63,080.00 | D48: 72,612.00 | H48: 2022-10-17 | I48: 18,435.00 | J48: 111,943.00 | L48: 2022-10-12 | M48: 7,636.00 | N48: 145,525.00 | P48: 2022-10-12 | Q48: 2,319.50 | R48: 336,275.00
B49: 2022-10-14 | C49: 63,700.00 | D49: 25,588.00 | H49: 2022-10-14 | I49: 18,830.00 | J49: 93,413.00 | L49: 2022-10-11 | M49: 7,661.25 | N49: 145,750.00 | P49: 2022-10-11 | Q49: 2,235.00 | R49: 325,800.00
B50: 2022-10-13 | C50: 62,340.00 | D50: 14,093.00 | H50: 2022-10-13 | I50: 18,355.00 | J50: 92,036.00 | L50: 2022-10-10 | M50: 7,637.75 | N50: 143,775.00 | P50: 2022-10-10 | Q50: 2,259.80 | R50: 327,675.00
B51: 2022-10-12 | C51: 62,720.00 | D51: 9,668.00 | H51: 2022-10-12 | I51: 18,340.00 | J51: 87,566.00 | L51: 2022-10-07 | M51: 7,507.75 | N51: 143,775.00 | P51: 2022-10-07 | Q51: 2,300.50 | R51: 327,625.00
B52: 2022-10-11 | C52: 62,360.00 | D52: 4,556.00 | H52: 2022-10-11 | I52: 18,465.00 | J52: 87,210.00 | L52: 2022-10-06 | M52: 7,649.75 | N52: 140,200.00 | P52: 2022-10-06 | Q52: 2,343.00 | R52: 328,850.00
B53: 2022-10-10 | C53: 61,260.00 | D53: 3,729.00 | H53: 2022-10-10 | I53: 18,565.00 | J53: 76,538.00 | L53: 2022-10-05 | M53: 7,725.25 | N53: 138,650.00 | P53: 2022-10-05 | Q53: 2,345.25 | R53: 328,525.00
B54: 2022-09-30 | C54: 61,320.00 | D54: 3,729.00 | H54: 2022-09-30 | I54: 18,270.00 | J54: 76,262.00 | L54: 2022-10-04 | M54: 7,800.00 | N54: 136,750.00 | P54: 2022-10-04 | Q54: 2,343.40 | R54: 328,600.00
B55: 2022-09-29 | C55: 60,870.00 | D55: 3,729.00 | H55: 2022-09-29 | I55: 17,990.00 | J55: 81,212.00 | L55: 2022-10-03 | M55: 7,602.50 | N55: 135,750.00 | P55: 2022-10-03 | Q55: 2,210.75 | R55: 330,050.00
B56: 2022-09-28 | C56: 60,020.00 | D56: 4,004.00 | H56: 2022-09-28 | I56: 17,865.00 | J56: 85,239.00 | L56: 2022-09-30 | M56: 7,683.25 | N56: 135,250.00 | P56: 2022-09-30 | Q56: 2,154.75 | R56: 332,175.00
B57: 2022-09-27 | C57: 61,280.00 | D57: 4,330.00 | H57: 2022-09-27 | I57: 18,265.00 | J57: 85,825.00 | L57: 2022-09-29 | M57: 7,647.00 | N57: 134,900.00 | P57: 2022-09-29 | Q57: 2,185.25 | R57: 334,100.00
B58: 2022-09-26 | C58: 60,700.00 | D58: 4,804.00 | H58: 2022-09-26 | I58: 18,075.00 | J58: 89,390.00 | L58: 2022-09-28 | M58: 7,520.00 | N58: 133,550.00 | P58: 2022-09-28 | Q58: 2,102.75 | R58: 335,625.00
B59: 2022-09-23 | C59: 62,180.00 | D59: 5,256.00 | H59: 2022-09-23 | I59: 18,630.00 | J59: 93,078.00 | L59: 2022-09-27 | M59: 7,422.00 | N59: 130,850.00 | P59: 2022-09-27 | Q59: 2,092.25 | R59: 337,425.00
B60: 2022-09-22 | C60: 62,430.00 | D60: 6,686.00 | H60: 2022-09-22 | I60: 18,685.00 | J60: 97,227.00 | L60: 2022-09-26 | M60: 7,430.00 | N60: 129,000.00 | P60: 2022-09-26 | Q60: 2,119.75 | R60: 338,850.00
B61: 2022-09-21 | C61: 62,760.00 | D61: 7,946.00 | H61: 2022-09-21 | I61: 18,670.00 | J61: 100,584.00 | L61: 2022-09-23 | M61: 7,518.00 | N61: 124,725.00 | P61: 2022-09-23 | Q61: 2,148.12 | R61: 340,350.00
B62: 2022-09-20 | C62: 62,600.00 | D62: 8,549.00 | H62: 2022-09-20 | I62: 18,650.00 | J62: 105,013.00 | L62: 2022-09-22 | M62: 7,739.00 | N62: 122,775.00 | P62: 2022-09-22 | Q62: 2,213.35 | R62: 341,650.00
B63: 2022-09-19 | C63: 62,280.00 | D63: 9,101.00 | H63: 2022-09-19 | I63: 18,710.00 | J63: 107,966.00 | L63: 2022-09-21 | M63: 7,749.00 | N63: 118,000.00 | P63: 2022-09-21 | Q63: 2,177.50 | R63: 343,325.00
B64: 2022-09-16 | C64: 61,950.00 | D64: 9,551.00 | H64: 2022-09-16 | I64: 18,735.00 | J64: 110,870.00 | L64: 2022-09-20 | M64: 7,826.00 | N64: 107,150.00 | P64: 2022-09-20 | Q64: 2,225.75 | R64: 346,025.00
B65: 2022-09-15 | C65: 62,220.00 | D65: 5,121.00 | H65: 2022-09-15 | I65: 18,880.00 | J65: 114,659.00 | L65: 2022-09-19 | M65: 7,826.50 | N65: 105,075.00 | P65: 2022-09-19 | Q65: 2,238.00 | R65: 346,325.00
B66: 2022-09-14 | C66: 62280.00 | D66: 3224.00 | H66: 2022-09-14 | I66: 18625.00 | J66: 107883.00 | L66: 2022-09-16 | M66: 7,869.00 | N66: 102,000.00 | P66: 2022-09-16 | Q66: 2,268.15 | R66: 347,650.00 | W66: =(C85-C108)/C85 -> 13.69% | X66: =(J104-J95)/J104 -> 0.17
B67: 2022-09-13 | C67: 63190.00 | D67: 3224.00 | H67: 2022-09-13 | I67: 18765.00 | J67: 89060.00 | L67: 2022-09-15 | M67: 7,848.75 | N67: 103,225.00 | P67: 2022-09-15 | Q67: 2,298.25 | R67: 349,650.00
B68: 2022-09-09 | C68: 63070.00 | D68: 3448.00 | H68: 2022-09-09 | I68: 18965.00 | J68: 79754.00 | L68: 2022-09-14 | M68: 7,893.50 | N68: 103,025.00 | P68: 2022-09-14 | Q68: 2,256.00 | R68: 345,600.00
B69: 2022-09-08 | C69: 61150.00 | D69: 3848.00 | H69: 2022-09-08 | I69: 18605.00 | J69: 82352.00 | L69: 2022-09-13 | M69: 7,994.25 | N69: 103,650.00 | P69: 2022-09-13 | Q69: 2,298.25 | R69: 332,900.00
B70: 2022-09-07 | C70: 60550.00 | D70: 3848.00 | H70: 2022-09-07 | I70: 18300.00 | J70: 81975.00 | L70: 2022-09-12 | M70: 8,079.50 | N70: 105,425.00 | P70: 2022-09-12 | Q70: 2,267.75 | R70: 334,375.00
B71: 2022-09-06 | C71: 61630.00 | D71: 3127.00 | H71: 2022-09-06 | I71: 18505.00 | J71: 81051.00 | L71: 2022-09-09 | M71: 7,924.00 | N71: 105,450.00 | P71: 2022-09-09 | Q71: 2,274.00 | R71: 335,275.00
B72: 2022-09-05 | C72: 60580.00 | D72: 3127.00 | H72: 2022-09-05 | I72: 18355.00 | J72: 87363.00 | L72: 2022-09-08 | M72: 7,919.00 | N72: 102,725.00 | P72: 2022-09-08 | Q72: 2,256.01 | R72: 309,025.00 | Y72: 沪铜 | Z72: =M$112/M$198-1 -> -27.32%
B73: 2022-09-02 | C73: 59540.00 | D73: 3629.00 | H73: 2022-09-02 | I73: 18110.00 | J73: 92476.00 | L73: 2022-09-07 | M73: 7,698.50 | N73: 103,300.00 | P73: 2022-09-07 | Q73: 2,224.50 | R73: 309,500.00 | Y73: LME铜 | Z73: =C$110/C$196-1 -> -25.27%
B74: 2022-09-01 | C74: 60680.00 | D74: 3629.00 | H74: 2022-09-01 | I74: 17900.00 | J74: 95553.00 | L74: 2022-09-05 | M74: 7,731.00 | N74: 108,450.00 | P74: 2022-09-06 | Q74: 2,254.25 | R74: 308,375.00 | Y74: 沪铝 | Z74: =I$110/I$196-1 -> -28.29%
B75: 2022-08-31 | C75: 62060.00 | D75: 3653.00 | H75: 2022-08-31 | I75: 18410.00 | J75: 95357.00 | L75: 2022-09-02 | M75: 7,691.00 | N75: 110,550.00 | P75: 2022-09-05 | Q75: 2,290.75 | R75: 277,050.00 | Y75: LME铝 | Z75: =Q$113/Q$199-1 -> -34.48%
B76: 2022-08-30 | C76: 62200.00 | D76: 3853.00 | H76: 2022-08-30 | I76: 18360.00 | J76: 95382.00 | L76: 2022-09-01 | M76: 7,652.00 | N76: 114,325.00 | P76: 2022-09-02 | Q76: 2,297.75 | R76: 276,050.00
B77: 2022-08-29 | C77: 62550.00 | D77: 4579.00 | H77: 2022-08-29 | I77: 18675.00 | J77: 96785.00 | L77: 2022-08-31 | M77: 7,845.50 | N77: 118,500.00 | P77: 2022-09-01 | Q77: 2,301.50 | R77: 276,375.00
B78: 2022-08-26 | C78: 63690.00 | D78: 4654.00 | H78: 2022-08-26 | I78: 18860.00 | J78: 97564.00 | L78: 2022-08-30 | M78: 7,893.00 | N78: 121,000.00 | P78: 2022-08-31 | Q78: 2,369.25 | R78: 277,050.00
B79: 2022-08-25 | C79: 62780.00 | D79: 3104.00 | H79: 2022-08-25 | I79: 18910.00 | J79: 99663.00 | L79: 2022-08-26 | M79: 8,188.25 | N79: 120,525.00 | P79: 2022-08-30 | Q79: 2,400.00 | R79: 280,475.00
B80: 2022-08-24 | C80: 63420.00 | D80: 3179.00 | H80: 2022-08-24 | I80: 19090.00 | J80: 101762.00 | L80: 2022-08-25 | M80: 8,167.00 | N80: 122,125.00 | P80: 2022-08-26 | Q80: 2,502.75 | R80: 278,025.00
B81: 2022-08-23 | C81: 63040.00 | D81: 3455.00 | H81: 2022-08-23 | I81: 18685.00 | J81: 102739.00 | L81: 2022-08-24 | M81: 8,058.25 | N81: 123,275.00 | P81: 2022-08-25 | Q81: 2,443.75 | R81: 280,125.00
B82: 2022-08-22 | C82: 62770.00 | D82: 3682.00 | H82: 2022-08-22 | I82: 18580.00 | J82: 103412.00 | L82: 2022-08-23 | M82: 8,170.75 | N82: 122,375.00 | P82: 2022-08-24 | Q82: 2,439.99 | R82: 282,075.00
B83: 2022-08-19 | C83: 61980.00 | D83: 3959.00 | H83: 2022-08-19 | I83: 18425.00 | J83: 103413.00 | L83: 2022-08-22 | M83: 8,076.10 | N83: 122,575.00 | P83: 2022-08-23 | Q83: 2,441.00 | R83: 271,450.00
B84: 2022-08-18 | C84: 61170.00 | D84: 6501.00 | H84: 2022-08-18 | I84: 18330.00 | J84: 109144.00 | L84: 2022-08-19 | M84: 8,100.85 | N84: 123,825.00 | P84: 2022-08-22 | Q84: 2,405.75 | R84: 273,325.00
B85: 2022-08-17 | C85: 61960.00 | D85: 8361.00 | H85: 2022-08-17 | I85: 18660.00 | J85: 109968.00 | L85: 2022-08-18 | M85: 8,045.25 | N85: 126,475.00 | P85: 2022-08-19 | Q85: 2,393.75 | R85: 273,775.00
B86: 2022-08-16 | C86: 62040.00 | D86: 9372.00 | H86: 2022-08-16 | I86: 18225.00 | J86: 111320.00 | L86: 2022-08-17 | M86: 7,925.25 | N86: 128,875.00 | P86: 2022-08-18 | Q86: 2,404.00 | R86: 274,525.00
B87: 2022-08-15 | C87: 61480.00 | D87: 9879.00 | H87: 2022-08-15 | I87: 18010.00 | J87: 111370.00 | L87: 2022-08-16 | M87: 7,975.00 | N87: 129,475.00 | P87: 2022-08-17 | Q87: 2,409.00 | R87: 276,875.00
B88: 2022-08-12 | C88: 62930.00 | D88: 7862.00 | H88: 2022-08-12 | I88: 18725.00 | J88: 83894.00 | L88: 2022-08-15 | M88: 7,972.00 | N88: 130,550.00 | P88: 2022-08-16 | Q88: 2,388.25 | R88: 275,625.00
B89: 2022-08-11 | C89: 62690.00 | D89: 4973.00 | H89: 2022-08-11 | I89: 18745.00 | J89: 75239.00 | L89: 2022-08-12 | M89: 8,085.00 | N89: 131,850.00 | P89: 2022-08-15 | Q89: 2,390.50 | R89: 275,725.00
B90: 2022-08-10 | C90: 61040.00 | D90: 4053.00 | H90: 2022-08-10 | I90: 18685.00 | J90: 68038.00 | L90: 2022-08-11 | M90: 8,165.50 | N90: 131,575.00 | P90: 2022-08-12 | Q90: 2,437.75 | R90: 277,225.00
B91: 2022-08-09 | C91: 61220.00 | D91: 4403.00 | H91: 2022-08-09 | I91: 18,540.00 | J91: 64,436.00 | L91: 2022-08-10 | M91: 8,080.98 | N91: 126,525.00 | P91: 2022-08-11 | Q91: 2,524.45 | R91: 279,125.00
B92: 2022-08-08 | C92: 60930.00 | D92: 4553.00 | H92: 2022-08-08 | I92: 18,415.00 | J92: 61,704.00 | L92: 2022-08-09 | M92: 7,980.50 | N92: 126,975.00 | P92: 2022-08-10 | Q92: 2,495.76 | R92: 282,700.00
B93: 2022-08-05 | C93: 60310.00 | D93: 4603.00 | H93: 2022-08-05 | I93: 18,515.00 | J93: 61,205.00 | L93: 2022-08-08 | M93: 7,986.75 | N93: 127,850.00 | P93: 2022-08-09 | Q93: 2,500.25 | R93: 284,275.00
B94: 2022-08-04 | C94: 58750.00 | D94: 4853.00 | H94: 2022-08-04 | I94: 18,190.00 | J94: 59,631.00 | L94: 2022-08-05 | M94: 7,862.50 | N94: 128,600.00 | P94: 2022-08-08 | Q94: 2,454.25 | R94: 287,425.00
B95: 2022-08-03 | C95: 59,780.00 | D95: 5,151.00 | H95: 2022-08-03 | I95: 18,250.00 | J95: 59,631.00 | L95: 2022-08-04 | M95: 7,720.20 | N95: 129,575.00 | P95: 2022-08-05 | Q95: 2,423.75 | R95: 289,125.00
B96: 2022-08-02 | C96: 60,250.00 | D96: 5,626.00 | H96: 2022-08-02 | I96: 18,070.00 | J96: 59,681.00 | L96: 2022-08-03 | M96: 7,671.75 | N96: 130,250.00 | P96: 2022-08-04 | Q96: 2,408.26 | R96: 290,675.00
B97: 2022-08-01 | C97: 60,840.00 | D97: 6,325.00 | H97: 2022-08-01 | I97: 18,205.00 | J97: 62,123.00 | L97: 2022-08-02 | M97: 7,808.75 | N97: 130,975.00 | P97: 2022-08-03 | Q97: 2,379.85 | R97: 294,550.00
B98: 2022-07-29 | C98: 60,100.00 | D98: 7,648.00 | H98: 2022-07-29 | I98: 18,750.00 | J98: 63,000.00 | L98: 2022-08-01 | M98: 7,821.25 | N98: 131,275.00 | P98: 2022-08-02 | Q98: 2,420.25 | R98: 296,650.00
B99: 2022-07-28 | C99: 59,990.00 | D99: 8,051.00 | H99: 2022-07-28 | I99: 18,730.00 | J99: 62,249.00 | L99: 2022-07-29 | M99: 7,931.25 | N99: 130,575.00 | P99: 2022-08-01 | Q99: 2,444.71 | R99: 288,125.00
B100: 2022-07-27 | C100: 58,390.00 | D100: 8,426.00 | H100: 2022-07-27 | I100: 18,055.00 | J100: 62,550.00 | L100: 2022-07-28 | M100: 7,765.75 | N100: 131,700.00 | P100: 2022-07-29 | Q100: 2,504.24 | R100: 291,025.00
B101: 2022-07-26 | C101: 58,890.00 | D101: 9,103.00 | H101: 2022-07-26 | I101: 18,030.00 | J101: 63,870.00 | L101: 2022-07-27 | M101: 7,627.25 | N101: 132,500.00 | P101: 2022-07-28 | Q101: 2,464.75 | R101: 295,325.00
B102: 2022-07-25 | C102: 57,220.00 | D102: 10,104.00 | H102: 2022-07-25 | I102: 17,810.00 | J102: 64,645.00 | L102: 2022-07-26 | M102: 7,520.25 | N102: 132,025.00 | P102: 2022-07-27 | Q102: 2,429.00 | R102: 299,700.00
B103: 2022-07-22 | C103: 56,930.00 | D103: 14,265.00 | H103: 2022-07-22 | I103: 17,995.00 | J103: 65,523.00 | L103: 2022-07-25 | M103: 7,463.75 | N103: 133,175.00 | P103: 2022-07-26 | Q103: 2,430.75 | R103: 304,125.00
B104: 2022-07-21 | C104: 56,180.00 | D104: 20,479.00 | H104: 2022-07-21 | I104: 17,945.00 | J104: 71,873.00 | L104: 2022-07-22 | M104: 7,433.00 | N104: 133,925.00 | P104: 2022-07-25 | Q104: 2,408.50 | R104: 308,050.00
B105: 2022-07-20 | C105: 56,840.00 | D105: 23,749.00 | H105: 2022-07-20 | I105: 17,905.00 | J105: 81,898.00 | L105: 2022-07-21 | M105: 7,304.00 | N105: 133,550.00 | P105: 2022-07-22 | Q105: 2,480.50 | R105: 313,175.00
B106: 2022-07-19 | C106: 56,030.00 | D106: 25,411.00 | H106: 2022-07-19 | I106: 17,960.00 | J106: 83,668.00 | L106: 2022-07-20 | M106: 7,358.00 | N106: 135,575.00 | P106: 2022-07-21 | Q106: 2,421.25 | R106: 317,275.00
B107: 2022-07-18 | C107: 56,390.00 | D107: 26,088.00 | H107: 2022-07-18 | I107: 17,830.00 | J107: 84,243.00 | L107: 2022-07-19 | M107: 7,254.50 | N107: 136,200.00 | P107: 2022-07-20 | Q107: 2,434.75 | R107: 320,675.00
B108: 2022-07-15 | C108: 53,480.00 | D108: 26,134.00 | H108: 2022-07-15 | I108: 17,155.00 | J108: 84,418.00 | L108: 2022-07-18 | M108: 7,411.00 | N108: 130,275.00 | P108: 2022-07-19 | Q108: 2,379.50 | R108: 325,075.00
B109: 2022-07-14 | C109: 55,450.00 | D109: 25,850.00 | H109: 2022-07-14 | I109: 17,255.00 | J109: 85,148.00 | L109: 2022-07-15 | M109: 7,178.25 | N109: 130,425.00 | P109: 2022-07-18 | Q109: 2,410.19 | R109: 328,500.00
B110: 2022-07-13 | C110: 56,030.00 | D110: 16,702.00 | H110: 2022-07-13 | I110: 17,225.00 | J110: 86,248.00 | L110: 2022-07-14 | M110: 7,160.00 | N110: 129,250.00 | P110: 2022-07-15 | Q110: 2,326.15 | R110: 333,000.00
B111: 2022-07-12 | C111: 57,320.00 | D111: 15,584.00 | H111: 2022-07-12 | I111: 17,585.00 | J111: 86,600.00 | L111: 2022-07-13 | M111: 7,310.50 | N111: 130,975.00 | P111: 2022-07-14 | Q111: 2,324.00 | R111: 336,850.00
B112: 2022-07-11 | C112: 58,480.00 | D112: 15,083.00 | H112: 2022-07-11 | I112: 18,180.00 | J112: 87,224.00 | L112: 2022-07-12 | M112: 7,335.00 | N112: 131,775.00 | P112: 2022-07-13 | Q112: 2,344.25 | R112: 340,300.00
B113: 2022-07-08 | C113: 58,960.00 | D113: 15,083.00 | H113: 2022-07-08 | I113: 18,360.00 | J113: 87,347.00 | L113: 2022-07-11 | M113: 7,572.25 | N113: 133,100.00 | P113: 2022-07-12 | Q113: 2,349.25 | R113: 340,375.00
B114: 2022-07-07 | C114: 58,640.00 | D114: 15,108.00 | H114: 2022-07-07 | I114: 18,360.00 | J114: 90,589.00 | L114: 2022-07-08 | M114: 7,795.00 | N114: 133,025.00 | P114: 2022-07-11 | Q114: 2,366.75 | R114: 343,825.00
B115: 2022-07-06 | C115: 57,620.00 | D115: 15,333.00 | H115: 2022-07-06 | I115: 18,330.00 | J115: 91,268.00 | L115: 2022-07-07 | M115: 7,818.50 | N115: 135,350.00 | P115: 2022-07-08 | Q115: 2,424.55 | R115: 347,175.00
B116: 2022-07-05 | C116: 60,110.00 | D116: 14,383.00 | H116: 2022-07-05 | I116: 18,485.00 | J116: 92,643.00 | L116: 2022-07-06 | M116: 7,506.25 | N116: 135,775.00 | P116: 2022-07-07 | Q116: 2,433.50 | R116: 353,175.00
B117: 2022-07-04 | C117: 60,660.00 | D117: 14,408.00 | H117: 2022-07-04 | I117: 18,980.00 | J117: 93,867.00 | L117: 2022-07-05 | M117: 7,657.75 | N117: 136,400.00 | P117: 2022-07-06 | Q117: 2,393.25 | R117: 358,125.00
B118: 2022-07-01 | C118: 61,630.00 | D118: 14,957.00 | H118: 2022-07-01 | I118: 18,900.00 | J118: 94,616.00 | L118: 2022-07-04 | M118: 7,998.50 | N118: 136,950.00 | P118: 2022-07-05 | Q118: 2,373.25 | R118: 362,525.00
B119: 2022-06-30 | C119: 63,850.00 | D119: 15,157.00 | H119: 2022-06-30 | I119: 19,060.00 | J119: 95,244.00 | L119: 2022-07-01 | M119: 8,040.25 | N119: 126,850.00 | P119: 2022-07-04 | Q119: 2,451.50 | R119: 366,150.00
B120: 2022-06-29 | C120: 63,470.00 | D120: 14,856.00 | H120: 2022-06-29 | I120: 19,280.00 | J120: 97,415.00 | L120: 2022-06-30 | M120: 8,254.25 | N120: 124,275.00 | P120: 2022-07-01 | Q120: 2,427.01 | R120: 369,675.00
B121: 2022-06-28 | C121: 64,890.00 | D121: 13,956.00 | H121: 2022-06-28 | I121: 19,445.00 | J121: 100,020.00 | L121: 2022-06-28 | M121: 8,360.00 | N121: 124,625.00 | P121: 2022-06-30 | Q121: 2,426.00 | R121: 373,275.00
B122: 2022-06-27 | C122: 63,750.00 | D122: 15,056.00 | H122: 2022-06-27 | I122: 19,135.00 | J122: 101,550.00 | L122: 2022-06-27 | M122: 8,419.25 | N122: 124,850.00 | P122: 2022-06-28 | Q122: 2,467.75 | R122: 380,675.00
B123: 2022-06-24 | C123: 63,440.00 | D123: 15,084.00 | H123: 2022-06-24 | I123: 18,970.00 | J123: 103,630.00 | L123: 2022-06-24 | M123: 8,381.00 | N123: 113,025.00 | P123: 2022-06-27 | Q123: 2,470.75 | R123: 384,800.00
B124: 2022-06-23 | C124: 66,380.00 | D124: 16,285.00 | H124: 2022-06-23 | I124: 19,485.00 | J124: 109,958.00 | L124: 2022-06-23 | M124: 8,397.00 | N124: 113,475.00 | P124: 2022-06-24 | Q124: 2,438.26 | R124: 388,750.00
B125: 2022-06-22 | C125: 67,060.00 | D125: 17,162.00 | H125: 2022-06-22 | I125: 19,430.00 | J125: 112,234.00 | L125: 2022-06-22 | M125: 8,773.50 | N125: 114,175.00 | P125: 2022-06-23 | Q125: 2,465.50 | R125: 392,275.00
B126: 2022-06-21 | C126: 68,030.00 | D126: 18,339.00 | H126: 2022-06-21 | I126: 19,780.00 | J126: 116,487.00 | L126: 2022-06-21 | M126: 8,995.49 | N126: 115,150.00 | P126: 2022-06-22 | Q126: 2,466.40 | R126: 395,575.00
B127: 2022-06-20 | C127: 68,000.00 | D127: 19,292.00 | H127: 2022-06-20 | I127: 19,510.00 | J127: 123,585.00 | L127: 2022-06-20 | M127: 8,989.50 | N127: 117,025.00 | P127: 2022-06-21 | Q127: 2,520.75 | R127: 398,925.00
B128: 2022-06-17 | C128: 69,740.00 | D128: 20,793.00 | H128: 2022-06-17 | I128: 19,805.00 | J128: 130,275.00 | L128: 2022-06-17 | M128: 8,967.00 | N128: 118,025.00 | P128: 2022-06-20 | Q128: 2,509.25 | R128: 404,450.00
B129: 2022-06-16 | C129: 70,540.00 | D129: 21,343.00 | H129: 2022-06-16 | I129: 20,005.00 | J129: 135,921.00 | L129: 2022-06-16 | M129: 9,079.75 | N129: 121,000.00 | P129: 2022-06-17 | Q129: 2,477.25 | R129: 407,875.00
B130: 2022-06-15 | C130: 70,670.00 | D130: 19,545.00 | H130: 2022-06-15 | I130: 19,805.00 | J130: 146,413.00 | L130: 2022-06-15 | M130: 9,224.50 | N130: 121,525.00 | P130: 2022-06-16 | Q130: 2,482.76 | R130: 411,575.00
B131: 2022-06-14 | C131: 71,570.00 | D131: 9,333.00 | H131: 2022-06-14 | I131: 20,005.00 | J131: 147,563.00 | L131: 2022-06-14 | M131: 9,218.75 | N131: 119,875.00 | P131: 2022-06-15 | Q131: 2,569.50 | R131: 416,125.00
B132: 2022-06-13 | C132: 71,720.00 | D132: 9,433.00 | H132: 2022-06-13 | I132: 19,995.00 | J132: 143,974.00 | L132: 2022-06-13 | M132: 9,285.50 | N132: 117,975.00 | P132: 2022-06-14 | Q132: 2,544.25 | R132: 420,675.00
B133: 2022-06-10 | C133: 72,650.00 | D133: 8,883.00 | H133: 2022-06-10 | I133: 20,605.00 | J133: 134,425.00 | L133: 2022-06-10 | M133: 9,447.25 | N133: 117,750.00 | P133: 2022-06-13 | Q133: 2,602.50 | R133: 423,975.00
B134: 2022-06-09 | C134: 72,810.00 | D134: 7,627.00 | H134: 2022-06-09 | I134: 20,845.00 | J134: 130,752.00 | L134: 2022-06-09 | M134: 9,620.10 | N134: 118,175.00 | P134: 2022-06-10 | Q134: 2,661.00 | R134: 427,350.00
B135: 2022-06-08 | C135: 72,790.00 | D135: 6,531.00 | H135: 2022-06-08 | I135: 20,755.00 | J135: 130,286.00 | L135: 2022-06-08 | M135: 9,736.30 | N135: 116,900.00 | P135: 2022-06-09 | Q135: 2,733.50 | R135: 430,050.00
B136: 2022-06-07 | C136: 72,460.00 | D136: 6,481.00 | H136: 2022-06-07 | I136: 20,730.00 | J136: 132,302.00 | L136: 2022-06-07 | M136: 9,699.25 | N136: 120,775.00 | P136: 2022-06-08 | Q136: 2,788.50 | R136: 434,000.00
B137: 2022-06-06 | C137: 72,680.00 | D137: 6,555.00 | H137: 2022-06-06 | I137: 20,955.00 | J137: 136,768.00 | L137: 2022-06-06 | M137: 9,743.00 | N137: 140,975.00 | P137: 2022-06-07 | Q137: 2,745.70 | R137: 441,725.00
B138: 2022-06-02 | C138: 72,130.00 | D138: 6,955.00 | H138: 2022-06-02 | I138: 20,665.00 | J138: 136,099.00 | L138: 2022-06-01 | M138: 9,498.50 | N138: 145,950.00 | P138: 2022-06-06 | Q138: 2,751.11 | R138: 450,500.00
B139: 2022-06-01 | C139: 71,600.00 | D139: 7,632.00 | H139: 2022-06-01 | I139: 20,280.00 | J139: 140,025.00 | L139: 2022-05-31 | M139: 9,445.50 | N139: 149,200.00 | P139: 2022-06-01 | Q139: 2,698.00 | R139: 453,875.00
B140: 2022-05-31 | C140: 72,120.00 | D140: 8,008.00 | H140: 2022-05-31 | I140: 20,795.00 | J140: 140,276.00 | L140: 2022-05-30 | M140: 9,537.50 | N140: 154,650.00 | P140: 2022-05-31 | Q140: 2,757.75 | R140: 458,875.00
B141: 2022-05-30 | C141: 71,950.00 | D141: 9,336.00 | H141: 2022-05-30 | I141: 20,765.00 | J141: 140,276.00 | L141: 2022-05-27 | M141: 9,453.50 | N141: 156,175.00 | P141: 2022-05-30 | Q141: 2,858.43 | R141: 465,700.00
B142: 2022-05-27 | C142: 71,900.00 | D142: 11,584.00 | H142: 2022-05-27 | I142: 20,775.00 | J142: 141,656.00 | L142: 2022-05-26 | M142: 9,345.50 | N142: 162,425.00 | P142: 2022-05-27 | Q142: 2,844.00 | R142: 471,075.00
B143: 2022-05-26 | C143: 71,080.00 | D143: 14,442.00 | H143: 2022-05-26 | I143: 20,500.00 | J143: 141,980.00 | L143: 2022-05-24 | M143: 9,459.00 | N143: 170,650.00 | P143: 2022-05-26 | Q143: 2,839.00 | R143: 475,650.00
B144: 2022-05-25 | C144: 71,810.00 | D144: 17,643.00 | H144: 2022-05-25 | I144: 20,495.00 | J144: 142,509.00 | L144: 2022-05-23 | M144: 9,588.50 | N144: 171,075.00 | P144: 2022-05-24 | Q144: 2,874.90 | R144: 487,475.00
B145: 2022-05-24 | C145: 71,770.00 | D145: 19,643.00 | H145: 2022-05-24 | I145: 20,465.00 | J145: 142,785.00 | L145: 2022-05-20 | M145: 9,451.00 | N145: 174,600.00 | P145: 2022-05-23 | Q145: 2,933.25 | R145: 497,250.00
B146: 2022-05-23 | C146: 72,050.00 | D146: 21,347.00 | H146: 2022-05-23 | I146: 20,870.00 | J146: 144,120.00 | L146: 2022-05-19 | M146: 9,460.50 | N146: 178,550.00 | P146: 2022-05-20 | Q146: 2,935.00 | R146: 504,275.00
B147: 2022-05-20 | C147: 71,900.00 | D147: 25,498.00 | H147: 2022-05-20 | I147: 20,820.00 | J147: 145,298.00 | L147: 2022-05-17 | M147: 9,386.25 | N147: 176,575.00 | P147: 2022-05-19 | Q147: 2,896.54 | R147: 511,675.00
B148: 2022-05-19 | C148: 71,530.00 | D148: 28,378.00 | H148: 2022-05-19 | I148: 20,560.00 | J148: 147,720.00 | L148: 2022-05-16 | M148: 9,255.50 | N148: 176,550.00 | P148: 2022-05-17 | Q148: 2,864.75 | R148: 527,375.00
B149: 2022-05-18 | C149: 71,340.00 | D149: 29,022.00 | H149: 2022-05-18 | I149: 20,360.00 | J149: 148,418.00 | L149: 2022-05-13 | M149: 9,184.60 | N149: 177,000.00 | P149: 2022-05-16 | Q149: 2,802.75 | R149: 532,500.00
B150: 2022-05-17 | C150: 71,790.00 | D150: 30,296.00 | H150: 2022-05-17 | I150: 20,300.00 | J150: 150,098.00 | L150: 2022-05-12 | M150: 9,103.50 | N150: 176,875.00 | P150: 2022-05-13 | Q150: 2,760.50 | R150: 539,800.00
B151: 2022-05-16 | C151: 71,270.00 | D151: 26,495.00 | H151: 2022-05-16 | I151: 20,555.00 | J151: 151,050.00 | L151: 2022-05-11 | M151: 9,358.75 | N151: 175,875.00 | P151: 2022-05-12 | Q151: 2,710.80 | R151: 546,350.00
B152: 2022-05-13 | C152: 71,060.00 | D152: 18,301.00 | H152: 2022-05-13 | I152: 20,305.00 | J152: 151,371.00 | L152: 2022-05-10 | M152: 9,235.75 | N152: 167,825.00 | P152: 2022-05-11 | Q152: 2,745.25 | R152: 553,925.00
B153: 2022-05-12 | C153: 70,880.00 | D153: 15,440.00 | H153: 2022-05-12 | I153: 20,045.00 | J153: 148,592.00 | L153: 2022-05-09 | M153: 9,240.40 | N153: 169,175.00 | P153: 2022-05-10 | Q153: 2,720.45 | R153: 560,275.00
B154: 2022-05-11 | C154: 71,580.00 | D154: 15,839.00 | H154: 2022-05-11 | I154: 20,265.00 | J154: 148,592.00 | L154: 2022-05-06 | M154: 9,411.00 | N154: 170,025.00 | P154: 2022-05-09 | Q154: 2,719.25 | R154: 568,250.00
B155: 2022-05-10 | C155: 71,720.00 | D155: 15,288.00 | H155: 2022-05-10 | I155: 19,845.00 | J155: 147,990.00 | L155: 2022-05-05 | M155: 9,512.50 | N155: 168,800.00 | P155: 2022-05-06 | Q155: 2,809.99 | R155: 571,800.00
B156: 2022-05-09 | C156: 71,440.00 | D156: 15,187.00 | H156: 2022-05-09 | I156: 19,775.00 | J156: 157,535.00 | L156: 2022-05-04 | M156: 9,468.00 | N156: 154,475.00 | P156: 2022-05-05 | Q156: 2,884.25 | R156: 573,600.00
B157: 2022-05-06 | C157: 72,050.00 | D157: 17,724.00 | H157: 2022-05-06 | I157: 20,010.00 | J157: 158,462.00 | L157: 2022-05-03 | M157: 9,405.75 | N157: 156,225.00 | P157: 2022-05-04 | Q157: 2,919.25 | R157: 573,975.00
B158: 2022-05-05 | C158: 72,760.00 | D158: 17,349.00 | H158: 2022-05-05 | I158: 20,525.00 | J158: 159,117.00 | L158: 2022-04-29 | M158: 9,770.50 | N158: 156,050.00 | P158: 2022-05-03 | Q158: 2,875.25 | R158: 577,650.00
B159: 2022-04-29 | C159: 73,600.00 | D159: 17,952.00 | H159: 2022-04-29 | I159: 20,890.00 | J159: 158,890.00 | L159: 2022-04-28 | M159: 9,696.00 | N159: 150,850.00 | P159: 2022-04-29 | Q159: 3,032.50 | R159: 570,100.00
B160: 2022-04-28 | C160: 73,320.00 | D160: 22,599.00 | H160: 2022-04-28 | I160: 20,915.00 | J160: 159,199.00 | L160: 2022-04-27 | M160: 9,866.50 | N160: 148,500.00 | P160: 2022-04-28 | Q160: 3,015.50 | R160: 571,625.00
B161: 2022-04-27 | C161: 73,320.00 | D161: 27,891.00 | H161: 2022-04-27 | I161: 20,765.00 | J161: 160,008.00 | L161: 2022-04-26 | M161: 9,863.50 | N161: 135,175.00 | P161: 2022-04-27 | Q161: 3,080.70 | R161: 574,550.00
B162: 2022-04-26 | C162: 73,260.00 | D162: 32,205.00 | H162: 2022-04-26 | I162: 20,715.00 | J162: 160,709.00 | L162: 2022-04-25 | M162: 9,783.80 | N162: 137,275.00 | P162: 2022-04-26 | Q162: 3,048.60 | R162: 579,600.00
B163: 2022-04-25 | C163: 73,660.00 | D163: 37,339.00 | H163: 2022-04-25 | I163: 20,700.00 | J163: 164,103.00 | L163: 2022-04-22 | M163: 10,113.25 | N163: 137,775.00 | P163: 2022-04-25 | Q163: 3,073.50 | R163: 584,050.00
B164: 2022-04-22 | C164: 75,010.00 | D164: 41,731.00 | H164: 2022-04-22 | I164: 21,920.00 | J164: 166,666.00 | L164: 2022-04-21 | M164: 10,272.00 | N164: 130,500.00 | P164: 2022-04-22 | Q164: 3,235.00 | R164: 586,000.00
B165: 2022-04-21 | C165: 74,480.00 | D165: 44,653.00 | H165: 2022-04-21 | I165: 21,775.00 | J165: 167,592.00 | L165: 2022-04-20 | M165: 10,196.00 | N165: 128,775.00 | P165: 2022-04-21 | Q165: 3,287.50 | R165: 589,725.00
B166: 2022-04-20 | C166: 74,480.00 | D166: 47,433.00 | H166: 2022-04-20 | I166: 21,790.00 | J166: 187,514.00 | L166: 2022-04-19 | M166: 10,281.50 | N166: 118,825.00 | P166: 2022-04-20 | Q166: 3,251.75 | R166: 592,175.00
B167: 2022-04-19 | C167: 75,040.00 | D167: 48,485.00 | H167: 2022-04-19 | I167: 21,920.00 | J167: 189,493.00 | L167: 2022-04-14 | M167: 10,297.50 | N167: 110,675.00 | P167: 2022-04-19 | Q167: 3,246.50 | R167: 603,650.00
B168: 2022-04-18 | C168: 74,760.00 | D168: 49,163.00 | H168: 2022-04-18 | I168: 21,840.00 | J168: 191,233.00 | L168: 2022-04-13 | M168: 10,284.00 | N168: 107,000.00 | P168: 2022-04-14 | Q168: 3,271.50 | R168: 608,000.00
B169: 2022-04-15 | C169: 74,970.00 | D169: 41,196.00 | H169: 2022-04-15 | I169: 21,850.00 | J169: 188,132.00 | L169: 2022-04-12 | M169: 10,326.25 | N169: 104,350.00 | P169: 2022-04-13 | Q169: 3,210.50 | R169: 612,275.00
B170: 2022-04-14 | C170: 74,180.00 | D170: 35,404.00 | H170: 2022-04-14 | I170: 21,440.00 | J170: 185,933.00 | L170: 2022-04-11 | M170: 10,181.75 | N170: 105,600.00 | P170: 2022-04-12 | Q170: 3,235.13 | R170: 610,775.00
B171: 2022-04-13 | C171: 74,030.00 | D171: 35,006.00 | H171: 2022-04-13 | I171: 21,270.00 | J171: 186,573.00 | L171: 2022-04-08 | M171: 10,304.75 | N171: 103,775.00 | P171: 2022-04-11 | Q171: 3,218.25 | R171: 609,850.00
B172: 2022-04-12 | C172: 73,350.00 | D172: 35,107.00 | H172: 2022-04-12 | I172: 21,070.00 | J172: 188,197.00 | L172: 2022-04-07 | M172: 10,314.50 | N172: 101,275.00 | P172: 2022-04-08 | Q172: 3,351.50 | R172: 615,750.00
B173: 2022-04-11 | C173: 73,230.00 | D173: 36,105.00 | H173: 2022-04-11 | I173: 21,005.00 | J173: 188,025.00 | L173: 2022-04-06 | M173: 10,286.75 | N173: 94,925.00 | P173: 2022-04-07 | Q173: 3,361.26 | R173: 619,775.00
B174: 2022-04-08 | C174: 73,760.00 | D174: 37,680.00 | H174: 2022-04-08 | I174: 21,825.00 | J174: 182,602.00 | L174: 2022-04-04 | M174: 10,451.75 | N174: 94,800.00 | P174: 2022-04-06 | Q174: 3,416.26 | R174: 619,875.00
B175: 2022-04-07 | C175: 73,410.00 | D175: 38,828.00 | H175: 2022-04-07 | I175: 21,815.00 | J175: 180,421.00 | L175: 2022-04-01 | M175: 10,343.00 | N175: 93,975.00 | P175: 2022-04-05 | Q175: 3,443.50 | R175: 623,325.00
B176: 2022-04-06 | C176: 73,720.00 | D176: 39,477.00 | H176: 2022-04-06 | I176: 22,540.00 | J176: 177,673.00 | L176: 2022-03-31 | M176: 10,367.51 | N176: 91,400.00 | P176: 2022-04-04 | Q176: 3,428.60 | R176: 629,775.00
B177: 2022-04-01 | C177: 73,160.00 | D177: 41,553.00 | H177: 2022-04-01 | I177: 22,640.00 | J177: 174,771.00 | L177: 2022-03-30 | M177: 10,360.50 | N177: 87,925.00 | P177: 2022-04-01 | Q177: 3,435.75 | R177: 635,975.00
B178: 2022-03-31 | C178: 73,320.00 | D178: 41,651.00 | H178: 2022-03-31 | I178: 22,730.00 | J178: 175,418.00 | L178: 2022-03-29 | M178: 10,314.50 | N178: 81,500.00 | P178: 2022-03-31 | Q178: 3,480.61 | R178: 646,850.00
B179: 2022-03-30 | C179: 74,210.00 | D179: 42,651.00 | H179: 2022-03-30 | I179: 22,935.00 | J179: 174,139.00 | L179: 2022-03-28 | M179: 10,341.00 | N179: 80,550.00 | P179: 2022-03-30 | Q179: 3,536.50 | R179: 654,475.00
B180: 2022-03-29 | C180: 73,570.00 | D180: 42,904.00 | H180: 2022-03-29 | I180: 22,960.00 | J180: 169,727.00 | L180: 2022-03-25 | M180: 10,249.00 | N180: 80,600.00 | P180: 2022-03-29 | Q180: 3,416.25 | R180: 663,225.00
B181: 2022-03-28 | C181: 72,940.00 | D181: 44,231.00 | H181: 2022-03-28 | I181: 23,030.00 | J181: 169,872.00 | L181: 2022-03-24 | M181: 10,327.00 | N181: 80,675.00 | P181: 2022-03-28 | Q181: 3,593.00 | R181: 671,025.00
B182: 2022-03-25 | C182: 73,560.00 | D182: 46,829.00 | H182: 2022-03-25 | I182: 23,090.00 | J182: 162,130.00 | L182: 2022-03-23 | M182: 10,443.00 | N182: 79,975.00 | P182: 2022-03-25 | Q182: 3,592.25 | R182: 678,100.00
B183: 2022-03-24 | C183: 73,580.00 | D183: 48,201.00 | H183: 2022-03-24 | I183: 23,190.00 | J183: 157,226.00 | L183: 2022-03-22 | M183: 10,259.50 | N183: 80,100.00 | P183: 2022-03-24 | Q183: 3,611.25 | R183: 684,250.00
B184: 2022-03-23 | C184: 73,180.00 | D184: 53,550.00 | H184: 2022-03-23 | I184: 23,085.00 | J184: 157,748.00 | L184: 2022-03-21 | M184: 10,284.55 | N184: 80,150.00 | P184: 2022-03-23 | Q184: 3,646.00 | R184: 689,575.00
B185: 2022-03-22 | C185: 73,120.00 | D185: 55,273.00 | H185: 2022-03-22 | I185: 22,950.00 | J185: 161,120.00 | L185: 2022-03-18 | M185: 10,327.00 | N185: 79,500.00 | P185: 2022-03-22 | Q185: 3,493.50 | R185: 695,825.00
B186: 2022-03-21 | C186: 72,880.00 | D186: 56,473.00 | H186: 2022-03-21 | I186: 23,105.00 | J186: 162,227.00 | L186: 2022-03-17 | M186: 10,231.50 | N186: 77,600.00 | P186: 2022-03-21 | Q186: 3,507.50 | R186: 704,850.00
B187: 2022-03-18 | C187: 72,830.00 | D187: 60,862.00 | H187: 2022-03-18 | I187: 22,830.00 | J187: 197,187.00 | L187: 2022-03-16 | M187: 10,056.00 | N187: 77,475.00 | P187: 2022-03-18 | Q187: 3,361.50 | R187: 715,225.00
B188: 2022-03-17 | C188: 72,250.00 | D188: 63,219.00 | H188: 2022-03-17 | I188: 22,200.00 | J188: 199,266.00 | L188: 2022-03-15 | M188: 9,857.25 | N188: 77,525.00 | P188: 2022-03-17 | Q188: 3,367.97 | R188: 724,700.00
B189: 2022-03-16 | C189: 72,090.00 | D189: 63,946.00 | H189: 2022-03-16 | I189: 21,960.00 | J189: 198,309.00 | L189: 2022-03-14 | M189: 9,894.50 | N189: 78,000.00 | P189: 2022-03-16 | Q189: 3,235.75 | R189: 733,900.00
B190: 2022-03-15 | C190: 71,360.00 | D190: 63,227.00 | H190: 2022-03-15 | I190: 21,590.00 | J190: 200,637.00 | L190: 2022-03-11 | M190: 10,150.75 | N190: 74,200.00 | P190: 2022-03-15 | Q190: 3,244.00 | R190: 742,200.00
B191: 2022-03-14 | C191: 71,780.00 | D191: 65,270.00 | H191: 2022-03-14 | I191: 21,855.00 | J191: 198,434.00 | L191: 2022-03-10 | M191: 10,095.00 | N191: 71,900.00 | P191: 2022-03-14 | Q191: 3,283.75 | R191: 752,850.00
B192: 2022-03-11 | C192: 72,150.00 | D192: 64,671.00 | H192: 2022-03-11 | I192: 22,035.00 | J192: 203,471.00 | L192: 2022-03-09 | M192: 9,964.00 | N192: 71,875.00 | P192: 2022-03-11 | Q192: 3,459.50 | R192: 755,950.00
B193: 2022-03-10 | C193: 71,940.00 | D193: 70,602.00 | H193: 2022-03-10 | I193: 21,735.00 | J193: 205,078.00 | L193: 2022-03-08 | M193: 10,160.75 | N193: 69,600.00 | P193: 2022-03-10 | Q193: 3,408.50 | R193: 762,775.00
B194: 2022-03-09 | C194: 72,720.00 | D194: 74,596.00 | H194: 2022-03-09 | I194: 21,830.00 | J194: 204,123.00 | L194: 2022-03-07 | M194: 10,255.50 | N194: 70,250.00 | P194: 2022-03-09 | Q194: 3,319.75 | R194: 771,175.00
B195: 2022-03-08 | C195: 74,000.00 | D195: 75,672.00 | H195: 2022-03-08 | I195: 23,105.00 | J195: 201,044.00 | L195: 2022-03-04 | M195: 10,702.00 | N195: 69,825.00 | P195: 2022-03-08 | Q195: 3,470.50 | R195: 779,350.00
B196: 2022-03-07 | C196: 74,980.00 | D196: 74,992.00 | H196: 2022-03-07 | I196: 24,020.00 | J196: 197,361.00 | L196: 2022-03-03 | M196: 10,383.50 | N196: 71,375.00 | P196: 2022-03-07 | Q196: 3,732.00 | R196: 786,475.00
B197: 2022-03-04 | C197: 72,890.00 | D197: 73,789.00 | H197: 2022-03-04 | I197: 23,570.00 | J197: 187,498.00 | L197: 2022-03-02 | M197: 10,194.25 | N197: 72,075.00 | P197: 2022-03-04 | Q197: 3,877.50 | R197: 794,150.00
B198: 2022-03-03 | C198: 73,010.00 | D198: 75,384.00 | H198: 2022-03-03 | I198: 23,775.00 | J198: 176,950.00 | L198: 2022-03-01 | M198: 10,092.00 | N198: 72,875.00 | P198: 2022-03-03 | Q198: 3,738.50 | R198: 801,100.00
B199: 2022-03-02 | C199: 71,520.00 | D199: 73,201.00 | H199: 2022-03-02 | I199: 22,955.00 | J199: 173,251.00 | L199: 2022-02-28 | M199: 9,919.00 | N199: 73,025.00 | P199: 2022-03-02 | Q199: 3,585.50 | R199: 809,750.00
B200: 2022-03-01 | C200: 71,050.00 | D200: 72,146.00 | H200: 2022-03-01 | I200: 22,730.00 | J200: 173,904.00 | L200: 2022-02-25 | M200: 9,918.00 | N200: 74,875.00 | P200: 2022-03-01 | Q200: 3,501.00 | R200: 814,275.00
B201: 2022-02-28 | C201: 70,990.00 | D201: 70,872.00 | H201: 2022-02-28 | I201: 22,855.00 | J201: 175,382.00 | L201: 2022-02-24 | M201: 9,918.50 | N201: 74,750.00 | P201: 2022-02-28 | Q201: 3,388.00 | R201: 824,025.00
B202: 2022-02-25 | C202: 70,690.00 | D202: 70,922.00 | H202: 2022-02-25 | I202: 22,510.00 | J202: 173,726.00 | L202: 2022-02-23 | M202: 9,906.50 | N202: 74,325.00 | P202: 2022-02-25 | Q202: 3,386.50 | R202: 823,125.00
B203: 2022-02-24 | C203: 70,970.00 | D203: 70,798.00 | H203: 2022-02-24 | I203: 22,950.00 | J203: 171,352.00 | L203: 2022-02-22 | M203: 9,962.25 | N203: 74,475.00 | P203: 2022-02-24 | Q203: 3,435.00 | R203: 824,150.00
B204: 2022-02-23 | C204: 71,300.00 | D204: 70,099.00 | H204: 2022-02-23 | I204: 22,805.00 | J204: 169,028.00 | L204: 2022-02-21 | M204: 9,946.00 | N204: 74,375.00 | P204: 2022-02-23 | Q204: 3,321.00 | R204: 833,900.00
B205: 2022-02-22 | C205: 71,030.00 | D205: 69,175.00 | H205: 2022-02-22 | I205: 22,930.00 | J205: 169,103.00 | L205: 2022-02-18 | M205: 10,010.00 | N205: 74,075.00 | P205: 2022-02-22 | Q205: 3,343.00 | R205: 835,125.00
B206: 2022-02-21 | C206: 71,460.00 | D206: 69,796.00 | H206: 2022-02-21 | I206: 22,595.00 | J206: 170,181.00 | L206: 2022-02-17 | M206: 9,982.00 | N206: 74,275.00 | P206: 2022-02-21 | Q206: 3,324.75 | R206: 843,475.00
B207: 2022-02-18 | C207: 71,890.00 | D207: 70,349.00 | H207: 2022-02-18 | I207: 22,840.00 | J207: 182,699.00 | L207: 2022-02-16 | M207: 10,034.75 | N207: 75,275.00 | P207: 2022-02-18 | Q207: 3,299.00 | R207: 849,275.00
B208: 2022-02-17 | C208: 71,160.00 | D208: 71,069.00 | H208: 2022-02-17 | I208: 22,585.00 | J208: 193,579.00 | L208: 2022-02-15 | M208: 10,009.50 | N208: 70,125.00 | P208: 2022-02-17 | Q208: 3,314.60 | R208: 855,525.00
B209: 2022-02-16 | C209: 71,510.00 | D209: 71,069.00 | H209: 2022-02-16 | I209: 22,615.00 | J209: 193,629.00 | L209: 2022-02-14 | M209: 9,984.50 | N209: 72,225.00 | P209: 2022-02-16 | Q209: 3,290.00 | R209: 857,225.00
B210: 2022-02-15 | C210: 71,060.00 | D210: 66,188.00 | H210: 2022-02-15 | I210: 22,685.00 | J210: 189,884.00 | L210: 2022-02-11 | M210: 9,894.25 | N210: 74,100.00 | P210: 2022-02-15 | Q210: 3,234.50 | R210: 860,250.00
B211: 2022-02-14 | C211: 71,360.00 | D211: 52,618.00 | H211: 2022-02-14 | I211: 22,715.00 | J211: 160,729.00 | L211: 2022-02-10 | M211: 10,305.00 | N211: 76,325.00 | P211: 2022-02-14 | Q211: 3,265.75 | R211: 868,950.00
B212: 2022-02-11 | C212: 71,480.00 | D212: 34,915.00 | H212: 2022-02-11 | I212: 22,670.00 | J212: 157,270.00 | L212: 2022-02-09 | M212: 10,103.00 | N212: 77,325.00 | P212: 2022-02-11 | Q212: 3,146.50 | R212: 875,250.00
B213: 2022-02-10 | C213: 73,030.00 | D213: 26,489.00 | H213: 2022-02-10 | I213: 23,290.00 | J213: 145,107.00 | L213: 2022-02-08 | M213: 9,809.25 | N213: 79,925.00 | P213: 2022-02-10 | Q213: 3,267.00 | R213: 880,975.00
B214: 2022-02-09 | C214: 70,450.00 | D214: 24,464.00 | H214: 2022-02-09 | I214: 22,870.00 | J214: 145,132.00 | L214: 2022-02-07 | M214: 9,806.75 | N214: 80,025.00 | P214: 2022-02-09 | Q214: 3,282.75 | R214: 761,950.00
B215: 2022-02-08 | C215: 70,590.00 | D215: 22,142.00 | H215: 2022-02-08 | I215: 22,685.00 | J215: 146,679.00 | L215: 2022-02-04 | M215: 9,870.50 | N215: 82,225.00 | P215: 2022-02-08 | Q215: 3,214.50 | R215: 767,700.00
B216: 2022-02-07 | C216: 70,430.00 | D216: 19,120.00 | H216: 2022-02-07 | I216: 22,290.00 | J216: 144,777.00 | L216: 2022-02-03 | M216: 9,868.50 | N216: 82,400.00 | P216: 2022-02-07 | Q216: 3,172.00 | R216: 768,250.00
B217: 2022-01-28 | C217: 70,290.00 | D217: 15,124.00 | H217: 2022-01-28 | I217: 21,950.00 | J217: 142,782.00 | L217: 2022-02-02 | M217: 9,877.75 | N217: 84,875.00 | P217: 2022-02-04 | Q217: 3,098.50 | R217: 775,475.00
B218: 2022-01-27 | C218: 69,780.00 | D218: 14,450.00 | H218: 2022-01-27 | I218: 21,540.00 | J218: 142,282.00 | L218: 2022-02-01 | M218: 9,737.50 | N218: 86,500.00 | P218: 2022-02-03 | Q218: 3,077.25 | R218: 781,900.00
... 4282 more rows

Sheet 贵金属
A1: 目录
C17: 伦敦黄金现货（美元/盎司） | D17: 美元指数-右轴 | F17: 伦敦黄金现货（美元/盎司） | G17: 美国实际利率%-右轴 | K17: SHFE黄金（元/克） | L17: SHFE白银（元/千克）
B18: 2022-11-22 | C18: 1,742.95 | D18: 107.1687 | E18: 2022-11-22 | F18: 1,742.95 | G18: 1.44 | J18: 2022-11-23 | K18: 404.66 | L18: 4,859.00
B19: 2022-11-21 | C19: 1,740.40 | D19: 107.8226 | E19: 2022-11-21 | F19: 1,740.40 | G19: 1.52 | J19: 2022-11-22 | K19: 404.86 | L19: 4,834.00
B20: 2022-11-18 | C20: 1,751.60 | D20: 106.9678 | E20: 2022-11-18 | F20: 1,751.60 | G20: 1.57 | J20: 2022-11-21 | K20: 405.20 | L20: 4,802.00
B21: 2022-11-17 | C21: 1,758.60 | D21: 106.6784 | E21: 2022-11-17 | F21: 1,758.60 | G21: 1.49 | J21: 2022-11-18 | K21: 407.42 | L21: 4,857.00
B22: 2021-11-16 | C22: 1,859.20 | D22: 95.9116 | E22: 2021-11-16 | F22: 1,859.20 | G22: -1.10 | J22: 2022-11-17 | K22: 407.70 | L22: 4,909.00
B23: 2021-11-15 | C23: 1,859.90 | D23: 95.5242 | E23: 2021-11-15 | F23: 1,859.90 | G23: -1.13 | J23: 2022-11-16 | K23: 407.12 | L23: 4,916.00
B24: 2021-11-12 | C24: 1,860.55 | D24: 95.1166 | E24: 2021-11-12 | F24: 1,860.55 | G24: -1.15 | J24: 2022-11-15 | K24: 404.96 | L24: 4,956.00
B25: 2021-11-11 | C25: 1,857.90 | D25: 95.1507 | E25: 2021-11-11 | F25: 1,857.90 | G25: -1.14 | J25: 2022-11-14 | K25: 403.44 | L25: 4,873.00
B26: 2021-11-10 | C26: 1,859.40 | D26: 94.8998 | E26: 2021-11-10 | F26: 1,859.40 | G26: -1.14 | J26: 2022-11-11 | K26: 406.72 | L26: 4,996.00
B27: 2021-11-09 | C27: 1,827.30 | D27: 93.9720 | E27: 2021-11-09 | F27: 1,827.30 | G27: -1.17 | J27: 2022-11-10 | K27: 403.54 | L27: 4,919.00
B28: 2022-11-08 | C28: 1,678.65 | D28: 109.6342 | E28: 2022-11-08 | F28: 1,678.65 | G28: 1.64 | J28: 2022-11-09 | K28: 403.26 | L28: 4,939.00
B29: 2022-11-07 | C29: 1,678.95 | D29: 110.1872 | E29: 2022-11-07 | F29: 1,678.95 | G29: 1.69 | J29: 2022-11-08 | K29: 394.82 | L29: 4,795.00
B30: 2022-11-04 | C30: 1,674.40 | D30: 110.7839 | E30: 2022-11-04 | F30: 1,674.40 | G30: 1.69 | J30: 2022-11-07 | K30: 394.00 | L30: 4,741.00
B31: 2022-11-03 | C31: 1,628.75 | D31: 112.9842 | E31: 2022-11-03 | F31: 1,628.75 | G31: 1.74 | J31: 2022-11-04 | K31: 390.80 | L31: 4,624.00
B32: 2022-11-02 | C32: 1,649.55 | D32: 112.1193 | E32: 2022-11-02 | F32: 1,649.55 | G32: 1.57 | J32: 2022-11-03 | K32: 390.88 | L32: 4,573.00
B33: 2022-11-01 | C33: 1,645.25 | D33: 111.5609 | E33: 2022-11-01 | F33: 1,645.25 | G33: 1.56 | J33: 2022-11-02 | K33: 392.10 | L33: 4,634.00
B34: 2022-10-31 | C34: 1,639.00 | D34: 111.6036 | E34: 2022-10-31 | F34: 1,639.00 | G34: 1.58 | J34: 2022-11-01 | K34: 391.46 | L34: 4,634.00
B35: 2022-10-28 | C35: 1,648.05 | D35: 110.6763 | E35: 2022-10-28 | F35: 1,648.05 | G35: 1.51 | J35: 2022-10-31 | K35: 391.66 | L35: 4,527.00
B36: 2022-10-27 | C36: 1,659.75 | D36: 110.5894 | E36: 2022-10-27 | F36: 1,659.75 | G36: 1.51 | J36: 2022-10-28 | K36: 392.78 | L36: 4,575.00
B37: 2022-10-26 | C37: 1,666.75 | D37: 109.6982 | E37: 2022-10-26 | F37: 1,666.75 | G37: 1.60 | J37: 2022-10-27 | K37: 392.70 | L37: 4,564.00
B38: 2022-10-25 | C38: 1,659.25 | D38: 110.8775 | E38: 2022-10-25 | F38: 1,659.25 | G38: 1.59 | J38: 2022-10-26 | K38: 393.62 | L38: 4,617.00
B39: 2022-10-24 | C39: 1,649.15 | D39: 112.0087 | E39: 2022-10-24 | F39: 1,649.15 | G39: 1.66 | J39: 2022-10-25 | K39: 393.82 | L39: 4,575.00
B40: 2022-10-21 | C40: 1,643.25 | D40: 111.8505 | E40: 2022-10-21 | F40: 1,643.25 | G40: 1.69 | J40: 2022-10-24 | K40: 392.72 | L40: 4,542.00
B41: 2022-10-20 | C41: 1,635.30 | D41: 112.8273 | E41: 2022-10-20 | F41: 1,635.30 | G41: 1.73 | J41: 2022-10-21 | K41: 387.46 | L41: 4,384.00
B42: 2022-10-19 | C42: 1,631.70 | D42: 112.9089 | E42: 2022-10-19 | F42: 1,631.70 | G42: 1.72 | J42: 2022-10-20 | K42: 388.10 | L42: 4,370.00
B43: 2022-10-18 | C43: 1,653.00 | D43: 112.0303 | E43: 2022-10-18 | F43: 1,653.00 | G43: 1.60 | J43: 2022-10-19 | K43: 390.18 | L43: 4,388.00
B44: 2022-10-17 | C44: 1,664.75 | D44: 112.0931 | E44: 2022-10-17 | F44: 1,664.75 | G44: 1.57 | J44: 2022-10-18 | K44: 390.78 | L44: 4,421.00
B45: 2022-10-14 | C45: 1,649.30 | D45: 113.3095 | E45: 2022-10-14 | F45: 1,649.30 | G45: 1.59 | J45: 2022-10-17 | K45: 390.28 | L45: 4,369.00
B46: 2022-10-13 | C46: 1,648.10 | D46: 112.4601 | E46: 2022-10-13 | F46: 1,648.10 | G46: 1.63 | J46: 2022-10-14 | K46: 392.42 | L46: 4,447.00
B47: 2022-10-12 | C47: 1,670.65 | D47: 113.2668 | E47: 2022-10-12 | F47: 1,670.65 | G47: 1.62 | J47: 2022-10-13 | K47: 393.00 | L47: 4,436.00
B48: 2022-10-11 | C48: 1,664.70 | D48: 113.2941 | E48: 2022-10-11 | F48: 1,664.70 | G48: 1.62 | J48: 2022-10-12 | K48: 393.04 | L48: 4,490.00
B49: 2022-10-10 | C49: 1,676.55 | D49: 113.1571 | E49: 2022-10-10 | F49: 1,676.55 | G49: 0.00 | J49: 2022-10-11 | K49: 392.72 | L49: 4,524.00
B50: 2022-10-07 | C50: 1,696.15 | D50: 112.7562 | E50: 2022-10-07 | F50: 1,696.15 | G50: 1.62 | J50: 2022-10-10 | K50: 393.24 | L50: 4,544.00
B51: 2022-10-06 | C51: 1,714.20 | D51: 112.2612 | E51: 2022-10-06 | F51: 1,714.20 | G51: 1.61 | J51: 2022-09-30 | K51: 390.82 | L51: 4,424.00
B52: 2022-10-05 | C52: 1,700.50 | D52: 111.1992 | E52: 2022-10-05 | F52: 1,700.50 | G52: 1.54 | J52: 2022-09-29 | K52: 389.66 | L52: 4,385.00
B53: 2022-10-04 | C53: 1,714.85 | D53: 110.1798 | E53: 2022-10-04 | F53: 1,714.85 | G53: 1.38 | J53: 2022-09-28 | K53: 385.90 | L53: 4,281.00
B54: 2022-10-03 | C54: 1,668.40 | D54: 111.6392 | E54: 2022-10-03 | F54: 1,668.40 | G54: 1.43 | J54: 2022-09-27 | K54: 384.88 | L54: 4,355.00
B55: 2022-09-30 | C55: 1,671.75 | D55: 112.1511 | E55: 2022-09-30 | F55: 1,671.75 | G55: 1.68 | J55: 2022-09-26 | K55: 384.38 | L55: 4,364.00
B56: 2022-09-29 | C56: 1,654.80 | D56: 111.9699 | E56: 2022-09-29 | F56: 1,654.80 | G56: 1.57 | J56: 2022-09-23 | K56: 387.64 | L56: 4,542.00
B57: 2022-09-28 | C57: 1,652.15 | D57: 112.7177 | E57: 2022-09-28 | F57: 1,652.15 | G57: 1.39 | J57: 2022-09-22 | K57: 386.04 | L57: 4,474.00
B58: 2022-09-27 | C58: 1,634.30 | D58: 114.1596 | E58: 2022-09-27 | F58: 1,634.30 | G58: 1.64 | J58: 2022-09-21 | K58: 386.98 | L58: 4,443.00
B59: 2022-09-26 | C59: 1,643.35 | D59: 114.1146 | E59: 2022-09-26 | F59: 1,643.35 | G59: 1.56 | J59: 2022-09-20 | K59: 385.84 | L59: 4,426.00
B60: 2022-09-23 | C60: 1,643.55 | D60: 113.0324 | E60: 2022-09-23 | F60: 1,643.55 | G60: 1.32 | J60: 2022-09-19 | K60: 384.70 | L60: 4,405.00
B61: 2022-09-22 | C61: 1,671.85 | D61: 111.2889 | E61: 2022-09-22 | F61: 1,671.85 | G61: 1.29 | J61: 2022-09-16 | K61: 383.60 | L61: 4,362.00
B62: 2022-09-21 | C62: 1,671.75 | D62: 111.3731 | E62: 2022-09-21 | F62: 1,671.75 | G62: 1.13 | J62: 2022-09-15 | K62: 385.24 | L62: 4,399.00
B63: 2022-09-20 | C63: 1,664.15 | D63: 110.1986 | E63: 2022-09-20 | F63: 1,664.15 | G63: 1.17 | J63: 2022-09-14 | K63: 387.20 | L63: 4,402.00
B64: 2022-09-16 | C64: 1,664.65 | D64: 109.6597 | E64: 2022-09-16 | F64: 1,664.65 | G64: 1.07 | J64: 2022-09-13 | K64: 389.66 | L64: 4,466.00
B65: 2022-09-15 | C65: 1,689.10 | D65: 109.6856 | E65: 2022-09-15 | F65: 1,689.10 | G65: 1.02 | J65: 2022-09-09 | K65: 389.52 | L65: 4,326.00
B66: 2022-09-14 | C66: 1,703.90 | D66: 109.6461 | E66: 2022-09-14 | F66: 1,703.90 | G66: 0.95 | J66: 2022-09-08 | K66: 389.46 | L66: 4,253.00
B67: 2022-09-13 | C67: 1,704.85 | D67: 109.9188 | E67: 2022-09-13 | F67: 1,704.85 | G67: 0.98 | J67: 2022-09-07 | K67: 386.36 | L67: 4,185.00
B68: 2022-09-12 | C68: 1,726.40 | D68: 108.3076 | E68: 2022-09-12 | F68: 1,726.40 | G68: 0.95 | J68: 2022-09-06 | K68: 388.98 | L68: 4,230.00
B69: 2022-09-09 | C69: 1,713.40 | D69: 108.9655 | E69: 2022-09-09 | F69: 1,713.40 | G69: 0.91 | J69: 2022-09-05 | K69: 386.86 | L69: 4,191.00
B70: 2022-09-08 | C70: 1,709.35 | D70: 109.6528 | E70: 2022-09-08 | F70: 1,709.35 | G70: 0.88 | J70: 2022-09-02 | K70: 383.02 | L70: 4,160.00
B71: 2022-09-07 | C71: 1,702.65 | D71: 109.5831 | E71: 2022-09-07 | F71: 1,702.65 | G71: 0.82 | J71: 2022-09-01 | K71: 383.70 | L71: 4,120.00
B72: 2022-09-06 | C72: 1,702.60 | D72: 110.2383 | E72: 2022-09-06 | F72: 1,702.60 | G72: 0.85 | J72: 2022-08-31 | K72: 386.92 | L72: 4,202.00
B73: 2022-09-05 | C73: 1,710.95 | D73: 109.8190 | E73: 2022-09-02 | F73: 1,712.50 | G73: 0.73 | J73: 2022-08-30 | K73: 389.30 | L73: 4,247.00
B74: 2022-09-02 | C74: 1,712.50 | D74: 109.6121 | E74: 2022-09-01 | F74: 1,694.30 | G74: 0.81 | J74: 2022-08-29 | K74: 387.94 | L74: 4,234.00
B75: 2022-09-01 | C75: 1,694.30 | D75: 109.6649 | E75: 2022-08-31 | F75: 1,715.90 | G75: 0.67 | J75: 2022-08-26 | K75: 391.28 | L75: 4,318.00
B76: 2022-08-31 | C76: 1,715.90 | D76: 108.6796 | E76: 2022-08-30 | F76: 1730.30 | G76: 0.56 | J76: 2022-08-25 | K76: 390.82 | L76: 4,334.00
B77: 2022-08-30 | C77: 1,730.30 | D77: 108.8249 | E77: 2022-08-26 | F77: 1751.25 | G77: 0.47 | J77: 2022-08-24 | K77: 389.54 | L77: 4,310.00
B78: 2022-08-26 | C78: 1,751.25 | D78: 108.8564 | E78: 2022-08-25 | F78: 1753.55 | G78: 0.43 | J78: 2022-08-23 | K78: 387.32 | L78: 4,270.00
B79: 2022-08-25 | C79: 1,753.55 | D79: 108.4253 | E79: 2022-08-24 | F79: 1745.65 | G79: 0.49 | J79: 2022-08-22 | K79: 386.26 | L79: 4,257.00
B80: 2022-08-24 | C80: 1,745.65 | D80: 108.6456 | E80: 2022-08-23 | F80: 1746.55 | G80: 0.47 | J80: 2022-08-19 | K80: 387.56 | L80: 4,300.00
B81: 2022-08-23 | C81: 1,746.55 | D81: 108.5394 | E81: 2022-08-22 | F81: 1733.25 | G81: 0.46 | J81: 2022-08-18 | K81: 387.76 | L81: 4,336.00
B82: 2022-08-22 | C82: 1,733.25 | D82: 108.9728 | E82: 2022-08-19 | F82: 1750.75 | G82: 0.43 | J82: 2022-08-17 | K82: 389.90 | L82: 4,441.00
B83: 2022-08-19 | C83: 1,750.75 | D83: 108.1102 | E83: 2022-08-18 | F83: 1765.55 | G83: 0.36 | J83: 2022-08-16 | K83: 391.52 | L83: 4,455.00
B84: 2022-08-18 | C84: 1,765.55 | D84: 107.5170 | E84: 2022-08-17 | F84: 1767.20 | G84: 0.43 | J84: 2022-08-15 | K84: 392.00 | L84: 4,532.00
B85: 2022-08-17 | C85: 1,767.20 | D85: 106.6483 | E85: 2022-08-16 | F85: 1774.85 | G85: 0.38 | J85: 2022-08-12 | K85: 391.22 | L85: 4,488.00
B86: 2022-08-16 | C86: 1,774.85 | D86: 106.4602 | E86: 2022-08-15 | F86: 1776.60 | G86: 0.35 | J86: 2022-08-11 | K86: 389.56 | L86: 4,501.00
B87: 2022-08-15 | C87: 1,776.60 | D87: 106.5155 | E87: 2022-08-12 | F87: 1792.10 | G87: 0.37 | J87: 2022-08-10 | K87: 391.18 | L87: 4,488.00
B88: 2022-08-12 | C88: 1,792.10 | D88: 105.6788 | E88: 2022-08-11 | F88: 1796.70 | G88: 0.40 | J88: 2022-08-09 | K88: 390.46 | L88: 4,517.00
B89: 2022-08-11 | C89: 1,796.70 | D89: 105.1061 | E89: 2022-08-10 | F89: 1795.05 | G89: 0.35 | J89: 2022-08-08 | K89: 388.70 | L89: 4,396.00
B90: 2022-08-10 | C90: 1,795.05 | D90: 105.2230 | E90: 2022-08-09 | F90: 1795.25 | G90: 0.33 | J90: 2022-08-05 | K90: 391.10 | L90: 4,470.00
B91: 2022-08-09 | C91: 1,795.25 | D91: 106.3112 | E91: 2022-08-08 | F91: 1784.05 | G91: 0.29 | J91: 2022-08-04 | K91: 387.90 | L91: 4,423.00
B92: 2022-08-08 | C92: 1,784.05 | D92: 106.3827 | E92: 2022-08-05 | F92: 1773.25 | G92: 0.37 | J92: 2022-08-03 | K92: 387.30 | L92: 4,405.00
B93: 2022-08-05 | C93: 1,773.25 | D93: 106.5714 | E93: 2022-08-04 | F93: 1783.20 | G93: 0.22 | J93: 2022-08-02 | K93: 389.16 | L93: 4,461.00
B94: 2022-08-04 | C94: 1,783.20 | D94: 105.7453 | E94: 2022-08-03 | F94: 1761.25 | G94: 0.23 | J94: 2022-08-01 | K94: 385.80 | L94: 4,443.00
B95: 2022-08-03 | C95: 1,761.25 | D95: 106.4004 | E95: 2022-08-02 | F95: 1,779.75 | G95: 0.27 | J95: 2022-07-29 | K95: 386.10 | L95: 4,462.00
B96: 2022-08-02 | C96: 1,779.75 | D96: 106.3267 | E96: 2022-08-01 | F96: 1,772.40 | G96: 0.09 | J96: 2022-07-28 | K96: 380.72 | L96: 4,318.00
B97: 2022-08-01 | C97: 1,772.40 | D97: 105.3887 | E97: 2022-07-29 | F97: 1,753.40 | G97: 0.14 | J97: 2022-07-27 | K97: 376.64 | L97: 4,165.00
B98: 2022-07-29 | C98: 1,753.40 | D98: 105.8361 | E98: 2022-07-28 | F98: 1,753.50 | G98: 0.20 | J98: 2022-07-26 | K98: 377.46 | L98: 4,152.00
B99: 2022-07-28 | C99: 1,753.50 | D99: 106.1656 | E99: 2022-07-27 | F99: 1,714.05 | G99: 0.36 | J99: 2022-07-25 | K99: 377.18 | L99: 4,147.00
B100: 2022-07-27 | C100: 1,714.05 | D100: 106.4861 | E100: 2022-07-26 | F100: 1,720.05 | G100: 0.45 | J100: 2022-07-22 | K100: 375.98 | L100: 4,182.00
B101: 2022-07-26 | C101: 1,720.05 | D101: 107.2352 | E101: 2022-07-25 | F101: 1,718.90 | G101: 0.45 | J101: 2022-07-21 | K101: 370.32 | L101: 4,123.00
B102: 2022-07-25 | C102: 1,718.90 | D102: 106.5518 | E102: 2022-07-22 | F102: 1,736.95 | G102: 0.43 | J102: 2022-07-20 | K102: 373.52 | L102: 4,194.00
B103: 2022-07-22 | C103: 1,736.95 | D103: 106.5518 | E103: 2022-07-21 | F103: 1,705.10 | G103: 0.58 | J103: 2022-07-19 | K103: 373.84 | L103: 4,209.00
B104: 2022-07-21 | C104: 1,705.10 | D104: 106.5673 | E104: 2022-07-20 | F104: 1,709.30 | G104: 0.66 | J104: 2022-07-18 | K104: 374.98 | L104: 4,232.00
B105: 2022-07-20 | C105: 1,709.30 | D105: 107.0345 | E105: 2022-07-19 | F105: 1,713.05 | G105: 0.62 | J105: 2022-07-15 | K105: 373.38 | L105: 4,233.00
B106: 2022-07-19 | C106: 1,713.05 | D106: 106.7089 | E106: 2022-07-18 | F106: 1,719.05 | G106: 0.59 | J106: 2022-07-14 | K106: 376.10 | L106: 4,242.00
B107: 2022-07-18 | C107: 1,719.05 | D107: 107.4600 | E107: 2022-07-15 | F107: 1,706.15 | G107: 0.57 | J107: 2022-07-13 | K107: 375.60 | L107: 4,229.00
B108: 2022-07-15 | C108: 1,706.15 | D108: 107.9817 | E108: 2022-07-14 | F108: 1,700.70 | G108: 0.62 | J108: 2022-07-12 | K108: 378.20 | L108: 4,382.00
B109: 2022-07-14 | C109: 1,700.70 | D109: 108.6379 | E109: 2022-07-13 | F109: 1,724.60 | G109: 0.60 | J109: 2022-07-11 | K109: 377.00 | L109: 4,327.00
B110: 2022-07-13 | C110: 1,724.60 | D110: 108.0452 | E110: 2022-07-12 | F110: 1,730.70 | G110: 0.64 | J110: 2022-07-08 | K110: 377.04 | L110: 4,351.00
B111: 2022-07-12 | C111: 1,730.70 | D111: 108.1571 | E111: 2022-07-11 | F111: 1,740.00 | G111: 0.67 | J111: 2022-07-07 | K111: 377.44 | L111: 4,522.00
B112: 2022-07-11 | C112: 1,740.00 | D112: 108.2193 | E112: 2022-07-08 | F112: 1,738.20 | G112: 0.72 | J112: 2022-07-06 | K112: 382.86 | L112: 4,527.00
B113: 2022-07-08 | C113: 1,738.20 | D113: 106.8951 | E113: 2022-07-07 | F113: 1,747.95 | G113: 0.68 | J113: 2022-07-05 | K113: 390.52 | L113: 4,607.00
B114: 2022-07-07 | C114: 1,747.95 | D114: 107.0716 | E114: 2022-07-06 | F114: 1,754.30 | G114: 0.64 | J114: 2022-07-04 | K114: 390.92 | L114: 4,633.00
B115: 2022-07-06 | C115: 1,754.30 | D115: 107.0829 | E115: 2022-07-05 | F115: 1,772.00 | G115: 0.52 | J115: 2022-07-01 | K115: 388.94 | L115: 4,525.00
B116: 2022-07-05 | C116: 1,772.00 | D116: 106.5210 | E116: 2022-07-04 | F116: 1,808.40 | G116: 0.00 | J116: 2022-06-30 | K116: 392.70 | L116: 4,649.00
B117: 2022-07-04 | C117: 1,808.40 | D117: 105.1764 | E117: 2022-07-01 | F117: 1,797.45 | G117: 0.54 | J117: 2022-06-29 | K117: 393.34 | L117: 4,649.00
B118: 2022-07-01 | C118: 1,797.45 | D118: 105.1160 | E118: 2022-06-30 | F118: 1,817.00 | G118: 0.65 | J118: 2022-06-28 | K118: 393.86 | L118: 4,669.00
B119: 2022-06-30 | C119: 1,817.00 | D119: 104.7057 | E119: 2022-06-29 | F119: 1,817.75 | G119: 0.74 | J119: 2022-06-27 | K119: 396.32 | L119: 4,715.00
B120: 2022-06-29 | C120: 1,817.75 | D120: 105.1129 | E120: 2022-06-28 | F120: 1,819.05 | G120: 0.72 | J120: 2022-06-24 | K120: 393.64 | L120: 4,778.00
B121: 2022-06-28 | C121: 1,819.05 | D121: 104.5001 | E121: 2022-06-27 | F121: 1,826.30 | G121: 0.65 | J121: 2022-06-23 | K121: 396.70 | L121: 4,724.00
B122: 2022-06-27 | C122: 1,826.30 | D122: 103.9569 | E122: 2022-06-24 | F122: 1,825.45 | G122: 0.57 | J122: 2022-06-22 | K122: 396.20 | L122: 4,647.00
B123: 2022-06-24 | C123: 1,825.45 | D123: 104.1303 | E123: 2022-06-23 | F123: 1,841.90 | G123: 0.59 | J123: 2022-06-21 | K123: 396.26 | L123: 4,663.00
B124: 2022-06-23 | C124: 1,841.90 | D124: 104.4105 | E124: 2022-06-22 | F124: 1,841.85 | G124: 0.62 | J124: 2022-06-20 | K124: 397.00 | L124: 4,738.00
B125: 2022-06-22 | C125: 1,841.85 | D125: 104.2163 | E125: 2022-06-21 | F125: 1,840.25 | G125: 0.70 | J125: 2022-06-17 | K125: 398.58 | L125: 4,705.00
B126: 2022-06-21 | C126: 1,840.25 | D126: 104.4244 | E126: 2022-06-20 | F126: 1,836.50 | G126: 0.00 | J126: 2022-06-16 | K126: 395.76 | L126: 4,778.00
B127: 2022-06-20 | C127: 1,836.50 | D127: 104.5045 | E127: 2022-06-17 | F127: 1,841.55 | G127: 0.67 | J127: 2022-06-15 | K127: 394.46 | L127: 4,811.00
B128: 2022-06-17 | C128: 1,841.55 | D128: 104.6682 | E128: 2022-06-16 | F128: 1,826.50 | G128: 0.66 | J128: 2022-06-14 | K128: 396.90 | L128: 4,777.00
B129: 2022-06-16 | C129: 1,826.50 | D129: 103.8326 | E129: 2022-06-15 | F129: 1,823.75 | G129: 0.63 | J129: 2022-06-13 | K129: 404.22 | L129: 4,824.00
B130: 2022-06-15 | C130: 1,823.75 | D130: 104.8694 | E130: 2022-06-14 | F130: 1,818.30 | G130: 0.89 | J130: 2022-06-10 | K130: 397.54 | L130: 4,743.00
B131: 2022-06-14 | C131: 1,818.30 | D131: 105.4807 | E131: 2022-06-13 | F131: 1,830.85 | G131: 0.69 | J131: 2022-06-09 | K131: 398.82 | L131: 4,673.00
B132: 2022-06-13 | C132: 1,830.85 | D132: 105.2277 | E132: 2022-06-10 | F132: 1,830.00 | G132: 0.39 | J132: 2022-06-08 | K132: 398.02 | L132: 4,716.00
B133: 2022-06-10 | C133: 1,830.00 | D133: 104.1926 | E133: 2022-06-09 | F133: 1,844.85 | G133: 0.29 | J133: 2022-06-07 | K133: 396.00 | L133: 4,795.00
B134: 2022-06-09 | C134: 1,844.85 | D134: 103.3279 | E134: 2022-06-08 | F134: 1,852.95 | G134: 0.28 | J134: 2022-06-06 | K134: 398.00 | L134: 4,836.00
B135: 2022-06-08 | C135: 1,852.95 | D135: 102.5613 | E135: 2022-06-07 | F135: 1,849.60 | G135: 0.25 | J135: 2022-06-02 | K135: 398.98 | L135: 4,745.00
B136: 2022-06-07 | C136: 1,849.60 | D136: 102.3352 | E136: 2022-06-06 | F136: 1,847.20 | G136: 0.28 | J136: 2022-06-01 | K136: 396.36 | L136: 4,763.00
B137: 2022-06-06 | C137: 1,847.20 | D137: 102.3982 | E137: 2022-06-01 | F137: 1,844.90 | G137: 0.29 | J137: 2022-05-31 | K137: 399.04 | L137: 4,731.00
B138: 2022-06-01 | C138: 1,844.90 | D138: 102.5679 | E138: 2022-05-31 | F138: 1,838.70 | G138: 0.21 | J138: 2022-05-30 | K138: 399.92 | L138: 4,757.00
B139: 2022-05-31 | C139: 1,838.70 | D139: 101.7679 | E139: 2022-05-30 | F139: 1,854.95 | G139: 0.00 | J139: 2022-05-27 | K139: 402.14 | L139: 4,775.00
B140: 2022-05-30 | C140: 1,854.95 | D140: 101.6454 | E140: 2022-05-27 | F140: 1,851.80 | G140: 0.11 | J140: 2022-05-26 | K140: 400.36 | L140: 4,707.00
B141: 2022-05-27 | C141: 1,851.80 | D141: 101.6429 | E141: 2022-05-26 | F141: 1,848.25 | G141: 0.13 | J141: 2022-05-25 | K141: 398.84 | L141: 4,707.00
B142: 2022-05-26 | C142: 1,848.25 | D142: 101.7557 | E142: 2022-05-25 | F142: 1,847.20 | G142: 0.19 | J142: 2022-05-24 | K142: 398.08 | L142: 4,750.00
B143: 2022-05-25 | C143: 1,847.20 | D143: 102.1262 | E143: 2022-05-24 | F143: 1,867.10 | G143: 0.21 | J143: 2022-05-23 | K143: 397.16 | L143: 4,662.00
B144: 2022-05-24 | C144: 1,867.10 | D144: 101.7692 | E144: 2022-05-23 | F144: 1,856.20 | G144: 0.26 | J144: 2022-05-20 | K144: 397.18 | L144: 4,629.00
B145: 2022-05-23 | C145: 1,856.20 | D145: 102.0767 | E145: 2022-05-20 | F145: 1,834.20 | G145: 0.23 | J145: 2022-05-19 | K145: 394.96 | L145: 4,718.00
B146: 2022-05-20 | C146: 1,834.20 | D146: 103.0334 | E146: 2022-05-19 | F146: 1,844.00 | G146: 0.25 | J146: 2022-05-18 | K146: 393.32 | L146: 4,739.00
B147: 2022-05-19 | C147: 1,844.00 | D147: 102.8934 | E147: 2022-05-18 | F147: 1,810.65 | G147: 0.17 | J147: 2022-05-17 | K147: 397.98 | L147: 4,801.00
B148: 2022-05-18 | C148: 1,810.65 | D148: 103.9245 | E148: 2022-05-17 | F148: 1,825.00 | G148: 0.27 | J148: 2022-05-16 | K148: 395.84 | L148: 4,824.00
B149: 2022-05-17 | C149: 1,825.00 | D149: 103.2971 | E149: 2022-05-16 | F149: 1,809.50 | G149: 0.20 | J149: 2022-05-13 | K149: 399.66 | L149: 4,821.00
B150: 2022-05-16 | C150: 1,809.50 | D150: 104.2230 | E150: 2022-05-13 | F150: 1,811.55 | G150: 0.24 | J150: 2022-05-12 | K150: 404.24 | L150: 4,920.00
B151: 2022-05-13 | C151: 1,811.55 | D151: 104.4509 | E151: 2022-05-12 | F151: 1,837.05 | G151: 0.25 | J151: 2022-05-11 | K151: 399.94 | L151: 4,954.00
B152: 2022-05-12 | C152: 1,837.05 | D152: 104.7536 | E152: 2022-05-11 | F152: 1,851.95 | G152: 0.21 | J152: 2022-05-10 | K152: 402.30 | L152: 4,905.00
B153: 2022-05-11 | C153: 1,851.95 | D153: 104.0200 | E153: 2022-05-10 | F153: 1,857.35 | G153: 0.34 | J153: 2022-05-09 | K153: 405.36 | L153: 4,941.00
B154: 2022-05-10 | C154: 1,857.35 | D154: 103.9278 | E154: 2022-05-09 | F154: 1,860.90 | G154: 0.30 | J154: 2022-05-06 | K154: 403.60 | L154: 4,971.00
B155: 2022-05-09 | C155: 1,860.90 | D155: 103.7264 | E155: 2022-05-06 | F155: 1,882.35 | G155: 0.26 | J155: 2022-05-05 | K155: 404.52 | L155: 4,985.00
B156: 2022-05-06 | C156: 1,882.35 | D156: 103.6617 | E156: 2022-05-05 | F156: 1,892.30 | G156: 0.18 | J156: 2022-04-29 | K156: 405.82 | L156: 5,098.00
B157: 2022-05-05 | C157: 1,892.30 | D157: 103.5715 | E157: 2022-05-04 | F157: 1,863.65 | G157: 0.07 | J157: 2022-04-28 | K157: 400.82 | L157: 5,174.00
B158: 2022-05-04 | C158: 1,863.65 | D158: 102.5122 | E158: 2022-05-03 | F158: 1,869.70 | G158: 0.14 | J158: 2022-04-27 | K158: 400.90 | L158: 5,147.00
B159: 2022-05-03 | C159: 1,869.70 | D159: 103.4861 | E159: 2022-04-29 | F159: 1,911.30 | G159: 0.01 | J159: 2022-04-26 | K159: 401.30 | L159: 5,258.00
B160: 2022-04-29 | C160: 1,911.30 | D160: 103.2173 | E160: 2022-04-28 | F160: 1,888.50 | G160: -0.12 | J160: 2022-04-25 | K160: 404.42 | L160: 5,275.00
B161: 2022-04-28 | C161: 1,888.50 | D161: 103.6704 | E161: 2022-04-27 | F161: 1,885.80 | G161: -0.06 | J161: 2022-04-22 | K161: 406.80 | L161: 5,235.00
B162: 2022-04-27 | C162: 1,885.80 | D162: 102.9669 | E162: 2022-04-26 | F162: 1,904.60 | G162: -0.08 | J162: 2022-04-21 | K162: 405.06 | L162: 5,251.00
B163: 2022-04-26 | C163: 1,904.60 | D163: 101.7393 | E163: 2022-04-25 | F163: 1,895.00 | G163: -0.10 | J163: 2022-04-20 | K163: 400.06 | L163: 5,208.00
B164: 2022-04-25 | C164: 1,895.00 | D164: 101.7435 | E164: 2022-04-22 | F164: 1,941.55 | G164: -0.08 | J164: 2022-04-19 | K164: 405.10 | L164: 5,179.00
B165: 2022-04-22 | C165: 1,941.55 | D165: 101.1233 | E165: 2022-04-21 | F165: 1,943.70 | G165: -0.12 | J165: 2022-04-18 | K165: 408.02 | L165: 5,083.00
B166: 2022-04-21 | C166: 1,943.70 | D166: 100.6273 | E166: 2022-04-20 | F166: 1,949.55 | G166: -0.07 | J166: 2022-04-15 | K166: 405.82 | L166: 5,030.00
B167: 2022-04-20 | C167: 1,949.55 | D167: 100.3037 | E167: 2022-04-19 | F167: 1,964.00 | G167: 0.00 | J167: 2022-04-14 | K167: 404.32 | L167: 4,961.00
B168: 2022-04-19 | C168: 1,964.00 | D168: 100.9863 | E168: 2022-04-14 | F168: 1,963.25 | G168: -0.06 | J168: 2022-04-13 | K168: 403.70 | L168: 4,980.00
B169: 2022-04-14 | C169: 1,963.25 | D169: 100.3048 | E169: 2022-04-13 | F169: 1,976.75 | G169: -0.10 | J169: 2022-04-12 | K169: 401.78 | L169: 5,038.00
B170: 2022-04-13 | C170: 1,976.75 | D170: 99.8387 | E170: 2022-04-12 | F170: 1,960.85 | G170: -0.14 | J170: 2022-04-11 | K170: 399.60 | L170: 5,011.00
B171: 2022-04-12 | C171: 1,960.85 | D171: 100.3367 | E171: 2022-04-11 | F171: 1,951.55 | G171: -0.12 | J171: 2022-04-08 | K171: 396.04 | L171: 5,061.00
B172: 2022-04-11 | C172: 1,951.55 | D172: 99.9775 | E172: 2022-04-08 | F172: 1,941.40 | G172: -0.15 | J172: 2022-04-07 | K172: 394.94 | L172: 5,118.00
B173: 2022-04-08 | C173: 1,941.40 | D173: 99.8430 | E173: 2022-04-07 | F173: 1,932.40 | G173: -0.16 | J173: 2022-04-06 | K173: 394.50 | L173: 5,152.00
B174: 2022-04-07 | C174: 1,932.40 | D174: 99.7712 | E174: 2022-04-06 | F174: 1,930.15 | G174: -0.22 | J174: 2022-04-01 | K174: 396.26 | L174: 5,237.00
B175: 2022-04-06 | C175: 1,930.15 | D175: 99.6457 | E175: 2022-04-05 | F175: 1,944.05 | G175: -0.30 | J175: 2022-03-31 | K175: 394.34 | L175: 5,127.00
B176: 2022-04-05 | C176: 1,944.05 | D176: 99.4903 | E176: 2022-04-04 | F176: 1,930.30 | G176: -0.38 | J176: 2022-03-30 | K176: 394.74 | L176: 5,082.00
B177: 2022-04-04 | C177: 1,930.30 | D177: 99.0122 | E177: 2022-04-01 | F177: 1,929.40 | G177: -0.41 | J177: 2022-03-29 | K177: 395.54 | L177: 5,168.00
B178: 2022-04-01 | C178: 1,929.40 | D178: 98.5709 | E178: 2022-03-31 | F178: 1,942.15 | G178: -0.52 | J178: 2022-03-28 | K178: 397.68 | L178: 5,081.00
B179: 2022-03-31 | C179: 1,942.15 | D179: 98.3618 | E179: 2022-03-30 | F179: 1,933.85 | G179: -0.51 | J179: 2022-03-25 | K179: 401.70 | L179: 5,123.00
B180: 2022-03-30 | C180: 1,933.85 | D180: 97.8297 | E180: 2022-03-29 | F180: 1,910.00 | G180: -0.45 | J180: 2022-03-24 | K180: 399.02 | L180: 5,098.00
B181: 2022-03-29 | C181: 1,910.00 | D181: 98.4257 | E181: 2022-03-28 | F181: 1,937.05 | G181: -0.49 | J181: 2022-03-23 | K181: 394.72 | L181: 5,016.00
B182: 2022-03-28 | C182: 1,937.05 | D182: 99.1520 | E182: 2022-03-25 | F182: 1,953.80 | G182: -0.47 | J182: 2022-03-22 | K182: 397.16 | L182: 4,973.00
B183: 2022-03-25 | C183: 1,953.80 | D183: 98.8103 | E183: 2022-03-24 | F183: 1,965.20 | G183: -0.58 | J183: 2022-03-21 | K183: 394.76 | L183: 5,087.00
B184: 2022-03-24 | C184: 1,965.20 | D184: 98.7894 | E184: 2022-03-23 | F184: 1,931.75 | G184: -0.62 | J184: 2022-03-18 | K184: 395.90 | L184: 5,145.00
B185: 2022-03-23 | C185: 1,931.75 | D185: 98.6470 | E185: 2022-03-22 | F185: 1,915.25 | G185: -0.53 | J185: 2022-03-17 | K185: 395.44 | L185: 5,109.00
B186: 2022-03-22 | C186: 1,915.25 | D186: 98.4386 | E186: 2022-03-21 | F186: 1,935.05 | G186: -0.58 | J186: 2022-03-16 | K186: 391.04 | L186: 5,371.00
B187: 2022-03-21 | C187: 1,935.05 | D187: 98.4923 | E187: 2022-03-18 | F187: 1,935.80 | G187: -0.72 | J187: 2022-03-15 | K187: 394.46 | L187: 5,317.00
B188: 2022-03-18 | C188: 1,935.80 | D188: 98.2282 | E188: 2022-03-17 | F188: 1,949.65 | G188: -0.71 | J188: 2022-03-14 | K188: 402.50 | L188: 5,159.00
B189: 2022-03-17 | C189: 1,949.65 | D189: 98.0175 | E189: 2022-03-16 | F189: 1,913.20 | G189: -0.61 | J189: 2022-03-11 | K189: 404.78 | L189: 5,062.00
B190: 2022-03-16 | C190: 1,913.20 | D190: 98.3755 | E190: 2022-03-15 | F190: 1,913.65 | G190: -0.69 | J190: 2022-03-10 | K190: 404.00 | L190: 5,094.00
B191: 2022-03-15 | C191: 1,913.65 | D191: 98.9916 | E191: 2022-03-14 | F191: 1,954.05 | G191: -0.79 | J191: 2022-03-09 | K191: 417.16 | L191: 5,065.00
B192: 2022-03-14 | C192: 1,954.05 | D192: 99.1193 | E192: 2022-03-11 | F192: 1,978.70 | G192: -0.94 | J192: 2022-03-08 | K192: 412.20 | L192: 4,981.00
B193: 2022-03-11 | C193: 1,978.70 | D193: 99.1263 | E193: 2022-03-10 | F193: 1,996.60 | G193: -0.88 | J193: 2022-03-07 | K193: 403.30 | L193: 4,962.00
B194: 2022-03-10 | C194: 1,996.60 | D194: 98.5160 | E194: 2022-03-09 | F194: 1,988.90 | G194: -0.90 | J194: 2022-03-04 | K194: 394.64 | L194: 4,987.00
B195: 2022-03-09 | C195: 1,988.90 | D195: 97.9601 | E195: 2022-03-08 | F195: 2,039.05 | G195: -1.04 | J195: 2022-03-03 | K195: 393.20 | L195: 5,119.00
B196: 2022-03-08 | C196: 2,039.05 | D196: 99.1289 | E196: 2022-03-07 | F196: 1,980.95 | G196: -0.99 | J196: 2022-03-02 | K196: 394.50 | L196: 4,962.00
B197: 2022-03-07 | C197: 1,980.95 | D197: 99.2599 | E197: 2022-03-04 | F197: 1,945.30 | G197: -0.93 | J197: 2022-03-01 | K197: 389.14 | L197: 4,976.00
B198: 2022-03-04 | C198: 1,945.30 | D198: 98.5113 | E198: 2022-03-03 | F198: 1,929.60 | G198: -0.83 | J198: 2022-02-28 | K198: 389.02 | L198: 4,876.00
B199: 2022-03-03 | C199: 1,929.60 | D199: 97.7267 | E199: 2022-03-02 | F199: 1,928.50 | G199: -0.85 | J199: 2022-02-25 | K199: 391.42 | L199: 4,915.00
B200: 2022-03-02 | C200: 1,928.50 | D200: 97.3539 | E200: 2022-03-01 | F200: 1,922.00 | G200: -0.90 | J200: 2022-02-24 | K200: 396.04 | L200: 4,835.00
B201: 2022-03-01 | C201: 1,922.00 | D201: 97.4044 | E201: 2022-02-28 | F201: 1,909.85 | G201: -0.79 | J201: 2022-02-23 | K201: 387.58 | L201: 4,824.00
B202: 2022-02-28 | C202: 1,909.85 | D202: 96.7063 | E202: 2022-02-25 | F202: 1,884.80 | G202: -0.57 | J202: 2022-02-22 | K202: 390.72 | L202: 4,918.00
B203: 2022-02-25 | C203: 1,884.80 | D203: 96.5433 | E203: 2022-02-24 | F203: 1,936.30 | G203: -0.59 | J203: 2022-02-21 | K203: 386.00 | L203: 4,905.00
B204: 2022-02-24 | C204: 1,936.30 | D204: 97.0908 | E204: 2022-02-23 | F204: 1,904.70 | G204: -0.54 | J204: 2022-02-18 | K204: 386.64 | L204: 4,750.00
B205: 2022-02-23 | C205: 1,904.70 | D205: 96.2042 | E205: 2022-02-22 | F205: 1,900.10 | G205: -0.51 | J205: 2022-02-17 | K205: 383.54 | L205: 4,836.00
B206: 2022-02-22 | C206: 1,900.10 | D206: 96.0844 | E206: 2022-02-21 | F206: 1,894.45 | G206: 0.00 | J206: 2022-02-16 | K206: 379.84 | L206: 4,820.00
B207: 2022-02-21 | C207: 1,894.45 | D207: 96.1321 | E207: 2022-02-18 | F207: 1,893.60 | G207: -0.49 | J207: 2022-02-15 | K207: 385.58 | L207: 4,766.00
B208: 2022-02-18 | C208: 1,893.60 | D208: 96.1024 | E208: 2022-02-17 | F208: 1,893.45 | G208: -0.46 | J208: 2022-02-14 | K208: 381.70 | L208: 4,737.00
B209: 2022-02-17 | C209: 1,893.45 | D209: 95.8216 | E209: 2022-02-16 | F209: 1,862.60 | G209: -0.43 | J209: 2022-02-11 | K209: 375.24 | L209: 4,703.00
B210: 2022-02-16 | C210: 1,862.60 | D210: 95.8266 | E210: 2022-02-15 | F210: 1,848.55 | G210: -0.43 | J210: 2022-02-10 | K210: 377.40 | L210: 4,777.00
B211: 2022-02-15 | C211: 1,848.55 | D211: 95.9863 | E211: 2022-02-14 | F211: 1,866.15 | G211: -0.50 | J211: 2022-02-09 | K211: 376.58 | L211: 4,903.00
B212: 2022-02-14 | C212: 1,866.15 | D212: 96.2789 | E212: 2022-02-11 | F212: 1,831.15 | G212: -0.51 | J212: 2022-02-08 | K212: 374.80 | L212: 4,926.00
B213: 2022-02-11 | C213: 1,831.15 | D213: 96.0309 | E213: 2022-02-10 | F213: 1,835.35 | G213: -0.42 | J213: 2022-02-07 | K213: 372.14 | L213: 4,985.00
B214: 2022-02-10 | C214: 1,835.35 | D214: 95.6799 | E214: 2022-02-09 | F214: 1,827.80 | G214: -0.48 | J214: 2022-01-28 | K214: 370.10 | L214: 5,081.00
B215: 2022-02-09 | C215: 1,827.80 | D215: 95.5588 | E215: 2022-02-08 | F215: 1,822.60 | G215: -0.46 | J215: 2022-01-27 | K215: 371.58 | L215: 4,984.00
... 12760 more rows

Sheet 军工材料
A1: 目录
D19: 现货平均价:电解钴:Co99.98:华南（元/吨） | E19: 现货平均价:电解镍:Ni9996:华南（元/吨） | I19: 价格:海绵钛:≥99.6%:国产（元/千克） | M19: 市场价(主流价):丙烯腈:港口市场（元/吨）
C20: 2022-11-23 | D20: 357,000.00 | E20: 206,750.00 | H20: 2022-11-23 | I20: 80.00 | L20: 2022-11-23 | M20: 10,500.00
C21: 2022-11-22 | D21: 357,000.00 | E21: 204,750.00 | H21: 2022-11-22 | I21: 80.00 | L21: 2022-11-22 | M21: 10,700.00
C22: 2022-11-21 | D22: 360,000.00 | E22: 200,750.00 | H22: 2022-11-21 | I22: 80.00 | L22: 2022-11-21 | M22: 10,700.00
C23: 2022-11-18 | D23: 360,000.00 | E23: 206,500.00 | H23: 2022-11-18 | I23: 80.00 | L23: 2022-11-18 | M23: 11,000.00
C24: 2022-11-17 | D24: 360,000.00 | E24: 204,750.00 | H24: 2022-11-17 | I24: 80.00 | L24: 2022-11-17 | M24: 11,200.00
C25: 2022-11-16 | D25: 362,000.00 | E25: 209,750.00 | H25: 2022-11-16 | I25: 80.00 | L25: 2022-11-16 | M25: 11,200.00
C26: 2022-11-15 | D26: 359,000.00 | E26: 210,500.00 | H26: 2022-11-15 | I26: 80.00 | L26: 2022-11-15 | M26: 11,400.00
C27: 2022-11-14 | D27: 354,000.00 | E27: 205,600.00 | H27: 2022-11-14 | I27: 80.00 | L27: 2022-11-14 | M27: 11,450.00
C28: 2022-11-11 | D28: 350,000.00 | E28: 211,600.00 | H28: 2022-11-11 | I28: 80.00 | L28: 2022-11-11 | M28: 11,600.00
C29: 2022-11-10 | D29: 350,000.00 | E29: 204,750.00 | H29: 2022-11-10 | I29: 80.00 | L29: 2022-11-10 | M29: 11,600.00
C30: 2022-11-09 | D30: 347,000.00 | E30: 199,600.00 | H30: 2022-11-09 | I30: 80.00 | L30: 2022-11-09 | M30: 11,600.00
C31: 2022-11-08 | D31: 352,000.00 | E31: 195,750.00 | H31: 2022-11-08 | I31: 80.00 | L31: 2022-11-08 | M31: 11,600.00
C32: 2022-11-07 | D32: 342,000.00 | E32: 196,500.00 | H32: 2022-11-07 | I32: 80.00 | L32: 2022-11-07 | M32: 11,550.00
C33: 2022-11-04 | D33: 348,000.00 | E33: 198,600.00 | H33: 2022-11-04 | I33: 80.00 | L33: 2022-11-04 | M33: 11,550.00
C34: 2022-11-03 | D34: 348,000.00 | E34: 198,600.00 | H34: 2022-11-03 | I34: 80.00 | L34: 2022-11-03 | M34: 11,550.00
C35: 2022-11-02 | D35: 348,000.00 | E35: 198,000.00 | H35: 2022-11-02 | I35: 80.00 | L35: 2022-11-02 | M35: 11,500.00
C36: 2022-11-01 | D36: 348,000.00 | E36: 194,500.00 | H36: 2022-11-01 | I36: 80.00 | L36: 2022-11-01 | M36: 11,400.00
C37: 2022-10-31 | D37: 352,000.00 | E37: 187,500.00 | H37: 2022-10-31 | I37: 80.00 | L37: 2022-10-31 | M37: 11,000.00
C38: 2022-10-28 | D38: 354,000.00 | E38: 190,500.00 | H38: 2022-10-28 | I38: 80.00 | L38: 2022-10-28 | M38: 10,900.00
C39: 2022-10-27 | D39: 354,000.00 | E39: 193,500.00 | H39: 2022-10-27 | I39: 80.00 | L39: 2022-10-27 | M39: 10,850.00
C40: 2022-10-26 | D40: 354,000.00 | E40: 197,500.00 | H40: 2022-10-26 | I40: 80.00 | L40: 2022-10-26 | M40: 10,850.00
C41: 2022-10-25 | D41: 354,000.00 | E41: 196,500.00 | H41: 2022-10-25 | I41: 80.00 | L41: 2022-10-26 | M41: 10,850.00
C42: 2022-10-24 | D42: 354,000.00 | E42: 196,500.00 | H42: 2022-10-24 | I42: 80.00 | L42: 2022-10-25 | M42: 10,850.00
C43: 2022-10-21 | D43: 354,000.00 | E43: 191,500.00 | H43: 2022-10-21 | I43: 80.00 | L43: 2022-10-24 | M43: 10,850.00
C44: 2022-10-20 | D44: 354,000.00 | E44: 197,750.00 | H44: 2022-10-20 | I44: 80.00 | L44: 2022-10-21 | M44: 10,850.00
C45: 2022-10-19 | D45: 357,000.00 | E45: 193,750.00 | H45: 2022-10-19 | I45: 80.00 | L45: 2022-10-20 | M45: 10,850.00
C46: 2022-10-18 | D46: 357,000.00 | E46: 190,250.00 | H46: 2022-10-18 | I46: 80.00 | L46: 2022-10-19 | M46: 10,850.00
C47: 2022-10-17 | D47: 357,000.00 | E47: 192,250.00 | H47: 2022-10-17 | I47: 80.00 | L47: 2022-10-18 | M47: 10,800.00
C48: 2022-10-14 | D48: 361,000.00 | E48: 195,250.00 | H48: 2022-10-14 | I48: 80.00 | L48: 2022-10-17 | M48: 10,550.00
C49: 2022-10-13 | D49: 361,000.00 | E49: 194,100.00 | H49: 2022-10-13 | I49: 80.00 | L49: 2022-10-14 | M49: 10,550.00
C50: 2022-10-12 | D50: 364,000.00 | E50: 190,100.00 | H50: 2022-10-12 | I50: 80.00 | L50: 2022-10-13 | M50: 10,500.00
C51: 2022-10-11 | D51: 357,000.00 | E51: 195,100.00 | H51: 2022-10-11 | I51: 80.00 | L51: 2022-10-12 | M51: 10,400.00
C52: 2022-10-10 | D52: 352,000.00 | E52: 188,250.00 | H52: 2022-10-10 | I52: 80.00 | L52: 2022-10-11 | M52: 10,400.00
C53: 2022-09-30 | D53: 350,000.00 | E53: 194,100.00 | H53: 2022-09-30 | I53: 80.00 | L53: 2022-10-10 | M53: 10,300.00
C54: 2022-09-29 | D54: 350,000.00 | E54: 190,250.00 | H54: 2022-09-29 | I54: 80.00 | L54: 2022-10-09 | M54: 10,300.00
C55: 2022-09-28 | D55: 350,000.00 | E55: 189,250.00 | H55: 2022-09-28 | I55: 80.00 | L55: 2022-10-08 | M55: 10,300.00
C56: 2022-09-27 | D56: 352,000.00 | E56: 190,250.00 | H56: 2022-09-27 | I56: 80.00 | L56: 2022-09-30 | M56: 10,000.00
C57: 2022-09-26 | D57: 352,000.00 | E57: 194,650.00 | H57: 2022-09-26 | I57: 80.00 | L57: 2022-09-29 | M57: 9,900.00
C58: 2022-09-23 | D58: 350,000.00 | E58: 198,150.00 | H58: 2022-09-23 | I58: 80.00 | L58: 2022-09-28 | M58: 9,900.00
C59: 2022-09-22 | D59: 350,000.00 | E59: 202,750.00 | H59: 2022-09-22 | I59: 80.00 | L59: 2022-09-27 | M59: 9,800.00
C60: 2022-09-21 | D60: 350,000.00 | E60: 202,750.00 | H60: 2022-09-21 | I60: 80.00 | L60: 2022-09-26 | M60: 9,800.00
C61: 2022-09-20 | D61: 350,000.00 | E61: 200,750.00 | H61: 2022-09-20 | I61: 80.00 | L61: 2022-09-23 | M61: 9,800.00
C62: 2022-09-19 | D62: 350,000.00 | E62: 199,600.00 | H62: 2022-09-19 | I62: 80.00 | L62: 2022-09-22 | M62: 9,800.00
C63: 2022-09-16 | D63: 348,000.00 | E63: 192,750.00 | H63: 2022-09-16 | I63: 80.00 | L63: 2022-09-21 | M63: 9,800.00
C64: 2022-09-15 | D64: 348,000.00 | E64: 197,750.00 | H64: 2022-09-15 | I64: 80.00 | L64: 2022-09-20 | M64: 9,800.00
C65: 2022-09-14 | D65: 348,000.00 | E65: 197,450.00 | H65: 2022-09-14 | I65: 80.00 | L65: 2022-09-19 | M65: 9,800.00
C66: 2022-09-13 | D66: 348,000.00 | E66: 196,700.00 | H66: 2022-09-13 | I66: 80.00 | L66: 2022-09-16 | M66: 9,800.00
C67: 2022-09-09 | D67: 344,000.00 | E67: 191,350.00 | H67: 2022-09-09 | I67: 80.00 | L67: 2022-09-15 | M67: 9,800.00
C68: 2022-09-08 | D68: 344,000.00 | E68: 184,350.00 | H68: 2022-09-08 | I68: 80.00 | L68: 2022-09-14 | M68: 9,700.00
C69: 2022-09-07 | D69: 344,000.00 | E69: 182,750.00 | H69: 2022-09-07 | I69: 80.00 | L69: 2022-09-13 | M69: 9,700.00
C70: 2022-09-06 | D70: 344,000.00 | E70: 182,750.00 | H70: 2022-09-06 | I70: 80.00 | L70: 2022-09-09 | M70: 9,600.00
C71: 2022-09-05 | D71: 344,000.00 | E71: 178,250.00 | H71: 2022-09-05 | I71: 80.00 | L71: 2022-09-08 | M71: 9,600.00
C72: 2022-09-02 | D72: 344,000.00 | E72: 173,600.00 | H72: 2022-09-02 | I72: 80.00 | L72: 2022-09-07 | M72: 9,600.00
C73: 2022-09-01 | D73: 349,000.00 | E73: 175,100.00 | H73: 2022-09-01 | I73: 80.00 | L73: 2022-09-06 | M73: 9,600.00
C74: 2022-08-31 | D74: 354,000.00 | E74: 179,600.00 | H74: 2022-08-31 | I74: 80.00 | L74: 2022-09-05 | M74: 9,500.00
C75: 2022-08-30 | D75: 354,000.00 | E75: 174,350.00 | H75: 2022-08-30 | I75: 80.00 | L75: 2022-09-02 | M75: 9,200.00
C76: 2022-08-29 | D76: 361,000.00 | E76: 174,600.00 | H76: 2022-08-29 | I76: 80.00 | L76: 2022-09-01 | M76: 9,200.00
C77: 2022-08-26 | D77: 361,000.00 | E77: 182,100.00 | H77: 2022-08-26 | I77: 80.00 | L77: 2022-08-31 | M77: 9,100.00
C78: 2022-08-25 | D78: 361,000.00 | E78: 178,100.00 | H78: 2022-08-25 | I78: 80.00 | L78: 2022-08-30 | M78: 9,100.00
C79: 2022-08-24 | D79: 352,000.00 | E79: 178,100.00 | H79: 2022-08-24 | I79: 80.00 | L79: 2022-08-29 | M79: 9,000.00
C80: 2022-08-23 | D80: 352,000.00 | E80: 182,100.00 | H80: 2022-08-23 | I80: 80.00 | L80: 2022-08-26 | M80: 8,800.00
C81: 2022-08-22 | D81: 352,000.00 | E81: 183,000.00 | H81: 2022-08-22 | I81: 80.00 | L81: 2022-08-25 | M81: 8,800.00
C82: 2022-08-19 | D82: 352,000.00 | E82: 178,250.00 | H82: 2022-08-19 | I82: 80.00 | L82: 2022-08-24 | M82: 8,800.00
C83: 2022-08-18 | D83: 352,000.00 | E83: 180,100.00 | H83: 2022-08-18 | I83: 80.00 | L83: 2022-08-23 | M83: 8,800.00
C84: 2022-08-17 | D84: 349,000.00 | E84: 180,100.00 | H84: 2022-08-17 | I84: 80.00 | L84: 2022-08-22 | M84: 8,800.00
C85: 2022-08-16 | D85: 349,000.00 | E85: 179,100.00 | H85: 2022-08-16 | I85: 80.00 | L85: 2022-08-19 | M85: 8,800.00
C86: 2022-08-15 | D86: 338,000.00 | E86: 182,100.00 | H86: 2022-08-15 | I86: 80.00 | L86: 2022-08-18 | M86: 8,800.00
C87: 2022-08-12 | D87: 333,000.00 | E87: 187,600.00 | H87: 2022-08-12 | I87: 80.00 | L87: 2022-08-17 | M87: 8,800.00
C88: 2022-08-11 | D88: 338,000.00 | E88: 183,600.00 | H88: 2022-08-11 | I88: 80.00 | L88: 2022-08-16 | M88: 8,800.00
C89: 2022-08-10 | D89: 350,000.00 | E89: 177,100.00 | H89: 2022-08-10 | I89: 80.00 | L89: 2022-08-15 | M89: 8,800.00
C90: 2022-08-09 | D90: 355,000.00 | E90: 175,100.00 | H90: 2022-08-09 | I90: 80.00 | L90: 2022-08-12 | M90: 8,700.00
C91: 2022-08-08 | D91: 319,000.00 | E91: 177,100.00 | H91: 2022-08-08 | I91: 80.00 | L91: 2022-08-11 | M91: 8,700.00
C92: 2022-08-05 | D92: 319,000.00 | E92: 183,600.00 | H92: 2022-08-05 | I92: 80.00 | L92: 2022-08-10 | M92: 8,550.00
C93: 2022-08-04 | D93: 319,000.00 | E93: 181,750.00 | H93: 2022-08-04 | I93: 80.00 | L93: 2022-08-09 | M93: 8,550.00
C94: 2022-08-03 | D94: 324,000.00 | E94: 181,750.00 | H94: 2022-08-03 | I94: 80.00 | L94: 2022-08-08 | M94: 8,550.00
C95: 2022-08-02 | D95: 328,000.00 | E95: 185,750.00 | H95: 2022-08-02 | I95: 80.00 | L95: 2022-08-05 | M95: 8,600.00
C96: 2022-08-01 | D96: 328,000.00 | E96: 189,750.00 | H96: 2022-08-01 | I96: 80.00 | L96: 2022-08-04 | M96: 8,800.00
C97: 2022-07-29 | D97: 332,000.00 | E97: 181,600.00 | H97: 2022-07-29 | I97: 80.00 | L97: 2022-08-03 | M97: 8,900.00
C98: 2022-07-28 | D98: 332,000.00 | E98: 183,600.00 | H98: 2022-07-28 | I98: 80.00 | L98: 2022-08-02 | M98: 9,000.00
C99: 2022-07-27 | D99: 332,000.00 | E99: 180,100.00 | H99: 2022-07-27 | I99: 80.00 | L99: 2022-08-01 | M99: 9,150.00
C100: 2022-07-26 | D100: 334,000.00 | E100: 188,600.00 | H100: 2022-07-26 | I100: 80.00 | L100: 2022-07-29 | M100: 9,200.00
C101: 2022-07-25 | D101: 334,000.00 | E101: 183,200.00 | H101: 2022-07-25 | I101: 80.00 | L101: 2022-07-28 | M101: 9,200.00
C102: 2022-07-22 | D102: 339,000.00 | E102: 184,200.00 | H102: 2022-07-22 | I102: 80.00 | L102: 2022-07-27 | M102: 9,200.00
C103: 2022-07-21 | D103: 351,000.00 | E103: 182,500.00 | H103: 2022-07-21 | I103: 80.00 | L103: 2022-07-26 | M103: 9,200.00
C104: 2022-07-20 | D104: 351,000.00 | E104: 176,800.00 | H104: 2022-07-20 | I104: 80.00 | L104: 2022-07-25 | M104: 9,300.00
C105: 2022-07-19 | D105: 356,000.00 | E105: 178,200.00 | H105: 2022-07-19 | I105: 80.00 | L105: 2022-07-22 | M105: 9,300.00
C106: 2022-07-18 | D106: 356,000.00 | E106: 170,100.00 | H106: 2022-07-18 | I106: 80.00 | L106: 2022-07-21 | M106: 9,400.00
C107: 2022-07-15 | D107: 360,000.00 | E107: 172,100.00 | H107: 2022-07-15 | I107: 80.00 | L107: 2022-07-20 | M107: 9,500.00
C108: 2022-07-14 | D108: 360,000.00 | E108: 183,600.00 | H108: 2022-07-14 | I108: 80.00 | L108: 2022-07-19 | M108: 9,800.00
C109: 2022-07-13 | D109: 360,000.00 | E109: 190,600.00 | H109: 2022-07-13 | I109: 80.00 | L109: 2022-07-18 | M109: 10,000.00
C110: 2022-07-12 | D110: 364,000.00 | E110: 190,600.00 | H110: 2022-07-12 | I110: 80.00 | L110: 2022-07-15 | M110: 10,150.00
C111: 2022-07-11 | D111: 364,000.00 | E111: 186,600.00 | H111: 2022-07-11 | I111: 80.00 | L111: 2022-07-14 | M111: 10,200.00
C112: 2022-07-08 | D112: 364,000.00 | E112: 182,100.00 | H112: 2022-07-08 | I112: 80.00 | L112: 2022-07-13 | M112: 10,250.00
C113: 2022-07-07 | D113: 364,000.00 | E113: 180,100.00 | H113: 2022-07-07 | I113: 80.00 | L113: 2022-07-12 | M113: 10,300.00
C114: 2022-07-06 | D114: 364,000.00 | E114: 181,100.00 | H114: 2022-07-06 | I114: 80.00 | L114: 2022-07-11 | M114: 10,400.00
C115: 2022-07-05 | D115: 368,000.00 | E115: 189,600.00 | H115: 2022-07-05 | I115: 80.00 | L115: 2022-07-08 | M115: 10,700.00
C116: 2022-07-04 | D116: 368,000.00 | E116: 184,100.00 | H116: 2022-07-04 | I116: 80.00 | L116: 2022-07-07 | M116: 10,700.00
C117: 2022-07-01 | D117: 378,000.00 | E117: 185,100.00 | H117: 2022-07-01 | I117: 80.00 | L117: 2022-07-06 | M117: 10,700.00
C118: 2022-06-30 | D118: 378,000.00 | E118: 192,100.00 | H118: 2022-06-30 | I118: 80.00 | L118: 2022-07-05 | M118: 10,700.00
C119: 2022-06-29 | D119: 390,000.00 | E119: 186,100.00 | H119: 2022-06-29 | I119: 80.00 | L119: 2022-07-04 | M119: 10,750.00
C120: 2022-06-28 | D120: 394,000.00 | E120: 183,100.00 | H120: 2022-06-28 | I120: 80.00 | L120: 2022-07-01 | M120: 10,900.00
C121: 2022-06-27 | D121: 398,000.00 | E121: 192,100.00 | H121: 2022-06-27 | I121: 80.00 | L121: 2022-06-30 | M121: 10,900.00
C122: 2022-06-24 | D122: 398,000.00 | E122: 191,400.00 | H122: 2022-06-24 | I122: 80.00 | L122: 2022-06-29 | M122: 10,900.00
C123: 2022-06-23 | D123: 409,000.00 | E123: 198,100.00 | H123: 2022-06-23 | I123: 80.00 | L123: 2022-06-28 | M123: 10,900.00
C124: 2022-06-22 | D124: 409,000.00 | E124: 205,900.00 | H124: 2022-06-22 | I124: 80.00 | L124: 2022-06-27 | M124: 10,900.00
C125: 2022-06-21 | D125: 422,000.00 | E125: 212,100.00 | H125: 2022-06-21 | I125: 80.00 | L125: 2022-06-24 | M125: 10,900.00
C126: 2022-06-20 | D126: 437,000.00 | E126: 212,100.00 | H126: 2022-06-20 | I126: 80.00 | L126: 2022-06-23 | M126: 10,800.00
C127: 2022-06-17 | D127: 442,000.00 | E127: 212,100.00 | H127: 2022-06-17 | I127: 80.00 | L127: 2022-06-22 | M127: 10,800.00
C128: 2022-06-16 | D128: 442,000.00 | E128: 217,100.00 | H128: 2022-06-16 | I128: 80.00 | L128: 2022-06-21 | M128: 10,800.00
C129: 2022-06-15 | D129: 442,000.00 | E129: 212,100.00 | H129: 2022-06-15 | I129: 80.00 | L129: 2022-06-20 | M129: 10,800.00
C130: 2022-06-14 | D130: 442,000.00 | E130: 211,050.00 | H130: 2022-06-14 | I130: 80.00 | L130: 2022-06-17 | M130: 10,800.00
C131: 2022-06-13 | D131: 442,000.00 | E131: 214,600.00 | H131: 2022-06-13 | I131: 80.00 | L131: 2022-06-16 | M131: 10,800.00
C132: 2022-06-10 | D132: 442,000.00 | E132: 220,700.00 | H132: 2022-06-10 | I132: 80.00 | L132: 2022-06-15 | M132: 10,800.00
C133: 2022-06-09 | D133: 442,000.00 | E133: 222,500.00 | H133: 2022-06-09 | I133: 80.00 | L133: 2022-06-14 | M133: 10,800.00
C134: 2022-06-08 | D134: 442,000.00 | E134: 226,600.00 | H134: 2022-06-08 | I134: 80.00 | L134: 2022-06-13 | M134: 10,800.00
C135: 2022-06-07 | D135: 438,000.00 | E135: 226,600.00 | H135: 2022-06-07 | I135: 80.00 | L135: 2022-06-10 | M135: 10,900.00
C136: 2022-06-06 | D136: 438,000.00 | E136: 228,700.00 | H136: 2022-06-06 | I136: 80.00 | L136: 2022-06-09 | M136: 10,900.00
C137: 2022-06-02 | D137: 438,000.00 | E137: 222,700.00 | H137: 2022-06-02 | I137: 80.00 | L137: 2022-06-08 | M137: 10,900.00
C138: 2022-06-01 | D138: 452,000.00 | E138: 218,700.00 | H138: 2022-06-01 | I138: 80.00 | L138: 2022-06-07 | M138: 11,000.00
C139: 2022-05-31 | D139: 454,000.00 | E139: 223,700.00 | H139: 2022-05-31 | I139: 80.00 | L139: 2022-06-06 | M139: 11,000.00
C140: 2022-05-30 | D140: 454,000.00 | E140: 225,600.00 | H140: 2022-05-30 | I140: 80.00 | L140: 2022-06-02 | M140: 11,100.00
C141: 2022-05-27 | D141: 462,000.00 | E141: 220,250.00 | H141: 2022-05-27 | I141: 80.00 | L141: 2022-06-01 | M141: 11,200.00
C142: 2022-05-26 | D142: 484,000.00 | E142: 213,100.00 | H142: 2022-05-26 | I142: 80.00 | L142: 2022-05-31 | M142: 11,200.00
C143: 2022-05-25 | D143: 502,000.00 | E143: 214,100.00 | H143: 2022-05-25 | I143: 80.00 | L143: 2022-05-30 | M143: 11,250.00
C144: 2022-05-24 | D144: 502,000.00 | E144: 219,600.00 | H144: 2022-05-24 | I144: 80.00 | L144: 2022-05-27 | M144: 11,300.00
C145: 2022-05-23 | D145: 498,000.00 | E145: 220,600.00 | H145: 2022-05-23 | I145: 80.00 | L145: 2022-05-26 | M145: 11,300.00
C146: 2022-05-20 | D146: 498,000.00 | E146: 223,600.00 | H146: 2022-05-20 | I146: 80.00 | L146: 2022-05-25 | M146: 11,300.00
C147: 2022-05-19 | D147: 498,000.00 | E147: 219,600.00 | H147: 2022-05-19 | I147: 80.00 | L147: 2022-05-24 | M147: 11,300.00
C148: 2022-05-18 | D148: 498,000.00 | E148: 216,600.00 | H148: 2022-05-18 | I148: 80.00 | L148: 2022-05-23 | M148: 11,400.00
C149: 2022-05-17 | D149: 498,000.00 | E149: 213,500.00 | H149: 2022-05-17 | I149: 80.00 | L149: 2022-05-20 | M149: 11,500.00
C150: 2022-05-16 | D150: 508,000.00 | E150: 216,700.00 | H150: 2022-05-16 | I150: 80.00 | L150: 2022-05-19 | M150: 11,500.00
C151: 2022-05-13 | D151: 508,000.00 | E151: 218,200.00 | H151: 2022-05-13 | I151: 80.00 | L151: 2022-05-18 | M151: 11,500.00
C152: 2022-05-12 | D152: 518,000.00 | E152: 222,000.00 | H152: 2022-05-12 | I152: 80.00 | L152: 2022-05-17 | M152: 11,550.00
C153: 2022-05-11 | D153: 518,000.00 | E153: 218,200.00 | H153: 2022-05-11 | I153: 80.00 | L153: 2022-05-16 | M153: 11,600.00
C154: 2022-05-10 | D154: 518,000.00 | E154: 215,000.00 | H154: 2022-05-10 | I154: 80.00 | L154: 2022-05-13 | M154: 11,650.00
C155: 2022-05-09 | D155: 532,000.00 | E155: 224,000.00 | H155: 2022-05-09 | I155: 80.00 | L155: 2022-05-12 | M155: 11,650.00
C156: 2022-05-06 | D156: 536,000.00 | E156: 224,000.00 | H156: 2022-05-06 | I156: 80.00 | L156: 2022-05-11 | M156: 11,650.00
C157: 2022-05-05 | D157: 541,000.00 | E157: 231,500.00 | H157: 2022-05-05 | I157: 80.00 | L157: 2022-05-10 | M157: 11,650.00
C158: 2022-04-29 | D158: 537,000.00 | E158: 238,500.00 | H158: 2022-04-29 | I158: 80.00 | L158: 2022-05-09 | M158: 11,700.00
C159: 2022-04-28 | D159: 537,000.00 | E159: 238,000.00 | H159: 2022-04-28 | I159: 80.00 | L159: 2022-05-07 | M159: 11,700.00
C160: 2022-04-27 | D160: 537,000.00 | E160: 235,050.00 | H160: 2022-04-27 | I160: 80.00 | L160: 2022-05-06 | M160: 11,700.00
C161: 2022-04-26 | D161: 542,000.00 | E161: 232,000.00 | H161: 2022-04-26 | I161: 80.00 | L161: 2022-05-05 | M161: 11,700.00
C162: 2022-04-25 | D162: 553,000.00 | E162: 236,500.00 | H162: 2022-04-25 | I162: 80.00 | L162: 2022-04-29 | M162: 11,500.00
C163: 2022-04-22 | D163: 555,000.00 | E163: 244,200.00 | H163: 2022-04-22 | I163: 80.00 | L163: 2022-04-28 | M163: 11,500.00
C164: 2022-04-21 | D164: 555,000.00 | E164: 240,700.00 | H164: 2022-04-21 | I164: 80.00 | L164: 2022-04-27 | M164: 11,500.00
C165: 2022-04-20 | D165: 555,000.00 | E165: 244,000.00 | H165: 2022-04-20 | I165: 80.00 | L165: 2022-04-26 | M165: 11,500.00
C166: 2022-04-19 | D166: 550,000.00 | E166: 247,300.00 | H166: 2022-04-19 | I166: 80.00 | L166: 2022-04-25 | M166: 11,500.00
C167: 2022-04-18 | D167: 550,000.00 | E167: 239,700.00 | H167: 2022-04-18 | I167: 80.00 | L167: 2022-04-24 | M167: 11,500.00
C168: 2022-04-15 | D168: 550,000.00 | E168: 236,200.00 | H168: 2022-04-15 | I168: 80.00 | L168: 2022-04-22 | M168: 11,500.00
C169: 2022-04-14 | D169: 550,000.00 | E169: 229,500.00 | H169: 2022-04-14 | I169: 80.00 | L169: 2022-04-21 | M169: 11,500.00
C170: 2022-04-13 | D170: 546,000.00 | E170: 228,500.00 | H170: 2022-04-13 | I170: 80.00 | L170: 2022-04-19 | M170: 11,500.00
C171: 2022-04-12 | D171: 546,000.00 | E171: 219,500.00 | H171: 2022-04-12 | I171: 80.00 | L171: 2022-04-18 | M171: 11,500.00
C172: 2022-04-11 | D172: 546,000.00 | E172: 223,200.00 | H172: 2022-04-11 | I172: 80.00 | L172: 2022-04-15 | M172: 11,600.00
C173: 2022-04-08 | D173: 546,000.00 | E173: 222,500.00 | H173: 2022-04-08 | I173: 80.00 | L173: 2022-04-14 | M173: 11,600.00
C174: 2022-04-07 | D174: 553,000.00 | E174: 221,700.00 | H174: 2022-04-07 | I174: 80.00 | L174: 2022-04-13 | M174: 11,600.00
C175: 2022-04-06 | D175: 557,000.00 | E175: 223,500.00 | H175: 2022-04-06 | I175: 80.00 | L175: 2022-04-12 | M175: 11,600.00
C176: 2022-04-01 | D176: 557,000.00 | E176: 223,900.00 | H176: 2022-04-01 | I176: 80.00 | L176: 2022-04-11 | M176: 11,700.00
C177: 2022-03-31 | D177: 557,000.00 | E177: 218,500.00 | H177: 2022-03-31 | I177: 80.00 | L177: 2022-04-08 | M177: 11,700.00
C178: 2022-03-30 | D178: 557,000.00 | E178: 220,100.00 | H178: 2022-03-30 | I178: 80.00 | L178: 2022-04-07 | M178: 11,800.00
C179: 2022-03-29 | D179: 557,000.00 | E179: 222,200.00 | H179: 2022-03-29 | I179: 80.00 | L179: 2022-04-06 | M179: 11,800.00
C180: 2022-03-28 | D180: 563,000.00 | E180: 229,000.00 | H180: 2022-03-28 | I180: 80.00 | L180: 2022-04-02 | M180: 11,800.00
C181: 2022-03-25 | D181: 566,000.00 | E181: 263,700.00 | H181: 2022-03-25 | I181: 80.00 | L181: 2022-04-01 | M181: 11,700.00
C182: 2022-03-24 | D182: 570,000.00 | E182: 246,700.00 | H182: 2022-03-24 | I182: 80.00 | L182: 2022-03-31 | M182: 11,600.00
C183: 2022-03-23 | D183: 567,000.00 | E183: 211,000.00 | H183: 2022-03-23 | I183: 80.00 | L183: 2022-03-30 | M183: 11,600.00
C184: 2022-03-22 | D184: 567,000.00 | E184: 211,200.00 | H184: 2022-03-22 | I184: 80.00 | L184: 2022-03-29 | M184: 11,600.00
C185: 2022-03-21 | D185: 567,000.00 | E185: 218,700.00 | H185: 2022-03-21 | I185: 80.00 | L185: 2022-03-28 | M185: 11,500.00
C186: 2022-03-18 | D186: 567,000.00 | E186: 222,200.00 | H186: 2022-03-18 | I186: 80.00 | L186: 2022-03-25 | M186: 11,500.00
C187: 2022-03-17 | D187: 549,000.00 | E187: 223,200.00 | H187: 2022-03-17 | I187: 80.00 | L187: 2022-03-24 | M187: 11,500.00
C188: 2022-03-16 | D188: 546,000.00 | E188: 225,700.00 | H188: 2022-03-16 | I188: 80.00 | L188: 2022-03-23 | M188: 11,500.00
C189: 2022-03-15 | D189: 563,000.00 | E189: 228,500.00 | H189: 2022-03-15 | I189: 80.00 | L189: 2022-03-22 | M189: 11,500.00
C190: 2022-03-14 | D190: 565,000.00 | E190: 212,500.00 | H190: 2022-03-14 | I190: 80.00 | L190: 2022-03-21 | M190: 11,500.00
C191: 2022-03-11 | D191: 560,000.00 | E191: 225,500.00 | H191: 2022-03-11 | I191: 80.00 | L191: 2022-03-18 | M191: 11,600.00
C192: 2022-03-10 | D192: 560,000.00 | E192: 249,800.00 | H192: 2022-03-10 | I192: 80.00 | L192: 2022-03-17 | M192: 11,700.00
C193: 2022-03-09 | D193: 555,000.00 | E193: 294,650.00 | H193: 2022-03-09 | I193: 80.00 | L193: 2022-03-16 | M193: 11,800.00
C194: 2022-03-08 | D194: 575,000.00 | E194: 264,750.00 | H194: 2022-03-08 | I194: 80.00 | L194: 2022-03-15 | M194: 11,800.00
C195: 2022-03-07 | D195: 564,000.00 | E195: 214,200.00 | H195: 2022-03-07 | I195: 80.00 | L195: 2022-03-14 | M195: 11,800.00
C196: 2022-03-04 | D196: 555,000.00 | E196: 190,700.00 | H196: 2022-03-04 | I196: 80.00 | L196: 2022-03-11 | M196: 11,800.00
C197: 2022-03-03 | D197: 550,000.00 | E197: 184,950.00 | H197: 2022-03-03 | I197: 80.00 | L197: 2022-03-10 | M197: 11,800.00
C198: 2022-03-02 | D198: 547,000.00 | E198: 182,860.00 | H198: 2022-03-02 | I198: 80.00 | L198: 2022-03-09 | M198: 11,700.00
C199: 2022-03-01 | D199: 545,000.00 | E199: 179,700.00 | H199: 2022-03-01 | I199: 80.00 | L199: 2022-03-08 | M199: 11,600.00
C200: 2022-02-28 | D200: 543,000.00 | E200: 181,200.00 | H200: 2022-02-28 | I200: 80.00 | L200: 2022-03-07 | M200: 11,600.00
C201: 2022-02-25 | D201: 547,000.00 | E201: 179,100.00 | H201: 2022-02-25 | I201: 80.00 | L201: 2022-03-04 | M201: 11,500.00
C202: 2022-02-24 | D202: 543,000.00 | E202: 181,700.00 | H202: 2022-02-24 | I202: 80.00 | L202: 2022-03-03 | M202: 11,500.00
C203: 2022-02-23 | D203: 550,000.00 | E203: 179,400.00 | H203: 2022-02-23 | I203: 80.00 | L203: 2022-03-02 | M203: 11,300.00
C204: 2022-02-22 | D204: 550,000.00 | E204: 180,650.00 | H204: 2022-02-22 | I204: 80.00 | L204: 2022-03-01 | M204: 11,300.00
C205: 2022-02-21 | D205: 543,000.00 | E205: 181,150.00 | H205: 2022-02-21 | I205: 80.00 | L205: 2022-02-28 | M205: 11,300.00
C206: 2022-02-18 | D206: 536,000.00 | E206: 180,650.00 | H206: 2022-02-18 | I206: 80.00 | L206: 2022-02-25 | M206: 11,200.00
C207: 2022-02-17 | D207: 536,000.00 | E207: 176,150.00 | H207: 2022-02-17 | I207: 80.00 | L207: 2022-02-24 | M207: 11,200.00
C208: 2022-02-16 | D208: 536,000.00 | E208: 175,150.00 | H208: 2022-02-16 | I208: 80.00 | L208: 2022-02-23 | M208: 11,100.00
C209: 2022-02-15 | D209: 540,000.00 | E209: 176,450.00 | H209: 2022-02-15 | I209: 80.00 | L209: 2022-02-22 | M209: 11,100.00
C210: 2022-02-14 | D210: 536,000.00 | E210: 177,950.00 | H210: 2022-02-14 | I210: 80.00 | L210: 2022-02-21 | M210: 11,100.00
C211: 2022-02-11 | D211: 523,000.00 | E211: 176,900.00 | H211: 2022-02-11 | I211: 80.00 | L211: 2022-02-18 | M211: 11,100.00
C212: 2022-02-10 | D212: 515,000.00 | E212: 176,200.00 | H212: 2022-02-10 | I212: 80.00 | L212: 2022-02-17 | M212: 11,100.00
C213: 2022-02-09 | D213: 510,000.00 | E213: 174,000.00 | H213: 2022-02-09 | I213: 80.00 | L213: 2022-02-16 | M213: 11,100.00
C214: 2022-02-08 | D214: 510,000.00 | E214: 176,150.00 | H214: 2022-02-08 | I214: 80.00 | L214: 2022-02-15 | M214: 11,100.00
C215: 2022-02-07 | D215: 510,000.00 | E215: 174,800.00 | H215: 2022-02-07 | I215: 80.00 | L215: 2022-02-14 | M215: 11,100.00
C216: 2022-01-28 | D216: 506,000.00 | E216: 166,650.00 | H216: 2022-01-28 | I216: 80.00 | L216: 2022-02-11 | M216: 11,100.00
C217: 2022-01-27 | D217: 506,000.00 | E217: 168,650.00 | H217: 2022-01-27 | I217: 80.00 | L217: 2022-02-10 | M217: 11,100.00
... 4661 more rows

Sheet 电子材料
A1: 目录
C18: 四氧化三钴:国产:平均价（元/吨） | G18: 钴酸锂:≥60%:国产:平均价（元/吨） | K18: 碳化硅:98（元/吨） | L18: 碳化硅:97（元/吨） | P18: 平均价:高纯镓:≥99.9999%:国产（元/千克） | Q18: 平均价:粗铟:≥99%:国产（元/千克） | R18: 平均价:精铟:≥99.995%:国产（元/千克） | V18: 价格:粗铟:≥99%:国产（元/千克） | W18: 价格:精铟:≥99.99%:国产（元/千克）
B19: 2022-11-22 | C19: 238,000.00 | F19: 2022-11-22 | G19: 438,500.00 | J19: 2022-11-23 | K19: 8,500.00 | L19: 8,400.00 | O19: 2022-11-23 | P19: 1,975.00 | Q19: 1,365.00 | R19: 1,465.00 | U19: 2022-11-23 | V19: 1,355.00 | W19: 1,485.00
B20: 2022-11-21 | C20: 240,000.00 | F20: 2022-11-21 | G20: 438,500.00 | J20: 2022-11-22 | K20: 8,500.00 | L20: 8,400.00 | O20: 2022-11-22 | P20: 2,025.00 | Q20: 1,365.00 | R20: 1,465.00 | U20: 2022-11-22 | V20: 1,325.00 | W20: 1,455.00
B21: 2022-11-17 | C21: 240,000.00 | F21: 2022-11-17 | G21: 438,500.00 | J21: 2022-11-21 | K21: 8,500.00 | L21: 8,400.00 | O21: 2022-11-21 | P21: 2,025.00 | Q21: 1,380.00 | R21: 1,480.00 | U21: 2022-11-21 | V21: 1,325.00 | W21: 1,455.00
B22: 2022-11-16 | C22: 240,000.00 | F22: 2022-11-16 | G22: 438,500.00 | J22: 2022-11-18 | K22: 8,500.00 | L22: 8,400.00 | O22: 2022-11-18 | P22: 2,125.00 | Q22: 1,380.00 | R22: 1,480.00 | U22: 2022-11-18 | V22: 1,325.00 | W22: 1,455.00
B23: 2022-11-15 | C23: 240,000.00 | F23: 2022-11-15 | G23: 438,500.00 | J23: 2022-11-17 | K23: 8,500.00 | L23: 8,400.00 | O23: 2022-11-17 | P23: 2,225.00 | Q23: 1,380.00 | R23: 1,480.00 | U23: 2022-11-17 | V23: 1,325.00 | W23: 1,455.00
B24: 2022-11-14 | C24: 240,000.00 | F24: 2022-11-14 | G24: 438,500.00 | J24: 2022-11-16 | K24: 8,500.00 | L24: 8,400.00 | O24: 2022-11-16 | P24: 2,225.00 | Q24: 1,380.00 | R24: 1,480.00 | U24: 2022-11-16 | V24: 1,325.00 | W24: 1,395.00
B25: 2022-11-11 | C25: 240,000.00 | F25: 2022-11-11 | G25: 438,500.00 | J25: 2022-11-15 | K25: 8,500.00 | L25: 8,400.00 | O25: 2022-11-15 | P25: 2,225.00 | Q25: 1,265.00 | R25: 1,365.00 | U25: 2022-11-15 | V25: 1,295.00 | W25: 1,425.00
B26: 2022-11-10 | C26: 240,000.00 | F26: 2022-11-10 | G26: 438,500.00 | J26: 2022-11-14 | K26: 8,500.00 | L26: 8,400.00 | O26: 2022-11-14 | P26: 2,325.00 | Q26: 1,265.00 | R26: 1,365.00 | U26: 2022-11-14 | V26: 1,245.00 | W26: 1,425.00
B27: 2022-11-09 | C27: 240,000.00 | F27: 2022-11-09 | G27: 438,500.00 | J27: 2022-11-11 | K27: 8,500.00 | L27: 8,400.00 | O27: 2022-11-11 | P27: 2,325.00 | Q27: 1,265.00 | R27: 1,365.00 | U27: 2022-11-11 | V27: 1,245.00 | W27: 1,425.00
B28: 2022-11-08 | C28: 240,000.00 | F28: 2022-11-08 | G28: 438,500.00 | J28: 2022-11-10 | K28: 8,500.00 | L28: 8,400.00 | O28: 2022-11-10 | P28: 2,325.00 | Q28: 1,265.00 | R28: 1,365.00 | U28: 2022-11-10 | V28: 1,245.00 | W28: 1,425.00
B29: 2022-11-07 | C29: 240,000.00 | F29: 2022-11-07 | G29: 438,500.00 | J29: 2022-11-09 | K29: 8,500.00 | L29: 8,400.00 | O29: 2022-11-09 | P29: 2,325.00 | Q29: 1,265.00 | R29: 1,365.00 | U29: 2022-11-09 | V29: 1,245.00 | W29: 1,425.00
B30: 2022-11-01 | C30: 242,000.00 | F30: 2022-11-01 | G30: 438,500.00 | J30: 2022-11-08 | K30: 8,500.00 | L30: 8,400.00 | O30: 2022-11-08 | P30: 2,375.00 | Q30: 1,255.00 | R30: 1,355.00 | U30: 2022-11-08 | V30: 1,265.00 | W30: 1,425.00
B31: 2022-10-31 | C31: 243,000.00 | F31: 2022-10-31 | G31: 438,500.00 | J31: 2022-11-07 | K31: 8,500.00 | L31: 8,400.00 | O31: 2022-11-07 | P31: 2,375.00 | Q31: 1,255.00 | R31: 1,355.00 | U31: 2022-11-07 | V31: 1,265.00 | W31: 1,425.00
B32: 2022-10-28 | C32: 243,000.00 | F32: 2022-10-28 | G32: 438,500.00 | J32: 2022-11-04 | K32: 8,500.00 | L32: 8,400.00 | O32: 2022-11-04 | P32: 2,475.00 | Q32: 1,255.00 | R32: 1,355.00 | U32: 2022-11-04 | V32: 1,265.00 | W32: 1,425.00
B33: 2022-10-26 | C33: 243,000.00 | F33: 2022-10-26 | G33: 438,500.00 | J33: 2022-11-03 | K33: 8,500.00 | L33: 8,400.00 | O33: 2022-11-03 | P33: 2,575.00 | Q33: 1,255.00 | R33: 1,355.00 | U33: 2022-11-03 | V33: 1,265.00 | W33: 1,425.00
B34: 2022-10-25 | C34: 243,000.00 | F34: 2022-10-25 | G34: 438,500.00 | J34: 2022-11-02 | K34: 8,500.00 | L34: 8,400.00 | O34: 2022-11-02 | P34: 2,575.00 | Q34: 1,275.00 | R34: 1,375.00 | U34: 2022-11-02 | V34: 1,265.00 | W34: 1,425.00
B35: 2022-10-24 | C35: 243,000.00 | F35: 2022-10-24 | G35: 438,500.00 | J35: 2022-11-01 | K35: 8,500.00 | L35: 8,400.00 | O35: 2022-11-01 | P35: 2,625.00 | Q35: 1,275.00 | R35: 1,375.00 | U35: 2022-11-01 | V35: 1,295.00 | W35: 1,425.00
B36: 2022-10-21 | C36: 243,000.00 | F36: 2022-10-21 | G36: 438,500.00 | J36: 2022-10-31 | K36: 8,500.00 | L36: 8,400.00 | O36: 2022-10-31 | P36: 2,625.00 | Q36: 1,275.00 | R36: 1,375.00 | U36: 2022-10-31 | V36: 1,295.00 | W36: 1,425.00
B37: 2022-10-20 | C37: 243,000.00 | F37: 2022-10-20 | G37: 438,500.00 | J37: 2022-10-28 | K37: 8,500.00 | L37: 8,400.00 | O37: 2022-10-28 | P37: 2,625.00 | Q37: 1,275.00 | R37: 1,375.00 | U37: 2022-10-28 | V37: 1,295.00 | W37: 1,425.00
B38: 2022-10-18 | C38: 243,000.00 | F38: 2022-10-18 | G38: 438,500.00 | J38: 2022-10-27 | K38: 8,500.00 | L38: 8,400.00 | O38: 2022-10-27 | P38: 2,625.00 | Q38: 1,295.00 | R38: 1,395.00 | U38: 2022-10-27 | V38: 1,295.00 | W38: 1,425.00
B39: 2022-10-17 | C39: 243,000.00 | F39: 2022-10-17 | G39: 438,500.00 | J39: 2022-10-26 | K39: 8,500.00 | L39: 8,400.00 | O39: 2022-10-26 | P39: 2,675.00 | Q39: 1,295.00 | R39: 1,395.00 | U39: 2022-10-26 | V39: 1,295.00 | W39: 1,425.00
B40: 2022-10-14 | C40: 243,000.00 | F40: 2022-10-14 | G40: 438,500.00 | J40: 2022-10-25 | K40: 8,500.00 | L40: 8,400.00 | O40: 2022-10-25 | P40: 2,675.00 | Q40: 1,295.00 | R40: 1,395.00 | U40: 2022-10-25 | V40: 1,295.00 | W40: 1,425.00
B41: 2022-10-13 | C41: 243,000.00 | F41: 2022-10-13 | G41: 435,500.00 | J41: 2022-10-24 | K41: 8,500.00 | L41: 8,400.00 | O41: 2022-10-24 | P41: 2,675.00 | Q41: 1,295.00 | R41: 1,395.00 | U41: 2022-10-24 | V41: 1,295.00 | W41: 1,425.00
B42: 2022-10-12 | C42: 240,000.00 | F42: 2022-10-12 | G42: 427,500.00 | J42: 2022-10-21 | K42: 8,500.00 | L42: 8,400.00 | O42: 2022-10-21 | P42: 2,775.00 | Q42: 1,305.00 | R42: 1,405.00 | U42: 2022-10-21 | V42: 1,295.00 | W42: 1,425.00
B43: 2022-10-11 | C43: 240,000.00 | F43: 2022-10-11 | G43: 427,500.00 | J43: 2022-10-20 | K43: 8,500.00 | L43: 8,400.00 | O43: 2022-10-20 | P43: 2,775.00 | Q43: 1,305.00 | R43: 1,405.00 | U43: 2022-10-20 | V43: 1,295.00 | W43: 1,425.00
B44: 2022-10-10 | C44: 240,000.00 | F44: 2022-10-10 | G44: 427,500.00 | J44: 2022-10-19 | K44: 8,500.00 | L44: 8,400.00 | O44: 2022-10-18 | P44: 2,875.00 | Q44: 1,330.00 | R44: 1,430.00 | U44: 2022-10-19 | V44: 1,295.00 | W44: 1,455.00
B45: 2022-09-29 | C45: 240,000.00 | F45: 2022-09-29 | G45: 427,500.00 | J45: 2022-10-18 | K45: 8,500.00 | L45: 8,400.00 | O45: 2022-10-17 | P45: 2,875.00 | Q45: 1,330.00 | R45: 1,430.00 | U45: 2022-10-18 | V45: 1,295.00 | W45: 1,485.00
B46: 2022-09-28 | C46: 240,000.00 | F46: 2022-09-28 | G46: 427,500.00 | J46: 2022-10-17 | K46: 8,500.00 | L46: 8,400.00 | O46: 2022-10-14 | P46: 2,875.00 | Q46: 1,330.00 | R46: 1,430.00 | U46: 2022-10-17 | V46: 1,295.00 | W46: 1,455.00
B47: 2022-09-26 | C47: 240,000.00 | F47: 2022-09-26 | G47: 427,500.00 | J47: 2022-10-14 | K47: 8,500.00 | L47: 8,400.00 | O47: 2022-10-13 | P47: 2,975.00 | Q47: 1,350.00 | R47: 1,450.00 | U47: 2022-10-14 | V47: 1,295.00 | W47: 1,485.00
B48: 2022-09-23 | C48: 240,000.00 | F48: 2022-09-23 | G48: 427,500.00 | J48: 2022-10-13 | K48: 8,500.00 | L48: 8,400.00 | O48: 2022-10-12 | P48: 2,975.00 | Q48: 1,350.00 | R48: 1,450.00 | U48: 2022-10-13 | V48: 1,295.00 | W48: 1,485.00
B49: 2022-09-19 | C49: 240,000.00 | F49: 2022-09-19 | G49: 427,500.00 | J49: 2022-10-12 | K49: 8,500.00 | L49: 8,400.00 | O49: 2022-10-11 | P49: 2,975.00 | Q49: 1,350.00 | R49: 1,450.00 | U49: 2022-10-12 | V49: 1,295.00 | W49: 1,485.00
B50: 2022-09-15 | C50: 240,000.00 | F50: 2022-09-15 | G50: 427,500.00 | J50: 2022-10-11 | K50: 8,500.00 | L50: 8,400.00 | O50: 2022-10-10 | P50: 3,025.00 | Q50: 1,350.00 | R50: 1,450.00 | U50: 2022-10-11 | V50: 1,295.00 | W50: 1,485.00
B51: 2022-09-14 | C51: 240,000.00 | F51: 2022-09-14 | G51: 427,500.00 | J51: 2022-10-10 | K51: 8,500.00 | L51: 8,400.00 | O51: 2022-09-29 | P51: 3,025.00 | Q51: 1,350.00 | R51: 1,450.00 | U51: 2022-10-10 | V51: 1,295.00 | W51: 1,485.00
B52: 2022-09-09 | C52: 240,000.00 | F52: 2022-09-09 | G52: 427,500.00 | J52: 2022-10-09 | K52: 8,500.00 | L52: 8,400.00 | O52: 2022-09-28 | P52: 3,125.00 | Q52: 1,350.00 | R52: 1,450.00 | U52: 2022-09-30 | V52: 1,295.00 | W52: 1,485.00
B53: 2022-09-08 | C53: 240,000.00 | F53: 2022-09-08 | G53: 427,500.00 | J53: 2022-10-08 | K53: 8,500.00 | L53: 8,400.00 | O53: 2022-09-27 | P53: 3,125.00 | Q53: 1,350.00 | R53: 1,450.00 | U53: 2022-09-29 | V53: 1,295.00 | W53: 1,485.00
B54: 2022-09-06 | C54: 240,000.00 | F54: 2022-09-06 | G54: 417,500.00 | J54: 2022-09-30 | K54: 8,500.00 | L54: 8,400.00 | O54: 2022-09-26 | P54: 3,125.00 | Q54: 1,350.00 | R54: 1,450.00 | U54: 2022-09-28 | V54: 1,325.00 | W54: 1,485.00
B55: 2022-09-05 | C55: 240,000.00 | F55: 2022-09-05 | G55: 417,500.00 | J55: 2022-09-29 | K55: 8,500.00 | L55: 8,400.00 | O55: 2022-09-23 | P55: 3,225.00 | Q55: 1,350.00 | R55: 1,450.00 | U55: 2022-09-27 | V55: 1,355.00 | W55: 1,485.00
B56: 2022-08-31 | C56: 240,000.00 | F56: 2022-09-02 | G56: 417,500.00 | J56: 2022-09-28 | K56: 8,500.00 | L56: 8,400.00 | O56: 2022-09-22 | P56: 3,225.00 | Q56: 1,350.00 | R56: 1,450.00 | U56: 2022-09-28 | V56: 1,325.00 | W56: 1,485.00
B57: 2022-08-30 | C57: 235,000.00 | F57: 2022-08-30 | G57: 417,500.00 | J57: 2022-09-27 | K57: 8,500.00 | L57: 8,400.00 | O57: 2022-09-21 | P57: 3,225.00 | Q57: 1,350.00 | R57: 1,450.00 | U57: 2022-09-27 | V57: 1,355.00 | W57: 1,485.00
B58: 2022-08-29 | C58: 235,000.00 | F58: 2022-08-29 | G58: 417,500.00 | J58: 2022-09-26 | K58: 8,300.00 | L58: 8,200.00 | O58: 2022-09-20 | P58: 3,225.00 | Q58: 1,380.00 | R58: 1,480.00 | U58: 2022-09-26 | V58: 1,355.00 | W58: 1,505.00
B59: 2022-08-26 | C59: 235,000.00 | F59: 2022-08-26 | G59: 417,500.00 | J59: 2022-09-23 | K59: 8,300.00 | L59: 8,200.00 | O59: 2022-09-19 | P59: 3,225.00 | Q59: 1,380.00 | R59: 1,480.00 | U59: 2022-09-23 | V59: 1,355.00 | W59: 1,505.00
B60: 2022-08-25 | C60: 230,000.00 | F60: 2022-08-25 | G60: 417,500.00 | J60: 2022-09-22 | K60: 8,300.00 | L60: 8,200.00 | O60: 2022-09-16 | P60: 3,225.00 | Q60: 1,385.00 | R60: 1,485.00 | U60: 2022-09-22 | V60: 1,355.00 | W60: 1,505.00
B61: 2022-08-24 | C61: 230,000.00 | F61: 2022-08-24 | G61: 417,500.00 | J61: 2022-09-21 | K61: 8,300.00 | L61: 8,200.00 | O61: 2022-09-15 | P61: 3,225.00 | Q61: 1,400.00 | R61: 1,500.00 | U61: 2022-09-21 | V61: 1,355.00 | W61: 1,505.00
B62: 2022-08-23 | C62: 230,000.00 | F62: 2022-08-23 | G62: 417,500.00 | J62: 2022-09-20 | K62: 8,300.00 | L62: 8,200.00 | O62: 2022-09-14 | P62: 3,275.00 | Q62: 1,400.00 | R62: 1,500.00 | U62: 2022-09-20 | V62: 1,355.00 | W62: 1,505.00
B63: 2022-08-22 | C63: 230,000.00 | F63: 2022-08-22 | G63: 417,500.00 | J63: 2022-09-19 | K63: 8,300.00 | L63: 8,200.00 | O63: 2022-09-13 | P63: 3,275.00 | Q63: 1,400.00 | R63: 1,500.00 | U63: 2022-09-19 | V63: 1,355.00 | W63: 1,505.00
B64: 2022-08-18 | C64: 230,000.00 | F64: 2022-08-18 | G64: 417,500.00 | J64: 2022-09-16 | K64: 8,300.00 | L64: 8,200.00 | O64: 2022-09-09 | P64: 3,325.00 | Q64: 1,400.00 | R64: 1,500.00 | U64: 2022-09-16 | V64: 1,355.00 | W64: 1,505.00
B65: 2022-08-17 | C65: 230,000.00 | F65: 2022-08-17 | G65: 417,500.00 | J65: 2022-09-15 | K65: 8,300.00 | L65: 8,200.00 | O65: 2022-09-08 | P65: 3,325.00 | Q65: 1,400.00 | R65: 1,500.00 | U65: 2022-09-15 | V65: 1,355.00 | W65: 1,505.00
B66: 2022-08-12 | C66: 217,500.00 | F66: 2022-08-15 | G66: 417,500.00 | J66: 2022-09-14 | K66: 8,300.00 | L66: 8,200.00 | O66: 2022-09-07 | P66: 3,325.00 | Q66: 1,400.00 | R66: 1,500.00 | U66: 2022-09-14 | V66: 1,355.00 | W66: 1,505.00
B67: 2022-08-11 | C67: 217,500.00 | F67: 2022-08-12 | G67: 415,000.00 | J67: 2022-09-13 | K67: 8,300.00 | L67: 8,200.00 | O67: 2022-09-06 | P67: 3,375.00 | Q67: 1,400.00 | R67: 1,500.00 | U67: 2022-09-13 | V67: 1,355.00 | W67: 1,505.00
B68: 2022-08-10 | C68: 217,500.00 | F68: 2022-08-11 | G68: 415,000.00 | J68: 2022-09-09 | K68: 8,300.00 | L68: 8,200.00 | O68: 2022-09-05 | P68: 3,375.00 | Q68: 1,400.00 | R68: 1,500.00 | U68: 2022-09-09 | V68: 1,375.00 | W68: 1,505.00
B69: 2022-08-09 | C69: 217,500.00 | F69: 2022-08-10 | G69: 415,000.00 | J69: 2022-09-08 | K69: 8,300.00 | L69: 8,200.00 | O69: 2022-09-02 | P69: 3,375.00 | Q69: 1,400.00 | R69: 1,500.00 | U69: 2022-09-08 | V69: 1,375.00 | W69: 1,505.00
B70: 2022-08-05 | C70: 217,500.00 | F70: 2022-08-09 | G70: 415,000.00 | J70: 2022-09-07 | K70: 8,300.00 | L70: 8,200.00 | O70: 2022-09-01 | P70: 3,375.00 | Q70: 1,400.00 | R70: 1,500.00 | U70: 2022-09-07 | V70: 1,375.00 | W70: 1,505.00
B71: 2022-08-03 | C71: 219,000.00 | F71: 2022-08-05 | G71: 415,000.00 | J71: 2022-09-06 | K71: 8,300.00 | L71: 8,200.00 | O71: 2022-08-31 | P71: 3,375.00 | Q71: 1,400.00 | R71: 1,500.00 | U71: 2022-09-06 | V71: 1,375.00 | W71: 1,505.00
B72: 2022-08-02 | C72: 224,000.00 | F72: 2022-08-03 | G72: 415,000.00 | J72: 2022-09-05 | K72: 8,300.00 | L72: 8,200.00 | O72: 2022-08-30 | P72: 3,425.00 | Q72: 1,400.00 | R72: 1,500.00 | U72: 2022-09-05 | V72: 1,375.00 | W72: 1,505.00
B73: 2022-07-29 | C73: 227,500.00 | F73: 2022-08-02 | G73: 415,000.00 | J73: 2022-09-02 | K73: 8,300.00 | L73: 8,200.00 | O73: 2022-08-29 | P73: 3,425.00 | Q73: 1,400.00 | R73: 1,500.00 | U73: 2022-09-02 | V73: 1,375.00 | W73: 1,505.00
B74: 2022-07-28 | C74: 227,500.00 | F74: 2022-07-29 | G74: 420,000.00 | J74: 2022-09-01 | K74: 8,300.00 | L74: 8,200.00 | O74: 2022-08-26 | P74: 3,425.00 | Q74: 1,380.00 | R74: 1,480.00 | U74: 2022-09-01 | V74: 1,375.00 | W74: 1,505.00
B75: 2022-07-26 | C75: 230,000.00 | F75: 2022-07-28 | G75: 420,000.00 | J75: 2022-08-31 | K75: 8,500.00 | L75: 8,400.00 | O75: 2022-08-25 | P75: 3,425.00 | Q75: 1,380.00 | R75: 1,480.00 | U75: 2022-08-31 | V75: 1,375.00 | W75: 1,505.00
B76: 2022-07-25 | C76: 230,000.00 | F76: 2022-07-26 | G76: 425,000.00 | J76: 2022-08-30 | K76: 8,500.00 | L76: 8,400.00 | O76: 2022-08-24 | P76: 3,425.00 | Q76: 1,380.00 | R76: 1,480.00 | U76: 2022-08-30 | V76: 1,375.00 | W76: 1,505.00
B77: 2022-07-22 | C77: 230,000.00 | F77: 2022-07-25 | G77: 425,000.00 | J77: 2022-08-29 | K77: 8,500.00 | L77: 8,400.00 | O77: 2022-08-23 | P77: 3,425.00 | Q77: 1,380.00 | R77: 1,480.00 | U77: 2022-08-29 | V77: 1,375.00 | W77: 1,485.00
B78: 2022-07-21 | C78: 235,000.00 | F78: 2022-07-22 | G78: 425,000.00 | J78: 2022-08-26 | K78: 8,500.00 | L78: 8,400.00 | O78: 2022-08-22 | P78: 3,475.00 | Q78: 1,380.00 | R78: 1,480.00 | U78: 2022-08-26 | V78: 1,375.00 | W78: 1,485.00
B79: 2022-07-20 | C79: 240,000.00 | F79: 2022-07-21 | G79: 430,000.00 | J79: 2022-08-25 | K79: 8,500.00 | L79: 8,400.00 | O79: 2022-08-19 | P79: 3,475.00 | Q79: 1,380.00 | R79: 1,480.00 | U79: 2022-08-25 | V79: 1,375.00 | W79: 1,485.00
B80: 2022-07-19 | C80: 245,000.00 | F80: 2022-07-20 | G80: 440,000.00 | J80: 2022-08-24 | K80: 8,500.00 | L80: 8,400.00 | O80: 2022-08-18 | P80: 3,475.00 | Q80: 1,380.00 | R80: 1,480.00 | U80: 2022-08-24 | V80: 1,375.00 | W80: 1,485.00
B81: 2022-07-18 | C81: 245,000.00 | F81: 2022-07-19 | G81: 440,000.00 | J81: 2022-08-24 | K81: 8,500.00 | L81: 8,400.00 | O81: 2022-08-17 | P81: 3,475.00 | Q81: 1,380.00 | R81: 1,480.00 | U81: 2022-08-23 | V81: 1,375.00 | W81: 1,485.00
B82: 2022-07-14 | C82: 252,500.00 | F82: 2022-07-18 | G82: 440,000.00 | J82: 2022-08-23 | K82: 8,500.00 | L82: 8,400.00 | O82: 2022-08-16 | P82: 3,475.00 | Q82: 1,380.00 | R82: 1,480.00 | U82: 2022-08-22 | V82: 1,375.00 | W82: 1,485.00
B83: 2022-07-13 | C83: 252,500.00 | F83: 2022-07-13 | G83: 460,000.00 | J83: 2022-08-22 | K83: 8,500.00 | L83: 8,400.00 | O83: 2022-08-15 | P83: 3,525.00 | Q83: 1,360.00 | R83: 1,460.00 | U83: 2022-08-19 | V83: 1,375.00 | W83: 1,485.00
B84: 2022-07-12 | C84: 252,500.00 | F84: 2022-07-12 | G84: 460,000.00 | J84: 2022-08-19 | K84: 8,500.00 | L84: 8,400.00 | O84: 2022-08-12 | P84: 3,525.00 | Q84: 1,360.00 | R84: 1,460.00 | U84: 2022-08-18 | V84: 1,375.00 | W84: 1,515.00
B85: 2022-07-08 | C85: 252,500.00 | F85: 2022-07-08 | G85: 460,000.00 | J85: 2022-08-18 | K85: 8,500.00 | L85: 8,400.00 | O85: 2022-08-11 | P85: 3,525.00 | Q85: 1,360.00 | R85: 1,460.00 | U85: 2022-08-17 | V85: 1,375.00 | W85: 1,515.00
B86: 2022-07-06 | C86: 255,000.00 | F86: 2022-07-06 | G86: 465,000.00 | J86: 2022-08-17 | K86: 8,500.00 | L86: 8,400.00 | O86: 2022-08-10 | P86: 3,525.00 | Q86: 1,360.00 | R86: 1,460.00 | U86: 2022-08-16 | V86: 1,375.00 | W86: 1,535.00
B87: 2022-07-05 | C87: 255,000.00 | F87: 2022-07-04 | G87: 465,000.00 | J87: 2022-08-16 | K87: 8,500.00 | L87: 8,400.00 | O87: 2022-08-09 | P87: 3,525.00 | Q87: 1,360.00 | R87: 1,460.00 | U87: 2022-08-15 | V87: 1,355.00 | W87: 1,535.00
B88: 2022-07-04 | C88: 255,000.00 | F88: 2022-07-01 | G88: 465,000.00 | J88: 2022-08-15 | K88: 8,500.00 | L88: 8,400.00 | O88: 2022-08-08 | P88: 3,525.00 | Q88: 1,360.00 | R88: 1,460.00 | U88: 2022-08-12 | V88: 1,355.00 | W88: 1,535.00
B89: 2022-07-01 | C89: 255,000.00 | F89: 2022-06-30 | G89: 465,000.00 | J89: 2022-08-12 | K89: 8,500.00 | L89: 8,400.00 | O89: 2022-08-05 | P89: 3,525.00 | Q89: 1,360.00 | R89: 1,460.00 | U89: 2022-08-11 | V89: 1,355.00 | W89: 1,535.00
B90: 2022-06-30 | C90: 255,000.00 | F90: 2022-06-29 | G90: 465,000.00 | J90: 2022-08-11 | K90: 8,500.00 | L90: 8,400.00 | O90: 2022-08-04 | P90: 3,525.00 | Q90: 1,360.00 | R90: 1,460.00 | U90: 2022-08-10 | V90: 1,355.00 | W90: 1,535.00
B91: 2022-06-29 | C91: 255,000.00 | F91: 2022-06-28 | G91: 465,000.00 | J91: 2022-08-10 | K91: 8,500.00 | L91: 8,400.00 | O91: 2022-08-03 | P91: 3,525.00 | Q91: 1,380.00 | R91: 1,480.00 | U91: 2022-08-09 | V91: 1,355.00 | W91: 1,535.00
B92: 2022-06-28 | C92: 255,000.00 | F92: 2022-06-27 | G92: 472,500.00 | J92: 2022-08-09 | K92: 8,500.00 | L92: 8,400.00 | O92: 2022-08-02 | P92: 3,525.00 | Q92: 1,380.00 | R92: 1,480.00 | U92: 2022-08-08 | V92: 1,355.00 | W92: 1,555.00
B93: 2022-06-27 | C93: 260,000.00 | F93: 2022-06-24 | G93: 472,500.00 | J93: 2022-08-08 | K93: 8,500.00 | L93: 8,400.00 | O93: 2022-08-01 | P93: 3,525.00 | Q93: 1,380.00 | R93: 1,480.00 | U93: 2022-08-05 | V93: 1,355.00 | W93: 1,555.00
B94: 2022-06-24 | C94: 270,000.00 | F94: 2022-06-23 | G94: 472,500.00 | J94: 2022-08-05 | K94: 8,500.00 | L94: 8,400.00 | O94: 2022-07-29 | P94: 3,525.00 | Q94: 1,400.00 | R94: 1,500.00 | U94: 2022-08-04 | V94: 1,385.00 | W94: 1,555.00
B95: 2022-06-23 | C95: 280,000.00 | F95: 2022-06-22 | G95: 472,500.00 | J95: 2022-08-04 | K95: 8,500.00 | L95: 8,400.00 | O95: 2022-07-28 | P95: 3,525.00 | Q95: 1,400.00 | R95: 1,500.00 | U95: 2022-08-03 | V95: 1,385.00 | W95: 1,575.00
B96: 2022-06-22 | C96: 280,000.00 | F96: 2022-06-21 | G96: 472,500.00 | J96: 2022-08-03 | K96: 8,500.00 | L96: 8,400.00 | O96: 2022-07-27 | P96: 3,525.00 | Q96: 1,400.00 | R96: 1,500.00 | U96: 2022-08-02 | V96: 1,405.00 | W96: 1,575.00
B97: 2022-06-21 | C97: 280,000.00 | F97: 2022-06-20 | G97: 472,500.00 | J97: 2022-08-02 | K97: 8,500.00 | L97: 8,400.00 | O97: 2022-07-25 | P97: 3,525.00 | Q97: 1,400.00 | R97: 1,500.00 | U97: 2022-08-01 | V97: 1,405.00 | W97: 1,575.00
B98: 2022-06-20 | C98: 290,000.00 | F98: 2022-06-17 | G98: 472,500.00 | J98: 2022-08-01 | K98: 8,500.00 | L98: 8,400.00 | O98: 2022-07-22 | P98: 3,525.00 | Q98: 1,420.00 | R98: 1,520.00 | U98: 2022-07-29 | V98: 1,405.00 | W98: 1,575.00
B99: 2022-06-17 | C99: 305,000.00 | F99: 2022-06-16 | G99: 472,500.00 | J99: 2022-07-29 | K99: 8,500.00 | L99: 8,400.00 | O99: 2022-07-21 | P99: 3,525.00 | Q99: 1,430.00 | R99: 1,530.00 | U99: 2022-07-28 | V99: 1,405.00 | W99: 1,575.00
B100: 2022-06-16 | C100: 305,000.00 | F100: 2022-06-15 | G100: 472,500.00 | J100: 2022-07-28 | K100: 8,500.00 | L100: 8,400.00 | O100: 2022-07-20 | P100: 3,525.00 | Q100: 1,430.00 | R100: 1,530.00 | U100: 2022-07-27 | V100: 1,405.00 | W100: 1,575.00
B101: 2022-06-15 | C101: 305,000.00 | F101: 2022-06-14 | G101: 472,500.00 | J101: 2022-07-27 | K101: 8,500.00 | L101: 8,400.00 | O101: 2022-07-19 | P101: 3,525.00 | Q101: 1,430.00 | R101: 1,530.00 | U101: 2022-07-26 | V101: 1,405.00 | W101: 1,575.00
B102: 2022-06-14 | C102: 305,000.00 | F102: 2022-06-13 | G102: 472,500.00 | J102: 2022-07-26 | K102: 8,500.00 | L102: 8,400.00 | O102: 2022-07-18 | P102: 3,525.00 | Q102: 1,430.00 | R102: 1,530.00 | U102: 2022-07-25 | V102: 1,425.00 | W102: 1,575.00
B103: 2022-06-13 | C103: 317,500.00 | F103: 2022-06-10 | G103: 472,500.00 | J103: 2022-07-25 | K103: 8,500.00 | L103: 8,400.00 | O103: 2022-07-15 | P103: 3,525.00 | Q103: 1,430.00 | R103: 1,530.00 | U103: 2022-07-22 | V103: 1,425.00 | W103: 1,575.00
B104: 2022-06-10 | C104: 332,500.00 | F104: 2022-06-09 | G104: 472,500.00 | J104: 2022-07-22 | K104: 8,500.00 | L104: 8,400.00 | O104: 2022-07-14 | P104: 3,525.00 | Q104: 1,430.00 | R104: 1,530.00 | U104: 2022-07-21 | V104: 1,425.00 | W104: 1,575.00
B105: 2022-06-09 | C105: 332,500.00 | F105: 2022-06-08 | G105: 472,500.00 | J105: 2022-07-21 | K105: 8,500.00 | L105: 8,400.00 | O105: 2022-07-13 | P105: 3,525.00 | Q105: 1,430.00 | R105: 1,530.00 | U105: 2022-07-20 | V105: 1,445.00 | W105: 1,575.00
B106: 2022-06-08 | C106: 332,500.00 | F106: 2022-06-07 | G106: 472,500.00 | J106: 2022-07-20 | K106: 8,500.00 | L106: 8,400.00 | O106: 2022-07-12 | P106: 3,525.00 | Q106: 1,430.00 | R106: 1,530.00 | U106: 2022-07-19 | V106: 1,445.00 | W106: 1,605.00
B107: 2022-06-07 | C107: 332,500.00 | F107: 2022-06-06 | G107: 472,500.00 | J107: 2022-07-19 | K107: 8,500.00 | L107: 8,400.00 | O107: 2022-07-11 | P107: 3,525.00 | Q107: 1,430.00 | R107: 1,530.00 | U107: 2022-07-18 | V107: 1,445.00 | W107: 1,605.00
B108: 2022-06-06 | C108: 347,500.00 | F108: 2022-06-02 | G108: 472,500.00 | J108: 2022-07-18 | K108: 8,500.00 | L108: 8,400.00 | O108: 2022-07-08 | P108: 3,525.00 | Q108: 1,430.00 | R108: 1,530.00 | U108: 2022-07-15 | V108: 1,445.00 | W108: 1,605.00
B109: 2022-06-02 | C109: 472,500.00 | F109: 2022-06-01 | G109: 472,500.00 | J109: 2022-07-15 | K109: 8,700.00 | L109: 8,600.00 | O109: 2022-07-07 | P109: 3,525.00 | Q109: 1,440.00 | R109: 1,540.00 | U109: 2022-07-14 | V109: 1,445.00 | W109: 1,605.00
B110: 2022-06-01 | C110: 472,500.00 | F110: 2022-05-31 | G110: 472,500.00 | J110: 2022-07-14 | K110: 8,700.00 | L110: 8,600.00 | O110: 2022-07-06 | P110: 3,525.00 | Q110: 1,440.00 | R110: 1,540.00 | U110: 2022-07-13 | V110: 1,445.00 | W110: 1,605.00
B111: 2022-05-31 | C111: 362,500.00 | F111: 2022-05-30 | G111: 472,500.00 | J111: 2022-07-13 | K111: 8,700.00 | L111: 8,600.00 | O111: 2022-07-05 | P111: 3,525.00 | Q111: 1,460.00 | R111: 1,560.00 | U111: 2022-07-12 | V111: 1,445.00 | W111: 1,605.00
B112: 2022-05-27 | C112: 362,500.00 | F112: 2022-05-27 | G112: 472,500.00 | J112: 2022-07-12 | K112: 8,700.00 | L112: 8,600.00 | O112: 2022-07-04 | P112: 3,525.00 | Q112: 1,460.00 | R112: 1,560.00 | U112: 2022-07-11 | V112: 1,445.00 | W112: 1,625.00
B113: 2022-05-25 | C113: 372,500.00 | F113: 2022-05-26 | G113: 477,500.00 | J113: 2022-07-11 | K113: 8,700.00 | L113: 8,600.00 | O113: 2022-07-01 | P113: 3,525.00 | Q113: 1,460.00 | R113: 1,560.00 | U113: 2022-07-08 | V113: 1,445.00 | W113: 1,625.00
B114: 2022-05-24 | C114: 375,000.00 | F114: 2022-05-25 | G114: 482,500.00 | J114: 2022-07-08 | K114: 8,700.00 | L114: 8,600.00 | O114: 2022-06-30 | P114: 3,525.00 | Q114: 1,430.00 | R114: 1,530.00 | U114: 2022-07-07 | V114: 1,445.00 | W114: 1,625.00
B115: 2022-05-23 | C115: 375,000.00 | F115: 2022-05-24 | G115: 482,500.00 | J115: 2022-07-07 | K115: 8,700.00 | L115: 8,600.00 | O115: 2022-06-29 | P115: 3,525.00 | Q115: 1,430.00 | R115: 1,530.00 | U115: 2022-07-06 | V115: 1,445.00 | W115: 1,595.00
B116: 2022-05-20 | C116: 380,000.00 | F116: 2022-05-23 | G116: 482,500.00 | J116: 2022-07-06 | K116: 8,700.00 | L116: 8,600.00 | O116: 2022-06-28 | P116: 3,575.00 | Q116: 1,430.00 | R116: 1,530.00 | U116: 2022-07-05 | V116: 1,475.00 | W116: 1,495.00
B117: 2022-05-18 | C117: 397,500.00 | F117: 2022-05-20 | G117: 495,000.00 | J117: 2022-07-05 | K117: 8,700.00 | L117: 8,600.00 | O117: 2022-06-27 | P117: 3,575.00 | Q117: 1,460.00 | R117: 1,560.00 | U117: 2022-07-04 | V117: 1,475.00 | W117: 1,495.00
B118: 2022-05-17 | C118: 397,500.00 | F118: 2022-05-18 | G118: 540,000.00 | J118: 2022-07-04 | K118: 8,700.00 | L118: 8,600.00 | O118: 2022-06-24 | P118: 3,575.00 | Q118: 1,460.00 | R118: 1,560.00 | U118: 2022-07-01 | V118: 1,475.00 | W118: 1,445.00
B119: 2022-05-16 | C119: 397,500.00 | F119: 2022-05-17 | G119: 540,000.00 | J119: 2022-07-01 | K119: 8,700.00 | L119: 8,600.00 | O119: 2022-06-23 | P119: 3,575.00 | Q119: 1,460.00 | R119: 1,560.00 | U119: 2022-06-30 | V119: 1,475.00 | W119: 1,445.00
B120: 2022-05-13 | C120: 397,500.00 | F120: 2022-05-16 | G120: 540,000.00 | J120: 2022-06-30 | K120: 8,700.00 | L120: 8,600.00 | O120: 2022-06-22 | P120: 3,575.00 | Q120: 1,400.00 | R120: 1,500.00 | U120: 2022-06-29 | V120: 1,475.00 | W120: 1,445.00
B121: 2022-05-12 | C121: 397,500.00 | F121: 2022-05-13 | G121: 540,000.00 | J121: 2022-06-29 | K121: 8,700.00 | L121: 8,600.00 | O121: 2022-06-21 | P121: 3,575.00 | Q121: 1,360.00 | R121: 1,460.00 | U121: 2022-06-28 | V121: 1,475.00 | W121: 1,445.00
B122: 2022-05-11 | C122: 397,500.00 | F122: 2022-05-12 | G122: 545,000.00 | J122: 2022-06-28 | K122: 8,700.00 | L122: 8,600.00 | O122: 2022-06-20 | P122: 3,625.00 | Q122: 1,360.00 | R122: 1,460.00 | U122: 2022-06-27 | V122: 1,495.00 | W122: 1,445.00
B123: 2022-05-10 | C123: 402,500.00 | F123: 2022-05-11 | G123: 545,000.00 | J123: 2022-06-27 | K123: 8,700.00 | L123: 8,600.00 | O123: 2022-06-17 | P123: 3,625.00 | Q123: 1,360.00 | R123: 1,460.00 | U123: 2022-06-24 | V123: 1,495.00 | W123: 1,445.00
B124: 2022-05-09 | C124: 405,000.00 | F124: 2022-05-10 | G124: 545,000.00 | J124: 2022-06-24 | K124: 8,700.00 | L124: 8,600.00 | O124: 2022-06-16 | P124: 3,625.00 | Q124: 1,360.00 | R124: 1,460.00 | U124: 2022-06-23 | V124: 1,495.00 | W124: 1,445.00
B125: 2022-05-06 | C125: 407,500.00 | F125: 2022-05-09 | G125: 552,500.00 | J125: 2022-06-23 | K125: 8,700.00 | L125: 8,600.00 | O125: 2022-06-15 | P125: 3,625.00 | Q125: 1,360.00 | R125: 1,460.00 | U125: 2022-06-22 | V125: 1,495.00 | W125: 1,445.00
B126: 2022-05-05 | C126: 412,500.00 | F126: 2022-05-05 | G126: 565,000.00 | J126: 2022-06-22 | K126: 8,700.00 | L126: 8,600.00 | O126: 2022-06-14 | P126: 3,625.00 | Q126: 1,360.00 | R126: 1,460.00 | U126: 2022-06-21 | V126: 1,395.00 | W126: 1,445.00
B127: 2022-04-29 | C127: 412,500.00 | F127: 2022-04-29 | G127: 565,000.00 | J127: 2022-06-21 | K127: 8,700.00 | L127: 8,600.00 | O127: 2022-06-13 | P127: 3,625.00 | Q127: 1,360.00 | R127: 1,460.00 | U127: 2022-06-20 | V127: 1,395.00 | W127: 1,445.00
B128: 2022-04-27 | C128: 412,500.00 | F128: 2022-04-27 | G128: 569,000.00 | J128: 2022-06-20 | K128: 8,700.00 | L128: 8,600.00 | O128: 2022-06-10 | P128: 3,625.00 | Q128: 1,345.00 | R128: 1,445.00 | U128: 2022-06-17 | V128: 1,345.00 | W128: 1,445.00
B129: 2022-04-26 | C129: 412,500.00 | F129: 2022-04-26 | G129: 579,000.00 | J129: 2022-06-17 | K129: 8,700.00 | L129: 8,600.00 | O129: 2022-06-09 | P129: 3,625.00 | Q129: 1,345.00 | R129: 1,445.00 | U129: 2022-06-16 | V129: 1,345.00 | W129: 1,445.00
B130: 2022-04-25 | C130: 417,500.00 | F130: 2022-04-25 | G130: 579,000.00 | J130: 2022-06-16 | K130: 8,800.00 | L130: 8,700.00 | O130: 2022-06-08 | P130: 3,625.00 | Q130: 1,345.00 | R130: 1,445.00 | U130: 2022-06-15 | V130: 1,345.00 | W130: 1,445.00
B131: 2022-04-22 | C131: 417,500.00 | F131: 2022-04-22 | G131: 579,000.00 | J131: 2022-06-15 | K131: 8,800.00 | L131: 8,700.00 | O131: 2022-06-07 | P131: 3,625.00 | Q131: 1,345.00 | R131: 1,445.00 | U131: 2022-06-14 | V131: 1,345.00 | W131: 1,445.00
B132: 2022-04-21 | C132: 417,500.00 | F132: 2022-04-21 | G132: 579,000.00 | J132: 2022-06-14 | K132: 8,800.00 | L132: 8,700.00 | O132: 2022-06-06 | P132: 3,625.00 | Q132: 1,345.00 | R132: 1,445.00 | U132: 2022-06-13 | V132: 1,345.00 | W132: 1,445.00
B133: 2022-04-20 | C133: 422,500.00 | F133: 2022-04-20 | G133: 579,000.00 | J133: 2022-06-13 | K133: 8,800.00 | L133: 8,700.00 | O133: 2022-06-02 | P133: 3,625.00 | Q133: 1,345.00 | R133: 1,445.00 | U133: 2022-06-10 | V133: 1,345.00 | W133: 1,475.00
B134: 2022-04-19 | C134: 432,500.00 | F134: 2022-04-19 | G134: 579,000.00 | J134: 2022-06-10 | K134: 8,800.00 | L134: 8,700.00 | O134: 2022-06-01 | P134: 3,625.00 | Q134: 1,345.00 | R134: 1,445.00 | U134: 2022-06-09 | V134: 1,345.00 | W134: 1,495.00
B135: 2022-04-18 | C135: 432,500.00 | F135: 2022-04-18 | G135: 579,000.00 | J135: 2022-06-09 | K135: 8,800.00 | L135: 8,700.00 | O135: 2022-05-31 | P135: 3,625.00 | Q135: 1,345.00 | R135: 1,445.00 | U135: 2022-06-08 | V135: 1,345.00 | W135: 1,495.00
B136: 2022-04-14 | C136: 432,500.00 | F136: 2022-04-15 | G136: 579,000.00 | J136: 2022-06-08 | K136: 8,800.00 | L136: 8,700.00 | O136: 2022-05-30 | P136: 3,625.00 | Q136: 1,345.00 | R136: 1,445.00 | U136: 2022-06-06 | V136: 1,345.00 | W136: 1,495.00
B137: 2022-04-13 | C137: 432,500.00 | F137: 2022-04-14 | G137: 579,000.00 | J137: 2022-06-07 | K137: 8,800.00 | L137: 8,700.00 | O137: 2022-05-27 | P137: 3,625.00 | Q137: 1,355.00 | R137: 1,455.00 | U137: 2022-06-02 | V137: 1,345.00 | W137: 1,495.00
B138: 2022-04-12 | C138: 437,500.00 | F138: 2022-04-13 | G138: 579,000.00 | J138: 2022-06-06 | K138: 8,800.00 | L138: 8,700.00 | O138: 2022-05-26 | P138: 3,625.00 | Q138: 1,355.00 | R138: 1,455.00 | U138: 2022-06-01 | V138: 1,345.00 | W138: 1,495.00
B139: 2022-04-08 | C139: 437,500.00 | F139: 2022-04-12 | G139: 579,000.00 | J139: 2022-06-02 | K139: 8,800.00 | L139: 8,700.00 | O139: 2022-05-25 | P139: 3,575.00 | Q139: 1,375.00 | R139: 1,475.00 | U139: 2022-05-31 | V139: 1,345.00 | W139: 1,495.00
B140: 2022-04-06 | C140: 437,500.00 | F140: 2022-04-08 | G140: 579,000.00 | J140: 2022-06-01 | K140: 8,800.00 | L140: 8,700.00 | O140: 2022-05-24 | P140: 3,575.00 | Q140: 1,375.00 | R140: 1,475.00 | U140: 2022-05-30 | V140: 1,345.00 | W140: 1,525.00
B141: 2022-03-31 | C141: 437,500.00 | F141: 2022-04-07 | G141: 579,000.00 | J141: 2022-05-31 | K141: 8,700.00 | L141: 8,600.00 | O141: 2022-05-23 | P141: 3,575.00 | Q141: 1,375.00 | R141: 1,475.00 | U141: 2022-05-27 | V141: 1,345.00 | W141: 1,555.00
B142: 2022-03-30 | C142: 437,500.00 | F142: 2022-04-06 | G142: 579,000.00 | J142: 2022-05-30 | K142: 8,700.00 | L142: 8,600.00 | O142: 2022-05-20 | P142: 3,575.00 | Q142: 1,375.00 | R142: 1,475.00 | U142: 2022-05-26 | V142: 1,345.00 | W142: 1,555.00
B143: 2022-03-29 | C143: 437,500.00 | F143: 2022-04-01 | G143: 579,000.00 | J143: 2022-05-27 | K143: 8,700.00 | L143: 8,600.00 | O143: 2022-05-19 | P143: 3,575.00 | Q143: 1,425.00 | R143: 1,525.00 | U143: 2022-05-25 | V143: 1,375.00 | W143: 1,555.00
B144: 2022-03-28 | C144: 437,500.00 | F144: 2022-03-31 | G144: 579,000.00 | J144: 2022-05-26 | K144: 8,700.00 | L144: 8,600.00 | O144: 2022-05-18 | P144: 3,575.00 | Q144: 1,425.00 | R144: 1,525.00 | U144: 2022-05-24 | V144: 1,395.00 | W144: 1,555.00
B145: 2022-03-24 | C145: 437,500.00 | F145: 2022-03-30 | G145: 579,000.00 | J145: 2022-05-25 | K145: 8,700.00 | L145: 8,600.00 | O145: 2022-05-17 | P145: 3,575.00 | Q145: 1,425.00 | R145: 1,525.00 | U145: 2022-05-23 | V145: 1,395.00 | W145: 1,555.00
B146: 2022-03-22 | C146: 437,500.00 | F146: 2022-03-29 | G146: 579,000.00 | J146: 2022-05-24 | K146: 8,700.00 | L146: 8,600.00 | O146: 2022-05-16 | P146: 3,075.00 | Q146: 1,430.00 | R146: 1,530.00 | U146: 2022-05-20 | V146: 1,395.00 | W146: 1,575.00
B147: 2022-03-18 | C147: 437,500.00 | F147: 2022-03-28 | G147: 579,000.00 | J147: 2022-05-23 | K147: 8,700.00 | L147: 8,600.00 | O147: 2022-05-13 | P147: 3,075.00 | Q147: 1,430.00 | R147: 1,530.00 | U147: 2022-05-19 | V147: 1,395.00 | W147: 1,575.00
B148: 2022-03-17 | C148: 437,500.00 | F148: 2022-03-25 | G148: 579,000.00 | J148: 2022-05-20 | K148: 8,700.00 | L148: 8,600.00 | O148: 2022-05-12 | P148: 3,075.00 | Q148: 1,430.00 | R148: 1,530.00 | U148: 2022-05-18 | V148: 1,395.00 | W148: 1,575.00
B149: 2022-03-16 | C149: 437,500.00 | F149: 2022-03-24 | G149: 579,000.00 | J149: 2022-05-19 | K149: 8,700.00 | L149: 8,600.00 | O149: 2022-05-11 | P149: 2,975.00 | Q149: 1,430.00 | R149: 1,530.00 | U149: 2022-05-17 | V149: 1,395.00 | W149: 1,575.00
B150: 2022-03-15 | C150: 437,500.00 | F150: 2022-03-23 | G150: 579,000.00 | J150: 2022-05-18 | K150: 8,700.00 | L150: 8,600.00 | O150: 2022-05-10 | P150: 2,975.00 | Q150: 1,430.00 | R150: 1,530.00 | U150: 2022-05-16 | V150: 1,425.00 | W150: 1,575.00
B151: 2022-03-11 | C151: 437,500.00 | F151: 2022-03-22 | G151: 579,000.00 | J151: 2022-05-17 | K151: 8,700.00 | L151: 8,600.00 | O151: 2022-05-09 | P151: 2,975.00 | Q151: 1,430.00 | R151: 1,530.00 | U151: 2022-05-13 | V151: 1,455.00 | W151: 1,575.00
B152: 2022-03-10 | C152: 437,500.00 | F152: 2022-03-21 | G152: 579,000.00 | J152: 2022-05-16 | K152: 8,700.00 | L152: 8,600.00 | O152: 2022-05-06 | P152: 2,975.00 | Q152: 1,430.00 | R152: 1,530.00 | U152: 2022-05-12 | V152: 1,455.00 | W152: 1,575.00
B153: 2022-03-09 | C153: 437,500.00 | F153: 2022-03-18 | G153: 579,000.00 | J153: 2022-05-13 | K153: 8,800.00 | L153: 8,700.00 | O153: 2022-05-05 | P153: 2,925.00 | Q153: 1,430.00 | R153: 1,530.00 | U153: 2022-05-11 | V153: 1,455.00 | W153: 1,595.00
B154: 2022-03-08 | C154: 437,500.00 | F154: 2022-03-17 | G154: 579,000.00 | J154: 2022-05-12 | K154: 8,800.00 | L154: 8,700.00 | O154: 2022-04-29 | P154: 2,925.00 | Q154: 1,430.00 | R154: 1,530.00 | U154: 2022-05-10 | V154: 1,455.00 | W154: 1,625.00
B155: 2022-03-07 | C155: 437,500.00 | F155: 2022-03-16 | G155: 579,000.00 | J155: 2022-05-11 | K155: 8,800.00 | L155: 8,700.00 | O155: 2022-04-28 | P155: 2,925.00 | Q155: 1,430.00 | R155: 1,530.00 | U155: 2022-05-09 | V155: 1,455.00 | W155: 1,625.00
B156: 2022-03-04 | C156: 432,500.00 | F156: 2022-03-15 | G156: 574,000.00 | J156: 2022-05-10 | K156: 8,800.00 | L156: 8,700.00 | O156: 2022-04-27 | P156: 2,875.00 | Q156: 1,450.00 | R156: 1,550.00 | U156: 2022-05-06 | V156: 1,475.00 | W156: 1,625.00
B157: 2022-03-03 | C157: 432,500.00 | F157: 2022-03-14 | G157: 574,000.00 | J157: 2022-05-09 | K157: 8,800.00 | L157: 8,700.00 | O157: 2022-04-26 | P157: 2,875.00 | Q157: 1,450.00 | R157: 1,550.00 | U157: 2022-05-05 | V157: 1,475.00 | W157: 1,625.00
B158: 2022-03-02 | C158: 427,500.00 | F158: 2022-03-11 | G158: 574,000.00 | J158: 2022-05-07 | K158: 8,800.00 | L158: 8,700.00 | O158: 2022-04-25 | P158: 2,875.00 | Q158: 1,450.00 | R158: 1,550.00 | U158: 2022-04-29 | V158: 1,475.00 | W158: 1,625.00
B159: 2022-03-01 | C159: 427,500.00 | F159: 2022-03-10 | G159: 572,000.00 | J159: 2022-05-06 | K159: 8,800.00 | L159: 8,700.00 | O159: 2022-04-22 | P159: 2,775.00 | Q159: 1,475.00 | R159: 1,575.00 | U159: 2022-04-28 | V159: 1,475.00 | W159: 1,625.00
B160: 2022-02-28 | C160: 427,500.00 | F160: 2022-03-09 | G160: 572,000.00 | J160: 2022-05-05 | K160: 8,800.00 | L160: 8,700.00 | O160: 2022-04-21 | P160: 2,775.00 | Q160: 1,475.00 | R160: 1,575.00 | U160: 2022-04-27 | V160: 1,475.00 | W160: 1,625.00
B161: 2022-02-25 | C161: 427,500.00 | F161: 2022-03-08 | G161: 572,000.00 | J161: 2022-04-29 | K161: 8,800.00 | L161: 8,700.00 | O161: 2022-04-20 | P161: 2,775.00 | Q161: 1,475.00 | R161: 1,575.00 | U161: 2022-04-26 | V161: 1,475.00 | W161: 1,725.00
B162: 2022-02-24 | C162: 427,500.00 | F162: 2022-03-07 | G162: 542,000.00 | J162: 2022-04-28 | K162: 8,800.00 | L162: 8,700.00 | O162: 2022-04-19 | P162: 2,725.00 | Q162: 1,525.00 | R162: 1,625.00 | U162: 2022-04-25 | V162: 1,475.00 | W162: 1,725.00
B163: 2022-02-23 | C163: 427,500.00 | F163: 2022-03-04 | G163: 539,000.00 | J163: 2022-04-27 | K163: 8,800.00 | L163: 8,700.00 | O163: 2022-04-18 | P163: 2,725.00 | Q163: 1,525.00 | R163: 1,625.00 | U163: 2022-04-22 | V163: 1,495.00 | W163: 1,725.00
B164: 2022-02-22 | C164: 427,500.00 | F164: 2022-03-03 | G164: 539,000.00 | J164: 2022-04-26 | K164: 8,800.00 | L164: 8,700.00 | O164: 2022-04-15 | P164: 2,725.00 | Q164: 1,525.00 | R164: 1,625.00 | U164: 2022-04-21 | V164: 1,525.00 | W164: 1,725.00
B165: 2022-02-21 | C165: 427,500.00 | F165: 2022-03-02 | G165: 539,000.00 | J165: 2022-04-25 | K165: 8,800.00 | L165: 8,700.00 | O165: 2022-04-14 | P165: 2,725.00 | Q165: 1,525.00 | R165: 1,625.00 | U165: 2022-04-20 | V165: 1,525.00 | W165: 1,625.00
B166: 2022-02-18 | C166: 422,500.00 | F166: 2022-03-01 | G166: 539,000.00 | J166: 2022-04-24 | K166: 8,800.00 | L166: 8,700.00 | O166: 2022-04-13 | P166: 2,725.00 | Q166: 1,525.00 | R166: 1,625.00 | U166: 2022-04-19 | V166: 1,525.00 | W166: 1,525.00
B167: 2022-02-17 | C167: 422,500.00 | F167: 2022-02-28 | G167: 534,000.00 | J167: 2022-04-22 | K167: 8,800.00 | L167: 8,700.00 | O167: 2022-04-12 | P167: 2,725.00 | Q167: 1,525.00 | R167: 1,625.00 | U167: 2022-04-18 | V167: 1,525.00 | W167: 1,505.00
B168: 2022-02-16 | C168: 421,500.00 | F168: 2022-02-25 | G168: 534,000.00 | J168: 2022-04-21 | K168: 8,800.00 | L168: 8,700.00 | O168: 2022-04-11 | P168: 2,725.00 | Q168: 1,525.00 | R168: 1,625.00 | U168: 2022-04-15 | V168: 1,525.00 | W168: 1,455.00
B169: 2022-02-15 | C169: 421,500.00 | F169: 2022-02-24 | G169: 534,000.00 | J169: 2022-04-20 | K169: 8,800.00 | L169: 8,700.00 | O169: 2022-04-08 | P169: 2,725.00 | Q169: 1,575.00 | R169: 1,725.00 | U169: 2022-04-14 | V169: 1,525.00 | W169: 1,455.00
B170: 2022-02-14 | C170: 421,500.00 | F170: 2022-02-23 | G170: 534,000.00 | J170: 2022-04-19 | K170: 8,800.00 | L170: 8,700.00 | O170: 2022-04-07 | P170: 2,725.00 | Q170: 1,575.00 | R170: 1,725.00 | U170: 2022-04-13 | V170: 1,525.00 | W170: 1,455.00
B171: 2022-02-11 | C171: 412,500.00 | F171: 2022-02-22 | G171: 534,000.00 | J171: 2022-04-18 | K171: 8,800.00 | L171: 8,700.00 | O171: 2022-04-06 | P171: 2,725.00 | Q171: 1,475.00 | R171: 1,625.00 | U171: 2022-04-12 | V171: 1,625.00 | W171: 1,455.00
B172: 2022-02-10 | C172: 412,500.00 | F172: 2022-02-21 | G172: 529,000.00 | J172: 2022-04-15 | K172: 9,000.00 | L172: 8,900.00 | O172: 2022-04-01 | P172: 2,725.00 | Q172: 1,375.00 | R172: 1,525.00 | U172: 2022-04-11 | V172: 1,625.00 | W172: 1,455.00
B173: 2022-02-09 | C173: 412,500.00 | F173: 2022-02-18 | G173: 529,000.00 | J173: 2022-04-14 | K173: 9,000.00 | L173: 8,900.00 | O173: 2022-03-31 | P173: 2,725.00 | Q173: 1,375.00 | R173: 1,475.00 | U173: 2022-04-08 | V173: 1,575.00 | W173: 1,455.00
B174: 2022-02-08 | C174: 412,500.00 | F174: 2022-02-17 | G174: 524,000.00 | J174: 2022-04-13 | K174: 9,000.00 | L174: 8,900.00 | O174: 2022-03-30 | P174: 2,725.00 | Q174: 1,375.00 | R174: 1,525.00 | U174: 2022-04-07 | V174: 1,575.00 | W174: 1,455.00
B175: 2022-02-07 | C175: 412,500.00 | F175: 2022-02-16 | G175: 524,000.00 | J175: 2022-04-12 | K175: 9,000.00 | L175: 8,900.00 | O175: 2022-03-29 | P175: 2,725.00 | Q175: 1,375.00 | R175: 1,525.00 | U175: 2022-04-06 | V175: 1,475.00 | W175: 1,455.00
B176: 2022-01-28 | C176: 412,500.00 | F176: 2022-02-15 | G176: 524,000.00 | J176: 2022-04-11 | K176: 9,000.00 | L176: 8,900.00 | O176: 2022-03-28 | P176: 2,725.00 | Q176: 1,375.00 | R176: 1,525.00 | U176: 2022-04-01 | V176: 1,375.00 | W176: 1,455.00
B177: 2022-01-27 | C177: 412,500.00 | F177: 2022-02-14 | G177: 524,000.00 | J177: 2022-04-08 | K177: 9,000.00 | L177: 8,900.00 | O177: 2022-03-25 | P177: 2,675.00 | Q177: 1,375.00 | R177: 1,525.00 | U177: 2022-03-31 | V177: 1,355.00 | W177: 1,455.00
B178: 2022-01-26 | C178: 412,500.00 | F178: 2022-02-11 | G178: 515,000.00 | J178: 2022-04-07 | K178: 9,000.00 | L178: 8,900.00 | O178: 2022-03-24 | P178: 2,675.00 | Q178: 1,375.00 | R178: 1,525.00 | U178: 2022-03-30 | V178: 1,305.00 | W178: 1,455.00
B179: 2022-01-25 | C179: 412,500.00 | F179: 2022-02-10 | G179: 515,000.00 | J179: 2022-04-06 | K179: 9,000.00 | L179: 8,900.00 | O179: 2022-03-23 | P179: 2,675.00 | Q179: 1,375.00 | R179: 1,525.00 | U179: 2022-03-29 | V179: 1,305.00 | W179: 1,455.00
B180: 2022-01-24 | C180: 412,500.00 | F180: 2022-02-09 | G180: 432,500.00 | J180: 2022-04-02 | K180: 9,000.00 | L180: 8,900.00 | O180: 2022-03-22 | P180: 2,675.00 | Q180: 1,375.00 | R180: 1,525.00 | U180: 2022-03-28 | V180: 1,305.00 | W180: 1,455.00
B181: 2022-01-21 | C181: 412,500.00 | F181: 2022-02-08 | G181: 432,500.00 | J181: 2022-04-01 | K181: 9,000.00 | L181: 8,900.00 | O181: 2022-03-21 | P181: 2,675.00 | Q181: 1,375.00 | R181: 1,525.00 | U181: 2022-03-25 | V181: 1,305.00 | W181: 1,455.00
B182: 2022-01-20 | C182: 412,500.00 | F182: 2022-02-07 | G182: 432,500.00 | J182: 2022-03-31 | K182: 9,000.00 | L182: 8,900.00 | O182: 2022-03-18 | P182: 2,625.00 | Q182: 1,375.00 | R182: 1,525.00 | U182: 2022-03-24 | V182: 1,305.00 | W182: 1,455.00
B183: 2022-01-19 | C183: 412,500.00 | F183: 2022-01-28 | G183: 432,500.00 | J183: 2022-03-30 | K183: 9,000.00 | L183: 8,900.00 | O183: 2022-03-17 | P183: 2,625.00 | Q183: 1,375.00 | R183: 1,525.00 | U183: 2022-03-23 | V183: 1,305.00 | W183: 1,455.00
B184: 2022-01-18 | C184: 412,500.00 | F184: 2022-01-27 | G184: 432,500.00 | J184: 2022-03-29 | K184: 9,500.00 | L184: 9,400.00 | O184: 2022-03-16 | P184: 2,625.00 | Q184: 1,375.00 | R184: 1,525.00 | U184: 2022-03-22 | V184: 1,305.00 | W184: 1,455.00
B185: 2022-01-17 | C185: 412,500.00 | F185: 2022-01-26 | G185: 432,500.00 | J185: 2022-03-28 | K185: 9,500.00 | L185: 9,400.00 | O185: 2022-03-15 | P185: 2,625.00 | Q185: 1,375.00 | R185: 1,525.00 | U185: 2022-03-21 | V185: 1,305.00 | W185: 1,455.00
B186: 2022-01-14 | C186: 412,500.00 | F186: 2022-01-25 | G186: 432,500.00 | J186: 2022-03-25 | K186: 9,500.00 | L186: 9,400.00 | O186: 2022-03-14 | P186: 2,625.00 | Q186: 1,375.00 | R186: 1,525.00 | U186: 2022-03-18 | V186: 1,305.00 | W186: 1,475.00
B187: 2022-01-13 | C187: 412,500.00 | F187: 2022-01-24 | G187: 432,500.00 | J187: 2022-03-24 | K187: 9,500.00 | L187: 9,400.00 | O187: 2022-03-10 | P187: 2,625.00 | Q187: 1,375.00 | R187: 1,525.00 | U187: 2022-03-17 | V187: 1,305.00 | W187: 1,475.00
B188: 2022-01-12 | C188: 412,500.00 | F188: 2022-01-21 | G188: 432,500.00 | J188: 2022-03-23 | K188: 9,500.00 | L188: 9,400.00 | O188: 2022-03-09 | P188: 2,625.00 | Q188: 1,375.00 | R188: 1,525.00 | U188: 2022-03-16 | V188: 1,305.00 | W188: 1,475.00
B189: 2022-01-11 | C189: 412,500.00 | F189: 2022-01-20 | G189: 432,500.00 | J189: 2022-03-22 | K189: 9,500.00 | L189: 9,400.00 | O189: 2022-03-08 | P189: 2,625.00 | Q189: 1,375.00 | R189: 1,525.00 | U189: 2022-03-15 | V189: 1,305.00 | W189: 1,475.00
B190: 2022-01-10 | C190: 412,500.00 | F190: 2022-01-19 | G190: 432,500.00 | J190: 2022-03-21 | K190: 9,500.00 | L190: 9,400.00 | O190: 2022-03-07 | P190: 2,625.00 | Q190: 1,375.00 | R190: 1,525.00 | U190: 2022-03-14 | V190: 1,305.00 | W190: 1,475.00
B191: 2022-01-07 | C191: 398,500.00 | F191: 2022-01-18 | G191: 432,500.00 | J191: 2022-03-18 | K191: 9,500.00 | L191: 9,400.00 | O191: 2022-03-04 | P191: 2,625.00 | Q191: 1,375.00 | R191: 1,525.00 | U191: 2022-03-11 | V191: 1,305.00 | W191: 1,525.00
B192: 2022-01-06 | C192: 393,500.00 | F192: 2022-01-17 | G192: 432,500.00 | J192: 2022-03-17 | K192: 9,500.00 | L192: 9,400.00 | O192: 2022-03-03 | P192: 2,625.00 | Q192: 1,375.00 | R192: 1,525.00 | U192: 2022-03-10 | V192: 1,305.00 | W192: 1,525.00
B193: 2022-01-05 | C193: 393,500.00 | F193: 2022-01-14 | G193: 432,500.00 | J193: 2022-03-16 | K193: 9,500.00 | L193: 9,400.00 | O193: 2022-03-02 | P193: 2,625.00 | Q193: 1,375.00 | R193: 1,525.00 | U193: 2022-03-09 | V193: 1,305.00 | W193: 1,535.00
B194: 2022-01-04 | C194: 393,500.00 | F194: 2022-01-13 | G194: 432,500.00 | J194: 2022-03-15 | K194: 9,500.00 | L194: 9,400.00 | O194: 2022-03-01 | P194: 2,575.00 | Q194: 1,375.00 | R194: 1,525.00 | U194: 2022-03-08 | V194: 1,305.00 | W194: 1,535.00
B195: 2021-12-31 | C195: 393,500.00 | F195: 2022-01-12 | G195: 432,500.00 | J195: 2022-03-14 | K195: 9,500.00 | L195: 9,400.00 | O195: 2022-02-28 | P195: 2,575.00 | Q195: 1,375.00 | R195: 1,525.00 | U195: 2022-03-07 | V195: 1,305.00 | W195: 1,535.00
B196: 2021-12-30 | C196: 393,500.00 | F196: 2022-01-11 | G196: 432,500.00 | J196: 2022-03-11 | K196: 9,500.00 | L196: 9,400.00 | O196: 2022-02-25 | P196: 2,575.00 | Q196: 1,425.00 | R196: 1,545.00 | U196: 2022-03-04 | V196: 1,325.00 | W196: 1,535.00
B197: 2021-12-29 | C197: 393,500.00 | F197: 2022-01-10 | G197: 432,500.00 | J197: 2022-03-10 | K197: 9,200.00 | L197: 9,100.00 | O197: 2022-02-24 | P197: 2,575.00 | Q197: 1,425.00 | R197: 1,545.00 | U197: 2022-03-03 | V197: 1,325.00 | W197: 1,535.00
B198: 2021-12-28 | C198: 393,500.00 | F198: 2022-01-07 | G198: 432,500.00 | J198: 2022-03-09 | K198: 9,200.00 | L198: 9,100.00 | O198: 2022-02-23 | P198: 2,575.00 | Q198: 1,425.00 | R198: 1,545.00 | U198: 2022-03-02 | V198: 1,325.00 | W198: 1,535.00
B199: 2021-12-27 | C199: 384,500.00 | F199: 2022-01-06 | G199: 432,500.00 | J199: 2022-03-08 | K199: 9,200.00 | L199: 9,100.00 | O199: 2022-02-22 | P199: 2,575.00 | Q199: 1,425.00 | R199: 1,545.00 | U199: 2022-03-01 | V199: 1,325.00 | W199: 1,535.00
B200: 2021-12-24 | C200: 382,500.00 | F200: 2022-01-05 | G200: 427,500.00 | J200: 2022-03-07 | K200: 9,200.00 | L200: 9,100.00 | O200: 2022-02-21 | P200: 2,575.00 | Q200: 1,425.00 | R200: 1,545.00 | U200: 2022-02-28 | V200: 1,325.00 | W200: 1,535.00
B201: 2021-12-23 | C201: 382,500.00 | F201: 2022-01-04 | G201: 427,500.00 | J201: 2022-03-04 | K201: 9,200.00 | L201: 9,100.00 | O201: 2022-02-18 | P201: 2,575.00 | Q201: 1,425.00 | R201: 1,545.00 | U201: 2022-02-25 | V201: 1,375.00 | W201: 1,535.00
B202: 2021-12-22 | C202: 382,500.00 | F202: 2021-12-31 | G202: 427,500.00 | J202: 2022-03-03 | K202: 9,200.00 | L202: 9,100.00 | O202: 2022-02-17 | P202: 2,575.00 | Q202: 1,425.00 | R202: 1,545.00 | U202: 2022-02-24 | V202: 1,375.00 | W202: 1,535.00
B203: 2021-12-21 | C203: 382,500.00 | F203: 2021-12-30 | G203: 427,500.00 | J203: 2022-03-02 | K203: 9,200.00 | L203: 9,100.00 | O203: 2022-02-16 | P203: 2,575.00 | Q203: 1,425.00 | R203: 1,545.00 | U203: 2022-02-23 | V203: 1,385.00 | W203: 1,535.00
B204: 2021-12-20 | C204: 382,500.00 | F204: 2021-12-29 | G204: 422,500.00 | J204: 2022-03-01 | K204: 9,200.00 | L204: 9,100.00 | O204: 2022-02-15 | P204: 2,575.00 | Q204: 1,425.00 | R204: 1,545.00 | U204: 2022-02-22 | V204: 1,385.00 | W204: 1,535.00
B205: 2021-12-17 | C205: 382,500.00 | F205: 2021-12-28 | G205: 422,500.00 | J205: 2022-02-28 | K205: 9,200.00 | L205: 9,100.00 | O205: 2022-02-14 | P205: 2,575.00 | Q205: 1,425.00 | R205: 1,545.00 | U205: 2022-02-21 | V205: 1,385.00 | W205: 1,535.00
B206: 2021-12-16 | C206: 382,500.00 | F206: 2021-12-27 | G206: 422,500.00 | J206: 2022-02-25 | K206: 9,000.00 | L206: 8,900.00 | O206: 2022-02-11 | P206: 2,525.00 | Q206: 1,425.00 | R206: 1,545.00 | U206: 2022-02-18 | V206: 1,385.00 | W206: 1,535.00
B207: 2021-12-15 | C207: 382,500.00 | F207: 2021-12-24 | G207: 417,500.00 | J207: 2022-02-24 | K207: 9,000.00 | L207: 8,900.00 | O207: 2022-02-10 | P207: 2,525.00 | Q207: 1,425.00 | R207: 1,545.00 | U207: 2022-02-17 | V207: 1,385.00 | W207: 1,535.00
B208: 2021-12-14 | C208: 377,500.00 | F208: 2021-12-23 | G208: 417,500.00 | J208: 2022-02-23 | K208: 8,800.00 | L208: 8,600.00 | O208: 2022-02-09 | P208: 2,525.00 | Q208: 1,425.00 | R208: 1,545.00 | U208: 2022-02-16 | V208: 1,385.00 | W208: 1,535.00
B209: 2021-12-13 | C209: 350,500.00 | F209: 2021-12-22 | G209: 417,500.00 | J209: 2022-02-22 | K209: 8,800.00 | L209: 8,600.00 | O209: 2022-02-08 | P209: 2,525.00 | Q209: 1,425.00 | R209: 1,545.00 | U209: 2022-02-15 | V209: 1,385.00 | W209: 1,535.00
B210: 2021-12-10 | C210: 350,500.00 | F210: 2021-12-21 | G210: 417,500.00 | J210: 2022-02-21 | K210: 8,800.00 | L210: 8,600.00 | O210: 2022-02-07 | P210: 2,525.00 | Q210: 1,425.00 | R210: 1,545.00 | U210: 2022-02-14 | V210: 1,385.00 | W210: 1,535.00
B211: 2021-12-09 | C211: 350,000.00 | F211: 2021-12-20 | G211: 417,500.00 | J211: 2022-02-18 | K211: 8,600.00 | L211: 8,500.00 | O211: 2022-01-28 | P211: 2,525.00 | Q211: 1,425.00 | R211: 1,545.00 | U211: 2022-02-11 | V211: 1,385.00 | W211: 1,535.00
B212: 2021-12-08 | C212: 350,000.00 | F212: 2021-12-17 | G212: 417,500.00 | J212: 2022-02-17 | K212: 8,300.00 | L212: 8,200.00 | O212: 2022-01-27 | P212: 2,525.00 | Q212: 1,425.00 | R212: 1,545.00 | U212: 2022-02-10 | V212: 1,385.00 | W212: 1,535.00
B213: 2021-12-07 | C213: 350,000.00 | F213: 2021-12-16 | G213: 417,500.00 | J213: 2022-02-16 | K213: 8,300.00 | L213: 8,200.00 | O213: 2022-01-26 | P213: 2,525.00 | Q213: 1,425.00 | R213: 1,545.00 | U213: 2022-02-09 | V213: 1,385.00 | W213: 1,535.00
B214: 2021-12-06 | C214: 350,000.00 | F214: 2021-12-15 | G214: 417,500.00 | J214: 2022-02-15 | K214: 8,300.00 | L214: 8,200.00 | O214: 2022-01-25 | P214: 2,525.00 | Q214: 1,425.00 | R214: 1,545.00 | U214: 2022-02-08 | V214: 1,385.00 | W214: 1,535.00
B215: 2021-12-03 | C215: 347,000.00 | F215: 2021-12-14 | G215: 417,500.00 | J215: 2022-02-14 | K215: 8,300.00 | L215: 8,200.00 | O215: 2022-01-24 | P215: 2,525.00 | Q215: 1,425.00 | R215: 1,545.00 | U215: 2022-02-07 | V215: 1,385.00 | W215: 1,535.00
B216: 2021-12-02 | C216: 347,000.00 | F216: 2021-12-13 | G216: 412,500.00 | J216: 2022-02-11 | K216: 8,300.00 | L216: 8,200.00 | O216: 2022-01-21 | P216: 2,525.00 | Q216: 1,425.00 | R216: 1,545.00 | U216: 2022-01-28 | V216: 1,385.00 | W216: 1,535.00
... 2352 more rows

Sheet 新能源车_正极
A1: 目录
C20: 碳酸锂价格:国产(元/吨) | F20: 氢氧化锂56.5%:国产(元/吨) | I20: 平均价:硫酸钴:21%:国产(元/吨) | J20: 平均价:硫酸钴:20.5%:国产(元/吨) | M20: 价格:正极材料:磷酸铁锂:国产(万元/吨)
B21: 2022-11-23 | C21: 567,000.00 | E21: 2022-11-23 | F21: 560,000.00 | H21: 2022-11-22 | I21: 61,500.00 | J21: 59,250.00 | L21: 2022-11-23 | M21: 17.70
B22: 2022-11-22 | C22: 567,000.00 | E22: 2022-11-22 | F22: 560,000.00 | H22: 2022-11-21 | I22: 62,000.00 | J22: 60,000.00 | L22: 2022-11-22 | M22: 17.70
B23: 2022-11-21 | C23: 567,500.00 | E23: 2022-11-21 | F23: 560,000.00 | H23: 2022-11-17 | I23: 62,000.00 | J23: 60,000.00 | L23: 2022-11-21 | M23: 17.70
B24: 2022-11-18 | C24: 567,500.00 | E24: 2022-11-18 | F24: 560,000.00 | H24: 2022-11-16 | I24: 62,000.00 | J24: 60,000.00 | L24: 2022-11-18 | M24: 17.70
B25: 2022-11-17 | C25: 567,500.00 | E25: 2022-11-17 | F25: 560,000.00 | H25: 2022-11-15 | I25: 62,000.00 | J25: 60,000.00 | L25: 2022-11-17 | M25: 17.70
B26: 2022-11-16 | C26: 567,500.00 | E26: 2022-11-16 | F26: 560,000.00 | H26: 2022-11-16 | I26: 62,000.00 | J26: 60,000.00 | L26: 2022-11-16 | M26: 17.70
B27: 2022-11-15 | C27: 567,500.00 | E27: 2022-11-15 | F27: 560,000.00 | H27: 2022-11-15 | I27: 62,000.00 | J27: 60,000.00 | L27: 2022-11-15 | M27: 17.70
B28: 2022-11-14 | C28: 567,500.00 | E28: 2022-11-14 | F28: 560,000.00 | H28: 2022-11-14 | I28: 62,000.00 | J28: 60,000.00 | L28: 2022-11-14 | M28: 17.70
B29: 2022-11-11 | C29: 567,500.00 | E29: 2022-11-11 | F29: 560,000.00 | H29: 2022-11-11 | I29: 62,000.00 | J29: 60,000.00 | L29: 2022-11-11 | M29: 17.70
B30: 2022-11-10 | C30: 567,500.00 | E30: 2022-11-10 | F30: 560,000.00 | H30: 2022-11-10 | I30: 62,000.00 | J30: 60,000.00 | L30: 2022-11-10 | M30: 17.70
B31: 2022-11-09 | C31: 567,500.00 | E31: 2022-11-09 | F31: 560,000.00 | H31: 2022-11-09 | I31: 62,000.00 | J31: 60,000.00 | L31: 2022-11-09 | M31: 17.70
B32: 2022-11-08 | C32: 565,500.00 | E32: 2022-11-08 | F32: 558,000.00 | H32: 2022-11-08 | I32: 62,000.00 | J32: 60,000.00 | L32: 2022-11-08 | M32: 17.70
B33: 2022-11-07 | C33: 563,500.00 | E33: 2022-11-07 | F33: 556,000.00 | H33: 2022-11-07 | I33: 61,000.00 | J33: 59,000.00 | L33: 2022-11-07 | M33: 17.30
B34: 2022-11-04 | C34: 561,500.00 | E34: 2022-11-04 | F34: 554,000.00 | H34: 2022-11-01 | I34: 63,000.00 | J34: 61,000.00 | L34: 2022-11-04 | M34: 17.30
B35: 2022-11-03 | C35: 561,500.00 | E35: 2022-11-03 | F35: 554,000.00 | H35: 2022-10-31 | I35: 63,000.00 | J35: 61,000.00 | L35: 2022-11-03 | M35: 17.30
B36: 2022-11-02 | C36: 559,000.00 | E36: 2022-11-02 | F36: 551,500.00 | H36: 2022-10-28 | I36: 63,000.00 | J36: 61,000.00 | L36: 2022-11-02 | M36: 17.30
B37: 2022-11-01 | C37: 559,000.00 | E37: 2022-11-01 | F37: 551,500.00 | H37: 2022-10-26 | I37: 63,000.00 | J37: 61,000.00 | L37: 2022-11-01 | M37: 17.30
B38: 2022-10-31 | C38: 558,000.00 | E38: 2022-10-31 | F38: 550,500.00 | H38: 2022-10-25 | I38: 63,000.00 | J38: 61,000.00 | L38: 2022-10-31 | M38: 17.30
B39: 2022-10-28 | C39: 556,000.00 | E39: 2022-10-28 | F39: 548,500.00 | H39: 2022-10-24 | I39: 63,000.00 | J39: 61,000.00 | L39: 2022-10-28 | M39: 17.30
B40: 2022-10-27 | C40: 551,000.00 | E40: 2022-10-27 | F40: 543,500.00 | H40: 2022-10-21 | I40: 63,000.00 | J40: 61,000.00 | L40: 2022-10-27 | M40: 17.30
B41: 2022-10-26 | C41: 548,000.00 | E41: 2022-10-26 | F41: 539,500.00 | H41: 2022-10-20 | I41: 63,000.00 | J41: 61,000.00 | L41: 2022-10-26 | M41: 17.30
B42: 2022-10-25 | C42: 544,000.00 | E42: 2022-10-25 | F42: 535,500.00 | H42: 2022-10-18 | I42: 63,000.00 | J42: 61,000.00 | L42: 2022-10-25 | M42: 17.30
B43: 2022-10-24 | C43: 541,000.00 | E43: 2022-10-24 | F43: 532,500.00 | H43: 2022-10-17 | I43: 63,000.00 | J43: 61,000.00 | L43: 2022-10-24 | M43: 17.30
B44: 2022-10-21 | C44: 538,000.00 | E44: 2022-10-21 | F44: 530,500.00 | H44: 2022-10-14 | I44: 63,000.00 | J44: 61,000.00 | L44: 2022-10-21 | M44: 16.40
B45: 2022-10-20 | C45: 535,000.00 | E45: 2022-10-20 | F45: 527,500.00 | H45: 2022-10-12 | I45: 63,000.00 | J45: 61,000.00 | L45: 2022-10-20 | M45: 16.40
B46: 2022-10-19 | C46: 534,000.00 | E46: 2022-10-19 | F46: 526,500.00 | H46: 2022-10-11 | I46: 63,000.00 | J46: 61,000.00 | L46: 2022-10-19 | M46: 16.40
B47: 2022-10-18 | C47: 532,000.00 | E47: 2022-10-18 | F47: 524,500.00 | H47: 2022-10-10 | I47: 63,000.00 | J47: 61,000.00 | L47: 2022-10-18 | M47: 16.40
B48: 2022-10-17 | C48: 530,000.00 | E48: 2022-10-17 | F48: 522,500.00 | H48: 2022-09-29 | I48: 62,000.00 | J48: 60,000.00 | L48: 2022-10-17 | M48: 16.40
B49: 2022-10-14 | C49: 526,000.00 | E49: 2022-10-14 | F49: 517,500.00 | H49: 2022-09-28 | I49: 62,000.00 | J49: 60,000.00 | L49: 2022-10-14 | M49: 16.40
B50: 2022-10-13 | C50: 523,500.00 | E50: 2022-10-13 | F50: 513,500.00 | H50: 2022-09-26 | I50: 62,000.00 | J50: 60,000.00 | L50: 2022-10-13 | M50: 16.40
B51: 2022-10-12 | C51: 523,500.00 | E51: 2022-10-12 | F51: 513,500.00 | H51: 2022-09-23 | I51: 62,000.00 | J51: 60,000.00 | L51: 2022-10-12 | M51: 16.40
B52: 2022-10-11 | C52: 520,500.00 | E52: 2022-10-11 | F52: 510,500.00 | H52: 2022-09-19 | I52: 62,000.00 | J52: 60,000.00 | L52: 2022-10-11 | M52: 16.40
B53: 2022-10-10 | C53: 517,500.00 | E53: 2022-10-10 | F53: 507,500.00 | H53: 2022-09-15 | I53: 62,000.00 | J53: 60,000.00 | L53: 2022-10-10 | M53: 16.25
B54: 2022-09-30 | C54: 513,000.00 | E54: 2022-09-30 | F54: 502,500.00 | H54: 2022-09-14 | I54: 62,000.00 | J54: 60,000.00 | L54: 2022-10-09 | M54: 16.25
B55: 2022-09-29 | C55: 510,000.00 | E55: 2022-09-29 | F55: 498,500.00 | H55: 2022-09-09 | I55: 62,000.00 | J55: 60,000.00 | L55: 2022-10-08 | M55: 16.25
B56: 2022-09-28 | C56: 507,000.00 | E56: 2022-09-28 | F56: 496,500.00 | H56: 2022-09-08 | I56: 62,000.00 | J56: 60,000.00 | L56: 2022-10-07 | M56: 16.25
B57: 2022-09-27 | C57: 507,000.00 | E57: 2022-09-27 | F57: 496,500.00 | H57: 2022-09-06 | I57: 61,000.00 | J57: 59,000.00 | L57: 2022-09-30 | M57: 16.25
B58: 2022-09-26 | C58: 504,500.00 | E58: 2022-09-26 | F58: 494,500.00 | H58: 2022-09-05 | I58: 61,000.00 | J58: 59,000.00 | L58: 2022-09-29 | M58: 16.25
B59: 2022-09-23 | C59: 504,500.00 | E59: 2022-09-23 | F59: 494,500.00 | H59: 2022-08-31 | I59: 61,000.00 | J59: 59,000.00 | L59: 2022-09-28 | M59: 16.25
B60: 2022-09-22 | C60: 502,500.00 | E60: 2022-09-22 | F60: 492,500.00 | H60: 2022-08-30 | I60: 61,000.00 | J60: 59,000.00 | L60: 2022-09-27 | M60: 16.25
B61: 2022-09-21 | C61: 500,000.00 | E61: 2022-09-21 | F61: 489,500.00 | H61: 2022-08-29 | I61: 61,000.00 | J61: 59,000.00 | L61: 2022-09-26 | M61: 16.25
B62: 2022-09-20 | C62: 497,500.00 | E62: 2022-09-20 | F62: 486,500.00 | H62: 2022-08-26 | I62: 61,000.00 | J62: 59,000.00 | L62: 2022-09-23 | M62: 15.95
B63: 2022-09-19 | C63: 497,500.00 | E63: 2022-09-19 | F63: 486,500.00 | H63: 2022-08-25 | I63: 60,500.00 | J63: 58,500.00 | L63: 2022-09-22 | M63: 15.95
B64: 2022-09-16 | C64: 496,500.00 | E64: 2022-09-16 | F64: 485,500.00 | H64: 2022-08-24 | I64: 60,500.00 | J64: 58,500.00 | L64: 2022-09-21 | M64: 15.95
B65: 2022-09-15 | C65: 496,500.00 | E65: 2022-09-15 | F65: 485,500.00 | H65: 2022-08-23 | I65: 59,000.00 | J65: 56,500.00 | L65: 2022-09-20 | M65: 15.95
B66: 2022-09-14 | C66: 496,500.00 | E66: 2022-09-14 | F66: 485,500.00 | H66: 2022-08-22 | I66: 59,000.00 | J66: 56,500.00 | L66: 2022-09-19 | M66: 15.95
B67: 2022-09-13 | C67: 496,500.00 | E67: 2022-09-13 | F67: 485,500.00 | H67: 2022-08-18 | I67: 59,000.00 | J67: 56,500.00 | L67: 2022-09-16 | M67: 15.95
B68: 2022-09-09 | C68: 494,000.00 | E68: 2022-09-09 | F68: 482,500.00 | H68: 2022-08-17 | I68: 58,500.00 | J68: 56,000.00 | L68: 2022-09-15 | M68: 15.95
B69: 2022-09-08 | C69: 494,000.00 | E69: 2022-09-08 | F69: 482,500.00 | H69: 2022-08-12 | I69: 57,500.00 | J69: 55,000.00 | L69: 2022-09-14 | M69: 15.95
B70: 2022-09-07 | C70: 494,000.00 | E70: 2022-09-07 | F70: 482,500.00 | H70: 2022-08-11 | I70: 56,500.00 | J70: 54,000.00 | L70: 2022-09-13 | M70: 15.65
B71: 2022-09-06 | C71: 493,000.00 | E71: 2022-09-06 | F71: 482,500.00 | H71: 2022-08-10 | I71: 56,500.00 | J71: 54,000.00 | L71: 2022-09-12 | M71: 15.65
B72: 2022-09-05 | C72: 493,000.00 | E72: 2022-09-05 | F72: 480,500.00 | H72: 2022-08-09 | I72: 56,500.00 | J72: 54,000.00 | L72: 2022-09-09 | M72: 15.65
B73: 2022-09-02 | C73: 493,000.00 | E73: 2022-09-02 | F73: 480,500.00 | H73: 2022-08-05 | I73: 54,500.00 | J73: 53,000.00 | L73: 2022-09-08 | M73: 15.65
B74: 2022-09-01 | C74: 490,000.00 | E74: 2022-09-01 | F74: 476,000.00 | H74: 2022-08-03 | I74: 54,500.00 | J74: 53,000.00 | L74: 2022-09-07 | M74: 15.65
B75: 2022-08-31 | C75: 490,000.00 | E75: 2022-08-31 | F75: 476,000.00 | H75: 2022-08-02 | I75: 55,500.00 | J75: 54,000.00 | L75: 2022-09-06 | M75: 15.65
B76: 2022-08-30 | C76: 488,000.00 | E76: 2022-08-30 | F76: 474,000.00 | H76: 2022-07-29 | I76: 56,500.00 | J76: 55,500.00 | L76: 2022-09-05 | M76: 15.65
B77: 2022-08-29 | C77: 488,000.00 | E77: 2022-08-29 | F77: 474,000.00 | H77: 2022-07-28 | I77: 57,500.00 | J77: 56,500.00 | L77: 2022-09-02 | M77: 15.65
B78: 2022-08-26 | C78: 486,000.00 | E78: 2022-08-26 | F78: 472,000.00 | H78: 2022-07-26 | I78: 61,500.00 | J78: 59,500.00 | L78: 2022-09-01 | M78: 15.65
B79: 2022-08-25 | C79: 486,000.00 | E79: 2022-08-25 | F79: 472,000.00 | H79: 2022-07-25 | I79: 61,500.00 | J79: 59,500.00 | L79: 2022-08-31 | M79: 15.65
B80: 2022-08-24 | C80: 484,000.00 | E80: 2022-08-24 | F80: 470,000.00 | H80: 2022-07-22 | I80: 61,500.00 | J80: 59,500.00 | L80: 2022-08-30 | M80: 15.65
B81: 2022-08-23 | C81: 484,000.00 | E81: 2022-08-23 | F81: 467,500.00 | H81: 2022-07-21 | I81: 62,500.00 | J81: 60,500.00 | L81: 2022-08-29 | M81: 15.50
B82: 2022-08-22 | C82: 482,000.00 | E82: 2022-08-22 | F82: 467,500.00 | H82: 2022-07-20 | I82: 63,000.00 | J82: 61,500.00 | L82: 2022-08-26 | M82: 15.50
B83: 2022-08-19 | C83: 479,000.00 | E83: 2022-08-19 | F83: 467,500.00 | H83: 2022-07-19 | I83: 63,000.00 | J83: 61,500.00 | L83: 2022-08-25 | M83: 15.50
B84: 2022-08-18 | C84: 479,000.00 | E84: 2022-08-18 | F84: 467,500.00 | H84: 2022-07-18 | I84: 63,750.00 | J84: 62,500.00 | L84: 2022-08-24 | M84: 15.50
B85: 2022-08-17 | C85: 477,000.00 | E85: 2022-08-17 | F85: 467,500.00 | H85: 2022-07-14 | I85: 64,750.00 | J85: 63,500.00 | L85: 2022-08-23 | M85: 15.50
B86: 2022-08-16 | C86: 477,000.00 | E86: 2022-08-16 | F86: 467,500.00 | H86: 2022-07-13 | I86: 68,750.00 | J86: 67,000.00 | L86: 2022-08-22 | M86: 15.50
B87: 2022-08-15 | C87: 476,000.00 | E87: 2022-08-15 | F87: 467,500.00 | H87: 2022-07-12 | I87: 69,250.00 | J87: 68,000.00 | L87: 2022-08-19 | M87: 15.50
B88: 2022-08-12 | C88: 476,000.00 | E88: 2022-08-12 | F88: 467,500.00 | H88: 2022-07-12 | I88: 69,250.00 | J88: 68,000.00 | L88: 2022-08-18 | M88: 15.50
B89: 2022-08-11 | C89: 476,000.00 | E89: 2022-08-11 | F89: 467,500.00 | H89: 2022-07-08 | I89: 71,500.00 | J89: 70,500.00 | L89: 2022-08-17 | M89: 15.50
B90: 2022-08-10 | C90: 475,000.00 | E90: 2022-08-10 | F90: 467,500.00 | H90: 2022-07-06 | I90: 71,500.00 | J90: 70,500.00 | L90: 2022-08-16 | M90: 15.50
B91: 2022-08-09 | C91: 473,000.00 | E91: 2022-08-09 | F91: 467,500.00 | H91: 2022-07-05 | I91: 72,500.00 | J91: 71,500.00 | L91: 2022-08-15 | M91: 15.50
B92: 2022-08-08 | C92: 473,000.00 | E92: 2022-08-08 | F92: 467,500.00 | H92: 2022-07-04 | I92: 72,500.00 | J92: 71,500.00 | L92: 2022-08-12 | M92: 15.50
B93: 2022-08-05 | C93: 471,500.00 | E93: 2022-08-05 | F93: 467,500.00 | H93: 2022-07-01 | I93: 73,500.00 | J93: 72,500.00 | L93: 2022-08-11 | M93: 15.50
B94: 2022-08-04 | C94: 471,500.00 | E94: 2022-08-04 | F94: 467,500.00 | H94: 2022-06-30 | I94: 73,500.00 | J94: 72,500.00 | L94: 2022-08-10 | M94: 15.50
B95: 2022-08-03 | C95: 471,500.00 | E95: 2022-08-03 | F95: 467,500.00 | H95: 2022-06-29 | I95: 73,500.00 | J95: 72,500.00 | L95: 2022-08-09 | M95: 15.50
B96: 2022-08-02 | C96: 471,500.00 | E96: 2022-08-02 | F96: 467,500.00 | H96: 2022-06-28 | I96: 77,500.00 | J96: 75,500.00 | L96: 2022-08-08 | M96: 15.50
B97: 2022-08-01 | C97: 470,500.00 | E97: 2022-08-01 | F97: 467,500.00 | H97: 2022-06-27 | I97: 77,500.00 | J97: 75,500.00 | L97: 2022-08-05 | M97: 15.50
B98: 2022-07-29 | C98: 470,500.00 | E98: 2022-07-29 | F98: 467,500.00 | H98: 2022-06-24 | I98: 77,500.00 | J98: 75,500.00 | L98: 2022-08-04 | M98: 15.50
B99: 2022-07-28 | C99: 470,500.00 | E99: 2022-07-28 | F99: 467,500.00 | H99: 2022-06-23 | I99: 78,500.00 | J99: 76,500.00 | L99: 2022-08-03 | M99: 15.50
B100: 2022-07-27 | C100: 470,500.00 | E100: 2022-07-27 | F100: 467,500.00 | H100: 2022-06-22 | I100: 78,500.00 | J100: 76,500.00 | L100: 2022-08-02 | M100: 15.50
B101: 2022-07-26 | C101: 470,500.00 | E101: 2022-07-26 | F101: 467,500.00 | H101: 2022-06-21 | I101: 78,500.00 | J101: 76,500.00 | L101: 2022-08-01 | M101: 15.50
B102: 2022-07-25 | C102: 470,000.00 | E102: 2022-07-25 | F102: 467,500.00 | H102: 2022-06-20 | I102: 80,500.00 | J102: 78,500.00 | L102: 2022-07-29 | M102: 15.50
B103: 2022-07-22 | C103: 470,000.00 | E103: 2022-07-22 | F103: 467,500.00 | H103: 2022-06-17 | I103: 80,500.00 | J103: 78,500.00 | L103: 2022-07-28 | M103: 15.50
B104: 2022-07-21 | C104: 470,000.00 | E104: 2022-07-21 | F104: 467,500.00 | H104: 2022-06-16 | I104: 80,500.00 | J104: 78,500.00 | L104: 2022-07-27 | M104: 15.50
B105: 2022-07-20 | C105: 470,000.00 | E105: 2022-07-20 | F105: 467,500.00 | H105: 2022-06-15 | I105: 80,500.00 | J105: 78,500.00 | L105: 2022-07-26 | M105: 15.50
B106: 2022-07-19 | C106: 470,000.00 | E106: 2022-07-19 | F106: 467,500.00 | H106: 2022-06-14 | I106: 82,500.00 | J106: 80,500.00 | L106: 2022-07-25 | M106: 15.50
B107: 2022-07-18 | C107: 469,000.00 | E107: 2022-07-18 | F107: 467,500.00 | H107: 2022-06-13 | I107: 82,500.00 | J107: 80,500.00 | L107: 2022-07-22 | M107: 15.50
B108: 2022-07-15 | C108: 469,000.00 | E108: 2022-07-15 | F108: 467,500.00 | H108: 2022-06-10 | I108: 83,500.00 | J108: 82,000.00 | L108: 2022-07-21 | M108: 15.50
B109: 2022-07-14 | C109: 469,000.00 | E109: 2022-07-14 | F109: 467,500.00 | H109: 2022-06-09 | I109: 83,500.00 | J109: 82,000.00 | L109: 2022-07-20 | M109: 15.50
B110: 2022-07-13 | C110: 469,000.00 | E110: 2022-07-13 | F110: 467,500.00 | H110: 2022-06-08 | I110: 85,500.00 | J110: 84,000.00 | L110: 2022-07-19 | M110: 15.50
B111: 2022-07-12 | C111: 469,000.00 | E111: 2022-07-12 | F111: 467,500.00 | H111: 2022-06-07 | I111: 85,500.00 | J111: 84,000.00 | L111: 2022-07-18 | M111: 15.50
B112: 2022-07-11 | C112: 469,000.00 | E112: 2022-07-11 | F112: 467,500.00 | H112: 2022-06-06 | I112: 86,500.00 | J112: 85,500.00 | L112: 2022-07-15 | M112: 15.50
B113: 2022-07-08 | C113: 469,000.00 | E113: 2022-07-08 | F113: 467,500.00 | H113: 2022-06-02 | I113: 86,500.00 | J113: 85,500.00 | L113: 2022-07-14 | M113: 15.50
B114: 2022-07-07 | C114: 469,000.00 | E114: 2022-07-07 | F114: 467,500.00 | H114: 2022-06-01 | I114: 88,000.00 | J114: 86,500.00 | L114: 2022-07-13 | M114: 15.50
B115: 2022-07-06 | C115: 469,000.00 | E115: 2022-07-06 | F115: 467,500.00 | H115: 2022-05-31 | I115: 88,000.00 | J115: 86,500.00 | L115: 2022-07-12 | M115: 15.50
B116: 2022-07-05 | C116: 469,000.00 | E116: 2022-07-05 | F116: 467,500.00 | H116: 2022-05-27 | I116: 88,000.00 | J116: 86,500.00 | L116: 2022-07-11 | M116: 15.50
B117: 2022-07-04 | C117: 469,000.00 | E117: 2022-07-04 | F117: 467,500.00 | H117: 2022-05-25 | I117: 94,000.00 | J117: 92,500.00 | L117: 2022-07-08 | M117: 15.50
B118: 2022-07-01 | C118: 469,000.00 | E118: 2022-07-01 | F118: 467,500.00 | H118: 2022-05-24 | I118: 96,000.00 | J118: 94,000.00 | L118: 2022-07-07 | M118: 15.50
B119: 2022-06-30 | C119: 469,000.00 | E119: 2022-06-30 | F119: 467,500.00 | H119: 2022-05-23 | I119: 96,000.00 | J119: 94,000.00 | L119: 2022-07-06 | M119: 15.50
B120: 2022-06-29 | C120: 469,000.00 | E120: 2022-06-29 | F120: 467,500.00 | H120: 2022-05-20 | I120: 100,500.00 | J120: 98,000.00 | L120: 2022-07-05 | M120: 15.50
B121: 2022-06-28 | C121: 469,000.00 | E121: 2022-06-28 | F121: 467,500.00 | H121: 2022-05-18 | I121: 100,500.00 | J121: 98,000.00 | L121: 2022-07-04 | M121: 15.50
B122: 2022-06-27 | C122: 469,000.00 | E122: 2022-06-27 | F122: 467,500.00 | H122: 2022-05-17 | I122: 100,500.00 | J122: 98,000.00 | L122: 2022-07-01 | M122: 15.50
B123: 2022-06-24 | C123: 469,000.00 | E123: 2022-06-24 | F123: 467,500.00 | H123: 2022-05-16 | I123: 100,500.00 | J123: 98,000.00 | L123: 2022-06-30 | M123: 15.50
B124: 2022-06-23 | C124: 469,000.00 | E124: 2022-06-23 | F124: 467,500.00 | H124: 2022-05-13 | I124: 100,500.00 | J124: 98,000.00 | L124: 2022-06-29 | M124: 15.50
B125: 2022-06-22 | C125: 469,000.00 | E125: 2022-06-22 | F125: 467,500.00 | H125: 2022-05-12 | I125: 100,500.00 | J125: 98,000.00 | L125: 2022-06-28 | M125: 15.50
B126: 2022-06-21 | C126: 468,000.00 | E126: 2022-06-21 | F126: 467,500.00 | H126: 2022-05-11 | I126: 100,500.00 | J126: 98,000.00 | L126: 2022-06-27 | M126: 15.50
B127: 2022-06-20 | C127: 468,000.00 | E127: 2022-06-20 | F127: 467,500.00 | H127: 2022-05-10 | I127: 102,500.00 | J127: 99,000.00 | L127: 2022-06-24 | M127: 15.50
B128: 2022-06-17 | C128: 468,000.00 | E128: 2022-06-17 | F128: 467,500.00 | H128: 2022-05-09 | I128: 105,500.00 | J128: 101,500.00 | L128: 2022-06-23 | M128: 15.50
B129: 2022-06-16 | C129: 468,000.00 | E129: 2022-06-16 | F129: 467,500.00 | H129: 2022-05-06 | I129: 107,000.00 | J129: 104,000.00 | L129: 2022-06-22 | M129: 15.50
B130: 2022-06-15 | C130: 468,000.00 | E130: 2022-06-15 | F130: 467,500.00 | H130: 2022-05-05 | I130: 110,000.00 | J130: 107,000.00 | L130: 2022-06-21 | M130: 15.50
B131: 2022-06-14 | C131: 468,000.00 | E131: 2022-06-14 | F131: 467,500.00 | H131: 2022-04-29 | I131: 110,000.00 | J131: 107,000.00 | L131: 2022-06-20 | M131: 15.50
B132: 2022-06-13 | C132: 468,000.00 | E132: 2022-06-13 | F132: 467,500.00 | H132: 2022-04-27 | I132: 110,000.00 | J132: 107,000.00 | L132: 2022-06-17 | M132: 15.50
B133: 2022-06-10 | C133: 467,500.00 | E133: 2022-06-10 | F133: 467,500.00 | H133: 2022-04-26 | I133: 112,000.00 | J133: 109,000.00 | L133: 2022-06-16 | M133: 15.50
B134: 2022-06-09 | C134: 466,500.00 | E134: 2022-06-09 | F134: 467,500.00 | H134: 2022-04-25 | I134: 113,000.00 | J134: 111,000.00 | L134: 2022-06-15 | M134: 15.50
B135: 2022-06-08 | C135: 465,500.00 | E135: 2022-06-08 | F135: 467,500.00 | H135: 2022-04-22 | I135: 113,000.00 | J135: 111,000.00 | L135: 2022-06-14 | M135: 15.50
B136: 2022-06-07 | C136: 465,500.00 | E136: 2022-06-07 | F136: 467,500.00 | H136: 2022-04-21 | I136: 113,000.00 | J136: 111,000.00 | L136: 2022-06-13 | M136: 15.50
B137: 2022-06-06 | C137: 463,500.00 | E137: 2022-06-06 | F137: 467,500.00 | H137: 2022-04-20 | I137: 115,000.00 | J137: 113,000.00 | L137: 2022-06-10 | M137: 15.50
B138: 2022-06-02 | C138: 463,500.00 | E138: 2022-06-02 | F138: 467,500.00 | H138: 2022-04-19 | I138: 120,000.00 | J138: 118,000.00 | L138: 2022-06-09 | M138: 15.50
B139: 2022-06-01 | C139: 463,500.00 | E139: 2022-06-01 | F139: 467,500.00 | H139: 2022-04-18 | I139: 120,000.00 | J139: 118,000.00 | L139: 2022-06-08 | M139: 15.50
B140: 2022-05-31 | C140: 462,500.00 | E140: 2022-05-31 | F140: 467,500.00 | H140: 2022-04-14 | I140: 120,000.00 | J140: 118,000.00 | L140: 2022-06-07 | M140: 15.50
B141: 2022-05-30 | C141: 462,500.00 | E141: 2022-05-30 | F141: 467,500.00 | H141: 2022-04-13 | I141: 120,000.00 | J141: 118,000.00 | L141: 2022-06-06 | M141: 15.50
B142: 2022-05-27 | C142: 462,500.00 | E142: 2022-05-27 | F142: 467,500.00 | H142: 2022-04-12 | I142: 120,000.00 | J142: 118,000.00 | L142: 2022-06-03 | M142: 15.50
B143: 2022-05-26 | C143: 461,500.00 | E143: 2022-05-26 | F143: 467,500.00 | H143: 2022-04-08 | I143: 120,000.00 | J143: 118,000.00 | L143: 2022-06-02 | M143: 15.50
B144: 2022-05-25 | C144: 461,500.00 | E144: 2022-05-25 | F144: 467,500.00 | H144: 2022-04-06 | I144: 120,000.00 | J144: 118,000.00 | L144: 2022-06-01 | M144: 15.50
B145: 2022-05-24 | C145: 461,500.00 | E145: 2022-05-24 | F145: 467,500.00 | H145: 2022-03-31 | I145: 120,000.00 | J145: 118,000.00 | L145: 2022-05-31 | M145: 15.50
B146: 2022-05-23 | C146: 461,500.00 | E146: 2022-05-23 | F146: 467,500.00 | H146: 2022-03-30 | I146: 120,000.00 | J146: 118,000.00 | L146: 2022-05-30 | M146: 15.50
B147: 2022-05-20 | C147: 461,500.00 | E147: 2022-05-20 | F147: 467,500.00 | H147: 2022-03-29 | I147: 120,000.00 | J147: 118,000.00 | L147: 2022-05-27 | M147: 15.50
B148: 2022-05-19 | C148: 461,500.00 | E148: 2022-05-19 | F148: 467,500.00 | H148: 2022-03-28 | I148: 120,000.00 | J148: 118,000.00 | L148: 2022-05-26 | M148: 15.50
B149: 2022-05-18 | C149: 461,500.00 | E149: 2022-05-18 | F149: 467,500.00 | H149: 2022-03-24 | I149: 120,000.00 | J149: 118,000.00 | L149: 2022-05-25 | M149: 15.50
B150: 2022-05-17 | C150: 461,500.00 | E150: 2022-05-17 | F150: 467,500.00 | H150: 2022-03-22 | I150: 120,000.00 | J150: 118,000.00 | L150: 2022-05-24 | M150: 15.50
B151: 2022-05-16 | C151: 461,500.00 | E151: 2022-05-16 | F151: 467,500.00 | H151: 2022-03-18 | I151: 120,000.00 | J151: 118,000.00 | L151: 2022-05-23 | M151: 15.50
B152: 2022-05-13 | C152: 461,500.00 | E152: 2022-05-13 | F152: 467,500.00 | H152: 2022-03-17 | I152: 120,000.00 | J152: 118,000.00 | L152: 2022-05-20 | M152: 15.50
B153: 2022-05-12 | C153: 461,500.00 | E153: 2022-05-12 | F153: 467,500.00 | H153: 2022-03-16 | I153: 120,000.00 | J153: 118,000.00 | L153: 2022-05-19 | M153: 15.50
B154: 2022-05-11 | C154: 461,500.00 | E154: 2022-05-11 | F154: 467,500.00 | H154: 2022-03-15 | I154: 120,000.00 | J154: 118,000.00 | L154: 2022-05-18 | M154: 15.50
B155: 2022-05-10 | C155: 461,500.00 | E155: 2022-05-10 | F155: 469,000.00 | H155: 2022-03-11 | I155: 120,000.00 | J155: 118,000.00 | L155: 2022-05-17 | M155: 15.50
B156: 2022-05-09 | C156: 461,500.00 | E156: 2022-05-09 | F156: 469,000.00 | H156: 2022-03-10 | I156: 120,000.00 | J156: 118,000.00 | L156: 2022-05-16 | M156: 15.50
B157: 2022-05-06 | C157: 461,500.00 | E157: 2022-05-06 | F157: 469,000.00 | H157: 2022-03-09 | I157: 120,000.00 | J157: 118,000.00 | L157: 2022-05-13 | M157: 15.50
B158: 2022-05-05 | C158: 461,500.00 | E158: 2022-05-05 | F158: 469,000.00 | H158: 2022-03-08 | I158: 120,000.00 | J158: 118,000.00 | L158: 2022-05-12 | M158: 15.50
B159: 2022-04-29 | C159: 461,500.00 | E159: 2022-04-29 | F159: 469,000.00 | H159: 2022-03-07 | I159: 120,000.00 | J159: 118,000.00 | L159: 2022-05-11 | M159: 15.50
B160: 2022-04-28 | C160: 461,500.00 | E160: 2022-04-28 | F160: 469,000.00 | H160: 2022-03-04 | I160: 118,000.00 | J160: 116,000.00 | L160: 2022-05-10 | M160: 15.50
B161: 2022-04-27 | C161: 461,500.00 | E161: 2022-04-27 | F161: 469,000.00 | H161: 2022-03-03 | I161: 118,000.00 | J161: 116,000.00 | L161: 2022-05-09 | M161: 16.00
B162: 2022-04-26 | C162: 461,500.00 | E162: 2022-04-26 | F162: 469,000.00 | H162: 2022-03-02 | I162: 117,000.00 | J162: 115,000.00 | L162: 2022-05-07 | M162: 16.00
B163: 2022-04-25 | C163: 465,000.00 | E163: 2022-04-25 | F163: 470,000.00 | H163: 2022-03-01 | I163: 117,000.00 | J163: 115,000.00 | L163: 2022-05-06 | M163: 16.00
B164: 2022-04-22 | C164: 467,000.00 | E164: 2022-04-22 | F164: 471,500.00 | H164: 2022-02-28 | I164: 116,000.00 | J164: 114,000.00 | L164: 2022-05-05 | M164: 16.00
B165: 2022-04-21 | C165: 475,500.00 | E165: 2022-04-21 | F165: 478,500.00 | H165: 2022-02-25 | I165: 116,000.00 | J165: 114,000.00 | L165: 2022-04-29 | M165: 16.00
B166: 2022-04-20 | C166: 485,500.00 | E166: 2022-04-20 | F166: 484,500.00 | H166: 2022-02-24 | I166: 116,000.00 | J166: 114,000.00 | L166: 2022-04-28 | M166: 16.20
B167: 2022-04-19 | C167: 488,500.00 | E167: 2022-04-19 | F167: 487,500.00 | H167: 2022-02-23 | I167: 116,000.00 | J167: 114,000.00 | L167: 2022-04-27 | M167: 16.20
B168: 2022-04-18 | C168: 492,500.00 | E168: 2022-04-18 | F168: 490,000.00 | H168: 2022-02-22 | I168: 116,000.00 | J168: 114,000.00 | L168: 2022-04-26 | M168: 16.20
B169: 2022-04-15 | C169: 494,000.00 | E169: 2022-04-15 | F169: 491,000.00 | H169: 2022-02-21 | I169: 116,000.00 | J169: 114,000.00 | L169: 2022-04-25 | M169: 16.20
B170: 2022-04-14 | C170: 495,000.00 | E170: 2022-04-14 | F170: 491,500.00 | H170: 2022-02-18 | I170: 114,000.00 | J170: 112,000.00 | L170: 2022-04-24 | M170: 16.20
B171: 2022-04-13 | C171: 496,000.00 | E171: 2022-04-13 | F171: 491,500.00 | H171: 2022-02-17 | I171: 114,000.00 | J171: 112,000.00 | L171: 2022-04-22 | M171: 16.20
B172: 2022-04-12 | C172: 498,000.00 | E172: 2022-04-12 | F172: 491,500.00 | H172: 2022-02-16 | I172: 112,000.00 | J172: 110,000.00 | L172: 2022-04-21 | M172: 16.20
B173: 2022-04-11 | C173: 500,000.00 | E173: 2022-04-11 | F173: 491,500.00 | H173: 2022-02-15 | I173: 112,000.00 | J173: 110,000.00 | L173: 2022-04-19 | M173: 16.60
B174: 2022-04-08 | C174: 501,500.00 | E174: 2022-04-08 | F174: 491,500.00 | H174: 2022-02-14 | I174: 111,000.00 | J174: 109,000.00 | L174: 2022-04-18 | M174: 16.60
B175: 2022-04-07 | C175: 502,500.00 | E175: 2022-04-07 | F175: 491,500.00 | H175: 2022-02-11 | I175: 108,000.00 | J175: 106,000.00 | L175: 2022-04-15 | M175: 16.60
B176: 2022-04-06 | C176: 502,500.00 | E176: 2022-04-06 | F176: 491,500.00 | H176: 2022-02-10 | I176: 108,000.00 | J176: 106,000.00 | L176: 2022-04-14 | M176: 16.60
B177: 2022-04-01 | C177: 502,500.00 | E177: 2022-04-01 | F177: 491,500.00 | H177: 2022-02-09 | I177: 107,500.00 | J177: 105,000.00 | L177: 2022-04-13 | M177: 16.60
B178: 2022-03-31 | C178: 502,500.00 | E178: 2022-03-31 | F178: 491,500.00 | H178: 2022-02-08 | I178: 107,500.00 | J178: 105,000.00 | L178: 2022-04-12 | M178: 16.60
B179: 2022-03-30 | C179: 502,500.00 | E179: 2022-03-30 | F179: 491,500.00 | H179: 2022-02-07 | I179: 107,500.00 | J179: 105,000.00 | L179: 2022-04-11 | M179: 16.80
B180: 2022-03-29 | C180: 503,000.00 | E180: 2022-03-29 | F180: 491,500.00 | H180: 2022-01-28 | I180: 107,500.00 | J180: 105,000.00 | L180: 2022-04-08 | M180: 16.80
B181: 2022-03-28 | C181: 503,000.00 | E181: 2022-03-28 | F181: 491,500.00 | H181: 2022-01-27 | I181: 107,500.00 | J181: 105,000.00 | L181: 2022-04-07 | M181: 16.80
B182: 2022-03-25 | C182: 503,000.00 | E182: 2022-03-25 | F182: 491,500.00 | H182: 2022-01-26 | I182: 107,500.00 | J182: 105,000.00 | L182: 2022-04-06 | M182: 16.80
B183: 2022-03-24 | C183: 503,000.00 | E183: 2022-03-24 | F183: 491,500.00 | H183: 2022-01-25 | I183: 107,500.00 | J183: 105,000.00 | L183: 2022-04-05 | M183: 16.80
B184: 2022-03-23 | C184: 503,000.00 | E184: 2022-03-23 | F184: 491,500.00 | H184: 2022-01-24 | I184: 107,500.00 | J184: 105,000.00 | L184: 2022-04-04 | M184: 16.80
B185: 2022-03-22 | C185: 503,000.00 | E185: 2022-03-22 | F185: 491,500.00 | H185: 2022-01-21 | I185: 107,500.00 | J185: 105,000.00 | L185: 2022-04-01 | M185: 16.80
B186: 2022-03-21 | C186: 503,000.00 | E186: 2022-03-21 | F186: 489,500.00 | H186: 2022-01-20 | I186: 107,500.00 | J186: 105,000.00 | L186: 2022-03-31 | M186: 16.80
B187: 2022-03-18 | C187: 503,000.00 | E187: 2022-03-18 | F187: 489,500.00 | H187: 2022-01-19 | I187: 107,500.00 | J187: 105,000.00 | L187: 2022-03-30 | M187: 16.80
B188: 2022-03-17 | C188: 503,000.00 | E188: 2022-03-17 | F188: 489,500.00 | H188: 2022-01-18 | I188: 107,500.00 | J188: 105,000.00 | L188: 2022-03-29 | M188: 16.80
B189: 2022-03-16 | C189: 503,000.00 | E189: 2022-03-16 | F189: 486,500.00 | H189: 2022-01-17 | I189: 107,500.00 | J189: 105,000.00 | L189: 2022-03-28 | M189: 16.80
B190: 2022-03-15 | C190: 503,000.00 | E190: 2022-03-15 | F190: 482,500.00 | H190: 2022-01-14 | I190: 107,500.00 | J190: 105,000.00 | L190: 2022-03-25 | M190: 16.80
B191: 2022-03-14 | C191: 502,000.00 | E191: 2022-03-14 | F191: 480,500.00 | H191: 2022-01-13 | I191: 107,500.00 | J191: 105,000.00 | L191: 2022-03-24 | M191: 16.80
B192: 2022-03-11 | C192: 502,000.00 | E192: 2022-03-11 | F192: 480,500.00 | H192: 2022-01-12 | I192: 107,500.00 | J192: 105,000.00 | L192: 2022-03-23 | M192: 16.80
B193: 2022-03-10 | C193: 501,000.00 | E193: 2022-03-10 | F193: 479,500.00 | H193: 2022-01-11 | I193: 107,500.00 | J193: 105,000.00 | L193: 2022-03-22 | M193: 16.80
B194: 2022-03-09 | C194: 499,000.00 | E194: 2022-03-09 | F194: 475,500.00 | H194: 2022-01-10 | I194: 107,500.00 | J194: 105,000.00 | L194: 2022-03-21 | M194: 16.80
B195: 2022-03-08 | C195: 498,000.00 | E195: 2022-03-08 | F195: 467,500.00 | H195: 2022-01-07 | I195: 107,500.00 | J195: 105,000.00 | L195: 2022-03-18 | M195: 16.80
B196: 2022-03-07 | C196: 497,000.00 | E196: 2022-03-07 | F196: 459,500.00 | H196: 2022-01-06 | I196: 105,500.00 | J196: 103,000.00 | L196: 2022-03-17 | M196: 16.80
B197: 2022-03-04 | C197: 495,000.00 | E197: 2022-03-04 | F197: 453,500.00 | H197: 2022-01-05 | I197: 105,500.00 | J197: 103,000.00 | L197: 2022-03-16 | M197: 16.80
B198: 2022-03-03 | C198: 491,000.00 | E198: 2022-03-03 | F198: 447,500.00 | H198: 2022-01-04 | I198: 105,500.00 | J198: 103,000.00 | L198: 2022-03-15 | M198: 16.80
B199: 2022-03-02 | C199: 483,000.00 | E199: 2022-03-02 | F199: 437,500.00 | H199: 2021-12-31 | I199: 105,500.00 | J199: 103,000.00 | L199: 2022-03-14 | M199: 16.80
B200: 2022-03-01 | C200: 473,000.00 | E200: 2022-03-01 | F200: 425,500.00 | H200: 2021-12-30 | I200: 105,500.00 | J200: 103,000.00 | L200: 2022-03-11 | M200: 16.80
B201: 2022-02-28 | C201: 468,000.00 | E201: 2022-02-28 | F201: 419,500.00 | H201: 2021-12-29 | I201: 105,500.00 | J201: 103,000.00 | L201: 2022-03-10 | M201: 16.80
B202: 2022-02-25 | C202: 464,000.00 | E202: 2022-02-25 | F202: 415,500.00 | H202: 2021-12-28 | I202: 105,500.00 | J202: 103,000.00 | L202: 2022-03-09 | M202: 16.80
B203: 2022-02-24 | C203: 462,000.00 | E203: 2022-02-24 | F203: 408,500.00 | H203: 2021-12-27 | I203: 105,500.00 | J203: 103,000.00 | L203: 2022-03-08 | M203: 16.40
B204: 2022-02-23 | C204: 460,000.00 | E204: 2022-02-23 | F204: 402,500.00 | H204: 2021-12-24 | I204: 103,500.00 | J204: 101,000.00 | L204: 2022-03-07 | M204: 16.40
B205: 2022-02-22 | C205: 458,000.00 | E205: 2022-02-22 | F205: 396,500.00 | H205: 2021-12-23 | I205: 103,500.00 | J205: 101,000.00 | L205: 2022-03-04 | M205: 16.40
B206: 2022-02-21 | C206: 448,000.00 | E206: 2022-02-21 | F206: 384,500.00 | H206: 2021-12-22 | I206: 103,500.00 | J206: 101,000.00 | L206: 2022-03-03 | M206: 16.40
B207: 2022-02-18 | C207: 438,000.00 | E207: 2022-02-18 | F207: 372,500.00 | H207: 2021-12-21 | I207: 103,500.00 | J207: 101,000.00 | L207: 2022-03-02 | M207: 16.40
B208: 2022-02-17 | C208: 430,000.00 | E208: 2022-02-17 | F208: 364,500.00 | H208: 2021-12-20 | I208: 103,500.00 | J208: 101,000.00 | L208: 2022-03-01 | M208: 16.40
B209: 2022-02-16 | C209: 422,000.00 | E209: 2022-02-16 | F209: 356,500.00 | H209: 2021-12-17 | I209: 103,500.00 | J209: 101,000.00 | L209: 2022-02-28 | M209: 16.00
B210: 2022-02-15 | C210: 412,000.00 | E210: 2022-02-15 | F210: 346,500.00 | H210: 2021-12-16 | I210: 103,500.00 | J210: 101,000.00 | L210: 2022-02-25 | M210: 16.00
B211: 2022-02-14 | C211: 402,000.00 | E211: 2022-02-14 | F211: 336,500.00 | H211: 2021-12-15 | I211: 103,500.00 | J211: 101,000.00 | L211: 2022-02-24 | M211: 16.00
B212: 2022-02-11 | C212: 392,000.00 | E212: 2022-02-11 | F212: 326,500.00 | H212: 2021-12-14 | I212: 103,500.00 | J212: 101,000.00 | L212: 2022-02-23 | M212: 15.50
B213: 2022-02-10 | C213: 384,000.00 | E213: 2022-02-10 | F213: 318,500.00 | H213: 2021-12-13 | I213: 96,000.00 | J213: 94,500.00 | L213: 2022-02-22 | M213: 15.50
B214: 2022-02-09 | C214: 378,000.00 | E214: 2022-02-09 | F214: 310,500.00 | H214: 2021-12-10 | I214: 96,000.00 | J214: 94,500.00 | L214: 2022-02-21 | M214: 15.50
B215: 2022-02-08 | C215: 372,000.00 | E215: 2022-02-08 | F215: 304,500.00 | H215: 2021-12-09 | I215: 95,000.00 | J215: 93,500.00 | L215: 2022-02-18 | M215: 14.30
B216: 2022-02-07 | C216: 364,000.00 | E216: 2022-02-07 | F216: 298,500.00 | H216: 2021-12-08 | I216: 95,000.00 | J216: 93,500.00 | L216: 2022-02-17 | M216: 14.30
B217: 2022-01-28 | C217: 364,000.00 | E217: 2022-01-28 | F217: 298,500.00 | H217: 2021-12-07 | I217: 95,000.00 | J217: 93,500.00 | L217: 2022-02-16 | M217: 14.30
B218: 2022-01-27 | C218: 364,000.00 | E218: 2022-01-27 | F218: 298,500.00 | H218: 2021-12-06 | I218: 95,000.00 | J218: 93,500.00 | L218: 2022-02-15 | M218: 14.30
... 1158 more rows

Sheet 新能源车_负极
A1: 目录
E20: 价格:负极材料:中端天然石墨（万元/吨） | F20: 价格:负极材料:高端天然石墨（万元/吨）
C21: 2022-09-22 | E21: 5.10 | F21: 6.10
C22: 2022-09-21 | E22: 5.10 | F22: 6.10
C23: 2022-09-20 | E23: 5.10 | F23: 6.10
C24: 2022-09-19 | E24: 5.10 | F24: 6.10
C25: 2022-09-16 | E25: 5.10 | F25: 6.10
C26: 2022-09-15 | E26: 5.10 | F26: 6.10
C27: 2022-09-14 | E27: 5.10 | F27: 6.10
C28: 2022-09-13 | E28: 5.10 | F28: 6.10
C29: 2022-09-12 | E29: 5.10 | F29: 6.10
C30: 2022-09-09 | E30: 5.10 | F30: 6.10
C31: 2022-09-08 | E31: 5.10 | F31: 6.10
C32: 2022-09-07 | E32: 5.10 | F32: 6.10
C33: 2022-09-06 | E33: 5.10 | F33: 6.10
C34: 2022-09-05 | E34: 5.10 | F34: 6.10
C35: 2022-09-02 | E35: 5.10 | F35: 6.10
C36: 2022-09-01 | E36: 5.10 | F36: 6.10
C37: 2022-08-31 | E37: 5.10 | F37: 6.10
C38: 2022-08-30 | E38: 5.10 | F38: 6.10
C39: 2022-08-29 | E39: 5.10 | F39: 6.10
C40: 2022-08-26 | E40: 5.10 | F40: 6.10
C41: 2022-08-25 | E41: 5.10 | F41: 6.10
C42: 2022-08-24 | E42: 5.10 | F42: 6.10
C43: 2022-08-23 | E43: 5.10 | F43: 6.10
C44: 2022-08-22 | E44: 5.10 | F44: 6.10
C45: 2022-08-19 | E45: 5.10 | F45: 6.10
C46: 2022-08-18 | E46: 5.10 | F46: 6.10
C47: 2022-08-17 | E47: 5.10 | F47: 6.10
C48: 2022-08-16 | E48: 5.10 | F48: 6.10
C49: 2022-08-15 | E49: 5.10 | F49: 6.10
C50: 2022-08-12 | E50: 5.10 | F50: 6.10
C51: 2022-08-11 | E51: 5.10 | F51: 6.10
C52: 2022-08-10 | E52: 5.10 | F52: 6.10
C53: 2022-08-09 | E53: 5.10 | F53: 6.10
C54: 2022-08-08 | E54: 5.10 | F54: 6.10
C55: 2022-08-05 | E55: 5.10 | F55: 6.10
C56: 2022-08-04 | E56: 5.10 | F56: 6.10
C57: 2022-08-03 | E57: 5.10 | F57: 6.10
C58: 2022-08-02 | E58: 5.10 | F58: 6.10
C59: 2022-08-01 | E59: 5.10 | F59: 6.10
C60: 2022-07-29 | E60: 5.10 | F60: 6.10
C61: 2022-07-28 | E61: 5.10 | F61: 6.10
C62: 2022-07-27 | E62: 5.10 | F62: 6.10
C63: 2022-07-26 | E63: 5.10 | F63: 6.10
C64: 2022-07-25 | E64: 5.10 | F64: 6.10
C65: 2022-07-22 | E65: 5.10 | F65: 6.10
C66: 2022-07-21 | E66: 5.10 | F66: 6.10
C67: 2022-07-20 | E67: 5.10 | F67: 6.10
C68: 2022-07-19 | E68: 5.10 | F68: 6.10
C69: 2022-07-18 | E69: 5.10 | F69: 6.10
C70: 2022-07-15 | E70: 5.10 | F70: 6.10
C71: 2022-07-14 | E71: 5.10 | F71: 6.10
C72: 2022-07-13 | E72: 5.10 | F72: 6.10
C73: 2022-07-12 | E73: 5.10 | F73: 6.10
C74: 2022-07-11 | E74: 5.10 | F74: 6.10
C75: 2022-07-08 | E75: 5.10 | F75: 6.10
C76: 2022-07-07 | E76: 5.10 | F76: 6.10
C77: 2022-07-06 | E77: 5.10 | F77: 6.10
C78: 2022-07-05 | E78: 5.10 | F78: 6.10
C79: 2022-07-04 | E79: 5.10 | F79: 6.10
C80: 2022-07-01 | E80: 5.10 | F80: 6.10
C81: 2022-06-30 | E81: 5.10 | F81: 6.10
C82: 2022-06-29 | E82: 5.10 | F82: 6.10
C83: 2022-06-28 | E83: 5.10 | F83: 6.10
C84: 2022-06-27 | E84: 5.10 | F84: 6.10
C85: 2022-06-24 | E85: 5.10 | F85: 6.10
C86: 2022-06-23 | E86: 5.10 | F86: 6.10
C87: 2022-06-22 | E87: 5.10 | F87: 6.10
C88: 2022-06-21 | E88: 5.10 | F88: 6.10
C89: 2022-06-20 | E89: 5.10 | F89: 6.10
C90: 2022-06-17 | E90: 5.10 | F90: 6.10
C91: 2022-06-16 | E91: 5.10 | F91: 6.10
C92: 2022-06-15 | E92: 5.10 | F92: 6.10
C93: 2022-06-14 | E93: 5.10 | F93: 6.10
C94: 2022-06-13 | E94: 5.10 | F94: 6.10
C95: 2022-06-10 | E95: 5.10 | F95: 6.10
C96: 2022-06-09 | E96: 5.10 | F96: 6.10
C97: 2022-06-08 | E97: 5.10 | F97: 6.10
C98: 2022-06-07 | E98: 5.10 | F98: 6.10
C99: 2022-06-06 | E99: 5.10 | F99: 6.10
C100: 2022-06-03 | E100: 5.10 | F100: 6.10
C101: 2022-06-02 | E101: 5.10 | F101: 6.10
C102: 2022-06-01 | E102: 5.10 | F102: 6.10
C103: 2022-05-31 | E103: 5.10 | F103: 6.10
C104: 2022-05-30 | E104: 5.10 | F104: 6.10
C105: 2022-05-27 | E105: 5.10 | F105: 6.10
C106: 2022-05-26 | E106: 5.10 | F106: 6.10
C107: 2022-05-25 | E107: 5.10 | F107: 6.10
C108: 2022-05-24 | E108: 5.10 | F108: 6.10
C109: 2022-05-23 | E109: 5.10 | F109: 6.10
C110: 2022-05-20 | E110: 5.10 | F110: 6.10
C111: 2022-05-19 | E111: 5.10 | F111: 6.10
C112: 2022-05-18 | E112: 5.10 | F112: 6.10
C113: 2022-05-17 | E113: 5.10 | F113: 6.10
C114: 2022-05-16 | E114: 5.10 | F114: 6.10
C115: 2022-05-13 | E115: 5.10 | F115: 6.10
C116: 2022-05-12 | E116: 5.10 | F116: 6.10
C117: 2022-05-11 | E117: 5.10 | F117: 6.10
C118: 2022-05-10 | E118: 5.10 | F118: 6.10
C119: 2022-05-09 | E119: 5.10 | F119: 6.10
C120: 2022-05-07 | E120: 5.10 | F120: 6.10
C121: 2022-05-06 | E121: 5.10 | F121: 6.10
C122: 2022-05-05 | E122: 5.10 | F122: 6.10
C123: 2022-04-29 | E123: 5.10 | F123: 6.10
C124: 2022-04-28 | E124: 5.10 | F124: 6.10
C125: 2022-04-27 | E125: 5.10 | F125: 6.10
C126: 2022-04-26 | E126: 5.10 | F126: 6.10
C127: 2022-04-25 | E127: 5.10 | F127: 6.10
C128: 2022-04-24 | E128: 5.10 | F128: 6.10
C129: 2022-04-22 | E129: 5.10 | F129: 6.10
C130: 2022-04-21 | E130: 5.10 | F130: 6.10
C131: 2022-04-20 | E131: 5.10 | F131: 6.10
C132: 2022-04-19 | E132: 5.10 | F132: 6.10
C133: 2022-04-18 | E133: 5.10 | F133: 6.10
C134: 2022-04-15 | E134: 5.10 | F134: 6.10
C135: 2022-04-14 | E135: 5.10 | F135: 6.10
C136: 2022-04-13 | E136: 5.10 | F136: 6.10
C137: 2022-04-12 | E137: 5.10 | F137: 6.10
C138: 2022-04-11 | E138: 5.10 | F138: 6.10
C139: 2022-04-08 | E139: 5.10 | F139: 6.10
C140: 2022-04-07 | E140: 5.10 | F140: 6.10
C141: 2022-04-06 | E141: 5.10 | F141: 6.10
C142: 2022-04-05 | E142: 5.10 | F142: 6.10
C143: 2022-04-04 | E143: 5.10 | F143: 6.10
C144: 2022-04-01 | E144: 5.10 | F144: 6.10
C145: 2022-03-31 | E145: 5.10 | F145: 6.10
C146: 2022-03-30 | E146: 5.10 | F146: 6.10
C147: 2022-03-29 | E147: 5.10 | F147: 6.10
C148: 2022-03-28 | E148: 5.10 | F148: 6.10
C149: 2022-03-25 | E149: 5.10 | F149: 6.10
C150: 2022-03-24 | E150: 5.10 | F150: 6.10
C151: 2022-03-23 | E151: 3.85 | F151: 5.55
C152: 2022-03-22 | E152: 3.85 | F152: 5.55
C153: 2022-03-21 | E153: 3.85 | F153: 5.55
C154: 2022-03-18 | E154: 3.85 | F154: 5.55
C155: 2022-03-17 | E155: 3.85 | F155: 5.55
C156: 2022-03-16 | E156: 3.85 | F156: 5.55
C157: 2022-03-15 | E157: 3.85 | F157: 5.55
C158: 2022-03-14 | E158: 3.85 | F158: 5.55
C159: 2022-03-11 | E159: 3.85 | F159: 5.55
C160: 2022-03-10 | E160: 3.85 | F160: 5.55
C161: 2022-03-09 | E161: 3.85 | F161: 5.55
C162: 2022-03-08 | E162: 3.85 | F162: 5.55
C163: 2022-03-07 | E163: 3.85 | F163: 5.55
C164: 2022-03-04 | E164: 3.85 | F164: 5.55
C165: 2022-03-03 | E165: 3.85 | F165: 5.55
C166: 2022-03-02 | E166: 3.85 | F166: 5.55
C167: 2022-03-01 | E167: 3.85 | F167: 5.55
C168: 2022-02-28 | E168: 3.85 | F168: 5.55
C169: 2022-02-25 | E169: 3.85 | F169: 5.55
C170: 2022-02-24 | E170: 3.85 | F170: 5.55
C171: 2022-02-23 | E171: 3.85 | F171: 5.55
C172: 2022-02-22 | E172: 3.85 | F172: 5.55
C173: 2022-02-21 | E173: 3.85 | F173: 5.55
C174: 2022-02-18 | E174: 3.85 | F174: 5.55
C175: 2022-02-17 | E175: 3.85 | F175: 5.55
C176: 2022-02-16 | E176: 3.85 | F176: 5.55
C177: 2022-02-15 | E177: 3.85 | F177: 5.55
C178: 2022-02-14 | E178: 3.85 | F178: 5.55
C179: 2022-02-11 | E179: 3.85 | F179: 5.55
C180: 2022-02-10 | E180: 3.85 | F180: 5.55
C181: 2022-02-09 | E181: 3.85 | F181: 5.55
C182: 2022-02-08 | E182: 3.85 | F182: 5.55
C183: 2022-02-07 | E183: 3.85 | F183: 5.55
C184: 2022-01-31 | E184: 3.85 | F184: 5.55
C185: 2022-01-28 | E185: 3.85 | F185: 5.55
C186: 2022-01-27 | E186: 3.85 | F186: 5.55
C187: 2022-01-26 | E187: 3.85 | F187: 5.55
C188: 2022-01-25 | E188: 3.85 | F188: 5.55
C189: 2022-01-24 | E189: 3.85 | F189: 5.55
C190: 2022-01-21 | E190: 3.85 | F190: 5.55
C191: 2022-01-20 | E191: 3.85 | F191: 5.55
C192: 2022-01-19 | E192: 3.85 | F192: 5.55
C193: 2022-01-18 | E193: 3.85 | F193: 5.55
C194: 2022-01-17 | E194: 3.85 | F194: 5.55
C195: 2022-01-14 | E195: 3.85 | F195: 5.55
C196: 2022-01-13 | E196: 3.85 | F196: 5.55
C197: 2022-01-12 | E197: 3.85 | F197: 5.55
C198: 2022-01-11 | E198: 3.85 | F198: 5.55
C199: 2022-01-10 | E199: 3.85 | F199: 5.55
C200: 2022-01-07 | E200: 3.85 | F200: 5.55
C201: 2022-01-06 | E201: 3.85 | F201: 5.55
C202: 2022-01-05 | E202: 3.85 | F202: 5.55
C203: 2022-01-04 | E203: 3.85 | F203: 5.55
C204: 2022-01-03 | E204: 3.85 | F204: 5.55
C205: 2021-12-31 | E205: 3.85 | F205: 5.55
C206: 2021-12-30 | E206: 3.85 | F206: 5.55
C207: 2021-12-29 | E207: 3.85 | F207: 5.55
C208: 2021-12-28 | E208: 3.85 | F208: 5.55
C209: 2021-12-27 | E209: 3.85 | F209: 5.55
C210: 2021-12-24 | E210: 3.85 | F210: 5.55
C211: 2021-12-23 | E211: 3.85 | F211: 5.55
C212: 2021-12-22 | E212: 3.85 | F212: 5.55
C213: 2021-12-21 | E213: 3.85 | F213: 5.55
C214: 2021-12-20 | E214: 3.85 | F214: 5.55
C215: 2021-12-17 | E215: 3.85 | F215: 5.55
C216: 2021-12-16 | E216: 3.85 | F216: 5.55
C217: 2021-12-15 | E217: 3.85 | F217: 5.55
C218: 2021-12-14 | E218: 3.85 | F218: 5.55
... 1499 more rows

Sheet 新能源车_电解液和隔膜
A1: 目录
D20: 价格:电解液:磷酸铁锂（万元/吨） | H20: 价格:电解液:三元圆柱2.6Ah（万元/吨） | K20: 价格:六氟磷酸锂（万元/吨）
C21: 2022-11-23 | D21: 6.37 | F21: 2022-11-23 | H21: 7.35 | J21: 2022-11-23 | K21: 27.25
C22: 2022-11-22 | D22: 6.37 | F22: 2022-11-22 | H22: 7.35 | J22: 2022-11-22 | K22: 27.25
C23: 2022-11-21 | D23: 6.37 | F23: 2022-11-21 | H23: 7.35 | J23: 2022-11-21 | K23: 27.25
C24: 2022-11-18 | D24: 6.37 | F24: 2022-11-18 | H24: 7.35 | J24: 2022-11-18 | K24: 27.25
C25: 2022-11-17 | D25: 6.37 | F25: 2022-11-17 | H25: 7.35 | J25: 2022-11-17 | K25: 27.25
C26: 2022-11-16 | D26: 6.37 | F26: 2022-11-16 | H26: 7.35 | J26: 2022-11-16 | K26: 28.75
C27: 2022-11-15 | D27: 6.37 | F27: 2022-11-15 | H27: 7.35 | J27: 2022-11-15 | K27: 28.75
C28: 2022-11-14 | D28: 6.37 | F28: 2022-11-14 | H28: 7.35 | J28: 2022-11-14 | K28: 28.75
C29: 2022-11-11 | D29: 6.37 | F29: 2022-11-11 | H29: 7.35 | J29: 2022-11-11 | K29: 28.75
C30: 2022-11-10 | D30: 6.37 | F30: 2022-11-10 | H30: 7.35 | J30: 2022-11-10 | K30: 28.75
C31: 2022-11-09 | D31: 6.37 | F31: 2022-11-09 | H31: 7.35 | J31: 2022-11-09 | K31: 28.75
C32: 2022-11-08 | D32: 6.37 | F32: 2022-11-08 | H32: 7.35 | J32: 2022-11-08 | K32: 28.75
C33: 2022-11-07 | D33: 6.37 | F33: 2022-11-07 | H33: 7.35 | J33: 2022-11-07 | K33: 28.90
C34: 2022-11-04 | D34: 6.37 | F34: 2022-11-04 | H34: 7.35 | J34: 2022-11-04 | K34: 28.90
C35: 2022-11-03 | D35: 6.37 | F35: 2022-11-03 | H35: 7.35 | J35: 2022-11-03 | K35: 29.65
C36: 2022-11-02 | D36: 6.37 | F36: 2022-11-02 | H36: 7.35 | J36: 2022-11-02 | K36: 29.65
C37: 2022-11-01 | D37: 6.37 | F37: 2022-11-01 | H37: 7.35 | J37: 2022-11-01 | K37: 29.65
C38: 2022-10-31 | D38: 6.37 | F38: 2022-10-31 | H38: 7.35 | J38: 2022-10-31 | K38: 29.65
C39: 2022-10-28 | D39: 6.37 | F39: 2022-10-28 | H39: 7.35 | J39: 2022-10-28 | K39: 29.65
C40: 2022-10-27 | D40: 6.37 | F40: 2022-10-27 | H40: 7.35 | J40: 2022-10-27 | K40: 29.65
C41: 2022-10-26 | D41: 6.37 | F41: 2022-10-26 | H41: 7.35 | J41: 2022-10-26 | K41: 29.65
C42: 2022-10-25 | D42: 6.37 | F42: 2022-10-25 | H42: 7.35 | J42: 2022-10-25 | K42: 29.65
C43: 2022-10-24 | D43: 6.37 | F43: 2022-10-24 | H43: 7.35 | J43: 2022-10-24 | K43: 29.65
C44: 2022-10-21 | D44: 6.37 | F44: 2022-10-21 | H44: 7.35 | J44: 2022-10-21 | K44: 29.65
C45: 2022-10-20 | D45: 6.37 | F45: 2022-10-20 | H45: 7.35 | J45: 2022-10-20 | K45: 29.65
C46: 2022-10-19 | D46: 6.37 | F46: 2022-10-19 | H46: 7.35 | J46: 2022-10-19 | K46: 29.65
C47: 2022-10-18 | D47: 6.37 | F47: 2022-10-18 | H47: 7.35 | J47: 2022-10-18 | K47: 30.10
C48: 2022-10-17 | D48: 6.37 | F48: 2022-10-17 | H48: 7.35 | J48: 2022-10-17 | K48: 30.60
C49: 2022-10-14 | D49: 6.37 | F49: 2022-10-14 | H49: 7.35 | J49: 2022-10-14 | K49: 30.60
C50: 2022-10-13 | D50: 6.37 | F50: 2022-10-13 | H50: 7.35 | J50: 2022-10-13 | K50: 30.60
C51: 2022-10-12 | D51: 6.37 | F51: 2022-10-12 | H51: 7.35 | J51: 2022-10-12 | K51: 30.60
C52: 2022-10-11 | D52: 6.37 | F52: 2022-10-11 | H52: 7.35 | J52: 2022-10-11 | K52: 30.60
C53: 2022-10-10 | D53: 6.34 | F53: 2022-10-10 | H53: 7.34 | J53: 2022-10-10 | K53: 30.60
C54: 2022-10-09 | D54: 6.34 | F54: 2022-10-09 | H54: 7.34 | J54: 2022-10-09 | K54: 30.50
C55: 2022-10-08 | D55: 6.34 | F55: 2022-10-08 | H55: 7.34 | J55: 2022-10-08 | K55: 30.50
C56: 2022-10-07 | D56: 6.34 | F56: 2022-10-07 | H56: 7.34 | J56: 2022-10-07 | K56: 30.00
C57: 2022-09-30 | D57: 6.34 | F57: 2022-09-30 | H57: 7.34 | J57: 2022-09-30 | K57: 30.00
C58: 2022-09-29 | D58: 6.28 | F58: 2022-09-29 | H58: 7.28 | J58: 2022-09-29 | K58: 29.00
C59: 2022-09-28 | D59: 6.25 | F59: 2022-09-28 | H59: 7.25 | J59: 2022-09-28 | K59: 28.25
C60: 2022-09-27 | D60: 6.25 | F60: 2022-09-27 | H60: 7.25 | J60: 2022-09-27 | K60: 28.25
C61: 2022-09-26 | D61: 6.25 | F61: 2022-09-26 | H61: 7.25 | J61: 2022-09-26 | K61: 28.25
C62: 2022-09-23 | D62: 6.25 | F62: 2022-09-23 | H62: 7.25 | J62: 2022-09-23 | K62: 28.00
C63: 2022-09-22 | D63: 6.25 | F63: 2022-09-22 | H63: 7.25 | J63: 2022-09-22 | K63: 27.95
C64: 2022-09-21 | D64: 6.25 | F64: 2022-09-21 | H64: 7.25 | J64: 2022-09-21 | K64: 27.95 | M64: 0.00
C65: 2022-09-20 | D65: 6.25 | F65: 2022-09-20 | H65: 7.25 | J65: 2022-09-20 | K65: 27.80
C66: 2022-09-19 | D66: 6.25 | F66: 2022-09-19 | H66: 7.25 | J66: 2022-09-19 | K66: 27.80
C67: 2022-09-16 | D67: 6.25 | F67: 2022-09-16 | H67: 7.25 | J67: 2022-09-16 | K67: 27.80
C68: 2022-09-15 | D68: 6.25 | F68: 2022-09-15 | H68: 7.25 | J68: 2022-09-15 | K68: 27.35
C69: 2022-09-14 | D69: 6.25 | F69: 2022-09-14 | H69: 7.25 | J69: 2022-09-14 | K69: 27.35
C70: 2022-09-13 | D70: 6.25 | F70: 2022-09-13 | H70: 7.25 | J70: 2022-09-13 | K70: 27.25
C71: 2022-09-12 | D71: 6.25 | F71: 2022-09-12 | H71: 7.25 | J71: 2022-09-12 | K71: 27.25
C72: 2022-09-09 | D72: 6.25 | F72: 2022-09-09 | H72: 7.25 | J72: 2022-09-09 | K72: 27.25
C73: 2022-09-08 | D73: 6.25 | F73: 2022-09-08 | H73: 7.25 | J73: 2022-09-08 | K73: 27.25
C74: 2022-09-07 | D74: 6.25 | F74: 2022-09-07 | H74: 7.25 | J74: 2022-09-07 | K74: 27.25
C75: 2022-09-06 | D75: 6.25 | F75: 2022-09-06 | H75: 7.25 | J75: 2022-09-06 | K75: 27.25
C76: 2022-09-05 | D76: 6.25 | F76: 2022-09-05 | H76: 7.25 | J76: 2022-09-05 | K76: 27.00
C77: 2022-09-02 | D77: 6.25 | F77: 2022-09-02 | H77: 7.25 | J77: 2022-09-02 | K77: 27.00
C78: 2022-09-01 | D78: 6.25 | F78: 2022-09-01 | H78: 7.25 | J78: 2022-09-01 | K78: 27.00
C79: 2022-08-31 | D79: 6.25 | F79: 2022-08-31 | H79: 7.25 | J79: 2022-08-31 | K79: 27.00
C80: 2022-08-30 | D80: 6.25 | F80: 2022-08-30 | H80: 7.25 | J80: 2022-08-30 | K80: 27.00
C81: 2022-08-29 | D81: 6.25 | F81: 2022-08-29 | H81: 7.25 | J81: 2022-08-29 | K81: 27.00
C82: 2022-08-26 | D82: 6.25 | F82: 2022-08-26 | H82: 7.25 | J82: 2022-08-26 | K82: 27.00
C83: 2022-08-25 | D83: 6.25 | F83: 2022-08-25 | H83: 7.25 | J83: 2022-08-25 | K83: 26.75
C84: 2022-08-24 | D84: 6.25 | F84: 2022-08-24 | H84: 7.25 | J84: 2022-08-24 | K84: 26.75
C85: 2022-08-23 | D85: 6.25 | F85: 2022-08-23 | H85: 7.25 | J85: 2022-08-23 | K85: 26.75
C86: 2022-08-22 | D86: 6.25 | F86: 2022-08-22 | H86: 7.25 | J86: 2022-08-22 | K86: 26.75
C87: 2022-08-19 | D87: 6.25 | F87: 2022-08-19 | H87: 7.25 | J87: 2022-08-19 | K87: 26.75
C88: 2022-08-18 | D88: 6.25 | F88: 2022-08-18 | H88: 7.25 | J88: 2022-08-18 | K88: 26.75
C89: 2022-08-17 | D89: 6.25 | F89: 2022-08-17 | H89: 7.25 | J89: 2022-08-17 | K89: 26.75
C90: 2022-08-16 | D90: 6.25 | F90: 2022-08-16 | H90: 7.25 | J90: 2022-08-16 | K90: 26.75
C91: 2022-08-15 | D91: 6.25 | F91: 2022-08-15 | H91: 7.25 | J91: 2022-08-15 | K91: 26.75
C92: 2022-08-12 | D92: 6.25 | F92: 2022-08-12 | H92: 7.25 | J92: 2022-08-12 | K92: 26.75
C93: 2022-08-11 | D93: 6.25 | F93: 2022-08-11 | H93: 7.25 | J93: 2022-08-11 | K93: 26.75
C94: 2022-08-10 | D94: 6.25 | F94: 2022-08-10 | H94: 7.25 | J94: 2022-08-10 | K94: 26.75
C95: 2022-08-09 | D95: 6.25 | F95: 2022-08-09 | H95: 7.25 | J95: 2022-08-09 | K95: 26.75
C96: 2022-08-08 | D96: 6.25 | F96: 2022-08-08 | H96: 7.25 | J96: 2022-08-08 | K96: 26.75
C97: 2022-08-05 | D97: 6.25 | F97: 2022-08-05 | H97: 7.25 | J97: 2022-08-05 | K97: 26.75
C98: 2022-08-04 | D98: 6.25 | F98: 2022-08-04 | H98: 7.25 | J98: 2022-08-04 | K98: 26.75
C99: 2022-08-03 | D99: 6.25 | F99: 2022-08-03 | H99: 7.25 | J99: 2022-08-03 | K99: 26.75
C100: 2022-08-02 | D100: 6.25 | F100: 2022-08-02 | H100: 7.25 | J100: 2022-08-02 | K100: 26.75
C101: 2022-08-01 | D101: 6.25 | F101: 2022-08-01 | H101: 7.25 | J101: 2022-08-01 | K101: 26.75
C102: 2022-07-29 | D102: 6.25 | F102: 2022-07-29 | H102: 7.25 | J102: 2022-07-29 | K102: 26.75
C103: 2022-07-28 | D103: 6.25 | F103: 2022-07-28 | H103: 7.25 | J103: 2022-07-28 | K103: 26.75
C104: 2022-07-27 | D104: 6.25 | F104: 2022-07-27 | H104: 7.25 | J104: 2022-07-27 | K104: 26.75
C105: 2022-07-26 | D105: 6.25 | F105: 2022-07-26 | H105: 7.25 | J105: 2022-07-26 | K105: 26.75
C106: 2022-07-25 | D106: 6.25 | F106: 2022-07-25 | H106: 7.25 | J106: 2022-07-25 | K106: 26.75
C107: 2022-07-22 | D107: 6.25 | F107: 2022-07-22 | H107: 7.25 | J107: 2022-07-22 | K107: 26.75
C108: 2022-07-21 | D108: 6.25 | F108: 2022-07-21 | H108: 7.25 | J108: 2022-07-21 | K108: 25.00
C109: 2022-07-20 | D109: 6.25 | F109: 2022-07-20 | H109: 7.25 | J109: 2022-07-20 | K109: 25.00
C110: 2022-07-19 | D110: 6.25 | F110: 2022-07-19 | H110: 7.25 | J110: 2022-07-19 | K110: 25.00
C111: 2022-07-18 | D111: 6.25 | F111: 2022-07-18 | H111: 7.25 | J111: 2022-07-18 | K111: 25.00
C112: 2022-07-15 | D112: 6.25 | F112: 2022-07-15 | H112: 7.25 | J112: 2022-07-15 | K112: 25.00
C113: 2022-07-14 | D113: 6.25 | F113: 2022-07-14 | H113: 7.25 | J113: 2022-07-14 | K113: 25.00
C114: 2022-07-13 | D114: 6.25 | F114: 2022-07-13 | H114: 7.25 | J114: 2022-07-13 | K114: 25.00
C115: 2022-07-12 | D115: 6.25 | F115: 2022-07-12 | H115: 7.25 | J115: 2022-07-12 | K115: 25.00
C116: 2022-07-11 | D116: 6.25 | F116: 2022-07-11 | H116: 7.25 | J116: 2022-07-11 | K116: 25.00
C117: 2022-07-08 | D117: 6.25 | F117: 2022-07-08 | H117: 7.25 | J117: 2022-07-08 | K117: 25.00
C118: 2022-07-07 | D118: 6.25 | F118: 2022-07-07 | H118: 7.25 | J118: 2022-07-07 | K118: 25.00
C119: 2022-07-06 | D119: 6.25 | F119: 2022-07-06 | H119: 7.25 | J119: 2022-07-06 | K119: 25.00
C120: 2022-07-05 | D120: 6.25 | F120: 2022-07-05 | H120: 7.25 | J120: 2022-07-05 | K120: 25.00
C121: 2022-07-04 | D121: 7.00 | F121: 2022-07-04 | H121: 9.00 | J121: 2022-07-04 | K121: 25.00
C122: 2022-07-01 | D122: 7.00 | F122: 2022-07-01 | H122: 9.00 | J122: 2022-07-01 | K122: 25.00
C123: 2022-06-30 | D123: 7.00 | F123: 2022-06-30 | H123: 9.00 | J123: 2022-06-30 | K123: 24.50
C124: 2022-06-29 | D124: 7.00 | F124: 2022-06-29 | H124: 9.00 | J124: 2022-06-29 | K124: 24.50
C125: 2022-06-28 | D125: 7.00 | F125: 2022-06-28 | H125: 9.00 | J125: 2022-06-28 | K125: 24.50
C126: 2022-06-27 | D126: 7.00 | F126: 2022-06-27 | H126: 9.00 | J126: 2022-06-27 | K126: 24.50
C127: 2022-06-24 | D127: 7.00 | F127: 2022-06-24 | H127: 9.00 | J127: 2022-06-24 | K127: 24.50
C128: 2022-06-23 | D128: 7.00 | F128: 2022-06-23 | H128: 9.00 | J128: 2022-06-23 | K128: 24.50
C129: 2022-06-22 | D129: 7.00 | F129: 2022-06-22 | H129: 9.00 | J129: 2022-06-22 | K129: 24.50
C130: 2022-06-21 | D130: 7.00 | F130: 2022-06-21 | H130: 9.00 | J130: 2022-06-21 | K130: 24.50
C131: 2022-06-20 | D131: 7.00 | F131: 2022-06-20 | H131: 9.00 | J131: 2022-06-20 | K131: 24.50
C132: 2022-06-17 | D132: 7.00 | F132: 2022-06-17 | H132: 9.00 | J132: 2022-06-17 | K132: 24.50
C133: 2022-06-16 | D133: 7.00 | F133: 2022-06-16 | H133: 9.00 | J133: 2022-06-16 | K133: 24.50
C134: 2022-06-15 | D134: 7.00 | F134: 2022-06-15 | H134: 9.00 | J134: 2022-06-15 | K134: 24.50
C135: 2022-06-14 | D135: 7.00 | F135: 2022-06-14 | H135: 9.00 | J135: 2022-06-14 | K135: 24.50
C136: 2022-06-13 | D136: 7.00 | F136: 2022-06-13 | H136: 9.00 | J136: 2022-06-13 | K136: 24.50
C137: 2022-06-10 | D137: 7.00 | F137: 2022-06-10 | H137: 9.00 | J137: 2022-06-10 | K137: 24.50
C138: 2022-06-09 | D138: 7.00 | F138: 2022-06-09 | H138: 9.00 | J138: 2022-06-09 | K138: 24.50
C139: 2022-06-08 | D139: 8.28 | F139: 2022-06-08 | H139: 10.28 | J139: 2022-06-08 | K139: 26.50
C140: 2022-06-07 | D140: 8.28 | F140: 2022-06-07 | H140: 10.28 | J140: 2022-06-07 | K140: 26.50
C141: 2022-06-06 | D141: 8.28 | F141: 2022-06-06 | H141: 10.28 | J141: 2022-06-06 | K141: 26.50
C142: 2022-06-03 | D142: 8.28 | F142: 2022-06-03 | H142: 10.28 | J142: 2022-06-03 | K142: 28.00
C143: 2022-06-02 | D143: 8.28 | F143: 2022-06-02 | H143: 10.28 | J143: 2022-06-02 | K143: 28.00
C144: 2022-06-01 | D144: 8.75 | F144: 2022-06-01 | H144: 10.75 | J144: 2022-06-01 | K144: 28.00
C145: 2022-05-31 | D145: 8.75 | F145: 2022-05-31 | H145: 10.75 | J145: 2022-05-31 | K145: 28.00
C146: 2022-05-30 | D146: 8.75 | F146: 2022-05-30 | H146: 10.75 | J146: 2022-05-30 | K146: 28.00
C147: 2022-05-27 | D147: 8.75 | F147: 2022-05-27 | H147: 10.75 | J147: 2022-05-27 | K147: 28.00
C148: 2022-05-26 | D148: 8.75 | F148: 2022-05-26 | H148: 10.75 | J148: 2022-05-26 | K148: 28.50
C149: 2022-05-25 | D149: 8.75 | F149: 2022-05-25 | H149: 10.75 | J149: 2022-05-25 | K149: 28.50
C150: 2022-05-24 | D150: 8.75 | F150: 2022-05-24 | H150: 10.75 | J150: 2022-05-24 | K150: 30.50
C151: 2022-05-23 | D151: 8.75 | F151: 2022-05-23 | H151: 10.75 | J151: 2022-05-23 | K151: 30.50
C152: 2022-05-20 | D152: 8.75 | F152: 2022-05-20 | H152: 10.75 | J152: 2022-05-20 | K152: 30.50
C153: 2022-05-19 | D153: 8.75 | F153: 2022-05-19 | H153: 10.75 | J153: 2022-05-19 | K153: 30.50
C154: 2022-05-18 | D154: 8.75 | F154: 2022-05-18 | H154: 10.75 | J154: 2022-05-18 | K154: 30.50
C155: 2022-05-17 | D155: 8.75 | F155: 2022-05-17 | H155: 10.75 | J155: 2022-05-17 | K155: 30.50
C156: 2022-05-16 | D156: 8.75 | F156: 2022-05-16 | H156: 10.75 | J156: 2022-05-16 | K156: 30.50
C157: 2022-05-13 | D157: 8.75 | F157: 2022-05-13 | H157: 10.75 | J157: 2022-05-13 | K157: 33.00
C158: 2022-05-12 | D158: 8.75 | F158: 2022-05-12 | H158: 10.75 | J158: 2022-05-12 | K158: 33.00
C159: 2022-05-11 | D159: 8.75 | F159: 2022-05-11 | H159: 10.75 | J159: 2022-05-11 | K159: 33.00
C160: 2022-05-10 | D160: 8.75 | F160: 2022-05-10 | H160: 10.75 | J160: 2022-05-10 | K160: 33.00
C161: 2022-05-09 | D161: 8.75 | F161: 2022-05-09 | H161: 10.75 | J161: 2022-05-09 | K161: 35.00
C162: 2022-05-07 | D162: 9.25 | F162: 2022-05-07 | H162: 10.75 | J162: 2022-05-07 | K162: 37.00
C163: 2022-05-06 | D163: 9.25 | F163: 2022-05-06 | H163: 10.75 | J163: 2022-05-06 | K163: 37.00
C164: 2022-05-05 | D164: 9.25 | F164: 2022-05-05 | H164: 10.75 | J164: 2022-05-05 | K164: 37.00
C165: 2022-04-29 | D165: 9.28 | F165: 2022-04-29 | H165: 11.00 | J165: 2022-04-29 | K165: 38.50
C166: 2022-04-28 | D166: 9.28 | F166: 2022-04-28 | H166: 11.00 | J166: 2022-04-28 | K166: 39.50
C167: 2022-04-27 | D167: 9.28 | F167: 2022-04-27 | H167: 11.00 | J167: 2022-04-27 | K167: 39.50
C168: 2022-04-26 | D168: 9.28 | F168: 2022-04-26 | H168: 11.00 | J168: 2022-04-26 | K168: 40.50
C169: 2022-04-25 | D169: 9.28 | F169: 2022-04-25 | H169: 11.00 | J169: 2022-04-25 | K169: 40.50
C170: 2022-04-24 | D170: 9.28 | F170: 2022-04-24 | H170: 11.00 | J170: 2022-04-24 | K170: 41.50
C171: 2022-04-22 | D171: 9.28 | F171: 2022-04-22 | H171: 11.00 | J171: 2022-04-22 | K171: 41.50
C172: 2022-04-21 | D172: 9.28 | F172: 2022-04-21 | H172: 11.00 | J172: 2022-04-21 | K172: 41.50
C173: 2022-04-20 | D173: 9.28 | F173: 2022-04-20 | H173: 11.00 | J173: 2022-04-20 | K173: 41.50
C174: 2022-04-19 | D174: 9.28 | F174: 2022-04-19 | H174: 11.00 | J174: 2022-04-19 | K174: 41.50
C175: 2022-04-18 | D175: 9.75 | F175: 2022-04-18 | H175: 11.00 | J175: 2022-04-18 | K175: 43.50
C176: 2022-04-15 | D176: 9.75 | F176: 2022-04-15 | H176: 11.00 | J176: 2022-04-15 | K176: 43.50
C177: 2022-04-14 | D177: 9.75 | F177: 2022-04-14 | H177: 11.00 | J177: 2022-04-14 | K177: 43.50
C178: 2022-04-13 | D178: 9.75 | F178: 2022-04-13 | H178: 11.00 | J178: 2022-04-13 | K178: 43.50
C179: 2022-04-12 | D179: 9.75 | F179: 2022-04-12 | H179: 11.00 | J179: 2022-04-12 | K179: 43.50
C180: 2022-04-11 | D180: 9.75 | F180: 2022-04-11 | H180: 11.00 | J180: 2022-04-11 | K180: 44.50
C181: 2022-04-08 | D181: 9.75 | F181: 2022-04-08 | H181: 11.00 | J181: 2022-04-08 | K181: 44.50
C182: 2022-04-07 | D182: 10.00 | F182: 2022-04-07 | H182: 11.55 | J182: 2022-04-07 | K182: 45.00
C183: 2022-04-06 | D183: 10.00 | F183: 2022-04-06 | H183: 11.55 | J183: 2022-04-06 | K183: 47.00
C184: 2022-04-05 | D184: 10.00 | F184: 2022-04-05 | H184: 11.55 | J184: 2022-04-05 | K184: 47.00
C185: 2022-04-04 | D185: 10.00 | F185: 2022-04-04 | H185: 11.55 | J185: 2022-04-04 | K185: 47.00
C186: 2022-04-01 | D186: 10.00 | F186: 2022-04-01 | H186: 11.55 | J186: 2022-04-01 | K186: 47.00
C187: 2022-03-31 | D187: 10.00 | F187: 2022-03-31 | H187: 11.55 | J187: 2022-03-31 | K187: 47.00
C188: 2022-03-30 | D188: 10.00 | F188: 2022-03-30 | H188: 11.55 | J188: 2022-03-30 | K188: 47.00
C189: 2022-03-29 | D189: 10.00 | F189: 2022-03-29 | H189: 11.65 | J189: 2022-03-29 | K189: 49.50
C190: 2022-03-28 | D190: 10.00 | F190: 2022-03-28 | H190: 11.65 | J190: 2022-03-28 | K190: 49.50
C191: 2022-03-25 | D191: 10.50 | F191: 2022-03-25 | H191: 11.65 | J191: 2022-03-25 | K191: 51.50
C192: 2022-03-24 | D192: 10.50 | F192: 2022-03-24 | H192: 11.65 | J192: 2022-03-24 | K192: 51.50
C193: 2022-03-23 | D193: 10.50 | F193: 2022-03-23 | H193: 11.65 | J193: 2022-03-23 | K193: 51.50
C194: 2022-03-22 | D194: 10.50 | F194: 2022-03-22 | H194: 11.65 | J194: 2022-03-22 | K194: 51.50
C195: 2022-03-21 | D195: 10.50 | F195: 2022-03-21 | H195: 11.65 | J195: 2022-03-21 | K195: 51.50
C196: 2022-03-18 | D196: 10.50 | F196: 2022-03-18 | H196: 11.65 | J196: 2022-03-18 | K196: 51.50
C197: 2022-03-17 | D197: 11.03 | F197: 2022-03-17 | H197: 12.15 | J197: 2022-03-17 | K197: 55.00
C198: 2022-03-16 | D198: 11.03 | F198: 2022-03-16 | H198: 12.15 | J198: 2022-03-16 | K198: 55.00
C199: 2022-03-15 | D199: 11.03 | F199: 2022-03-15 | H199: 12.15 | J199: 2022-03-15 | K199: 55.00
C200: 2022-03-14 | D200: 11.03 | F200: 2022-03-14 | H200: 12.15 | J200: 2022-03-14 | K200: 55.00
C201: 2022-03-11 | D201: 11.03 | F201: 2022-03-11 | H201: 12.15 | J201: 2022-03-11 | K201: 55.00
C202: 2022-03-10 | D202: 11.03 | F202: 2022-03-10 | H202: 12.15 | J202: 2022-03-10 | K202: 55.00
C203: 2022-03-09 | D203: 11.03 | F203: 2022-03-09 | H203: 12.15 | J203: 2022-03-09 | K203: 55.00
C204: 2022-03-08 | D204: 11.03 | F204: 2022-03-08 | H204: 12.15 | J204: 2022-03-08 | K204: 55.00
C205: 2022-03-07 | D205: 11.03 | F205: 2022-03-07 | H205: 12.15 | J205: 2022-03-07 | K205: 55.00
C206: 2022-03-04 | D206: 11.03 | F206: 2022-03-04 | H206: 12.15 | J206: 2022-03-04 | K206: 55.00
C207: 2022-03-03 | D207: 11.03 | F207: 2022-03-03 | H207: 12.15 | J207: 2022-03-03 | K207: 55.00
C208: 2022-03-02 | D208: 11.03 | F208: 2022-03-02 | H208: 12.15 | J208: 2022-03-02 | K208: 59.00
C209: 2022-03-01 | D209: 11.03 | F209: 2022-03-01 | H209: 12.15 | J209: 2022-03-01 | K209: 59.00
C210: 2022-02-28 | D210: 11.03 | F210: 2022-02-28 | H210: 12.15 | J210: 2022-02-28 | K210: 59.00
C211: 2022-02-25 | D211: 11.03 | F211: 2022-02-25 | H211: 12.15 | J211: 2022-02-25 | K211: 59.00
C212: 2022-02-24 | D212: 11.03 | F212: 2022-02-24 | H212: 12.15 | J212: 2022-02-24 | K212: 59.00
C213: 2022-02-23 | D213: 11.03 | F213: 2022-02-23 | H213: 12.15 | J213: 2022-02-23 | K213: 59.00
C214: 2022-02-22 | D214: 11.03 | F214: 2022-02-22 | H214: 12.15 | J214: 2022-02-22 | K214: 59.00
C215: 2022-02-21 | D215: 11.03 | F215: 2022-02-21 | H215: 12.15 | J215: 2022-02-21 | K215: 59.00
C216: 2022-02-18 | D216: 11.03 | F216: 2022-02-18 | H216: 12.15 | J216: 2022-02-18 | K216: 59.00
C217: 2022-02-17 | D217: 11.03 | F217: 2022-02-17 | H217: 12.15 | J217: 2022-02-17 | K217: 59.00
C218: 2022-02-16 | D218: 11.03 | F218: 2022-02-16 | H218: 12.15 | J218: 2022-02-16 | K218: 59.00
... 1544 more rows

Sheet 新能源车_铜箔和铝塑膜
A1: 目录
C16: 电解铜市场价（元/吨） | F16: 价格:铝塑膜:中端:国产（元/平方米） | G16: 价格:铝塑膜:中高端:韩国（元/平方米）
B17: 2022-11-22 | C17: 65,181.67 | E17: 2022-11-23 | F17: 21.50 | G17: 25.00
B18: 2022-11-21 | C18: 65,330.00 | E18: 2022-11-22 | F18: 21.50 | G18: 25.00
B19: 2022-11-18 | C19: 66,345.00 | E19: 2022-11-21 | F19: 21.50 | G19: 25.00
B20: 2022-11-17 | C20: 66,563.33 | E20: 2022-11-18 | F20: 21.50 | G20: 25.00
B21: 2022-11-16 | C21: 66,993.33 | E21: 2022-11-17 | F21: 21.50 | G21: 25.00
B22: 2022-11-15 | C22: 67,263.33 | E22: 2022-11-16 | F22: 21.50 | G22: 25.00
B23: 2022-11-14 | C23: 67,680.00 | E23: 2022-11-15 | F23: 21.50 | G23: 25.00
B24: 2022-11-11 | C24: 68,605.00 | E24: 2022-11-14 | F24: 21.50 | G24: 25.00
B25: 2022-11-10 | C25: 67,365.00 | E25: 2022-11-11 | F25: 21.50 | G25: 25.00
B26: 2022-11-09 | C26: 66,790.00 | E26: 2022-11-10 | F26: 21.50 | G26: 25.00
B27: 2022-11-08 | C27: 66,266.67 | E27: 2022-11-09 | F27: 21.50 | G27: 27.50
B28: 2022-11-07 | C28: 66,433.33 | E28: 2022-11-08 | F28: 21.50 | G28: 25.00
B29: 2022-11-04 | C29: 64,616.67 | E29: 2022-11-07 | F29: 21.50 | G29: 25.00
B30: 2022-11-03 | C30: 64,686.67 | E30: 2022-11-04 | F30: 21.50 | G30: 25.00
B31: 2022-11-02 | C31: 64,890.00 | E31: 2022-11-03 | F31: 21.50 | G31: 25.00
B32: 2022-11-01 | C32: 64,376.67 | E32: 2022-11-02 | F32: 21.50 | G32: 25.00
B33: 2022-10-31 | C33: 63,776.67 | E33: 2022-11-01 | F33: 21.50 | G33: 25.00
B34: 2022-10-28 | C34: 64,565.00 | E34: 2022-10-31 | F34: 21.50 | G34: 25.00
B35: 2022-10-27 | C35: 64,638.33 | E35: 2022-10-28 | F35: 21.50 | G35: 25.00
B36: 2022-10-26 | C36: 63,970.00 | E36: 2022-10-27 | F36: 21.50 | G36: 25.00
B37: 2022-10-25 | C37: 64,290.00 | E37: 2022-10-26 | F37: 21.50 | G37: 25.00
B38: 2022-10-24 | C38: 64,610.00 | E38: 2022-10-25 | F38: 21.50 | G38: 25.00
B39: 2022-10-21 | C39: 64,023.33 | E39: 2022-10-24 | F39: 21.50 | G39: 25.00
B40: 2022-10-20 | C40: 62,818.33 | E40: 2022-10-21 | F40: 21.50 | G40: 25.00
B41: 2022-10-19 | C41: 63,035.00 | E41: 2022-10-20 | F41: 21.50 | G41: 25.00
B42: 2022-10-18 | C42: 63,563.33 | E42: 2022-10-19 | F42: 21.50 | G42: 25.00
B43: 2022-10-17 | C43: 64,616.67 | E43: 2022-10-18 | F43: 21.50 | G43: 25.00
B44: 2022-10-14 | C44: 64,885.00 | E44: 2022-10-17 | F44: 21.50 | G44: 25.00
B45: 2022-10-13 | C45: 64,010.00 | E45: 2022-10-14 | F45: 21.50 | G45: 25.00
B46: 2022-10-12 | C46: 63,760.00 | E46: 2022-10-13 | F46: 21.50 | G46: 25.00
B47: 2022-10-11 | C47: 64,145.00 | E47: 2022-10-12 | F47: 21.50 | G47: 25.00
B48: 2022-10-10 | C48: 63,093.33 | E48: 2022-10-11 | F48: 21.50 | G48: 25.00
B49: 2022-10-07 | C49: 62,670.00 | E49: 2022-10-10 | F49: 21.50 | G49: 25.00
B50: 2022-10-06 | C50: 62,670.00 | E50: 2022-10-09 | F50: 21.50 | G50: 25.00
B51: 2022-10-05 | C51: 62,670.00 | E51: 2022-10-08 | F51: 21.50 | G51: 25.00
B52: 2022-10-04 | C52: 62,670.00 | E52: 2022-10-07 | F52: 21.50 | G52: 25.00
B53: 2022-10-03 | C53: 62,670.00 | E53: 2022-09-30 | F53: 21.50 | G53: 25.00
B54: 2022-09-30 | C54: 62,670.00 | E54: 2022-09-29 | F54: 21.50 | G54: 25.00
B55: 2022-09-29 | C55: 62,415.00 | E55: 2022-09-28 | F55: 21.50 | G55: 25.00
B56: 2022-09-28 | C56: 61,425.00 | E56: 2022-09-27 | F56: 21.50 | G56: 25.00
B57: 2022-09-27 | C57: 61,568.33 | E57: 2022-09-26 | F57: 21.50 | G57: 25.00
B58: 2022-09-26 | C58: 61,643.33 | E58: 2022-09-23 | F58: 21.50 | G58: 25.00
B59: 2022-09-23 | C59: 63,090.00 | E59: 2022-09-22 | F59: 21.50 | G59: 25.00
B60: 2022-09-22 | C60: 63,106.67 | E60: 2022-09-21 | F60: 21.50 | G60: 25.00
B61: 2022-09-21 | C61: 63,198.33 | E61: 2022-09-20 | F61: 21.50 | G61: 25.00
B62: 2022-09-20 | C62: 63,330.00 | E62: 2022-09-19 | F62: 21.50 | G62: 25.00
B63: 2022-09-19 | C63: 63,550.00 | E63: 2022-09-16 | F63: 21.50 | G63: 25.00
B64: 2022-09-16 | C64: 62,898.33 | E64: 2022-09-15 | F64: 21.50 | G64: 25.00
B65: 2022-09-15 | C65: 63,340.00 | E65: 2022-09-14 | F65: 21.50 | G65: 25.00
B66: 2022-09-14 | C66: 63,188.33 | E66: 2022-09-13 | F66: 21.50 | G66: 25.00
B67: 2022-09-13 | C67: 63871.67 | E67: 2022-09-12 | F67: 21.50 | G67: 25.00
B68: 2022-09-12 | C68: 63850.00 | E68: 2022-09-09 | F68: 21.50 | G68: 25.00
B69: 2022-09-09 | C69: 63850.00 | E69: 2022-09-08 | F69: 21.50 | G69: 25.00
B70: 2022-09-08 | C70: 61891.67 | E70: 2022-09-07 | F70: 21.50 | G70: 25.00
B71: 2022-09-07 | C71: 61918.33 | E71: 2022-09-06 | F71: 21.50 | G71: 25.00
B72: 2022-09-06 | C72: 61766.67 | E72: 2022-09-05 | F72: 21.50 | G72: 25.00
B73: 2022-09-05 | C73: 60876.67 | E73: 2022-09-02 | F73: 21.50 | G73: 25.00
B74: 2022-09-02 | C74: 60483.33 | E74: 2022-09-01 | F74: 21.50 | G74: 25.00
B75: 2022-09-01 | C75: 61760.00 | E75: 2022-08-31 | F75: 21.50 | G75: 25.00
B76: 2022-08-31 | C76: 62840.00 | E76: 2022-08-30 | F76: 21.50 | G76: 25.00
B77: 2022-08-30 | C77: 63206.67 | E77: 2022-08-29 | F77: 21.50 | G77: 25.00
B78: 2022-08-29 | C78: 63808.33 | E78: 2022-08-26 | F78: 21.50 | G78: 25.00
B79: 2022-08-26 | C79: 64376.67 | E79: 2022-08-25 | F79: 21.50 | G79: 25.00
B80: 2022-08-25 | C80: 63400.00 | E80: 2022-08-24 | F80: 21.50 | G80: 25.00
B81: 2022-08-24 | C81: 63723.33 | E81: 2022-08-23 | F81: 21.50 | G81: 25.00
B82: 2022-08-23 | C82: 63521.67 | E82: 2022-08-22 | F82: 21.50 | G82: 25.00
B83: 2022-08-22 | C83: 63623.33 | E83: 2022-08-19 | F83: 21.50 | G83: 25.00
B84: 2022-08-19 | C84: 62900.00 | E84: 2022-08-18 | F84: 21.50 | G84: 25.00
B85: 2022-08-18 | C85: 62350.00 | E85: 2022-08-17 | F85: 21.50 | G85: 25.00
B86: 2022-08-17 | C86: 62450.00 | E86: 2022-08-16 | F86: 21.50 | G86: 25.00
B87: 2022-08-16 | C87: 62443.33 | E87: 2022-08-15 | F87: 21.50 | G87: 25.00
B88: 2022-08-15 | C88: 62393.33 | E88: 2022-08-12 | F88: 21.50 | G88: 25.00
B89: 2022-08-12 | C89: 63000.00 | E89: 2022-08-11 | F89: 21.50 | G89: 25.00
B90: 2022-08-11 | C90: 62568.33 | E90: 2022-08-10 | F90: 21.50 | G90: 25.00
B91: 2022-08-10 | C91: 62021.67 | E91: 2022-08-09 | F91: 21.50 | G91: 25.00
B92: 2022-08-09 | C92: 61586.67 | E92: 2022-08-08 | F92: 21.50 | G92: 25.00
B93: 2022-08-08 | C93: 61428.33 | E93: 2022-08-05 | F93: 21.50 | G93: 25.00
B94: 2022-08-05 | C94: 60458.33 | E94: 2022-08-04 | F94: 21.50 | G94: 25.00
B95: 2022-08-04 | C95: 60,035.00 | E95: 2022-08-03 | F95: 21.50 | G95: 25.00
B96: 2022-08-03 | C96: 60,410.00 | E96: 2022-08-02 | F96: 21.50 | G96: 25.00
B97: 2022-08-02 | C97: 60,355.00 | E97: 2022-08-01 | F97: 21.50 | G97: 25.00
B98: 2022-08-01 | C98: 61,571.67 | E98: 2022-07-29 | F98: 21.50 | G98: 25.00
B99: 2022-07-29 | C99: 60,398.33 | E99: 2022-07-28 | F99: 21.50 | G99: 25.00
B100: 2022-07-28 | C100: 60,045.00 | E100: 2022-07-27 | F100: 21.50 | G100: 25.00
B101: 2022-07-27 | C101: 58,665.00 | E101: 2022-07-26 | F101: 23.50 | G101: 25.00
B102: 2022-07-26 | C102: 58,950.00 | E102: 2022-07-25 | F102: 23.50 | G102: 25.00
B103: 2022-07-25 | C103: 57,658.33 | E103: 2022-07-22 | F103: 23.50 | G103: 25.00
B104: 2022-07-22 | C104: 57,135.00 | E104: 2022-07-21 | F104: 23.50 | G104: 25.00
B105: 2022-07-21 | C105: 56,406.67 | E105: 2022-07-20 | F105: 23.50 | G105: 25.00
B106: 2022-07-20 | C106: 56,701.67 | E106: 2022-07-19 | F106: 23.50 | G106: 25.00
B107: 2022-07-19 | C107: 56,331.67 | E107: 2022-07-18 | F107: 23.50 | G107: 25.00
B108: 2022-07-18 | C108: 55,881.67 | E108: 2022-07-15 | F108: 23.50 | G108: 25.00
B109: 2022-07-15 | C109: 55,183.33 | E109: 2022-07-14 | F109: 23.50 | G109: 25.00
B110: 2022-07-14 | C110: 56,270.00 | E110: 2022-07-13 | F110: 23.50 | G110: 25.00
B111: 2022-07-13 | C111: 56,581.67 | E111: 2022-07-12 | F111: 23.50 | G111: 25.00
B112: 2022-07-12 | C112: 58,550.00 | E112: 2022-07-11 | F112: 23.50 | G112: 25.00
B113: 2022-07-11 | C113: 58,561.67 | E113: 2022-07-08 | F113: 23.50 | G113: 25.00
B114: 2022-07-08 | C114: 59,841.67 | E114: 2022-07-07 | F114: 23.50 | G114: 25.00
B115: 2022-07-07 | C115: 58,201.67 | E115: 2022-07-06 | F115: 23.50 | G115: 25.00
B116: 2022-07-06 | C116: 58,438.33 | E116: 2022-07-05 | F116: 23.50 | G116: 25.00
B117: 2022-07-05 | C117: 61,311.67 | E117: 2022-07-04 | F117: 23.50 | G117: 25.00
B118: 2022-07-04 | C118: 61,625.00 | E118: 2022-07-01 | F118: 23.50 | G118: 25.00
B119: 2022-07-01 | C119: 62,968.33 | E119: 2022-06-30 | F119: 23.50 | G119: 25.00
B120: 2022-06-30 | C120: 64,236.67 | E120: 2022-06-29 | F120: 23.50 | G120: 25.00
B121: 2022-06-29 | C121: 64,228.33 | E121: 2022-06-28 | F121: 23.50 | G121: 25.00
B122: 2022-06-28 | C122: 64,211.67 | E122: 2022-06-27 | F122: 23.50 | G122: 25.00
B123: 2022-06-27 | C123: 64,463.33 | E123: 2022-06-24 | F123: 23.50 | G123: 25.00
B124: 2022-06-24 | C124: 64,323.33 | E124: 2022-06-23 | F124: 23.50 | G124: 25.00
B125: 2022-06-23 | C125: 65,973.33 | E125: 2022-06-22 | F125: 23.50 | G125: 25.00
B126: 2022-06-22 | C126: 68,181.67 | E126: 2022-06-21 | F126: 23.50 | G126: 25.00
B127: 2022-06-21 | C127: 68,783.33 | E127: 2022-06-20 | F127: 23.50 | G127: 25.00
B128: 2022-06-20 | C128: 68,805.00 | E128: 2022-06-17 | F128: 23.50 | G128: 25.00
B129: 2022-06-17 | C129: 70,045.00 | E129: 2022-06-16 | F129: 23.50 | G129: 25.00
B130: 2022-06-16 | C130: 71,305.00 | E130: 2022-06-15 | F130: 23.50 | G130: 25.00
B131: 2022-06-15 | C131: 71,258.33 | E131: 2022-06-14 | F131: 23.50 | G131: 25.00
B132: 2022-06-14 | C132: 71,706.67 | E132: 2022-06-13 | F132: 23.50 | G132: 25.00
B133: 2022-06-13 | C133: 72,173.33 | E133: 2022-06-10 | F133: 23.50 | G133: 25.00
B134: 2022-06-10 | C134: 72,716.67 | E134: 2022-06-09 | F134: 23.50 | G134: 25.00
B135: 2022-06-09 | C135: 73,053.33 | E135: 2022-06-08 | F135: 23.50 | G135: 25.00
B136: 2022-06-08 | C136: 72,963.33 | E136: 2022-06-07 | F136: 23.50 | G136: 25.00
B137: 2022-06-07 | C137: 73,056.67 | E137: 2022-06-06 | F137: 23.50 | G137: 25.00
B138: 2022-06-06 | C138: 73,278.33 | E138: 2022-06-03 | F138: 23.50 | G138: 25.00
B139: 2022-06-03 | C139: 72,570.00 | E139: 2022-06-02 | F139: 23.50 | G139: 25.00
B140: 2022-06-02 | C140: 72,570.00 | E140: 2022-06-01 | F140: 23.50 | G140: 25.00
B141: 2022-06-01 | C141: 72,236.67 | E141: 2022-05-31 | F141: 23.50 | G141: 25.00
B142: 2022-05-31 | C142: 72,636.67 | E142: 2022-05-30 | F142: 23.50 | G142: 25.00
B143: 2022-05-30 | C143: 72,700.00 | E143: 2022-05-27 | F143: 23.50 | G143: 25.00
B144: 2022-05-27 | C144: 72,603.33 | E144: 2022-05-26 | F144: 23.50 | G144: 25.00
B145: 2022-05-26 | C145: 71,953.33 | E145: 2022-05-25 | F145: 23.50 | G145: 25.00
B146: 2022-05-25 | C146: 72,315.00 | E146: 2022-05-24 | F146: 23.50 | G146: 25.00
B147: 2022-05-24 | C147: 72,546.67 | E147: 2022-05-23 | F147: 23.50 | G147: 25.00
B148: 2022-05-23 | C148: 72,388.33 | E148: 2022-05-20 | F148: 23.50 | G148: 25.00
B149: 2022-05-20 | C149: 72,070.00 | E149: 2022-05-19 | F149: 23.50 | G149: 25.00
B150: 2022-05-19 | C150: 71,746.67 | E150: 2022-05-18 | F150: 23.50 | G150: 25.00
B151: 2022-05-18 | C151: 72,068.33 | E151: 2022-05-17 | F151: 23.50 | G151: 25.00
B152: 2022-05-17 | C152: 72,171.67 | E152: 2022-05-16 | F152: 23.50 | G152: 25.00
B153: 2022-05-16 | C153: 71,620.00 | E153: 2022-05-13 | F153: 23.50 | G153: 25.00
B154: 2022-05-13 | C154: 71,206.67 | E154: 2022-05-12 | F154: 23.50 | G154: 25.00
B155: 2022-05-12 | C155: 72,163.33 | E155: 2022-05-11 | F155: 23.50 | G155: 25.00
B156: 2022-05-11 | C156: 72,055.00 | E156: 2022-05-10 | F156: 23.50 | G156: 25.00
B157: 2022-05-10 | C157: 71,978.33 | E157: 2022-05-09 | F157: 23.50 | G157: 25.00
B158: 2022-05-09 | C158: 72,485.00 | E158: 2022-05-07 | F158: 23.50 | G158: 25.00
B159: 2022-05-06 | C159: 72,856.67 | E159: 2022-05-06 | F159: 23.50 | G159: 25.00
B160: 2022-05-05 | C160: 73,773.33 | E160: 2022-05-05 | F160: 23.50 | G160: 25.00
B161: 2022-05-04 | C161: 73,985.00 | E161: 2022-04-29 | F161: 23.50 | G161: 25.00
B162: 2022-05-03 | C162: 73,985.00 | E162: 2022-04-28 | F162: 23.50 | G162: 25.00
B163: 2022-05-02 | C163: 73,985.00 | E163: 2022-04-27 | F163: 23.50 | G163: 25.00
B164: 2022-04-29 | C164: 73,985.00 | E164: 2022-04-26 | F164: 23.50 | G164: 25.00
B165: 2022-04-28 | C165: 74,075.00 | E165: 2022-04-25 | F165: 23.50 | G165: 25.00
B166: 2022-04-27 | C166: 73,843.33 | E166: 2022-04-24 | F166: 23.50 | G166: 25.00
B167: 2022-04-26 | C167: 73,935.00 | E167: 2022-04-22 | F167: 23.50 | G167: 25.00
B168: 2022-04-25 | C168: 74,355.00 | E168: 2022-04-21 | F168: 23.50 | G168: 25.00
B169: 2022-04-22 | C169: 75,068.33 | E169: 2022-04-20 | F169: 23.50 | G169: 25.00
B170: 2022-04-21 | C170: 74,911.67 | E170: 2022-04-19 | F170: 23.50 | G170: 25.00
B171: 2022-04-20 | C171: 74,448.33 | E171: 2022-04-18 | F171: 23.50 | G171: 25.00
B172: 2022-04-19 | C172: 75,621.67 | E172: 2022-04-15 | F172: 23.50 | G172: 25.00
B173: 2022-04-18 | C173: 75,541.67 | E173: 2022-04-14 | F173: 23.50 | G173: 25.00
B174: 2022-04-15 | C174: 75,055.00 | E174: 2022-04-13 | F174: 23.50 | G174: 25.00
B175: 2022-04-14 | C175: 74,466.67 | E175: 2022-04-12 | F175: 23.50 | G175: 25.00
B176: 2022-04-13 | C176: 74,526.67 | E176: 2022-04-11 | F176: 23.50 | G176: 25.00
B177: 2022-04-12 | C177: 73,818.33 | E177: 2022-04-08 | F177: 23.50 | G177: 25.00
B178: 2022-04-11 | C178: 73,720.00 | E178: 2022-04-07 | F178: 23.50 | G178: 25.00
B179: 2022-04-08 | C179: 73,796.67 | E179: 2022-04-06 | F179: 23.50 | G179: 25.00
B180: 2022-04-07 | C180: 73,785.00 | E180: 2022-04-05 | F180: 23.50 | G180: 25.00
B181: 2022-04-06 | C181: 73,981.67 | E181: 2022-04-04 | F181: 23.50 | G181: 25.00
B182: 2022-04-05 | C182: 73,670.00 | E182: 2022-04-01 | F182: 23.50 | G182: 25.00
B183: 2022-04-04 | C183: 73,670.00 | E183: 2022-03-31 | F183: 23.50 | G183: 25.00
B184: 2022-04-01 | C184: 73,670.00 | E184: 2022-03-30 | F184: 23.50 | G184: 25.00
B185: 2022-03-31 | C185: 73,693.33 | E185: 2022-03-29 | F185: 23.50 | G185: 25.00
B186: 2022-03-30 | C186: 74,033.33 | E186: 2022-03-28 | F186: 23.50 | G186: 25.00
B187: 2022-03-29 | C187: 74,185.00 | E187: 2022-03-25 | F187: 23.50 | G187: 25.00
B188: 2022-03-28 | C188: 73,323.33 | E188: 2022-03-24 | F188: 23.50 | G188: 25.00
B189: 2022-03-25 | C189: 73,810.00 | E189: 2022-03-23 | F189: 23.50 | G189: 25.00
B190: 2022-03-24 | C190: 73,916.67 | E190: 2022-03-22 | F190: 23.50 | G190: 25.00
B191: 2022-03-23 | C191: 73,455.00 | E191: 2022-03-21 | F191: 23.50 | G191: 25.00
B192: 2022-03-22 | C192: 73,510.00 | E192: 2022-03-18 | F192: 23.50 | G192: 25.00
B193: 2022-03-21 | C193: 73,521.67 | E193: 2022-03-17 | F193: 23.50 | G193: 25.00
B194: 2022-03-18 | C194: 73,266.67 | E194: 2022-03-16 | F194: 23.50 | G194: 25.00
B195: 2022-03-17 | C195: 72,606.67 | E195: 2022-03-15 | F195: 23.50 | G195: 25.00
B196: 2022-03-16 | C196: 71,955.00 | E196: 2022-03-14 | F196: 23.50 | G196: 25.00
B197: 2022-03-15 | C197: 71,895.00 | E197: 2022-03-11 | F197: 23.50 | G197: 25.00
B198: 2022-03-14 | C198: 72,220.00 | E198: 2022-03-10 | F198: 23.50 | G198: 25.00
B199: 2022-03-11 | C199: 72,178.33 | E199: 2022-03-09 | F199: 23.50 | G199: 25.00
B200: 2022-03-10 | C200: 72,000.00 | E200: 2022-03-08 | F200: 23.50 | G200: 25.00
B201: 2022-03-09 | C201: 73,058.33 | E201: 2022-03-07 | F201: 23.50 | G201: 25.00
B202: 2022-03-08 | C202: 72,970.00 | E202: 2022-03-04 | F202: 23.50 | G202: 25.00
B203: 2022-03-07 | C203: 75,021.67 | E203: 2022-03-03 | F203: 23.50 | G203: 25.00
B204: 2022-03-04 | C204: 72,926.67 | E204: 2022-03-02 | F204: 23.50 | G204: 25.00
B205: 2022-03-03 | C205: 72,586.67 | E205: 2022-03-01 | F205: 23.50 | G205: 25.00
B206: 2022-03-02 | C206: 71,541.67 | E206: 2022-02-28 | F206: 23.50 | G206: 25.00
B207: 2022-03-01 | C207: 70,855.00 | E207: 2022-02-25 | F207: 23.50 | G207: 25.00
B208: 2022-02-28 | C208: 70,890.00 | E208: 2022-02-24 | F208: 23.50 | G208: 25.00
B209: 2022-02-25 | C209: 71,133.33 | E209: 2022-02-23 | F209: 23.50 | G209: 25.00
B210: 2022-02-24 | C210: 70,826.67 | E210: 2022-02-22 | F210: 23.50 | G210: 25.00
B211: 2022-02-23 | C211: 71,195.00 | E211: 2022-02-21 | F211: 23.50 | G211: 25.00
B212: 2022-02-22 | C212: 71,180.00 | E212: 2022-02-18 | F212: 23.50 | G212: 25.00
B213: 2022-02-21 | C213: 71,541.67 | E213: 2022-02-17 | F213: 23.50 | G213: 25.00
B214: 2022-02-18 | C214: 71,578.33 | E214: 2022-02-16 | F214: 23.50 | G214: 25.00
... 2346 more rows

Sheet 新能源车_稀土永磁
A1: 目录
D37: 最高价:氧化镨:≥99%:中国（元/吨） | E37: 最低价:氧化镨:≥99%:中国（元/吨） | F37: 最高价:氧化钕:≥99%:中国（元/吨） | G37: 最低价:氧化钕:≥99%:中国（元/吨） | H37: 最高价:氧化镨钕:≥99% Nd2O3 75%:中国（元/吨） | I37: 最低价:氧化镨钕:≥99% Nd2O3 75%:中国（元/吨） | J37: 最高价:氧化镝:≥99%:中国（元/公斤） | K37: 最低价:氧化镝:≥99%:中国（元/公斤） | L37: 最高价:氧化铽:≥99.9%:中国（元/公斤） | M37: 最低价:氧化铽:≥99.9%:中国（元/公斤） | P37: 出口平均单价:钕铁硼合金速凝永磁片(美元/千克)
C38: 2022-11-23 | D38: 675,000.00 | E38: 655,000.00 | F38: 730,000.00 | G38: 710,000.00 | H38: 661,000.00 | I38: 641,000.00 | J38: 2,320.00 | K38: 2,280.00 | L38: 13,130.00 | M38: 13,070.00 | O38: 2022-09-30 | P38: 55.86
C39: 2022-11-22 | D39: 675,000.00 | E39: 655,000.00 | F39: 729,000.00 | G39: 709,000.00 | H39: 661,000.00 | I39: 641,000.00 | J39: 2,320.00 | K39: 2,280.00 | L39: 13,130.00 | M39: 13,070.00 | O39: 2022-08-31 | P39: 61.63
C40: 2022-11-21 | D40: 675,000.00 | E40: 655,000.00 | F40: 729,000.00 | G40: 709,000.00 | H40: 661,000.00 | I40: 641,000.00 | J40: 2,320.00 | K40: 2,280.00 | L40: 13,130.00 | M40: 13,070.00 | O40: 2022-07-01 | P40: 63.46
C41: 2022-11-18 | D41: 675,000.00 | E41: 655,000.00 | F41: 729,000.00 | G41: 709,000.00 | H41: 661,000.00 | I41: 641,000.00 | J41: 2,320.00 | K41: 2,280.00 | L41: 13,130.00 | M41: 13,070.00 | O41: 2022-06-30 | P41: 66.62
C42: 2022-11-17 | D42: 675,000.00 | E42: 655,000.00 | F42: 725,000.00 | G42: 705,000.00 | H42: 658,000.00 | I42: 638,000.00 | J42: 2,310.00 | K42: 2,270.00 | L42: 13,080.00 | M42: 13,020.00 | O42: 2022-05-31 | P42: 76.31
C43: 2022-11-16 | D43: 675,000.00 | E43: 655,000.00 | F43: 725,000.00 | G43: 705,000.00 | H43: 656,000.00 | I43: 636,000.00 | J43: 2,280.00 | K43: 2,240.00 | L43: 13,080.00 | M43: 13,020.00 | O43: 2022-04-30 | P43: 73.56
C44: 2022-11-15 | D44: 675,000.00 | E44: 655,000.00 | F44: 725,000.00 | G44: 705,000.00 | H44: 655,000.00 | I44: 635,000.00 | J44: 2,275.00 | K44: 2,235.00 | L44: 13,080.00 | M44: 13,020.00 | O44: 2022-03-31 | P44: 65.90
C45: 2022-11-14 | D45: 685,000.00 | E45: 665,000.00 | F45: 728,000.00 | G45: 708,000.00 | H45: 657,000.00 | I45: 637,000.00 | J45: 2,275.00 | K45: 2,235.00 | L45: 13,130.00 | M45: 13,070.00 | O45: 2022-02-28 | P45: 58.70
C46: 2022-11-11 | D46: 685,000.00 | E46: 665,000.00 | F46: 735,000.00 | G46: 715,000.00 | H46: 658,000.00 | I46: 638,000.00 | J46: 2,285.00 | K46: 2,245.00 | L46: 13,180.00 | M46: 13,120.00 | O46: 2022-01-31 | P46: 49.98
C47: 2022-11-10 | D47: 685,000.00 | E47: 665,000.00 | F47: 735,000.00 | G47: 715,000.00 | H47: 660,000.00 | I47: 640,000.00 | J47: 2,295.00 | K47: 2,255.00 | L47: 13,255.00 | M47: 13,195.00 | O47: 2021-12-31 | P47: 48.51
C48: 2022-11-09 | D48: 695,000.00 | E48: 675,000.00 | F48: 739,000.00 | G48: 719,000.00 | H48: 662,000.00 | I48: 642,000.00 | J48: 2,305.00 | K48: 2,265.00 | L48: 13,305.00 | M48: 13,245.00 | O48: 2021-11-30 | P48: 48.34
C49: 2022-11-08 | D49: 700,000.00 | E49: 680,000.00 | F49: 739,000.00 | G49: 719,000.00 | H49: 662,000.00 | I49: 642,000.00 | J49: 2,310.00 | K49: 2,270.00 | L49: 13,305.00 | M49: 13,245.00 | O49: 2021-10-31 | P49: 54.78
C50: 2022-11-07 | D50: 700,000.00 | E50: 680,000.00 | F50: 739,000.00 | G50: 719,000.00 | H50: 658,000.00 | I50: 638,000.00 | J50: 2,305.00 | K50: 2,265.00 | L50: 13,305.00 | M50: 13,245.00 | O50: 2021-09-30 | P50: 45.93
C51: 2022-11-04 | D51: 700,000.00 | E51: 680,000.00 | F51: 739,000.00 | G51: 719,000.00 | H51: 658,000.00 | I51: 638,000.00 | J51: 2,300.00 | K51: 2,260.00 | L51: 13,280.00 | M51: 13,220.00 | O51: 2021-08-31 | P51: 40.42
C52: 2022-11-03 | D52: 710,000.00 | E52: 690,000.00 | F52: 744,000.00 | G52: 724,000.00 | H52: 658,000.00 | I52: 638,000.00 | J52: 2,300.00 | K52: 2,260.00 | L52: 13,280.00 | M52: 13,220.00 | O52: 2021-07-31 | P52: 44.83
C53: 2022-11-02 | D53: 735,000.00 | E53: 715,000.00 | F53: 744,000.00 | G53: 724,000.00 | H53: 656,000.00 | I53: 636,000.00 | J53: 2,300.00 | K53: 2,260.00 | L53: 13,255.00 | M53: 13,195.00 | O53: 2021-06-30 | P53: 47.05
C54: 2022-11-01 | D54: 738,000.00 | E54: 718,000.00 | F54: 744,000.00 | G54: 724,000.00 | H54: 656,000.00 | I54: 636,000.00 | J54: 2,300.00 | K54: 2,260.00 | L54: 13,280.00 | M54: 13,220.00 | O54: 2021-05-31 | P54: 45.85
C55: 2022-10-31 | D55: 738,000.00 | E55: 718,000.00 | F55: 753,000.00 | G55: 733,000.00 | H55: 663,000.00 | I55: 643,000.00 | J55: 2,315.00 | K55: 2,275.00 | L55: 13,355.00 | M55: 13,295.00 | O55: 2021-04-30 | P55: 41.67
C56: 2022-10-28 | D56: 738,000.00 | E56: 718,000.00 | F56: 765,000.00 | G56: 745,000.00 | H56: 673,000.00 | I56: 653,000.00 | J56: 2,320.00 | K56: 2,280.00 | L56: 13,380.00 | M56: 13,320.00 | O56: 2021-03-31 | P56: 38.99
C57: 2022-10-27 | D57: 743,000.00 | E57: 723,000.00 | F57: 773,000.00 | G57: 753,000.00 | H57: 678,000.00 | I57: 658,000.00 | J57: 2,330.00 | K57: 2,290.00 | L57: 13,380.00 | M57: 13,320.00 | O57: 2021-02-28 | P57: 38.39
C58: 2022-10-26 | D58: 743,000.00 | E58: 723,000.00 | F58: 773,000.00 | G58: 753,000.00 | H58: 681,000.00 | I58: 661,000.00 | J58: 2,350.00 | K58: 2,310.00 | L58: 13,380.00 | M58: 13,320.00 | O58: 2021-01-31 | P58: 38.57
C59: 2022-10-25 | D59: 743,000.00 | E59: 723,000.00 | F59: 773,000.00 | G59: 753,000.00 | H59: 681,000.00 | I59: 661,000.00 | J59: 2,350.00 | K59: 2,310.00 | L59: 13,380.00 | M59: 13,320.00 | O59: 2020-12-31 | P59: 31.16
C60: 2022-10-24 | D60: 743,000.00 | E60: 723,000.00 | F60: 773,000.00 | G60: 753,000.00 | H60: 678,000.00 | I60: 658,000.00 | J60: 2,350.00 | K60: 2,310.00 | L60: 13,330.00 | M60: 13,270.00 | O60: 2020-11-30 | P60: 25.82
C61: 2022-10-21 | D61: 743,000.00 | E61: 723,000.00 | F61: 773,000.00 | G61: 753,000.00 | H61: 678,000.00 | I61: 658,000.00 | J61: 2,340.00 | K61: 2,300.00 | L61: 13,330.00 | M61: 13,270.00 | O61: 2020-10-31 | P61: 25.03
C62: 2022-10-20 | D62: 743,000.00 | E62: 723,000.00 | F62: 773,000.00 | G62: 753,000.00 | H62: 678,000.00 | I62: 658,000.00 | J62: 2,340.00 | K62: 2,300.00 | L62: 13,330.00 | M62: 13,270.00 | O62: 2020-09-30 | P62: 26.74
C63: 2022-10-19 | D63: 743,000.00 | E63: 723,000.00 | F63: 773,000.00 | G63: 753,000.00 | H63: 683,000.00 | I63: 663,000.00 | J63: 2,345.00 | K63: 2,305.00 | L63: 13,330.00 | M63: 13,270.00 | O63: 2020-08-31 | P63: 22.18
C64: 2022-10-18 | D64: 750,000.00 | E64: 730,000.00 | F64: 775,000.00 | G64: 755,000.00 | H64: 688,000.00 | I64: 668,000.00 | J64: 2,350.00 | K64: 2,310.00 | L64: 13,290.00 | M64: 13,230.00 | O64: 2020-07-31 | P64: 20.55
C65: 2022-10-17 | D65: 755,000.00 | E65: 735,000.00 | F65: 778,000.00 | G65: 758,000.00 | H65: 695,000.00 | I65: 675,000.00 | J65: 2,350.00 | K65: 2,310.00 | L65: 13,185.00 | M65: 13,125.00 | O65: 2020-06-30 | P65: 21.98
C66: 2022-10-14 | D66: 755,000.00 | E66: 735,000.00 | F66: 778,000.00 | G66: 758,000.00 | H66: 697,000.00 | I66: 677,000.00 | J66: 2,350.00 | K66: 2,310.00 | L66: 13,185.00 | M66: 13,125.00 | O66: 2020-05-31 | P66: 27.94
C67: 2022-10-13 | D67: 755,000.00 | E67: 735,000.00 | F67: 778,000.00 | G67: 758,000.00 | H67: 700,000.00 | I67: 680,000.00 | J67: 2,350.00 | K67: 2,310.00 | L67: 13,130.00 | M67: 13,070.00 | O67: 2020-04-30 | P67: 28.96
C68: 2022-10-12 | D68: 755,000.00 | E68: 735,000.00 | F68: 778,000.00 | G68: 758,000.00 | H68: 700,000.00 | I68: 680,000.00 | J68: 2,350.00 | K68: 2,310.00 | L68: 13,130.00 | M68: 13,070.00 | O68: 2020-03-31 | P68: 34.64
C69: 2022-10-11 | D69: 755,000.00 | E69: 735,000.00 | F69: 773,000.00 | G69: 753,000.00 | H69: 700,000.00 | I69: 680,000.00 | J69: 2,350.00 | K69: 2,310.00 | L69: 13,130.00 | M69: 13,070.00 | O69: 2020-02-29 | P69: 23.90
C70: 2022-10-10 | D70: 755,000.00 | E70: 735,000.00 | F70: 773,000.00 | G70: 753,000.00 | H70: 705,000.00 | I70: 685,000.00 | J70: 2,350.00 | K70: 2,310.00 | L70: 13,130.00 | M70: 13,070.00 | O70: 2020-01-31 | P70: 32.44
C71: 2022-10-09 | D71: 755,000.00 | E71: 735,000.00 | F71: 765,000.00 | G71: 745,000.00 | H71: 691,000.00 | I71: 671,000.00 | J71: 2,330.00 | K71: 2,290.00 | L71: 13,030.00 | M71: 12,970.00 | O71: 2019-12-31 | P71: 30.29
C72: 2022-10-08 | D72: 743,000.00 | E72: 723,000.00 | F72: 753,000.00 | G72: 733,000.00 | H72: 683,000.00 | I72: 663,000.00 | J72: 2,320.00 | K72: 2,280.00 | L72: 13,030.00 | M72: 12,970.00 | O72: 2019-11-30 | P72: 35.11
C73: 2022-09-30 | D73: 743,000.00 | E73: 723,000.00 | F73: 753,000.00 | G73: 733,000.00 | H73: 683,000.00 | I73: 663,000.00 | J73: 2,320.00 | K73: 2,280.00 | L73: 13,030.00 | M73: 12,970.00 | O73: 2019-09-30 | P73: 41.00
C74: 2022-09-29 | D74: 743,000.00 | E74: 723,000.00 | F74: 753,000.00 | G74: 733,000.00 | H74: 680,000.00 | I74: 660,000.00 | J74: 2,310.00 | K74: 2,270.00 | L74: 12,930.00 | M74: 12,870.00 | O74: 2019-08-31 | P74: 41.13
C75: 2022-09-28 | D75: 743,000.00 | E75: 723,000.00 | F75: 753,000.00 | G75: 733,000.00 | H75: 680,000.00 | I75: 660,000.00 | J75: 2,300.00 | K75: 2,260.00 | L75: 12,930.00 | M75: 12,870.00 | O75: 2019-07-31 | P75: 31.23
C76: 2022-09-27 | D76: 743,000.00 | E76: 723,000.00 | F76: 753,000.00 | G76: 733,000.00 | H76: 680,000.00 | I76: 660,000.00 | J76: 2,300.00 | K76: 2,260.00 | L76: 12,930.00 | M76: 12,870.00 | O76: 2019-06-30 | P76: 28.55
C77: 2022-09-26 | D77: 720,000.00 | E77: 700,000.00 | F77: 735,000.00 | G77: 715,000.00 | H77: 663,000.00 | I77: 643,000.00 | J77: 2,290.00 | K77: 2,250.00 | L77: 12,905.00 | M77: 12,845.00 | O77: 2019-05-31 | P77: 24.87
C78: 2022-09-23 | D78: 720,000.00 | E78: 700,000.00 | F78: 725,000.00 | G78: 705,000.00 | H78: 645,000.00 | I78: 625,000.00 | J78: 2,270.00 | K78: 2,230.00 | L78: 12,870.00 | M78: 12,810.00 | O78: 2019-04-30 | P78: 38.04
C79: 2022-09-22 | D79: 720,000.00 | E79: 700,000.00 | F79: 725,000.00 | G79: 705,000.00 | H79: 645,000.00 | I79: 625,000.00 | J79: 2,260.00 | K79: 2,220.00 | L79: 12,855.00 | M79: 12,795.00 | O79: 2019-03-31 | P79: 25.13
C80: 2022-09-21 | D80: 720,000.00 | E80: 700,000.00 | F80: 725,000.00 | G80: 705,000.00 | H80: 650,000.00 | I80: 630,000.00 | J80: 2,215.00 | K80: 2,175.00 | L80: 12,830.00 | M80: 12,770.00 | O80: 2019-02-28 | P80: 27.13
C81: 2022-09-20 | D81: 720,000.00 | E81: 700,000.00 | F81: 725,000.00 | G81: 705,000.00 | H81: 675,000.00 | I81: 655,000.00 | J81: 2,210.00 | K81: 2,170.00 | L81: 12,830.00 | M81: 12,770.00 | O81: 2019-01-31 | P81: 25.34
C82: 2022-09-19 | D82: 670,000.00 | E82: 650,000.00 | F82: 680,000.00 | G82: 660,000.00 | H82: 625,000.00 | I82: 605,000.00 | J82: 2,195.00 | K82: 2,155.00 | L82: 12,780.00 | M82: 12,720.00 | O82: 2018-12-31 | P82: 26.70
C83: 2022-09-16 | D83: 658,000.00 | E83: 638,000.00 | F83: 670,000.00 | G83: 650,000.00 | H83: 613,000.00 | I83: 593,000.00 | J83: 2,195.00 | K83: 2,155.00 | L83: 12,780.00 | M83: 12,720.00 | O83: 2018-11-30 | P83: 26.48
C84: 2022-09-15 | D84: 648,000.00 | E84: 628,000.00 | F84: 663,000.00 | G84: 643,000.00 | H84: 610,000.00 | I84: 590,000.00 | J84: 2,195.00 | K84: 2,155.00 | L84: 12,780.00 | M84: 12,720.00 | O84: 2018-10-31 | P84: 26.31
C85: 2022-09-14 | D85: 648,000.00 | E85: 628,000.00 | F85: 663,000.00 | G85: 643,000.00 | H85: 610,000.00 | I85: 590,000.00 | J85: 2,195.00 | K85: 2,155.00 | L85: 12,780.00 | M85: 12,720.00 | O85: 2018-09-30 | P85: 25.50
C86: 2022-09-13 | D86: 640,000.00 | E86: 620,000.00 | F86: 648,000.00 | G86: 628,000.00 | H86: 610,000.00 | I86: 590,000.00 | J86: 2,195.00 | K86: 2,155.00 | L86: 12,780.00 | M86: 12,720.00 | O86: 2018-08-31 | P86: 25.81
C87: 2022-09-09 | D87: 640,000.00 | E87: 620,000.00 | F87: 638,000.00 | G87: 618,000.00 | H87: 608,000.00 | I87: 588,000.00 | J87: 2,195.00 | K87: 2,155.00 | L87: 12,780.00 | M87: 12,720.00 | O87: 2018-07-31 | P87: 27.70
C88: 2022-09-08 | D88: 640,000.00 | E88: 620,000.00 | F88: 638,000.00 | G88: 618,000.00 | H88: 600,000.00 | I88: 580,000.00 | J88: 2,195.00 | K88: 2,155.00 | L88: 12,780.00 | M88: 12,720.00 | O88: 2018-06-30 | P88: 31.91
C89: 2022-09-07 | D89: 640,000.00 | E89: 620,000.00 | F89: 635,000.00 | G89: 615,000.00 | H89: 593,000.00 | I89: 573,000.00 | J89: 2,195.00 | K89: 2,155.00 | L89: 12,780.00 | M89: 12,720.00 | O89: 2018-05-31 | P89: 29.09
C90: 2022-09-06 | D90: 640,000.00 | E90: 620,000.00 | F90: 635,000.00 | G90: 615,000.00 | H90: 593,000.00 | I90: 573,000.00 | J90: 2,195.00 | K90: 2,155.00 | L90: 12,780.00 | M90: 12,720.00 | O90: 2018-04-30 | P90: 25.05
C91: 2022-09-05 | D91: 645,000.00 | E91: 625,000.00 | F91: 638,000.00 | G91: 618,000.00 | H91: 598,000.00 | I91: 578,000.00 | J91: 2,195.00 | K91: 2,155.00 | L91: 12,780.00 | M91: 12,720.00 | O91: 2018-03-31 | P91: 34.50
C92: 2022-09-02 | D92: 665,000.00 | E92: 645,000.00 | F92: 658,000.00 | G92: 638,000.00 | H92: 612,000.00 | I92: 592,000.00 | J92: 2,195.00 | K92: 2,155.00 | L92: 12,855.00 | M92: 12,795.00 | O92: 2018-02-28 | P92: 29.64
C93: 2022-09-01 | D93: 676,000.00 | E93: 656,000.00 | F93: 673,000.00 | G93: 653,000.00 | H93: 627,000.00 | I93: 607,000.00 | J93: 2,200.00 | K93: 2,160.00 | L93: 12,980.00 | M93: 12,920.00 | O93: 2018-01-31 | P93: 29.49
C94: 2022-08-31 | D94: 685,000.00 | E94: 665,000.00 | F94: 680,000.00 | G94: 660,000.00 | H94: 633,000.00 | I94: 613,000.00 | J94: 2,200.00 | K94: 2,160.00 | L94: 12,980.00 | M94: 12,920.00 | O94: 2017-12-31 | P94: 32.03
C95: 2022-08-30 | D95: 690,000.00 | E95: 670,000.00 | F95: 685,000.00 | G95: 665,000.00 | H95: 636,000.00 | I95: 616,000.00 | J95: 2,205.00 | K95: 2,165.00 | L95: 13,010.00 | M95: 12,950.00 | O95: 2017-11-30 | P95: 24.76
C96: 2022-08-29 | D96: 705,000.00 | E96: 685,000.00 | F96: 698,000.00 | G96: 678,000.00 | H96: 636,000.00 | I96: 616,000.00 | J96: 2,205.00 | K96: 2,165.00 | L96: 13,080.00 | M96: 13,020.00 | O96: 2017-10-31 | P96: 35.67
C97: 2022-08-26 | D97: 705,000.00 | E97: 685,000.00 | F97: 698,000.00 | G97: 678,000.00 | H97: 636,000.00 | I97: 616,000.00 | J97: 2,220.00 | K97: 2,180.00 | L97: 13,130.00 | M97: 13,070.00 | O97: 2017-09-30 | P97: 21.07
C98: 2022-08-25 | D98: 705,000.00 | E98: 685,000.00 | F98: 698,000.00 | G98: 678,000.00 | H98: 648,000.00 | I98: 628,000.00 | J98: 2,220.00 | K98: 2,180.00 | L98: 13,180.00 | M98: 13,120.00 | O98: 2017-08-31 | P98: 26.02
C99: 2022-08-24 | D99: 710,000.00 | E99: 690,000.00 | F99: 705,000.00 | G99: 685,000.00 | H99: 648,000.00 | I99: 628,000.00 | J99: 2,225.00 | K99: 2,185.00 | L99: 13,280.00 | M99: 13,220.00 | O99: 2017-07-31 | P99: 22.18
C100: 2022-08-23 | D100: 730,000.00 | E100: 710,000.00 | F100: 725,000.00 | G100: 705,000.00 | H100: 648,000.00 | I100: 628,000.00 | J100: 2,245.00 | K100: 2,205.00 | L100: 13,380.00 | M100: 13,320.00 | O100: 2017-06-30 | P100: 20.53
C101: 2022-08-22 | D101: 745,000.00 | E101: 725,000.00 | F101: 740,000.00 | G101: 720,000.00 | H101: 670,000.00 | I101: 650,000.00 | J101: 2,260.00 | K101: 2,220.00 | L101: 13,505.00 | M101: 13,445.00 | O101: 2017-05-31 | P101: 27.16
C102: 2022-08-19 | D102: 775,000.00 | E102: 755,000.00 | F102: 768,000.00 | G102: 748,000.00 | H102: 715,000.00 | I102: 695,000.00 | J102: 2,270.00 | K102: 2,230.00 | L102: 13,580.00 | M102: 13,520.00 | O102: 2017-04-30 | P102: 26.29
C103: 2022-08-18 | D103: 790,000.00 | E103: 770,000.00 | F103: 780,000.00 | G103: 760,000.00 | H103: 738,000.00 | I103: 718,000.00 | J103: 2,280.00 | K103: 2,240.00 | L103: 13,605.00 | M103: 13,545.00 | O103: 2017-03-31 | P103: 20.04
C104: 2022-08-17 | D104: 795,000.00 | E104: 775,000.00 | F104: 785,000.00 | G104: 765,000.00 | H104: 748,000.00 | I104: 728,000.00 | J104: 2,280.00 | K104: 2,240.00 | L104: 13,605.00 | M104: 13,545.00 | O104: 2017-02-28 | P104: 24.01
C105: 2022-08-16 | D105: 805,000.00 | E105: 785,000.00 | F105: 795,000.00 | G105: 775,000.00 | H105: 753,000.00 | I105: 733,000.00 | J105: 2,290.00 | K105: 2,250.00 | L105: 13,650.00 | M105: 13,590.00 | O105: 2017-01-31 | P105: 21.63
C106: 2022-08-15 | D106: 805,000.00 | E106: 785,000.00 | F106: 795,000.00 | G106: 775,000.00 | H106: 755,000.00 | I106: 735,000.00 | J106: 2,290.00 | K106: 2,250.00 | L106: 13,680.00 | M106: 13,620.00 | O106: 2016-12-31 | P106: 24.34
C107: 2022-08-12 | D107: 815,000.00 | E107: 795,000.00 | F107: 805,000.00 | G107: 785,000.00 | H107: 757,000.00 | I107: 737,000.00 | J107: 2,290.00 | K107: 2,250.00 | L107: 13,680.00 | M107: 13,620.00 | O107: 2016-11-30 | P107: 20.25
C108: 2022-08-11 | D108: 815,000.00 | E108: 795,000.00 | F108: 805,000.00 | G108: 785,000.00 | H108: 763,000.00 | I108: 743,000.00 | J108: 2,290.00 | K108: 2,250.00 | L108: 13,705.00 | M108: 13,645.00 | O108: 2016-10-31 | P108: 29.60
C109: 2022-08-10 | D109: 815,000.00 | E109: 795,000.00 | F109: 805,000.00 | G109: 785,000.00 | H109: 763,000.00 | I109: 743,000.00 | J109: 2,300.00 | K109: 2,260.00 | L109: 13,755.00 | M109: 13,695.00 | O109: 2016-09-30 | P109: 24.43
C110: 2022-08-09 | D110: 815,000.00 | E110: 795,000.00 | F110: 810,000.00 | G110: 790,000.00 | H110: 765,000.00 | I110: 745,000.00 | J110: 2,310.00 | K110: 2,270.00 | L110: 13,780.00 | M110: 13,720.00 | O110: 2016-08-31 | P110: 27.63
C111: 2022-08-08 | D111: 815,000.00 | E111: 795,000.00 | F111: 815,000.00 | G111: 795,000.00 | H111: 765,000.00 | I111: 745,000.00 | J111: 2,330.00 | K111: 2,290.00 | L111: 13,780.00 | M111: 13,720.00 | O111: 2016-07-31 | P111: 24.31
C112: 2022-08-05 | D112: 815,000.00 | E112: 795,000.00 | F112: 815,000.00 | G112: 795,000.00 | H112: 765,000.00 | I112: 745,000.00 | J112: 2,340.00 | K112: 2,300.00 | L112: 13,880.00 | M112: 13,820.00 | O112: 2016-06-30 | P112: 24.03
C113: 2022-08-04 | D113: 815,000.00 | E113: 795,000.00 | F113: 815,000.00 | G113: 795,000.00 | H113: 765,000.00 | I113: 745,000.00 | J113: 2,340.00 | K113: 2,300.00 | L113: 13,880.00 | M113: 13,820.00 | O113: 2016-05-31 | P113: 24.75
C114: 2022-08-03 | D114: 826,000.00 | E114: 806,000.00 | F114: 821,000.00 | G114: 801,000.00 | H114: 778,000.00 | I114: 758,000.00 | J114: 2,355.00 | K114: 2,315.00 | L114: 13,930.00 | M114: 13,870.00 | O114: 2016-04-30 | P114: 29.76
C115: 2022-08-02 | D115: 835,000.00 | E115: 815,000.00 | F115: 825,000.00 | G115: 805,000.00 | H115: 785,000.00 | I115: 765,000.00 | J115: 2,355.00 | K115: 2,315.00 | L115: 13,930.00 | M115: 13,870.00 | O115: 2016-03-31 | P115: 23.50
C116: 2022-08-01 | D116: 865,000.00 | E116: 845,000.00 | F116: 865,000.00 | G116: 845,000.00 | H116: 805,000.00 | I116: 785,000.00 | J116: 2,370.00 | K116: 2,330.00 | L116: 13,930.00 | M116: 13,870.00 | O116: 2016-02-29 | P116: 30.63
C117: 2022-07-29 | D117: 865,000.00 | E117: 845,000.00 | F117: 865,000.00 | G117: 845,000.00 | H117: 818,000.00 | I117: 798,000.00 | J117: 2,370.00 | K117: 2,330.00 | L117: 13,930.00 | M117: 13,870.00 | O117: 2016-01-31 | P117: 27.49
C118: 2022-07-28 | D118: 868,000.00 | E118: 848,000.00 | F118: 868,000.00 | G118: 848,000.00 | H118: 830,000.00 | I118: 810,000.00 | J118: 2,370.00 | K118: 2,330.00 | L118: 13,900.00 | M118: 13,840.00 | O118: 2015-12-31 | P118: 23.22
C119: 2022-07-27 | D119: 872,000.00 | E119: 852,000.00 | F119: 873,000.00 | G119: 853,000.00 | H119: 838,000.00 | I119: 818,000.00 | J119: 2,370.00 | K119: 2,330.00 | L119: 13,880.00 | M119: 13,820.00 | O119: 2015-11-30 | P119: 30.87
C120: 2022-07-26 | D120: 875,000.00 | E120: 855,000.00 | F120: 875,000.00 | G120: 855,000.00 | H120: 838,000.00 | I120: 818,000.00 | J120: 2,370.00 | K120: 2,330.00 | L120: 13,780.00 | M120: 13,720.00 | O120: 2015-10-31 | P120: 19.21
C121: 2022-07-25 | D121: 875,000.00 | E121: 855,000.00 | F121: 875,000.00 | G121: 855,000.00 | H121: 828,000.00 | I121: 808,000.00 | J121: 2,365.00 | K121: 2,325.00 | L121: 13,680.00 | M121: 13,620.00 | O121: 2015-09-30 | P121: 30.17
C122: 2022-07-22 | D122: 875,000.00 | E122: 855,000.00 | F122: 875,000.00 | G122: 855,000.00 | H122: 823,000.00 | I122: 803,000.00 | J122: 2,365.00 | K122: 2,325.00 | L122: 13,630.00 | M122: 13,570.00 | O122: 2015-08-31 | P122: 35.59
C123: 2022-07-21 | D123: 875,000.00 | E123: 855,000.00 | F123: 875,000.00 | G123: 855,000.00 | H123: 823,000.00 | I123: 803,000.00 | J123: 2,365.00 | K123: 2,325.00 | L123: 13,630.00 | M123: 13,570.00 | O123: 2015-07-31 | P123: 42.58
C124: 2022-07-20 | D124: 883,000.00 | E124: 863,000.00 | F124: 883,000.00 | G124: 863,000.00 | H124: 828,000.00 | I124: 808,000.00 | J124: 2,370.00 | K124: 2,330.00 | L124: 13,630.00 | M124: 13,570.00 | O124: 2015-06-30 | P124: 45.79
C125: 2022-07-19 | D125: 895,000.00 | E125: 875,000.00 | F125: 893,000.00 | G125: 873,000.00 | H125: 836,000.00 | I125: 816,000.00 | J125: 2,370.00 | K125: 2,330.00 | L125: 13,630.00 | M125: 13,570.00 | O125: 2015-05-31 | P125: 46.44
C126: 2022-07-18 | D126: 901,000.00 | E126: 881,000.00 | F126: 901,000.00 | G126: 881,000.00 | H126: 841,000.00 | I126: 821,000.00 | J126: 2,370.00 | K126: 2,330.00 | L126: 13,580.00 | M126: 13,520.00 | O126: 2015-04-30 | P126: 57.54
C127: 2022-07-15 | D127: 915,000.00 | E127: 895,000.00 | F127: 915,000.00 | G127: 895,000.00 | H127: 848,000.00 | I127: 828,000.00 | J127: 2,370.00 | K127: 2,330.00 | L127: 13,580.00 | M127: 13,520.00 | O127: 2015-03-31 | P127: 72.81
C128: 2022-07-14 | D128: 926,000.00 | E128: 906,000.00 | F128: 925,000.00 | G128: 905,000.00 | H128: 858,000.00 | I128: 838,000.00 | J128: 2,380.00 | K128: 2,340.00 | L128: 13,580.00 | M128: 13,520.00 | O128: 2015-02-28 | P128: 44.26
C129: 2022-07-13 | D129: 933,000.00 | E129: 913,000.00 | F129: 935,000.00 | G129: 915,000.00 | H129: 870,000.00 | I129: 850,000.00 | J129: 2,390.00 | K129: 2,350.00 | L129: 13,630.00 | M129: 13,570.00 | O129: 2015-01-31 | P129: 47.29
C130: 2022-07-12 | D130: 935,000.00 | E130: 915,000.00 | F130: 939,000.00 | G130: 919,000.00 | H130: 880,000.00 | I130: 860,000.00 | J130: 2,410.00 | K130: 2,370.00 | L130: 13,680.00 | M130: 13,620.00 | O130: 2014-12-31 | P130: 53.91
C131: 2022-07-11 | D131: 953,000.00 | E131: 933,000.00 | F131: 948,000.00 | G131: 928,000.00 | H131: 898,000.00 | I131: 878,000.00 | J131: 2,440.00 | K131: 2,400.00 | L131: 13,780.00 | M131: 13,720.00 | O131: 2014-11-30 | P131: 55.87
C132: 2022-07-08 | D132: 963,000.00 | E132: 943,000.00 | F132: 959,000.00 | G132: 939,000.00 | H132: 905,000.00 | I132: 885,000.00 | J132: 2,450.00 | K132: 2,410.00 | L132: 13,880.00 | M132: 13,820.00 | O132: 2014-10-31 | P132: 58.36
C133: 2022-07-07 | D133: 973,000.00 | E133: 953,000.00 | F133: 967,000.00 | G133: 947,000.00 | H133: 913,000.00 | I133: 893,000.00 | J133: 2,460.00 | K133: 2,420.00 | L133: 13,880.00 | M133: 13,820.00 | O133: 2014-09-30 | P133: 53.15
C134: 2022-07-06 | D134: 976,000.00 | E134: 956,000.00 | F134: 972,000.00 | G134: 952,000.00 | H134: 918,000.00 | I134: 898,000.00 | J134: 2,470.00 | K134: 2,430.00 | L134: 13,980.00 | M134: 13,920.00 | O134: 2014-08-31 | P134: 57.09
C135: 2022-07-05 | D135: 983,000.00 | E135: 963,000.00 | F135: 974,000.00 | G135: 954,000.00 | H135: 930,000.00 | I135: 910,000.00 | J135: 2,490.00 | K135: 2,450.00 | L135: 13,980.00 | M135: 13,920.00 | O135: 2014-07-31 | P135: 58.61
C136: 2022-07-04 | D136: 983,000.00 | E136: 963,000.00 | F136: 974,000.00 | G136: 954,000.00 | H136: 933,000.00 | I136: 913,000.00 | J136: 2,490.00 | K136: 2,450.00 | L136: 13,980.00 | M136: 13,920.00 | O136: 2014-06-30 | P136: 44.98
C137: 2022-07-01 | D137: 983,000.00 | E137: 963,000.00 | F137: 974,000.00 | G137: 954,000.00 | H137: 938,000.00 | I137: 918,000.00 | J137: 2,490.00 | K137: 2,450.00 | L137: 13,980.00 | M137: 13,920.00 | O137: 2014-05-31 | P137: 53.30
C138: 2022-06-30 | D138: 983,000.00 | E138: 963,000.00 | F138: 979,000.00 | G138: 959,000.00 | H138: 943,000.00 | I138: 923,000.00 | J138: 2,500.00 | K138: 2,460.00 | L138: 14,080.00 | M138: 14,020.00 | O138: 2014-04-30 | P138: 58.50
C139: 2022-06-29 | D139: 983,000.00 | E139: 963,000.00 | F139: 979,000.00 | G139: 959,000.00 | H139: 943,000.00 | I139: 923,000.00 | J139: 2,510.00 | K139: 2,470.00 | L139: 14,110.00 | M139: 14,050.00 | O139: 2014-03-31 | P139: 48.18
C140: 2022-06-28 | D140: 983,000.00 | E140: 963,000.00 | F140: 983,000.00 | G140: 963,000.00 | H140: 943,000.00 | I140: 923,000.00 | J140: 2,520.00 | K140: 2,480.00 | L140: 14,180.00 | M140: 14,120.00 | O140: 2014-02-28 | P140: 71.37
C141: 2022-06-27 | D141: 983,000.00 | E141: 963,000.00 | F141: 983,000.00 | G141: 963,000.00 | H141: 945,000.00 | I141: 925,000.00 | J141: 2,535.00 | K141: 2,495.00 | L141: 14,350.00 | M141: 14,290.00 | O141: 2014-01-31 | P141: 56.37
C142: 2022-06-24 | D142: 983,000.00 | E142: 963,000.00 | F142: 983,000.00 | G142: 963,000.00 | H142: 945,000.00 | I142: 925,000.00 | J142: 2,535.00 | K142: 2,495.00 | L142: 14,350.00 | M142: 14,290.00 | O142: 2013-12-31 | P142: 55.51
C143: 2022-06-23 | D143: 983,000.00 | E143: 963,000.00 | F143: 983,000.00 | G143: 963,000.00 | H143: 945,000.00 | I143: 925,000.00 | J143: 2,535.00 | K143: 2,495.00 | L143: 14,350.00 | M143: 14,290.00 | O143: 2013-11-30 | P143: 58.41
C144: 2022-06-22 | D144: 985,000.00 | E144: 965,000.00 | F144: 989,000.00 | G144: 969,000.00 | H144: 948,000.00 | I144: 928,000.00 | J144: 2,545.00 | K144: 2,505.00 | L144: 14,380.00 | M144: 14,320.00 | O144: 2013-10-31 | P144: 65.01
C145: 2022-06-21 | D145: 993,000.00 | E145: 973,000.00 | F145: 994,000.00 | G145: 974,000.00 | H145: 953,000.00 | I145: 933,000.00 | J145: 2,555.00 | K145: 2,515.00 | L145: 14,430.00 | M145: 14,370.00 | O145: 2013-09-30 | P145: 53.75
C146: 2022-06-20 | D146: 993,000.00 | E146: 973,000.00 | F146: 994,000.00 | G146: 974,000.00 | H146: 958,000.00 | I146: 938,000.00 | J146: 2,560.00 | K146: 2,520.00 | L146: 14,480.00 | M146: 14,420.00 | O146: 2013-08-31 | P146: 41.33
C147: 2022-06-17 | D147: 993,000.00 | E147: 973,000.00 | F147: 994,000.00 | G147: 974,000.00 | H147: 960,000.00 | I147: 940,000.00 | J147: 2,560.00 | K147: 2,520.00 | L147: 14,480.00 | M147: 14,420.00 | O147: 2013-07-31 | P147: 47.99
C148: 2022-06-16 | D148: 993,000.00 | E148: 973,000.00 | F148: 994,000.00 | G148: 974,000.00 | H148: 963,000.00 | I148: 943,000.00 | J148: 2,560.00 | K148: 2,520.00 | L148: 14,480.00 | M148: 14,420.00 | O148: 2013-06-30 | P148: 54.17
C149: 2022-06-15 | D149: 993,000.00 | E149: 973,000.00 | F149: 994,000.00 | G149: 974,000.00 | H149: 970,000.00 | I149: 950,000.00 | J149: 2,560.00 | K149: 2,520.00 | L149: 14,490.00 | M149: 14,430.00 | O149: 2013-05-31 | P149: 67.77
C150: 2022-06-14 | D150: 993,000.00 | E150: 973,000.00 | F150: 994,000.00 | G150: 974,000.00 | H150: 975,000.00 | I150: 955,000.00 | J150: 2,560.00 | K150: 2,520.00 | L150: 14,490.00 | M150: 14,430.00 | O150: 2013-04-30 | P150: 50.00
C151: 2022-06-13 | D151: 993,000.00 | E151: 973,000.00 | F151: 994,000.00 | G151: 974,000.00 | H151: 975,000.00 | I151: 955,000.00 | J151: 2,560.00 | K151: 2,520.00 | L151: 14,490.00 | M151: 14,430.00 | O151: 2013-03-31 | P151: 67.42
C152: 2022-06-10 | D152: 993,000.00 | E152: 973,000.00 | F152: 994,000.00 | G152: 974,000.00 | H152: 975,000.00 | I152: 955,000.00 | J152: 2,570.00 | K152: 2,530.00 | L152: 14,550.00 | M152: 14,490.00 | O152: 2013-02-28 | P152: 49.29
C153: 2022-06-09 | D153: 988,000.00 | E153: 968,000.00 | F153: 994,000.00 | G153: 974,000.00 | H153: 978,000.00 | I153: 958,000.00 | J153: 2,580.00 | K153: 2,540.00 | L153: 14,580.00 | M153: 14,520.00 | O153: 2013-01-31 | P153: 67.09
C154: 2022-06-08 | D154: 988,000.00 | E154: 968,000.00 | F154: 994,000.00 | G154: 974,000.00 | H154: 978,000.00 | I154: 958,000.00 | J154: 2,590.00 | K154: 2,550.00 | L154: 14,580.00 | M154: 14,520.00 | O154: 2012-12-31 | P154: 86.87
C155: 2022-06-07 | D155: 988,000.00 | E155: 968,000.00 | F155: 994,000.00 | G155: 974,000.00 | H155: 978,000.00 | I155: 958,000.00 | J155: 2,590.00 | K155: 2,550.00 | L155: 14,580.00 | M155: 14,520.00 | O155: 2012-11-30 | P155: 66.28
C156: 2022-06-06 | D156: 986,000.00 | E156: 966,000.00 | F156: 989,000.00 | G156: 969,000.00 | H156: 968,000.00 | I156: 948,000.00 | J156: 2,590.00 | K156: 2,550.00 | L156: 14,580.00 | M156: 14,520.00 | O156: 2012-10-31 | P156: 63.85
C157: 2022-06-02 | D157: 983,000.00 | E157: 963,000.00 | F157: 980,000.00 | G157: 960,000.00 | H157: 965,000.00 | I157: 945,000.00 | J157: 2,590.00 | K157: 2,550.00 | L157: 14,580.00 | M157: 14,520.00 | O157: 2012-09-30 | P157: 57.83
C158: 2022-06-01 | D158: 983,000.00 | E158: 963,000.00 | F158: 980,000.00 | G158: 960,000.00 | H158: 963,000.00 | I158: 943,000.00 | J158: 2,600.00 | K158: 2,560.00 | L158: 14,580.00 | M158: 14,520.00 | O158: 2012-08-31 | P158: 61.50
C159: 2022-05-31 | D159: 983,000.00 | E159: 963,000.00 | F159: 980,000.00 | G159: 960,000.00 | H159: 963,000.00 | I159: 943,000.00 | J159: 2,620.00 | K159: 2,580.00 | L159: 14,580.00 | M159: 14,520.00 | O159: 2012-07-31 | P159: 64.05
C160: 2022-05-30 | D160: 983,000.00 | E160: 963,000.00 | F160: 980,000.00 | G160: 960,000.00 | H160: 960,000.00 | I160: 940,000.00 | J160: 2,620.00 | K160: 2,580.00 | L160: 14,580.00 | M160: 14,520.00 | O160: 2012-06-30 | P160: 73.79
C161: 2022-05-27 | D161: 970,000.00 | E161: 950,000.00 | F161: 978,000.00 | G161: 958,000.00 | H161: 960,000.00 | I161: 940,000.00 | J161: 2,630.00 | K161: 2,590.00 | L161: 14,580.00 | M161: 14,520.00 | O161: 2012-05-31 | P161: 81.50
C162: 2022-05-26 | D162: 970,000.00 | E162: 950,000.00 | F162: 978,000.00 | G162: 958,000.00 | H162: 960,000.00 | I162: 940,000.00 | J162: 2,630.00 | K162: 2,590.00 | L162: 14,580.00 | M162: 14,520.00 | O162: 2012-04-30 | P162: 90.92
C163: 2022-05-25 | D163: 960,000.00 | E163: 940,000.00 | F163: 975,000.00 | G163: 955,000.00 | H163: 955,000.00 | I163: 935,000.00 | J163: 2,630.00 | K163: 2,590.00 | L163: 14,580.00 | M163: 14,520.00 | O163: 2012-03-31 | P163: 93.27
C164: 2022-05-24 | D164: 960,000.00 | E164: 940,000.00 | F164: 975,000.00 | G164: 955,000.00 | H164: 955,000.00 | I164: 935,000.00 | J164: 2,630.00 | K164: 2,590.00 | L164: 14,580.00 | M164: 14,520.00 | O164: 2012-02-29 | P164: 108.74
C165: 2022-05-23 | D165: 960,000.00 | E165: 940,000.00 | F165: 975,000.00 | G165: 955,000.00 | H165: 948,000.00 | I165: 928,000.00 | J165: 2,630.00 | K165: 2,590.00 | L165: 14,580.00 | M165: 14,520.00 | O165: 2012-01-31 | P165: 96.15
C166: 2022-05-20 | D166: 960,000.00 | E166: 940,000.00 | F166: 975,000.00 | G166: 955,000.00 | H166: 938,000.00 | I166: 918,000.00 | J166: 2,630.00 | K166: 2,590.00 | L166: 14,580.00 | M166: 14,520.00 | O166: 2011-12-31 | P166: 108.60
C167: 2022-05-19 | D167: 960,000.00 | E167: 940,000.00 | F167: 975,000.00 | G167: 955,000.00 | H167: 945,000.00 | I167: 925,000.00 | J167: 2,635.00 | K167: 2,595.00 | L167: 14,730.00 | M167: 14,670.00 | O167: 2011-11-30 | P167: 108.26
C168: 2022-05-18 | D168: 960,000.00 | E168: 940,000.00 | F168: 975,000.00 | G168: 955,000.00 | H168: 950,000.00 | I168: 930,000.00 | J168: 2,640.00 | K168: 2,600.00 | L168: 14,930.00 | M168: 14,870.00 | O168: 2011-10-31 | P168: 135.33
C169: 2022-05-17 | D169: 950,000.00 | E169: 930,000.00 | F169: 965,000.00 | G169: 945,000.00 | H169: 945,000.00 | I169: 925,000.00 | J169: 2,660.00 | K169: 2,620.00 | L169: 15,010.00 | M169: 14,950.00 | O169: 2011-09-30 | P169: 119.11
C170: 2022-05-16 | D170: 935,000.00 | E170: 915,000.00 | F170: 948,000.00 | G170: 928,000.00 | H170: 935,000.00 | I170: 915,000.00 | J170: 2,660.00 | K170: 2,620.00 | L170: 15,010.00 | M170: 14,950.00 | O170: 2011-08-31 | P170: 97.65
C171: 2022-05-13 | D171: 925,000.00 | E171: 905,000.00 | F171: 945,000.00 | G171: 925,000.00 | H171: 925,000.00 | I171: 905,000.00 | J171: 2,660.00 | K171: 2,620.00 | L171: 15,010.00 | M171: 14,950.00 | O171: 2011-07-31 | P171: 96.52
C172: 2022-05-12 | D172: 925,000.00 | E172: 905,000.00 | F172: 945,000.00 | G172: 925,000.00 | H172: 925,000.00 | I172: 905,000.00 | J172: 2,660.00 | K172: 2,620.00 | L172: 15,010.00 | M172: 14,950.00 | O172: 2011-06-30 | P172: 52.81
C173: 2022-05-11 | D173: 925,000.00 | E173: 905,000.00 | F173: 945,000.00 | G173: 925,000.00 | H173: 925,000.00 | I173: 905,000.00 | J173: 2,655.00 | K173: 2,615.00 | L173: 14,930.00 | M173: 14,870.00 | O173: 2011-05-31 | P173: 45.58
C174: 2022-05-10 | D174: 925,000.00 | E174: 905,000.00 | F174: 940,000.00 | G174: 920,000.00 | H174: 910,000.00 | I174: 890,000.00 | J174: 2,645.00 | K174: 2,605.00 | L174: 14,680.00 | M174: 14,620.00 | O174: 2011-04-30 | P174: 36.91
C175: 2022-05-09 | D175: 910,000.00 | E175: 890,000.00 | F175: 920,000.00 | G175: 900,000.00 | H175: 885,000.00 | I175: 865,000.00 | J175: 2,620.00 | K175: 2,580.00 | L175: 14,580.00 | M175: 14,520.00 | O175: 2011-03-31 | P175: 28.21
C176: 2022-05-07 | D176: 910,000.00 | E176: 890,000.00 | F176: 920,000.00 | G176: 900,000.00 | H176: 873,000.00 | I176: 853,000.00 | J176: 2,620.00 | K176: 2,580.00 | L176: 14,480.00 | M176: 14,420.00 | O176: 2011-02-28 | P176: 25.27
C177: 2022-05-06 | D177: 890,000.00 | E177: 870,000.00 | F177: 896,000.00 | G177: 876,000.00 | H177: 873,000.00 | I177: 853,000.00 | J177: 2,620.00 | K177: 2,580.00 | L177: 14,480.00 | M177: 14,420.00 | O177: 2011-01-31 | P177: 28.32
C178: 2022-05-05 | D178: 880,000.00 | E178: 860,000.00 | F178: 896,000.00 | G178: 876,000.00 | H178: 866,000.00 | I178: 846,000.00 | J178: 2,610.00 | K178: 2,570.00 | L178: 14,430.00 | M178: 14,370.00 | O178: 2010-12-31 | P178: 28.14
C179: 2022-04-29 | D179: 880,000.00 | E179: 860,000.00 | F179: 896,000.00 | G179: 876,000.00 | H179: 860,000.00 | I179: 840,000.00 | J179: 2,610.00 | K179: 2,570.00 | L179: 14,430.00 | M179: 14,370.00 | O179: 2010-11-30 | P179: 19.38
C180: 2022-04-28 | D180: 880,000.00 | E180: 860,000.00 | F180: 896,000.00 | G180: 876,000.00 | H180: 856,000.00 | I180: 836,000.00 | J180: 2,610.00 | K180: 2,570.00 | L180: 14,430.00 | M180: 14,370.00 | O180: 2010-10-31 | P180: 20.92
C181: 2022-04-27 | D181: 880,000.00 | E181: 860,000.00 | F181: 896,000.00 | G181: 876,000.00 | H181: 860,000.00 | I181: 840,000.00 | J181: 2,610.00 | K181: 2,570.00 | L181: 14,430.00 | M181: 14,370.00 | O181: 2010-09-30 | P181: 23.95
C182: 2022-04-26 | D182: 880,000.00 | E182: 860,000.00 | F182: 893,000.00 | G182: 873,000.00 | H182: 860,000.00 | I182: 840,000.00 | J182: 2,610.00 | K182: 2,570.00 | L182: 14,430.00 | M182: 14,370.00 | O182: 2010-08-31 | P182: 18.98
C183: 2022-04-25 | D183: 880,000.00 | E183: 860,000.00 | F183: 893,000.00 | G183: 873,000.00 | H183: 860,000.00 | I183: 840,000.00 | J183: 2,610.00 | K183: 2,570.00 | L183: 14,430.00 | M183: 14,370.00 | O183: 2010-07-31 | P183: 19.04
C184: 2022-04-24 | D184: 880,000.00 | E184: 860,000.00 | F184: 893,000.00 | G184: 873,000.00 | H184: 850,000.00 | I184: 830,000.00 | J184: 2,610.00 | K184: 2,570.00 | L184: 14,130.00 | M184: 14,070.00 | O184: 2010-06-30 | P184: 19.04
C185: 2022-04-22 | D185: 880,000.00 | E185: 860,000.00 | F185: 893,000.00 | G185: 873,000.00 | H185: 850,000.00 | I185: 830,000.00 | J185: 2,610.00 | K185: 2,570.00 | L185: 14,130.00 | M185: 14,070.00 | O185: 2010-05-31 | P185: 17.95
C186: 2022-04-21 | D186: 880,000.00 | E186: 860,000.00 | F186: 893,000.00 | G186: 873,000.00 | H186: 850,000.00 | I186: 830,000.00 | J186: 2,610.00 | K186: 2,570.00 | L186: 14,130.00 | M186: 14,070.00 | O186: 2010-04-30 | P186: 17.62
C187: 2022-04-20 | D187: 880,000.00 | E187: 860,000.00 | F187: 893,000.00 | G187: 873,000.00 | H187: 860,000.00 | I187: 840,000.00 | J187: 2,620.00 | K187: 2,580.00 | L187: 14,130.00 | M187: 14,070.00 | O187: 2010-03-31 | P187: 16.95
C188: 2022-04-19 | D188: 873,000.00 | E188: 853,000.00 | F188: 883,000.00 | G188: 863,000.00 | H188: 860,000.00 | I188: 840,000.00 | J188: 2,590.00 | K188: 2,550.00 | L188: 13,580.00 | M188: 13,520.00 | O188: 2010-02-28 | P188: 15.37
C189: 2022-04-18 | D189: 873,000.00 | E189: 853,000.00 | F189: 883,000.00 | G189: 863,000.00 | H189: 845,000.00 | I189: 825,000.00 | J189: 2,545.00 | K189: 2,505.00 | L189: 13,330.00 | M189: 13,270.00 | O189: 2010-01-31 | P189: 16.14
C190: 2022-04-15 | D190: 873,000.00 | E190: 853,000.00 | F190: 883,000.00 | G190: 863,000.00 | H190: 830,000.00 | I190: 810,000.00 | J190: 2,470.00 | K190: 2,430.00 | L190: 12,800.00 | M190: 12,740.00
C191: 2022-04-14 | D191: 883,000.00 | E191: 863,000.00 | F191: 888,000.00 | G191: 868,000.00 | H191: 825,000.00 | I191: 805,000.00 | J191: 2,470.00 | K191: 2,430.00 | L191: 12,730.00 | M191: 12,670.00
C192: 2022-04-13 | D192: 906,000.00 | E192: 886,000.00 | F192: 913,000.00 | G192: 893,000.00 | H192: 832,000.00 | I192: 812,000.00 | J192: 2,470.00 | K192: 2,430.00 | L192: 12,750.00 | M192: 12,690.00
C193: 2022-04-12 | D193: 918,000.00 | E193: 898,000.00 | F193: 931,000.00 | G193: 911,000.00 | H193: 862,000.00 | I193: 842,000.00 | J193: 2,520.00 | K193: 2,480.00 | L193: 12,830.00 | M193: 12,770.00
C194: 2022-04-11 | D194: 935,000.00 | E194: 915,000.00 | F194: 950,000.00 | G194: 930,000.00 | H194: 885,000.00 | I194: 865,000.00 | J194: 2,575.00 | K194: 2,535.00 | L194: 12,980.00 | M194: 12,920.00
C195: 2022-04-08 | D195: 946,000.00 | E195: 926,000.00 | F195: 968,000.00 | G195: 948,000.00 | H195: 907,000.00 | I195: 887,000.00 | J195: 2,620.00 | K195: 2,580.00 | L195: 13,060.00 | M195: 13,000.00
C196: 2022-04-07 | D196: 955,000.00 | E196: 935,000.00 | F196: 978,000.00 | G196: 958,000.00 | H196: 915,000.00 | I196: 895,000.00 | J196: 2,630.00 | K196: 2,590.00 | L196: 13,130.00 | M196: 13,070.00
C197: 2022-04-06 | D197: 960,000.00 | E197: 940,000.00 | F197: 993,000.00 | G197: 973,000.00 | H197: 925,000.00 | I197: 905,000.00 | J197: 2,660.00 | K197: 2,620.00 | L197: 13,130.00 | M197: 13,070.00
C198: 2022-04-02 | D198: 960,000.00 | E198: 940,000.00 | F198: 993,000.00 | G198: 973,000.00 | H198: 925,000.00 | I198: 905,000.00 | J198: 2,660.00 | K198: 2,620.00 | L198: 13,130.00 | M198: 13,070.00
C199: 2022-04-01 | D199: 963,000.00 | E199: 943,000.00 | F199: 1,014,000.00 | G199: 994,000.00 | H199: 936,000.00 | I199: 916,000.00 | J199: 2,670.00 | K199: 2,630.00 | L199: 13,210.00 | M199: 13,150.00
C200: 2022-03-31 | D200: 979,000.00 | E200: 959,000.00 | F200: 1,031,000.00 | G200: 1,011,000.00 | H200: 965,000.00 | I200: 945,000.00 | J200: 2,730.00 | K200: 2,690.00 | L200: 13,480.00 | M200: 13,420.00
C201: 2022-03-30 | D201: 986,000.00 | E201: 966,000.00 | F201: 1,038,000.00 | G201: 1,018,000.00 | H201: 977,000.00 | I201: 957,000.00 | J201: 2,780.00 | K201: 2,740.00 | L201: 13,520.00 | M201: 13,460.00
C202: 2022-03-29 | D202: 994,000.00 | E202: 974,000.00 | F202: 1,051,000.00 | G202: 1,031,000.00 | H202: 987,000.00 | I202: 967,000.00 | J202: 2,830.00 | K202: 2,790.00 | L202: 13,730.00 | M202: 13,670.00
C203: 2022-03-28 | D203: 998,000.00 | E203: 978,000.00 | F203: 1,058,000.00 | G203: 1,038,000.00 | H203: 1,000,000.00 | I203: 980,000.00 | J203: 2,860.00 | K203: 2,820.00 | L203: 13,780.00 | M203: 13,720.00
C204: 2022-03-25 | D204: 1,010,000.00 | E204: 990,000.00 | F204: 1,068,000.00 | G204: 1,048,000.00 | H204: 1,002,000.00 | I204: 982,000.00 | J204: 2,870.00 | K204: 2,830.00 | L204: 13,850.00 | M204: 13,790.00
C205: 2022-03-24 | D205: 1,018,000.00 | E205: 998,000.00 | F205: 1,073,000.00 | G205: 1,053,000.00 | H205: 1,002,000.00 | I205: 982,000.00 | J205: 2,880.00 | K205: 2,840.00 | L205: 13,880.00 | M205: 13,820.00
C206: 2022-03-23 | D206: 1,028,000.00 | E206: 1,008,000.00 | F206: 1,083,000.00 | G206: 1,063,000.00 | H206: 1,007,000.00 | I206: 987,000.00 | J206: 2,910.00 | K206: 2,870.00 | L206: 13,950.00 | M206: 13,890.00
C207: 2022-03-22 | D207: 1,038,000.00 | E207: 1,018,000.00 | F207: 1,104,000.00 | G207: 1,084,000.00 | H207: 1,012,000.00 | I207: 992,000.00 | J207: 2,920.00 | K207: 2,880.00 | L207: 13,970.00 | M207: 13,910.00
C208: 2022-03-21 | D208: 1,060,000.00 | E208: 1,040,000.00 | F208: 1,133,000.00 | G208: 1,113,000.00 | H208: 1,029,000.00 | I208: 1,009,000.00 | J208: 2,940.00 | K208: 2,900.00 | L208: 14,140.00 | M208: 14,080.00
C209: 2022-03-18 | D209: 1,066,000.00 | E209: 1,046,000.00 | F209: 1,135,000.00 | G209: 1,115,000.00 | H209: 1,033,000.00 | I209: 1,013,000.00 | J209: 2,960.00 | K209: 2,920.00 | L209: 14,300.00 | M209: 14,240.00
C210: 2022-03-17 | D210: 1,066,000.00 | E210: 1,046,000.00 | F210: 1,148,000.00 | G210: 1,128,000.00 | H210: 1,038,000.00 | I210: 1,018,000.00 | J210: 2,980.00 | K210: 2,940.00 | L210: 14,500.00 | M210: 14,440.00
C211: 2022-03-16 | D211: 1,069,000.00 | E211: 1,049,000.00 | F211: 1,163,000.00 | G211: 1,143,000.00 | H211: 1,048,000.00 | I211: 1,028,000.00 | J211: 3,010.00 | K211: 2,970.00 | L211: 14,780.00 | M211: 14,720.00
C212: 2022-03-15 | D212: 1,078,000.00 | E212: 1,058,000.00 | F212: 1,168,000.00 | G212: 1,148,000.00 | H212: 1,058,000.00 | I212: 1,038,000.00 | J212: 3,030.00 | K212: 2,990.00 | L212: 14,850.00 | M212: 14,790.00
C213: 2022-03-14 | D213: 1,088,000.00 | E213: 1,068,000.00 | F213: 1,175,000.00 | G213: 1,155,000.00 | H213: 1,065,000.00 | I213: 1,045,000.00 | J213: 3,060.00 | K213: 3,020.00 | L213: 14,900.00 | M213: 14,840.00
C214: 2022-03-11 | D214: 1,088,000.00 | E214: 1,068,000.00 | F214: 1,180,000.00 | G214: 1,160,000.00 | H214: 1,075,000.00 | I214: 1,055,000.00 | J214: 3,080.00 | K214: 3,040.00 | L214: 14,930.00 | M214: 14,870.00
C215: 2022-03-10 | D215: 1,093,000.00 | E215: 1,073,000.00 | F215: 1,186,000.00 | G215: 1,166,000.00 | H215: 1,084,000.00 | I215: 1,064,000.00 | J215: 3,080.00 | K215: 3,040.00 | L215: 14,980.00 | M215: 14,920.00
C216: 2022-03-09 | D216: 1,100,000.00 | E216: 1,080,000.00 | F216: 1,200,000.00 | G216: 1,180,000.00 | H216: 1,099,000.00 | I216: 1,079,000.00 | J216: 3,110.00 | K216: 3,070.00 | L216: 15,080.00 | M216: 15,020.00
C217: 2022-03-08 | D217: 1,100,000.00 | E217: 1,080,000.00 | F217: 1,210,000.00 | G217: 1,190,000.00 | H217: 1,105,000.00 | I217: 1,085,000.00 | J217: 3,120.00 | K217: 3,080.00 | L217: 15,130.00 | M217: 15,070.00
C218: 2022-03-07 | D218: 1,100,000.00 | E218: 1,080,000.00 | F218: 1,218,000.00 | G218: 1,198,000.00 | H218: 1,113,000.00 | I218: 1,093,000.00 | J218: 3,130.00 | K218: 3,090.00 | L218: 15,180.00 | M218: 15,120.00
C219: 2022-03-04 | D219: 1,100,000.00 | E219: 1,080,000.00 | F219: 1,220,000.00 | G219: 1,200,000.00 | H219: 1,113,000.00 | I219: 1,093,000.00 | J219: 3,130.00 | K219: 3,090.00 | L219: 15,200.00 | M219: 15,140.00
C220: 2022-03-03 | D220: 1,100,000.00 | E220: 1,080,000.00 | F220: 1,220,000.00 | G220: 1,200,000.00 | H220: 1,111,000.00 | I220: 1,091,000.00 | J220: 3,135.00 | K220: 3,095.00 | L220: 15,240.00 | M220: 15,180.00
C221: 2022-03-02 | D221: 1,100,000.00 | E221: 1,080,000.00 | F221: 1,220,000.00 | G221: 1,200,000.00 | H221: 1,110,000.00 | I221: 1,090,000.00 | J221: 3,140.00 | K221: 3,100.00 | L221: 15,280.00 | M221: 15,220.00
C222: 2022-03-01 | D222: 1,100,000.00 | E222: 1,080,000.00 | F222: 1,220,000.00 | G222: 1,200,000.00 | H222: 1,110,000.00 | I222: 1,090,000.00 | J222: 3,140.00 | K222: 3,100.00 | L222: 15,280.00 | M222: 15,220.00
C223: 2022-02-28 | D223: 1,100,000.00 | E223: 1,080,000.00 | F223: 1,220,000.00 | G223: 1,200,000.00 | H223: 1,110,000.00 | I223: 1,090,000.00 | J223: 3,150.00 | K223: 3,110.00 | L223: 15,280.00 | M223: 15,220.00
C224: 2022-02-25 | D224: 1,100,000.00 | E224: 1,080,000.00 | F224: 1,220,000.00 | G224: 1,200,000.00 | H224: 1,110,000.00 | I224: 1,090,000.00 | J224: 3,150.00 | K224: 3,110.00 | L224: 15,280.00 | M224: 15,220.00
C225: 2022-02-24 | D225: 1,100,000.00 | E225: 1,080,000.00 | F225: 1,225,000.00 | G225: 1,205,000.00 | H225: 1,115,000.00 | I225: 1,095,000.00 | J225: 3,160.00 | K225: 3,120.00 | L225: 15,320.00 | M225: 15,260.00
C226: 2022-02-23 | D226: 1,100,000.00 | E226: 1,080,000.00 | F226: 1,225,000.00 | G226: 1,205,000.00 | H226: 1,115,000.00 | I226: 1,095,000.00 | J226: 3,165.00 | K226: 3,125.00 | L226: 15,270.00 | M226: 15,210.00
C227: 2022-02-22 | D227: 1,100,000.00 | E227: 1,080,000.00 | F227: 1,225,000.00 | G227: 1,205,000.00 | H227: 1,115,000.00 | I227: 1,095,000.00 | J227: 3,165.00 | K227: 3,125.00 | L227: 15,270.00 | M227: 15,210.00
C228: 2022-02-21 | D228: 1,091,000.00 | E228: 1,071,000.00 | F228: 1,210,000.00 | G228: 1,190,000.00 | H228: 1,105,000.00 | I228: 1,085,000.00 | J228: 3,160.00 | K228: 3,120.00 | L228: 15,030.00 | M228: 14,970.00
C229: 2022-02-18 | D229: 1,091,000.00 | E229: 1,071,000.00 | F229: 1,210,000.00 | G229: 1,190,000.00 | H229: 1,105,000.00 | I229: 1,085,000.00 | J229: 3,160.00 | K229: 3,120.00 | L229: 15,030.00 | M229: 14,970.00
C230: 2022-02-17 | D230: 1,091,000.00 | E230: 1,071,000.00 | F230: 1,210,000.00 | G230: 1,190,000.00 | H230: 1,100,000.00 | I230: 1,080,000.00 | J230: 3,160.00 | K230: 3,120.00 | L230: 15,030.00 | M230: 14,970.00
C231: 2022-02-16 | D231: 1,091,000.00 | E231: 1,071,000.00 | F231: 1,210,000.00 | G231: 1,190,000.00 | H231: 1,100,000.00 | I231: 1,080,000.00 | J231: 3,160.00 | K231: 3,120.00 | L231: 15,030.00 | M231: 14,970.00
C232: 2022-02-15 | D232: 1,091,000.00 | E232: 1,071,000.00 | F232: 1,210,000.00 | G232: 1,190,000.00 | H232: 1,105,000.00 | I232: 1,085,000.00 | J232: 3,160.00 | K232: 3,120.00 | L232: 15,030.00 | M232: 14,970.00
C233: 2022-02-14 | D233: 1,048,000.00 | E233: 1,028,000.00 | F233: 1,188,000.00 | G233: 1,168,000.00 | H233: 1,090,000.00 | I233: 1,070,000.00 | J233: 3,150.00 | K233: 3,110.00 | L233: 14,690.00 | M233: 14,630.00
C234: 2022-02-11 | D234: 1,015,000.00 | E234: 995,000.00 | F234: 1,148,000.00 | G234: 1,128,000.00 | H234: 1,035,000.00 | I234: 1,015,000.00 | J234: 3,090.00 | K234: 3,050.00 | L234: 14,215.00 | M234: 14,155.00
C235: 2022-02-10 | D235: 975,000.00 | E235: 955,000.00 | F235: 1,128,000.00 | G235: 1,108,000.00 | H235: 1,003,000.00 | I235: 983,000.00 | J235: 3,065.00 | K235: 3,025.00 | L235: 13,860.00 | M235: 13,800.00
... 2020 more rows

Sheet 光伏材料
A1: 目录
C19: 周平均价:光伏级多晶硅(美元/千克) | F19: EVA:扬子巴斯夫V5110J(元/吨)
B20: 2022-11-16 | C20: 34.15 | E20: 2022-11-23 | F20: 17,100.00
B21: 2022-11-09 | C21: 33.62 | E21: 2022-11-22 | F21: 17,300.00
B22: 2022-11-02 | C22: 33.71 | E22: 2022-11-21 | F22: 17,300.00
B23: 2022-10-26 | C23: 35.34 | E23: 2022-11-18 | F23: 17,300.00
B24: 2022-10-19 | C24: 35.39 | E24: 2022-11-17 | F24: 17,300.00
B25: 2022-10-12 | C25: 35.74 | E25: 2022-11-16 | F25: 17,350.00
B26: 2022-10-05 | C26: 35.84 | E26: 2022-11-15 | F26: 17,400.00
B27: 2022-09-28 | C27: 35.86 | E27: 2022-11-14 | F27: 17,500.00
B28: 2022-09-21 | C28: 36.65 | E28: 2022-11-11 | F28: 17,500.00
B29: 2022-09-14 | C29: 37.07 | E29: 2022-11-10 | F29: 17,500.00
B30: 2022-09-07 | C30: 37.39 | E30: 2022-11-09 | F30: 18,300.00
B31: 2022-08-31 | C31: 37.71 | E31: 2022-11-08 | F31: 18,600.00
B32: 2022-08-24 | C32: 38.13 | E32: 2022-11-07 | F32: 19,900.00
B33: 2022-08-17 | C33: 38.32 | E33: 2022-11-04 | F33: 20,800.00
B34: 2022-08-10 | C34: 38.32 | E34: 2022-11-02 | F34: 20,800.00
B35: 2022-08-03 | C35: 38.32 | E35: 2022-11-01 | F35: 20,800.00
B36: 2022-07-27 | C36: 38.32 | E36: 2022-10-31 | F36: 21,000.00
B37: 2022-07-20 | C37: 37.13 | E37: 2022-10-28 | F37: 21,000.00
B38: 2022-07-13 | C38: 37.00 | E38: 2022-10-27 | F38: 21,000.00
B39: 2022-07-06 | C39: 35.53 | E39: 2022-10-26 | F39: 21,000.00
B40: 2022-06-29 | C40: 35.13 | E40: 2022-10-25 | F40: 21,000.00
B41: 2022-06-22 | C41: 33.15 | E41: 2022-10-24 | F41: 21,600.00
B42: 2022-06-15 | C42: 32.56 | E42: 2022-10-21 | F42: 21,600.00
B43: 2022-06-08 | C43: 32.48 | E43: 2022-10-20 | F43: 21,600.00
B44: 2022-06-01 | C44: 32.28 | E44: 2022-10-19 | F44: 21,600.00
B45: 2022-05-25 | C45: 32.28 | E45: 2022-10-18 | F45: 22,350.00
B46: 2022-05-18 | C46: 31.84 | E46: 2022-10-17 | F46: 22,350.00
B47: 2022-05-11 | C47: 31.96 | E47: 2022-10-14 | F47: 22,400.00
B48: 2022-05-04 | C48: 32.12 | E48: 2022-10-13 | F48: 22,600.00
B49: 2022-04-27 | C49: 32.12 | E49: 2022-10-12 | F49: 22,600.00
B50: 2022-04-20 | C50: 32.87 | E50: 2022-10-11 | F50: 22,600.00
B51: 2022-04-13 | C51: 32.87 | E51: 2022-10-10 | F51: 22,700.00
B52: 2022-04-06 | C52: 32.87 | E52: 2022-10-09 | F52: 22,700.00
B53: 2022-03-30 | C53: 32.87 | E53: 2022-10-08 | F53: 22,700.00
B54: 2022-03-23 | C54: 32.87 | E54: 2022-09-30 | F54: 22,700.00
B55: 2022-03-16 | C55: 32.94 | E55: 2022-09-29 | F55: 22,700.00
B56: 2022-03-09 | C56: 33.07 | E56: 2022-09-28 | F56: 22,700.00
B57: 2022-03-02 | C57: 33.20 | E57: 2022-09-27 | F57: 22,700.00
B58: 2022-02-23 | C58: 33.05 | E58: 2022-09-26 | F58: 22,700.00
B59: 2022-02-16 | C59: 32.70 | E59: 2022-09-23 | F59: 22,700.00
B60: 2022-02-09 | C60: 32.70 | E60: 2022-09-22 | F60: 22,700.00
B61: 2022-02-02 | C61: 32.70 | E61: 2022-09-21 | F61: 22,700.00
B62: 2022-01-26 | C62: 32.15 | E62: 2022-09-20 | F62: 23,500.00
B63: 2022-01-19 | C63: 32.05 | E63: 2022-09-19 | F63: 23,800.00
B64: 2022-01-12 | C64: 30.56 | E64: 2022-09-16 | F64: 23,800.00
B65: 2022-01-05 | C65: 29.87 | E65: 2022-09-15 | F65: 24,100.00
B66: 2021-12-29 | C66: 29.16 | E66: 2022-09-14 | F66: 24,100.00
B67: 2021-12-22 | C67: 29.16 | E67: 2022-09-13 | F67: 23,000.00
B68: 2021-12-15 | C68: 30.00 | E68: 2022-09-09 | F68: 23,000.00
B69: 2021-12-08 | C69: 31.65 | E69: 2022-09-08 | F69: 23,000.00
B70: 2021-12-01 | C70: 32.00 | E70: 2022-09-07 | F70: 23,000.00
B71: 2021-11-24 | C71: 35.08 | E71: 2022-09-06 | F71: 23,000.00
B72: 2021-11-17 | C72: 35.36 | E72: 2022-09-05 | F72: 23,000.00
B73: 2021-11-10 | C73: 35.61 | E73: 2022-09-02 | F73: 22,000.00
B74: 2021-11-03 | C74: 35.81 | E74: 2022-09-01 | F74: 19,000.00
B75: 2021-10-27 | C75: 35.81 | E75: 2022-08-31 | F75: 19,000.00
B76: 2021-10-20 | C76: 35.81 | E76: 2022-08-30 | F76: 19,000.00
B77: 2021-10-13 | C77: 35.53 | E77: 2022-08-29 | F77: 19,000.00
B78: 2021-10-06 | C78: 33.74 | E78: 2022-08-26 | F78: 19,000.00
B79: 2021-09-29 | C79: 32.62 | E79: 2022-08-25 | F79: 19,000.00
B80: 2021-09-22 | C80: 28.79 | E80: 2022-08-24 | F80: 19,000.00
B81: 2021-09-15 | C81: 28.55 | E81: 2022-08-23 | F81: 19,000.00
B82: 2021-09-08 | C82: 28.00 | E82: 2022-08-22 | F82: 19,000.00
B83: 2021-09-01 | C83: 28.00 | E83: 2022-08-19 | F83: 19,000.00
B84: 2021-08-25 | C84: 28.00 | E84: 2022-08-18 | F84: 19,000.00
B85: 2021-08-18 | C85: 27.45 | E85: 2022-08-17 | F85: 19,000.00
B86: 2021-08-11 | C86: 27.34 | E86: 2022-08-16 | F86: 19,400.00
B87: 2021-08-04 | C87: 26.95 | E87: 2022-08-15 | F87: 20,000.00
B88: 2021-07-28 | C88: 26.76 | E88: 2022-08-12 | F88: 20,000.00
B89: 2021-07-21 | C89: 26.90 | E89: 2022-08-11 | F89: 20,000.00
B90: 2021-07-14 | C90: 27.11 | E90: 2022-08-10 | F90: 20,000.00
B91: 2021-07-07 | C91: 27.35 | E91: 2022-08-09 | F91: 20,000.00
B92: 2021-06-30 | C92: 27.63 | E92: 2022-08-08 | F92: 21,200.00
B93: 2021-06-23 | C93: 27.63 | E93: 2022-08-05 | F93: 21,300.00
B94: 2021-06-16 | C94: 29.41 | E94: 2022-08-04 | F94: 21,500.00
B95: 2021-06-09 | C95: 29.41 | E95: 2022-08-03 | F95: 21,500.00
B96: 2021-06-02 | C96: 29.11 | E96: 2022-08-02 | F96: 22,000.00
B97: 2021-05-26 | C97: 28.72 | E97: 2022-08-01 | F97: 22,000.00
B98: 2021-05-19 | C98: 25.88 | E98: 2022-07-29 | F98: 22,500.00
B99: 2021-05-12 | C99: 23.56 | E99: 2022-07-28 | F99: 22,500.00
B100: 2021-05-05 | C100: 20.29 | E100: 2022-07-27 | F100: 22,500.00
B101: 2021-04-28 | C101: 20.02 | E101: 2022-07-26 | F101: 23,000.00
B102: 2021-04-21 | C102: 19.40 | E102: 2022-07-25 | F102: 23,000.00
B103: 2021-04-14 | C103: 17.86 | E103: 2022-07-22 | F103: 23,300.00
B104: 2021-04-07 | C104: 16.07 | E104: 2022-07-21 | F104: 23,300.00
B105: 2021-03-31 | C105: 16.07 | E105: 2022-07-20 | F105: 23,300.00
B106: 2021-03-24 | C106: 15.63 | E106: 2022-07-19 | F106: 23,300.00
B107: 2021-03-17 | C107: 15.63 | E107: 2022-07-18 | F107: 23,300.00
B108: 2021-03-10 | C108: 15.63 | E108: 2022-07-15 | F108: 23,300.00
B109: 2021-03-03 | C109: 15.63 | E109: 2022-07-14 | F109: 23,300.00
B110: 2021-02-24 | C110: 13.28 | E110: 2022-07-13 | F110: 23,300.00
B111: 2021-02-17 | C111: 12.06 | E111: 2022-07-12 | F111: 23,300.00
B112: 2021-02-10 | C112: 12.06 | E112: 2022-07-11 | F112: 24,000.00
B113: 2021-02-03 | C113: 11.47 | E113: 2022-07-08 | F113: 24,000.00
B114: 2021-01-27 | C114: 11.47 | E114: 2022-07-07 | F114: 24,500.00
B115: 2021-01-20 | C115: 11.09 | E115: 2022-07-06 | F115: 24,900.00
B116: 2021-01-13 | C116: 10.79 | E116: 2022-07-05 | F116: 25,200.00
B117: 2021-01-06 | C117: 10.79 | E117: 2022-07-04 | F117: 26,200.00
B118: 2020-12-30 | C118: 10.57 | E118: 2022-07-01 | F118: 26,200.00
B119: 2020-12-23 | C119: 10.35 | E119: 2022-06-30 | F119: 26,200.00
B120: 2020-12-16 | C120: 10.06 | E120: 2022-06-29 | F120: 26,500.00
B121: 2020-12-09 | C121: 9.62 | E121: 2022-06-27 | F121: 26,500.00
B122: 2020-12-02 | C122: 9.75 | E122: 2022-06-24 | F122: 26,500.00
B123: 2020-11-25 | C123: 9.95 | E123: 2022-06-23 | F123: 26,500.00
B124: 2020-11-18 | C124: 10.12 | E124: 2022-06-22 | F124: 26,500.00
B125: 2020-11-11 | C125: 10.18 | E125: 2022-06-21 | F125: 26,500.00
B126: 2020-11-04 | C126: 10.23 | E126: 2022-06-17 | F126: 26,500.00
B127: 2020-10-28 | C127: 10.39 | E127: 2022-06-16 | F127: 26,500.00
B128: 2020-10-21 | C128: 10.59 | E128: 2022-06-15 | F128: 26,500.00
B129: 2020-10-14 | C129: 10.55 | E129: 2022-06-14 | F129: 26,500.00
B130: 2020-10-07 | C130: 10.63 | E130: 2022-06-13 | F130: 26,500.00
B131: 2020-09-30 | C131: 10.64 | E131: 2022-06-10 | F131: 26,500.00
B132: 2020-09-23 | C132: 10.80 | E132: 2022-06-09 | F132: 26,500.00
B133: 2020-09-16 | C133: 10.84 | E133: 2022-06-08 | F133: 26,500.00
B134: 2020-09-09 | C134: 10.86 | E134: 2022-06-07 | F134: 26,500.00
B135: 2020-09-02 | C135: 10.86 | E135: 2022-06-06 | F135: 26,500.00
B136: 2020-08-26 | C136: 10.86 | E136: 2022-06-02 | F136: 26,100.00
B137: 2020-08-19 | C137: 10.86 | E137: 2022-06-01 | F137: 26,100.00
B138: 2020-08-12 | C138: 10.68 | E138: 2022-05-31 | F138: 25,800.00
B139: 2020-08-05 | C139: 10.07 | E139: 2022-05-30 | F139: 25,800.00
B140: 2020-07-29 | C140: 9.41 | E140: 2022-05-27 | F140: 25,800.00
B141: 2020-07-22 | C141: 8.21 | E141: 2022-05-26 | F141: 25,800.00
B142: 2020-07-15 | C142: 6.83 | E142: 2022-05-25 | F142: 25,800.00
B143: 2020-07-08 | C143: 6.65 | E143: 2022-05-24 | F143: 25,800.00
B144: 2020-07-01 | C144: 6.43 | E144: 2022-05-23 | F144: 25,800.00
B145: 2020-06-24 | C145: 6.19 | E145: 2022-05-20 | F145: 25,800.00
B146: 2020-06-17 | C146: 6.19 | E146: 2022-05-19 | F146: 25,800.00
B147: 2020-06-10 | C147: 6.21 | E147: 2022-05-18 | F147: 26,600.00
B148: 2020-06-03 | C148: 6.23 | E148: 2022-05-17 | F148: 26,600.00
B149: 2020-05-27 | C149: 6.25 | E149: 2022-05-16 | F149: 26,600.00
B150: 2020-05-20 | C150: 6.28 | E150: 2022-05-13 | F150: 26,600.00
B151: 2020-05-13 | C151: 6.35 | E151: 2022-05-12 | F151: 26,800.00
B152: 2020-05-06 | C152: 6.40 | E152: 2022-05-11 | F152: 26,800.00
B153: 2020-04-29 | C153: 6.43 | E153: 2022-05-10 | F153: 26,900.00
B154: 2020-04-22 | C154: 6.43 | E154: 2022-05-09 | F154: 26,900.00
B155: 2020-04-15 | C155: 6.46 | E155: 2022-05-07 | F155: 26,200.00
B156: 2020-04-08 | C156: 6.64 | E156: 2022-05-06 | F156: 25,700.00
B157: 2020-04-01 | C157: 6.79 | E157: 2022-05-05 | F157: 25,700.00
B158: 2020-03-25 | C158: 6.94 | E158: 2022-04-29 | F158: 25,700.00
B159: 2020-03-18 | C159: 6.98 | E159: 2022-04-28 | F159: 25,700.00
B160: 2020-03-11 | C160: 7.04 | E160: 2022-04-27 | F160: 25,700.00
B161: 2020-03-04 | C161: 7.07 | E161: 2022-04-26 | F161: 25,700.00
B162: 2020-02-26 | C162: 7.07 | E162: 2022-04-25 | F162: 25,800.00
B163: 2020-02-19 | C163: 7.07 | E163: 2022-04-24 | F163: 25,800.00
B164: 2020-02-12 | C164: 7.10 | E164: 2022-04-22 | F164: 25,500.00
B165: 2020-02-05 | C165: 7.10 | E165: 2022-04-21 | F165: 25,500.00
B166: 2020-01-29 | C166: 7.10 | E166: 2022-04-20 | F166: 25,500.00
B167: 2020-01-22 | C167: 7.10 | E167: 2022-04-19 | F167: 25,500.00
B168: 2020-01-15 | C168: 7.12 | E168: 2022-04-18 | F168: 25,500.00
B169: 2020-01-08 | C169: 7.13 | E169: 2022-04-15 | F169: 24,900.00
B170: 2020-01-01 | C170: 7.15 | E170: 2022-04-14 | F170: 24,900.00
B171: 2019-12-25 | C171: 7.18 | E171: 2022-04-13 | F171: 25,000.00
B172: 2019-12-18 | C172: 7.28 | E172: 2022-04-12 | F172: 25,000.00
B173: 2019-12-11 | C173: 7.41 | E173: 2022-04-11 | F173: 25,000.00
B174: 2019-12-04 | C174: 7.43 | E174: 2022-04-08 | F174: 24,500.00
B175: 2019-11-27 | C175: 7.46 | E175: 2022-04-07 | F175: 24,500.00
B176: 2019-11-20 | C176: 7.50 | E176: 2022-04-06 | F176: 24,300.00
B177: 2019-11-13 | C177: 7.53 | E177: 2022-04-01 | F177: 23,200.00
B178: 2019-11-06 | C178: 7.58 | E178: 2022-03-31 | F178: 23,200.00
B179: 2019-10-30 | C179: 7.58 | E179: 2022-03-30 | F179: 23,000.00
B180: 2019-10-23 | C180: 7.61 | E180: 2022-03-29 | F180: 22,600.00
B181: 2019-10-16 | C181: 7.61 | E181: 2022-03-28 | F181: 22,600.00
B182: 2019-10-09 | C182: 7.61 | E182: 2022-03-25 | F182: 22,600.00
B183: 2019-10-02 | C183: 7.61 | E183: 2022-03-24 | F183: 22,600.00
B184: 2019-09-25 | C184: 7.61 | E184: 2022-03-23 | F184: 22,600.00
B185: 2019-09-18 | C185: 7.61 | E185: 2022-03-22 | F185: 22,600.00
B186: 2019-09-11 | C186: 7.62 | E186: 2022-03-18 | F186: 22,600.00
B187: 2019-09-04 | C187: 7.66 | E187: 2022-03-17 | F187: 22,600.00
B188: 2019-08-28 | C188: 7.76 | E188: 2022-03-16 | F188: 23,100.00
B189: 2019-08-21 | C189: 7.83 | E189: 2022-03-15 | F189: 23,300.00
B190: 2019-08-14 | C190: 7.88 | E190: 2022-03-14 | F190: 23,500.00
B191: 2019-08-07 | C191: 7.92 | E191: 2022-03-11 | F191: 23,500.00
B192: 2019-07-31 | C192: 8.03 | E192: 2022-03-10 | F192: 23,000.00
B193: 2019-07-24 | C193: 8.06 | E193: 2022-03-09 | F193: 23,000.00
B194: 2019-07-17 | C194: 8.08 | E194: 2022-03-08 | F194: 22,800.00
B195: 2019-07-10 | C195: 8.09 | E195: 2022-03-07 | F195: 22,100.00
B196: 2019-07-03 | C196: 8.12 | E196: 2022-03-04 | F196: 21,800.00
B197: 2019-06-26 | C197: 8.14 | E197: 2022-03-03 | F197: 21,700.00
B198: 2019-06-19 | C198: 8.16 | E198: 2022-03-02 | F198: 21,500.00
B199: 2019-06-12 | C199: 8.18 | E199: 2022-02-25 | F199: 21,200.00
B200: 2019-06-05 | C200: 8.18 | E200: 2022-02-24 | F200: 21,500.00
B201: 2019-05-29 | C201: 8.30 | E201: 2022-02-23 | F201: 21,500.00
B202: 2019-05-22 | C202: 8.30 | E202: 2022-02-22 | F202: 21,500.00
B203: 2019-05-15 | C203: 8.34 | E203: 2022-02-21 | F203: 21,000.00
B204: 2019-05-08 | C204: 8.42 | E204: 2022-02-18 | F204: 20,700.00
B205: 2019-05-01 | C205: 8.42 | E205: 2022-02-17 | F205: 20,700.00
B206: 2019-04-24 | C206: 8.42 | E206: 2022-02-16 | F206: 20,700.00
B207: 2019-04-17 | C207: 8.42 | E207: 2022-02-15 | F207: 20,700.00
B208: 2019-04-10 | C208: 8.45 | E208: 2022-02-14 | F208: 20,700.00
B209: 2019-04-03 | C209: 8.50 | E209: 2022-02-11 | F209: 20,700.00
B210: 2019-03-27 | C210: 8.59 | E210: 2022-02-10 | F210: 20,700.00
B211: 2019-03-20 | C211: 8.96 | E211: 2022-02-08 | F211: 20,700.00
B212: 2019-03-13 | C212: 9.00 | E212: 2022-02-07 | F212: 20,700.00
B213: 2019-03-06 | C213: 9.02 | E213: 2022-01-28 | F213: 20,500.00
B214: 2019-02-27 | C214: 9.04 | E214: 2022-01-27 | F214: 20,500.00
B215: 2019-02-20 | C215: 8.89 | E215: 2022-01-26 | F215: 20,500.00
B216: 2019-02-13 | C216: 8.93 | E216: 2022-01-25 | F216: 20,500.00
B217: 2019-02-06 | C217: 8.98 | E217: 2022-01-24 | F217: 20,500.00
... 3252 more rows

Sheet 免责声明
A1: 目录
C6: 免责声明
